Workbook

Sheet input➡

Sheet 施設コード
A1: 参照する期間 | B1: ID | C1: 回答エリア | D1: 都道府県 | E1: DMO | F1: 市町村
A2: 3月 | B2: 101 | C2: =IFERROR(VLOOKUP(B2,【M】エリア!A:A,2,0),"ID(施設コード)を入力してください。") -> ID(施設コード)を入力してください。 | D2: 福井県 | E2: =IFERROR(VLOOKUP(B2,【M】エリア!A:B,2,0),"ID(施設コード)を入力してください。") -> (株)まちづくり小浜 | F2: =IFERROR(VLOOKUP(B2,【M】エリア!A:A,3,0),"ID(施設コード)を入力してください。") -> ID(施設コード)を入力してください。
B17: エリア一覧
B18: ID | C18: QRコード名 | D18: 市町 | E18: DMO
B19: 101 | E19: (株)まちづくり小浜
B20: 102 | E20: 勝山市観光まちづくり(株)
B21: 103 | E21: (一社)DMOさかい観光局
B22: 104 | E22: 三方五湖DMO(株)
B23: 105 | E23: 一般社団法人 越前町観光連盟
B24: 106 | E24: 一般財団法人 池田屋DMO準備室

Sheet output➡

Sheet 回答数
A1: 集計区分 | C1: 回答数 | D1: 回答月 | R1: 回答数 | T1: 回答月
D2: 4月 | E2: 5月 | F2: 6月 | G2: 7月 | H2: 8月 | I2: 9月 | J2: 10月 | K2: 11月 | L2: 12月 | M2: 1月 | N2: 2月 | O2: 3月 | P2: 合計 | T2: 4月 | U2: 5月 | V2: 6月 | W2: 7月 | X2: 8月 | Y2: 9月 | Z2: 10月 | AA2: 11月 | AB2: 12月 | AC2: 1月 | AD2: 2月 | AE2: 3月 | AF2: 合計
A3: 全体 | B3: =施設コード!$D$2 -> 福井県 | D3: =COUNTIFS(OFFSET(raw!$A$1,2,MATCH($D$1,raw!$2:$2,0)-1,COUNTA(raw!$A:$A)-1,1),D$2) -> 241 | E3: =COUNTIFS(OFFSET(raw!$A$1,2,MATCH($D$1,raw!$2:$2,0)-1,COUNTA(raw!$A:$A)-1,1),E$2) -> 3108 | F3: =COUNTIFS(OFFSET(raw!$A$1,2,MATCH($D$1,raw!$2:$2,0)-1,COUNTA(raw!$A:$A)-1,1),F$2) -> 2267 | G3: =COUNTIFS(OFFSET(raw!$A$1,2,MATCH($D$1,raw!$2:$2,0)-1,COUNTA(raw!$A:$A)-1,1),G$2) -> 2454 | H3: =COUNTIFS(OFFSET(raw!$A$1,2,MATCH($D$1,raw!$2:$2,0)-1,COUNTA(raw!$A:$A)-1,1),H$2) -> 2000 | I3: =COUNTIFS(OFFSET(raw!$A$1,2,MATCH($D$1,raw!$2:$2,0)-1,COUNTA(raw!$A:$A)-1,1),I$2) -> 1748 | J3: =COUNTIFS(OFFSET(raw!$A$1,2,MATCH($D$1,raw!$2:$2,0)-1,COUNTA(raw!$A:$A)-1,1),J$2) -> 1820 | K3: =COUNTIFS(OFFSET(raw!$A$1,2,MATCH($D$1,raw!$2:$2,0)-1,COUNTA(raw!$A:$A)-1,1),K$2) -> 2399 | L3: =COUNTIFS(OFFSET(raw!$A$1,2,MATCH($D$1,raw!$2:$2,0)-1,COUNTA(raw!$A:$A)-1,1),L$2) -> 1947 | M3: =COUNTIFS(OFFSET(raw!$A$1,2,MATCH($D$1,raw!$2:$2,0)-1,COUNTA(raw!$A:$A)-1,1),M$2) -> 882 | N3: =COUNTIFS(OFFSET(raw!$A$1,2,MATCH($D$1,raw!$2:$2,0)-1,COUNTA(raw!$A:$A)-1,1),N$2) -> 1352 | O3: =COUNTIFS(OFFSET(raw!$A$1,2,MATCH($D$1,raw!$2:$2,0)-1,COUNTA(raw!$A:$A)-1,1),O$2) -> 3163 | P3: =D3+E3+F3+G3+H3+I3+J3+K3+L3+M3+N3+O3 -> 23381 | R3: 福井県 | S3: 単月 | T3: =D3 -> 241 | U3: =E3 -> 3108 | V3: 2267 | W3: 2454 | X3: 2000 | Y3: 1748 | Z3: 1820 | AA3: 2399 | AB3: 1947 | AC3: 882 | AD3: 1352 | AE3: 3163 | AF3: 23381
A4: DMO | B4: =施設コード!$E$2 -> (株)まちづくり小浜 | D4: =COUNTIFS( OFFSET(raw!$A$1,2,MATCH(回答数!$A4,raw!$2:$2,0)-1,COUNTA(raw!$A:$A)-1,1),回答数!$B4, OFFSET(raw!$A$1,2,MATCH($D$1,raw!$2:$2,0)-1,COUNTA(raw!$A:$A)-1,1),D$2) -> 11 | E4: =COUNTIFS( OFFSET(raw!$A$1,2,MATCH(回答数!$A4,raw!$2:$2,0)-1,COUNTA(raw!$A:$A)-1,1),回答数!$B4, OFFSET(raw!$A$1,2,MATCH($D$1,raw!$2:$2,0)-1,COUNTA(raw!$A:$A)-1,1),E$2) -> 203 | F4: =COUNTIFS( OFFSET(raw!$A$1,2,MATCH(回答数!$A4,raw!$2:$2,0)-1,COUNTA(raw!$A:$A)-1,1),回答数!$B4, OFFSET(raw!$A$1,2,MATCH($D$1,raw!$2:$2,0)-1,COUNTA(raw!$A:$A)-1,1),F$2) -> 124 | G4: =COUNTIFS( OFFSET(raw!$A$1,2,MATCH(回答数!$A4,raw!$2:$2,0)-1,COUNTA(raw!$A:$A)-1,1),回答数!$B4, OFFSET(raw!$A$1,2,MATCH($D$1,raw!$2:$2,0)-1,COUNTA(raw!$A:$A)-1,1),G$2) -> 177 | H4: =COUNTIFS( OFFSET(raw!$A$1,2,MATCH(回答数!$A4,raw!$2:$2,0)-1,COUNTA(raw!$A:$A)-1,1),回答数!$B4, OFFSET(raw!$A$1,2,MATCH($D$1,raw!$2:$2,0)-1,COUNTA(raw!$A:$A)-1,1),H$2) -> 183 | I4: =COUNTIFS( OFFSET(raw!$A$1,2,MATCH(回答数!$A4,raw!$2:$2,0)-1,COUNTA(raw!$A:$A)-1,1),回答数!$B4, OFFSET(raw!$A$1,2,MATCH($D$1,raw!$2:$2,0)-1,COUNTA(raw!$A:$A)-1,1),I$2) -> 165 | J4: =COUNTIFS( OFFSET(raw!$A$1,2,MATCH(回答数!$A4,raw!$2:$2,0)-1,COUNTA(raw!$A:$A)-1,1),回答数!$B4, OFFSET(raw!$A$1,2,MATCH($D$1,raw!$2:$2,0)-1,COUNTA(raw!$A:$A)-1,1),J$2) -> 134 | K4: =COUNTIFS( OFFSET(raw!$A$1,2,MATCH(回答数!$A4,raw!$2:$2,0)-1,COUNTA(raw!$A:$A)-1,1),回答数!$B4, OFFSET(raw!$A$1,2,MATCH($D$1,raw!$2:$2,0)-1,COUNTA(raw!$A:$A)-1,1),K$2) -> 234 | L4: =COUNTIFS( OFFSET(raw!$A$1,2,MATCH(回答数!$A4,raw!$2:$2,0)-1,COUNTA(raw!$A:$A)-1,1),回答数!$B4, OFFSET(raw!$A$1,2,MATCH($D$1,raw!$2:$2,0)-1,COUNTA(raw!$A:$A)-1,1),L$2) -> 155 | M4: =COUNTIFS( OFFSET(raw!$A$1,2,MATCH(回答数!$A4,raw!$2:$2,0)-1,COUNTA(raw!$A:$A)-1,1),回答数!$B4, OFFSET(raw!$A$1,2,MATCH($D$1,raw!$2:$2,0)-1,COUNTA(raw!$A:$A)-1,1),M$2) -> 87 | N4: =COUNTIFS( OFFSET(raw!$A$1,2,MATCH(回答数!$A4,raw!$2:$2,0)-1,COUNTA(raw!$A:$A)-1,1),回答数!$B4, OFFSET(raw!$A$1,2,MATCH($D$1,raw!$2:$2,0)-1,COUNTA(raw!$A:$A)-1,1),N$2) -> 97 | O4: =COUNTIFS( OFFSET(raw!$A$1,2,MATCH(回答数!$A4,raw!$2:$2,0)-1,COUNTA(raw!$A:$A)-1,1),回答数!$B4, OFFSET(raw!$A$1,2,MATCH($D$1,raw!$2:$2,0)-1,COUNTA(raw!$A:$A)-1,1),O$2) -> 227 | P4: =D4+E4+F4+G4+H4+I4+J4+K4+L4+M4+N4+O4 -> 1797 | S4: 累計 | T4: =T3 -> 241 | U4: =T4+U3 -> 3349 | V4: =U4+V3 -> 5616 | W4: 8070 | X4: 10070 | Y4: 11818 | Z4: 13638 | AA4: 16037 | AB4: 17984 | AC4: 18866 | AD4: 20218 | AE4: 23381 | AF4: =AE4+AF3 -> 46762
A5: 市町村 | B5: =施設コード!F$2 -> ID(施設コード)を入力してください。 | D5: =COUNTIFS( OFFSET(raw!$A$1,2,MATCH(回答数!$A5,raw!$2:$2,0)-1,COUNTA(raw!$A:$A)-1,1),回答数!$B5, OFFSET(raw!$A$1,2,MATCH($D$1,raw!$2:$2,0)-1,COUNTA(raw!$A:$A)-1,1),D$2) -> 0 | E5: =COUNTIFS( OFFSET(raw!$A$1,2,MATCH(回答数!$A5,raw!$2:$2,0)-1,COUNTA(raw!$A:$A)-1,1),回答数!$B5, OFFSET(raw!$A$1,2,MATCH($D$1,raw!$2:$2,0)-1,COUNTA(raw!$A:$A)-1,1),E$2) -> 0 | F5: =COUNTIFS( OFFSET(raw!$A$1,2,MATCH(回答数!$A5,raw!$2:$2,0)-1,COUNTA(raw!$A:$A)-1,1),回答数!$B5, OFFSET(raw!$A$1,2,MATCH($D$1,raw!$2:$2,0)-1,COUNTA(raw!$A:$A)-1,1),F$2) -> 0 | G5: =COUNTIFS( OFFSET(raw!$A$1,2,MATCH(回答数!$A5,raw!$2:$2,0)-1,COUNTA(raw!$A:$A)-1,1),回答数!$B5, OFFSET(raw!$A$1,2,MATCH($D$1,raw!$2:$2,0)-1,COUNTA(raw!$A:$A)-1,1),G$2) -> 0 | H5: =COUNTIFS( OFFSET(raw!$A$1,2,MATCH(回答数!$A5,raw!$2:$2,0)-1,COUNTA(raw!$A:$A)-1,1),回答数!$B5, OFFSET(raw!$A$1,2,MATCH($D$1,raw!$2:$2,0)-1,COUNTA(raw!$A:$A)-1,1),H$2) -> 0 | I5: =COUNTIFS( OFFSET(raw!$A$1,2,MATCH(回答数!$A5,raw!$2:$2,0)-1,COUNTA(raw!$A:$A)-1,1),回答数!$B5, OFFSET(raw!$A$1,2,MATCH($D$1,raw!$2:$2,0)-1,COUNTA(raw!$A:$A)-1,1),I$2) -> 0 | J5: =COUNTIFS( OFFSET(raw!$A$1,2,MATCH(回答数!$A5,raw!$2:$2,0)-1,COUNTA(raw!$A:$A)-1,1),回答数!$B5, OFFSET(raw!$A$1,2,MATCH($D$1,raw!$2:$2,0)-1,COUNTA(raw!$A:$A)-1,1),J$2) -> 0 | K5: =COUNTIFS( OFFSET(raw!$A$1,2,MATCH(回答数!$A5,raw!$2:$2,0)-1,COUNTA(raw!$A:$A)-1,1),回答数!$B5, OFFSET(raw!$A$1,2,MATCH($D$1,raw!$2:$2,0)-1,COUNTA(raw!$A:$A)-1,1),K$2) -> 0 | L5: =COUNTIFS( OFFSET(raw!$A$1,2,MATCH(回答数!$A5,raw!$2:$2,0)-1,COUNTA(raw!$A:$A)-1,1),回答数!$B5, OFFSET(raw!$A$1,2,MATCH($D$1,raw!$2:$2,0)-1,COUNTA(raw!$A:$A)-1,1),L$2) -> 0 | M5: =COUNTIFS( OFFSET(raw!$A$1,2,MATCH(回答数!$A5,raw!$2:$2,0)-1,COUNTA(raw!$A:$A)-1,1),回答数!$B5, OFFSET(raw!$A$1,2,MATCH($D$1,raw!$2:$2,0)-1,COUNTA(raw!$A:$A)-1,1),M$2) -> 0 | N5: =COUNTIFS( OFFSET(raw!$A$1,2,MATCH(回答数!$A5,raw!$2:$2,0)-1,COUNTA(raw!$A:$A)-1,1),回答数!$B5, OFFSET(raw!$A$1,2,MATCH($D$1,raw!$2:$2,0)-1,COUNTA(raw!$A:$A)-1,1),N$2) -> 0 | O5: =COUNTIFS( OFFSET(raw!$A$1,2,MATCH(回答数!$A5,raw!$2:$2,0)-1,COUNTA(raw!$A:$A)-1,1),回答数!$B5, OFFSET(raw!$A$1,2,MATCH($D$1,raw!$2:$2,0)-1,COUNTA(raw!$A:$A)-1,1),O$2) -> 0 | P5: =D5+E5+F5+G5+H5+I5+J5+K5+L5+M5+N5+O5 -> 0 | R5: =施設コード!$E$2 -> (株)まちづくり小浜 | S5: 単月 | T5: =D4 -> 11 | U5: =E4 -> 203 | V5: 124 | W5: 177 | X5: 183 | Y5: 165 | Z5: 134 | AA5: 234 | AB5: 155 | AC5: 87 | AD5: 97 | AE5: 227 | AF5: 1797
A6: 回答エリア | B6: 福井駅前 エリア | D6: =COUNTIFS( OFFSET(raw!$A$1,2,MATCH(回答数!$A6,raw!$2:$2,0)-1,COUNTA(raw!$A:$A)-1,1),回答数!$B6, OFFSET(raw!$A$1,2,MATCH($D$1,raw!$2:$2,0)-1,COUNTA(raw!$A:$A)-1,1),D$2) -> 7 | E6: =COUNTIFS( OFFSET(raw!$A$1,2,MATCH(回答数!$A6,raw!$2:$2,0)-1,COUNTA(raw!$A:$A)-1,1),回答数!$B6, OFFSET(raw!$A$1,2,MATCH($D$1,raw!$2:$2,0)-1,COUNTA(raw!$A:$A)-1,1),E$2) -> 79 | F6: =COUNTIFS( OFFSET(raw!$A$1,2,MATCH(回答数!$A6,raw!$2:$2,0)-1,COUNTA(raw!$A:$A)-1,1),回答数!$B6, OFFSET(raw!$A$1,2,MATCH($D$1,raw!$2:$2,0)-1,COUNTA(raw!$A:$A)-1,1),F$2) -> 56 | G6: =COUNTIFS( OFFSET(raw!$A$1,2,MATCH(回答数!$A6,raw!$2:$2,0)-1,COUNTA(raw!$A:$A)-1,1),回答数!$B6, OFFSET(raw!$A$1,2,MATCH($D$1,raw!$2:$2,0)-1,COUNTA(raw!$A:$A)-1,1),G$2) -> 71 | H6: =COUNTIFS( OFFSET(raw!$A$1,2,MATCH(回答数!$A6,raw!$2:$2,0)-1,COUNTA(raw!$A:$A)-1,1),回答数!$B6, OFFSET(raw!$A$1,2,MATCH($D$1,raw!$2:$2,0)-1,COUNTA(raw!$A:$A)-1,1),H$2) -> 74 | I6: =COUNTIFS( OFFSET(raw!$A$1,2,MATCH(回答数!$A6,raw!$2:$2,0)-1,COUNTA(raw!$A:$A)-1,1),回答数!$B6, OFFSET(raw!$A$1,2,MATCH($D$1,raw!$2:$2,0)-1,COUNTA(raw!$A:$A)-1,1),I$2) -> 42 | J6: =COUNTIFS( OFFSET(raw!$A$1,2,MATCH(回答数!$A6,raw!$2:$2,0)-1,COUNTA(raw!$A:$A)-1,1),回答数!$B6, OFFSET(raw!$A$1,2,MATCH($D$1,raw!$2:$2,0)-1,COUNTA(raw!$A:$A)-1,1),J$2) -> 81 | K6: =COUNTIFS( OFFSET(raw!$A$1,2,MATCH(回答数!$A6,raw!$2:$2,0)-1,COUNTA(raw!$A:$A)-1,1),回答数!$B6, OFFSET(raw!$A$1,2,MATCH($D$1,raw!$2:$2,0)-1,COUNTA(raw!$A:$A)-1,1),K$2) -> 105 | L6: =COUNTIFS( OFFSET(raw!$A$1,2,MATCH(回答数!$A6,raw!$2:$2,0)-1,COUNTA(raw!$A:$A)-1,1),回答数!$B6, OFFSET(raw!$A$1,2,MATCH($D$1,raw!$2:$2,0)-1,COUNTA(raw!$A:$A)-1,1),L$2) -> 76 | M6: =COUNTIFS( OFFSET(raw!$A$1,2,MATCH(回答数!$A6,raw!$2:$2,0)-1,COUNTA(raw!$A:$A)-1,1),回答数!$B6, OFFSET(raw!$A$1,2,MATCH($D$1,raw!$2:$2,0)-1,COUNTA(raw!$A:$A)-1,1),M$2) -> 32 | N6: =COUNTIFS( OFFSET(raw!$A$1,2,MATCH(回答数!$A6,raw!$2:$2,0)-1,COUNTA(raw!$A:$A)-1,1),回答数!$B6, OFFSET(raw!$A$1,2,MATCH($D$1,raw!$2:$2,0)-1,COUNTA(raw!$A:$A)-1,1),N$2) -> 57 | O6: =COUNTIFS( OFFSET(raw!$A$1,2,MATCH(回答数!$A6,raw!$2:$2,0)-1,COUNTA(raw!$A:$A)-1,1),回答数!$B6, OFFSET(raw!$A$1,2,MATCH($D$1,raw!$2:$2,0)-1,COUNTA(raw!$A:$A)-1,1),O$2) -> 216 | P6: 896 | S6: 累計 | T6: =T5 -> 11 | U6: =T6+U5 -> 214 | V6: =U6+V5 -> 338 | W6: =V6+W5 -> 515 | X6: =W6+X5 -> 698 | Y6: =X6+Y5 -> 863 | Z6: =Y6+Z5 -> 997 | AA6: =Z6+AA5 -> 1231 | AB6: =AA6+AB5 -> 1386 | AC6: =AB6+AC5 -> 1473 | AD6: =AC6+AD5 -> 1570 | AE6: =AD6+AE5 -> 1797 | AF6: 3594
A7: 回答エリア | B7: 福井駅前 エリア（宿泊施設） | D7: =COUNTIFS( OFFSET(raw!$A$1,2,MATCH(回答数!$A7,raw!$2:$2,0)-1,COUNTA(raw!$A:$A)-1,1),回答数!$B7, OFFSET(raw!$A$1,2,MATCH($D$1,raw!$2:$2,0)-1,COUNTA(raw!$A:$A)-1,1),D$2) -> 3 | E7: =COUNTIFS( OFFSET(raw!$A$1,2,MATCH(回答数!$A7,raw!$2:$2,0)-1,COUNTA(raw!$A:$A)-1,1),回答数!$B7, OFFSET(raw!$A$1,2,MATCH($D$1,raw!$2:$2,0)-1,COUNTA(raw!$A:$A)-1,1),E$2) -> 27 | F7: =COUNTIFS( OFFSET(raw!$A$1,2,MATCH(回答数!$A7,raw!$2:$2,0)-1,COUNTA(raw!$A:$A)-1,1),回答数!$B7, OFFSET(raw!$A$1,2,MATCH($D$1,raw!$2:$2,0)-1,COUNTA(raw!$A:$A)-1,1),F$2) -> 16 | G7: =COUNTIFS( OFFSET(raw!$A$1,2,MATCH(回答数!$A7,raw!$2:$2,0)-1,COUNTA(raw!$A:$A)-1,1),回答数!$B7, OFFSET(raw!$A$1,2,MATCH($D$1,raw!$2:$2,0)-1,COUNTA(raw!$A:$A)-1,1),G$2) -> 25 | H7: =COUNTIFS( OFFSET(raw!$A$1,2,MATCH(回答数!$A7,raw!$2:$2,0)-1,COUNTA(raw!$A:$A)-1,1),回答数!$B7, OFFSET(raw!$A$1,2,MATCH($D$1,raw!$2:$2,0)-1,COUNTA(raw!$A:$A)-1,1),H$2) -> 16 | I7: =COUNTIFS( OFFSET(raw!$A$1,2,MATCH(回答数!$A7,raw!$2:$2,0)-1,COUNTA(raw!$A:$A)-1,1),回答数!$B7, OFFSET(raw!$A$1,2,MATCH($D$1,raw!$2:$2,0)-1,COUNTA(raw!$A:$A)-1,1),I$2) -> 28 | J7: =COUNTIFS( OFFSET(raw!$A$1,2,MATCH(回答数!$A7,raw!$2:$2,0)-1,COUNTA(raw!$A:$A)-1,1),回答数!$B7, OFFSET(raw!$A$1,2,MATCH($D$1,raw!$2:$2,0)-1,COUNTA(raw!$A:$A)-1,1),J$2) -> 45 | K7: =COUNTIFS( OFFSET(raw!$A$1,2,MATCH(回答数!$A7,raw!$2:$2,0)-1,COUNTA(raw!$A:$A)-1,1),回答数!$B7, OFFSET(raw!$A$1,2,MATCH($D$1,raw!$2:$2,0)-1,COUNTA(raw!$A:$A)-1,1),K$2) -> 61 | L7: =COUNTIFS( OFFSET(raw!$A$1,2,MATCH(回答数!$A7,raw!$2:$2,0)-1,COUNTA(raw!$A:$A)-1,1),回答数!$B7, OFFSET(raw!$A$1,2,MATCH($D$1,raw!$2:$2,0)-1,COUNTA(raw!$A:$A)-1,1),L$2) -> 52 | M7: =COUNTIFS( OFFSET(raw!$A$1,2,MATCH(回答数!$A7,raw!$2:$2,0)-1,COUNTA(raw!$A:$A)-1,1),回答数!$B7, OFFSET(raw!$A$1,2,MATCH($D$1,raw!$2:$2,0)-1,COUNTA(raw!$A:$A)-1,1),M$2) -> 32 | N7: =COUNTIFS( OFFSET(raw!$A$1,2,MATCH(回答数!$A7,raw!$2:$2,0)-1,COUNTA(raw!$A:$A)-1,1),回答数!$B7, OFFSET(raw!$A$1,2,MATCH($D$1,raw!$2:$2,0)-1,COUNTA(raw!$A:$A)-1,1),N$2) -> 50 | O7: =COUNTIFS( OFFSET(raw!$A$1,2,MATCH(回答数!$A7,raw!$2:$2,0)-1,COUNTA(raw!$A:$A)-1,1),回答数!$B7, OFFSET(raw!$A$1,2,MATCH($D$1,raw!$2:$2,0)-1,COUNTA(raw!$A:$A)-1,1),O$2) -> 65 | P7: 420
A8: 回答エリア | B8: 北ノ庄 エリア | D8: =COUNTIFS( OFFSET(raw!$A$1,2,MATCH(回答数!$A8,raw!$2:$2,0)-1,COUNTA(raw!$A:$A)-1,1),回答数!$B8, OFFSET(raw!$A$1,2,MATCH($D$1,raw!$2:$2,0)-1,COUNTA(raw!$A:$A)-1,1),D$2) -> 1 | E8: =COUNTIFS( OFFSET(raw!$A$1,2,MATCH(回答数!$A8,raw!$2:$2,0)-1,COUNTA(raw!$A:$A)-1,1),回答数!$B8, OFFSET(raw!$A$1,2,MATCH($D$1,raw!$2:$2,0)-1,COUNTA(raw!$A:$A)-1,1),E$2) -> 17 | F8: =COUNTIFS( OFFSET(raw!$A$1,2,MATCH(回答数!$A8,raw!$2:$2,0)-1,COUNTA(raw!$A:$A)-1,1),回答数!$B8, OFFSET(raw!$A$1,2,MATCH($D$1,raw!$2:$2,0)-1,COUNTA(raw!$A:$A)-1,1),F$2) -> 10 | G8: =COUNTIFS( OFFSET(raw!$A$1,2,MATCH(回答数!$A8,raw!$2:$2,0)-1,COUNTA(raw!$A:$A)-1,1),回答数!$B8, OFFSET(raw!$A$1,2,MATCH($D$1,raw!$2:$2,0)-1,COUNTA(raw!$A:$A)-1,1),G$2) -> 14 | H8: =COUNTIFS( OFFSET(raw!$A$1,2,MATCH(回答数!$A8,raw!$2:$2,0)-1,COUNTA(raw!$A:$A)-1,1),回答数!$B8, OFFSET(raw!$A$1,2,MATCH($D$1,raw!$2:$2,0)-1,COUNTA(raw!$A:$A)-1,1),H$2) -> 23 | I8: =COUNTIFS( OFFSET(raw!$A$1,2,MATCH(回答数!$A8,raw!$2:$2,0)-1,COUNTA(raw!$A:$A)-1,1),回答数!$B8, OFFSET(raw!$A$1,2,MATCH($D$1,raw!$2:$2,0)-1,COUNTA(raw!$A:$A)-1,1),I$2) -> 20 | J8: =COUNTIFS( OFFSET(raw!$A$1,2,MATCH(回答数!$A8,raw!$2:$2,0)-1,COUNTA(raw!$A:$A)-1,1),回答数!$B8, OFFSET(raw!$A$1,2,MATCH($D$1,raw!$2:$2,0)-1,COUNTA(raw!$A:$A)-1,1),J$2) -> 17 | K8: =COUNTIFS( OFFSET(raw!$A$1,2,MATCH(回答数!$A8,raw!$2:$2,0)-1,COUNTA(raw!$A:$A)-1,1),回答数!$B8, OFFSET(raw!$A$1,2,MATCH($D$1,raw!$2:$2,0)-1,COUNTA(raw!$A:$A)-1,1),K$2) -> 16 | L8: =COUNTIFS( OFFSET(raw!$A$1,2,MATCH(回答数!$A8,raw!$2:$2,0)-1,COUNTA(raw!$A:$A)-1,1),回答数!$B8, OFFSET(raw!$A$1,2,MATCH($D$1,raw!$2:$2,0)-1,COUNTA(raw!$A:$A)-1,1),L$2) -> 14 | M8: =COUNTIFS( OFFSET(raw!$A$1,2,MATCH(回答数!$A8,raw!$2:$2,0)-1,COUNTA(raw!$A:$A)-1,1),回答数!$B8, OFFSET(raw!$A$1,2,MATCH($D$1,raw!$2:$2,0)-1,COUNTA(raw!$A:$A)-1,1),M$2) -> 6 | N8: =COUNTIFS( OFFSET(raw!$A$1,2,MATCH(回答数!$A8,raw!$2:$2,0)-1,COUNTA(raw!$A:$A)-1,1),回答数!$B8, OFFSET(raw!$A$1,2,MATCH($D$1,raw!$2:$2,0)-1,COUNTA(raw!$A:$A)-1,1),N$2) -> 13 | O8: =COUNTIFS( OFFSET(raw!$A$1,2,MATCH(回答数!$A8,raw!$2:$2,0)-1,COUNTA(raw!$A:$A)-1,1),回答数!$B8, OFFSET(raw!$A$1,2,MATCH($D$1,raw!$2:$2,0)-1,COUNTA(raw!$A:$A)-1,1),O$2) -> 17 | P8: 168
A9: 回答エリア | B9: 名勝 養浩館庭園 エリア | D9: =COUNTIFS( OFFSET(raw!$A$1,2,MATCH(回答数!$A9,raw!$2:$2,0)-1,COUNTA(raw!$A:$A)-1,1),回答数!$B9, OFFSET(raw!$A$1,2,MATCH($D$1,raw!$2:$2,0)-1,COUNTA(raw!$A:$A)-1,1),D$2) -> 1 | E9: =COUNTIFS( OFFSET(raw!$A$1,2,MATCH(回答数!$A9,raw!$2:$2,0)-1,COUNTA(raw!$A:$A)-1,1),回答数!$B9, OFFSET(raw!$A$1,2,MATCH($D$1,raw!$2:$2,0)-1,COUNTA(raw!$A:$A)-1,1),E$2) -> 16 | F9: =COUNTIFS( OFFSET(raw!$A$1,2,MATCH(回答数!$A9,raw!$2:$2,0)-1,COUNTA(raw!$A:$A)-1,1),回答数!$B9, OFFSET(raw!$A$1,2,MATCH($D$1,raw!$2:$2,0)-1,COUNTA(raw!$A:$A)-1,1),F$2) -> 10 | G9: =COUNTIFS( OFFSET(raw!$A$1,2,MATCH(回答数!$A9,raw!$2:$2,0)-1,COUNTA(raw!$A:$A)-1,1),回答数!$B9, OFFSET(raw!$A$1,2,MATCH($D$1,raw!$2:$2,0)-1,COUNTA(raw!$A:$A)-1,1),G$2) -> 11 | H9: =COUNTIFS( OFFSET(raw!$A$1,2,MATCH(回答数!$A9,raw!$2:$2,0)-1,COUNTA(raw!$A:$A)-1,1),回答数!$B9, OFFSET(raw!$A$1,2,MATCH($D$1,raw!$2:$2,0)-1,COUNTA(raw!$A:$A)-1,1),H$2) -> 9 | I9: =COUNTIFS( OFFSET(raw!$A$1,2,MATCH(回答数!$A9,raw!$2:$2,0)-1,COUNTA(raw!$A:$A)-1,1),回答数!$B9, OFFSET(raw!$A$1,2,MATCH($D$1,raw!$2:$2,0)-1,COUNTA(raw!$A:$A)-1,1),I$2) -> 9 | J9: =COUNTIFS( OFFSET(raw!$A$1,2,MATCH(回答数!$A9,raw!$2:$2,0)-1,COUNTA(raw!$A:$A)-1,1),回答数!$B9, OFFSET(raw!$A$1,2,MATCH($D$1,raw!$2:$2,0)-1,COUNTA(raw!$A:$A)-1,1),J$2) -> 17 | K9: =COUNTIFS( OFFSET(raw!$A$1,2,MATCH(回答数!$A9,raw!$2:$2,0)-1,COUNTA(raw!$A:$A)-1,1),回答数!$B9, OFFSET(raw!$A$1,2,MATCH($D$1,raw!$2:$2,0)-1,COUNTA(raw!$A:$A)-1,1),K$2) -> 17 | L9: =COUNTIFS( OFFSET(raw!$A$1,2,MATCH(回答数!$A9,raw!$2:$2,0)-1,COUNTA(raw!$A:$A)-1,1),回答数!$B9, OFFSET(raw!$A$1,2,MATCH($D$1,raw!$2:$2,0)-1,COUNTA(raw!$A:$A)-1,1),L$2) -> 10 | M9: =COUNTIFS( OFFSET(raw!$A$1,2,MATCH(回答数!$A9,raw!$2:$2,0)-1,COUNTA(raw!$A:$A)-1,1),回答数!$B9, OFFSET(raw!$A$1,2,MATCH($D$1,raw!$2:$2,0)-1,COUNTA(raw!$A:$A)-1,1),M$2) -> 7 | N9: =COUNTIFS( OFFSET(raw!$A$1,2,MATCH(回答数!$A9,raw!$2:$2,0)-1,COUNTA(raw!$A:$A)-1,1),回答数!$B9, OFFSET(raw!$A$1,2,MATCH($D$1,raw!$2:$2,0)-1,COUNTA(raw!$A:$A)-1,1),N$2) -> 8 | O9: =COUNTIFS( OFFSET(raw!$A$1,2,MATCH(回答数!$A9,raw!$2:$2,0)-1,COUNTA(raw!$A:$A)-1,1),回答数!$B9, OFFSET(raw!$A$1,2,MATCH($D$1,raw!$2:$2,0)-1,COUNTA(raw!$A:$A)-1,1),O$2) -> 19 | P9: 134
A10: 回答エリア | B10: ふくい鮮いちば エリア | D10: =COUNTIFS( OFFSET(raw!$A$1,2,MATCH(回答数!$A10,raw!$2:$2,0)-1,COUNTA(raw!$A:$A)-1,1),回答数!$B10, OFFSET(raw!$A$1,2,MATCH($D$1,raw!$2:$2,0)-1,COUNTA(raw!$A:$A)-1,1),D$2) -> 3 | E10: =COUNTIFS( OFFSET(raw!$A$1,2,MATCH(回答数!$A10,raw!$2:$2,0)-1,COUNTA(raw!$A:$A)-1,1),回答数!$B10, OFFSET(raw!$A$1,2,MATCH($D$1,raw!$2:$2,0)-1,COUNTA(raw!$A:$A)-1,1),E$2) -> 37 | F10: =COUNTIFS( OFFSET(raw!$A$1,2,MATCH(回答数!$A10,raw!$2:$2,0)-1,COUNTA(raw!$A:$A)-1,1),回答数!$B10, OFFSET(raw!$A$1,2,MATCH($D$1,raw!$2:$2,0)-1,COUNTA(raw!$A:$A)-1,1),F$2) -> 13 | G10: =COUNTIFS( OFFSET(raw!$A$1,2,MATCH(回答数!$A10,raw!$2:$2,0)-1,COUNTA(raw!$A:$A)-1,1),回答数!$B10, OFFSET(raw!$A$1,2,MATCH($D$1,raw!$2:$2,0)-1,COUNTA(raw!$A:$A)-1,1),G$2) -> 15 | H10: =COUNTIFS( OFFSET(raw!$A$1,2,MATCH(回答数!$A10,raw!$2:$2,0)-1,COUNTA(raw!$A:$A)-1,1),回答数!$B10, OFFSET(raw!$A$1,2,MATCH($D$1,raw!$2:$2,0)-1,COUNTA(raw!$A:$A)-1,1),H$2) -> 11 | I10: =COUNTIFS( OFFSET(raw!$A$1,2,MATCH(回答数!$A10,raw!$2:$2,0)-1,COUNTA(raw!$A:$A)-1,1),回答数!$B10, OFFSET(raw!$A$1,2,MATCH($D$1,raw!$2:$2,0)-1,COUNTA(raw!$A:$A)-1,1),I$2) -> 14 | J10: =COUNTIFS( OFFSET(raw!$A$1,2,MATCH(回答数!$A10,raw!$2:$2,0)-1,COUNTA(raw!$A:$A)-1,1),回答数!$B10, OFFSET(raw!$A$1,2,MATCH($D$1,raw!$2:$2,0)-1,COUNTA(raw!$A:$A)-1,1),J$2) -> 18 | K10: =COUNTIFS( OFFSET(raw!$A$1,2,MATCH(回答数!$A10,raw!$2:$2,0)-1,COUNTA(raw!$A:$A)-1,1),回答数!$B10, OFFSET(raw!$A$1,2,MATCH($D$1,raw!$2:$2,0)-1,COUNTA(raw!$A:$A)-1,1),K$2) -> 25 | L10: =COUNTIFS( OFFSET(raw!$A$1,2,MATCH(回答数!$A10,raw!$2:$2,0)-1,COUNTA(raw!$A:$A)-1,1),回答数!$B10, OFFSET(raw!$A$1,2,MATCH($D$1,raw!$2:$2,0)-1,COUNTA(raw!$A:$A)-1,1),L$2) -> 12 | M10: =COUNTIFS( OFFSET(raw!$A$1,2,MATCH(回答数!$A10,raw!$2:$2,0)-1,COUNTA(raw!$A:$A)-1,1),回答数!$B10, OFFSET(raw!$A$1,2,MATCH($D$1,raw!$2:$2,0)-1,COUNTA(raw!$A:$A)-1,1),M$2) -> 9 | N10: =COUNTIFS( OFFSET(raw!$A$1,2,MATCH(回答数!$A10,raw!$2:$2,0)-1,COUNTA(raw!$A:$A)-1,1),回答数!$B10, OFFSET(raw!$A$1,2,MATCH($D$1,raw!$2:$2,0)-1,COUNTA(raw!$A:$A)-1,1),N$2) -> 5 | O10: =COUNTIFS( OFFSET(raw!$A$1,2,MATCH(回答数!$A10,raw!$2:$2,0)-1,COUNTA(raw!$A:$A)-1,1),回答数!$B10, OFFSET(raw!$A$1,2,MATCH($D$1,raw!$2:$2,0)-1,COUNTA(raw!$A:$A)-1,1),O$2) -> 19 | P10: 181
A11: 回答エリア | B11: 一乗谷朝倉氏遺跡 エリア | D11: =COUNTIFS( OFFSET(raw!$A$1,2,MATCH(回答数!$A11,raw!$2:$2,0)-1,COUNTA(raw!$A:$A)-1,1),回答数!$B11, OFFSET(raw!$A$1,2,MATCH($D$1,raw!$2:$2,0)-1,COUNTA(raw!$A:$A)-1,1),D$2) -> 15 | E11: =COUNTIFS( OFFSET(raw!$A$1,2,MATCH(回答数!$A11,raw!$2:$2,0)-1,COUNTA(raw!$A:$A)-1,1),回答数!$B11, OFFSET(raw!$A$1,2,MATCH($D$1,raw!$2:$2,0)-1,COUNTA(raw!$A:$A)-1,1),E$2) -> 178 | F11: =COUNTIFS( OFFSET(raw!$A$1,2,MATCH(回答数!$A11,raw!$2:$2,0)-1,COUNTA(raw!$A:$A)-1,1),回答数!$B11, OFFSET(raw!$A$1,2,MATCH($D$1,raw!$2:$2,0)-1,COUNTA(raw!$A:$A)-1,1),F$2) -> 118 | G11: =COUNTIFS( OFFSET(raw!$A$1,2,MATCH(回答数!$A11,raw!$2:$2,0)-1,COUNTA(raw!$A:$A)-1,1),回答数!$B11, OFFSET(raw!$A$1,2,MATCH($D$1,raw!$2:$2,0)-1,COUNTA(raw!$A:$A)-1,1),G$2) -> 96 | H11: =COUNTIFS( OFFSET(raw!$A$1,2,MATCH(回答数!$A11,raw!$2:$2,0)-1,COUNTA(raw!$A:$A)-1,1),回答数!$B11, OFFSET(raw!$A$1,2,MATCH($D$1,raw!$2:$2,0)-1,COUNTA(raw!$A:$A)-1,1),H$2) -> 106 | I11: =COUNTIFS( OFFSET(raw!$A$1,2,MATCH(回答数!$A11,raw!$2:$2,0)-1,COUNTA(raw!$A:$A)-1,1),回答数!$B11, OFFSET(raw!$A$1,2,MATCH($D$1,raw!$2:$2,0)-1,COUNTA(raw!$A:$A)-1,1),I$2) -> 82 | J11: =COUNTIFS( OFFSET(raw!$A$1,2,MATCH(回答数!$A11,raw!$2:$2,0)-1,COUNTA(raw!$A:$A)-1,1),回答数!$B11, OFFSET(raw!$A$1,2,MATCH($D$1,raw!$2:$2,0)-1,COUNTA(raw!$A:$A)-1,1),J$2) -> 89 | K11: =COUNTIFS( OFFSET(raw!$A$1,2,MATCH(回答数!$A11,raw!$2:$2,0)-1,COUNTA(raw!$A:$A)-1,1),回答数!$B11, OFFSET(raw!$A$1,2,MATCH($D$1,raw!$2:$2,0)-1,COUNTA(raw!$A:$A)-1,1),K$2) -> 109 | L11: =COUNTIFS( OFFSET(raw!$A$1,2,MATCH(回答数!$A11,raw!$2:$2,0)-1,COUNTA(raw!$A:$A)-1,1),回答数!$B11, OFFSET(raw!$A$1,2,MATCH($D$1,raw!$2:$2,0)-1,COUNTA(raw!$A:$A)-1,1),L$2) -> 70 | M11: =COUNTIFS( OFFSET(raw!$A$1,2,MATCH(回答数!$A11,raw!$2:$2,0)-1,COUNTA(raw!$A:$A)-1,1),回答数!$B11, OFFSET(raw!$A$1,2,MATCH($D$1,raw!$2:$2,0)-1,COUNTA(raw!$A:$A)-1,1),M$2) -> 31 | N11: =COUNTIFS( OFFSET(raw!$A$1,2,MATCH(回答数!$A11,raw!$2:$2,0)-1,COUNTA(raw!$A:$A)-1,1),回答数!$B11, OFFSET(raw!$A$1,2,MATCH($D$1,raw!$2:$2,0)-1,COUNTA(raw!$A:$A)-1,1),N$2) -> 50 | O11: =COUNTIFS( OFFSET(raw!$A$1,2,MATCH(回答数!$A11,raw!$2:$2,0)-1,COUNTA(raw!$A:$A)-1,1),回答数!$B11, OFFSET(raw!$A$1,2,MATCH($D$1,raw!$2:$2,0)-1,COUNTA(raw!$A:$A)-1,1),O$2) -> 95 | P11: 1039
A12: 回答エリア | B12: 越前海岸 北部 エリア | D12: =COUNTIFS( OFFSET(raw!$A$1,2,MATCH(回答数!$A12,raw!$2:$2,0)-1,COUNTA(raw!$A:$A)-1,1),回答数!$B12, OFFSET(raw!$A$1,2,MATCH($D$1,raw!$2:$2,0)-1,COUNTA(raw!$A:$A)-1,1),D$2) -> 3 | E12: =COUNTIFS( OFFSET(raw!$A$1,2,MATCH(回答数!$A12,raw!$2:$2,0)-1,COUNTA(raw!$A:$A)-1,1),回答数!$B12, OFFSET(raw!$A$1,2,MATCH($D$1,raw!$2:$2,0)-1,COUNTA(raw!$A:$A)-1,1),E$2) -> 22 | F12: =COUNTIFS( OFFSET(raw!$A$1,2,MATCH(回答数!$A12,raw!$2:$2,0)-1,COUNTA(raw!$A:$A)-1,1),回答数!$B12, OFFSET(raw!$A$1,2,MATCH($D$1,raw!$2:$2,0)-1,COUNTA(raw!$A:$A)-1,1),F$2) -> 14 | G12: =COUNTIFS( OFFSET(raw!$A$1,2,MATCH(回答数!$A12,raw!$2:$2,0)-1,COUNTA(raw!$A:$A)-1,1),回答数!$B12, OFFSET(raw!$A$1,2,MATCH($D$1,raw!$2:$2,0)-1,COUNTA(raw!$A:$A)-1,1),G$2) -> 13 | H12: =COUNTIFS( OFFSET(raw!$A$1,2,MATCH(回答数!$A12,raw!$2:$2,0)-1,COUNTA(raw!$A:$A)-1,1),回答数!$B12, OFFSET(raw!$A$1,2,MATCH($D$1,raw!$2:$2,0)-1,COUNTA(raw!$A:$A)-1,1),H$2) -> 8 | I12: =COUNTIFS( OFFSET(raw!$A$1,2,MATCH(回答数!$A12,raw!$2:$2,0)-1,COUNTA(raw!$A:$A)-1,1),回答数!$B12, OFFSET(raw!$A$1,2,MATCH($D$1,raw!$2:$2,0)-1,COUNTA(raw!$A:$A)-1,1),I$2) -> 8 | J12: =COUNTIFS( OFFSET(raw!$A$1,2,MATCH(回答数!$A12,raw!$2:$2,0)-1,COUNTA(raw!$A:$A)-1,1),回答数!$B12, OFFSET(raw!$A$1,2,MATCH($D$1,raw!$2:$2,0)-1,COUNTA(raw!$A:$A)-1,1),J$2) -> 6 | K12: =COUNTIFS( OFFSET(raw!$A$1,2,MATCH(回答数!$A12,raw!$2:$2,0)-1,COUNTA(raw!$A:$A)-1,1),回答数!$B12, OFFSET(raw!$A$1,2,MATCH($D$1,raw!$2:$2,0)-1,COUNTA(raw!$A:$A)-1,1),K$2) -> 11 | L12: =COUNTIFS( OFFSET(raw!$A$1,2,MATCH(回答数!$A12,raw!$2:$2,0)-1,COUNTA(raw!$A:$A)-1,1),回答数!$B12, OFFSET(raw!$A$1,2,MATCH($D$1,raw!$2:$2,0)-1,COUNTA(raw!$A:$A)-1,1),L$2) -> 14 | M12: =COUNTIFS( OFFSET(raw!$A$1,2,MATCH(回答数!$A12,raw!$2:$2,0)-1,COUNTA(raw!$A:$A)-1,1),回答数!$B12, OFFSET(raw!$A$1,2,MATCH($D$1,raw!$2:$2,0)-1,COUNTA(raw!$A:$A)-1,1),M$2) -> 9 | N12: =COUNTIFS( OFFSET(raw!$A$1,2,MATCH(回答数!$A12,raw!$2:$2,0)-1,COUNTA(raw!$A:$A)-1,1),回答数!$B12, OFFSET(raw!$A$1,2,MATCH($D$1,raw!$2:$2,0)-1,COUNTA(raw!$A:$A)-1,1),N$2) -> 10 | O12: =COUNTIFS( OFFSET(raw!$A$1,2,MATCH(回答数!$A12,raw!$2:$2,0)-1,COUNTA(raw!$A:$A)-1,1),回答数!$B12, OFFSET(raw!$A$1,2,MATCH($D$1,raw!$2:$2,0)-1,COUNTA(raw!$A:$A)-1,1),O$2) -> 32 | P12: 150
A13: 回答エリア | B13: 大安禅寺 エリア | D13: =COUNTIFS( OFFSET(raw!$A$1,2,MATCH(回答数!$A13,raw!$2:$2,0)-1,COUNTA(raw!$A:$A)-1,1),回答数!$B13, OFFSET(raw!$A$1,2,MATCH($D$1,raw!$2:$2,0)-1,COUNTA(raw!$A:$A)-1,1),D$2) -> 0 | E13: =COUNTIFS( OFFSET(raw!$A$1,2,MATCH(回答数!$A13,raw!$2:$2,0)-1,COUNTA(raw!$A:$A)-1,1),回答数!$B13, OFFSET(raw!$A$1,2,MATCH($D$1,raw!$2:$2,0)-1,COUNTA(raw!$A:$A)-1,1),E$2) -> 8 | F13: =COUNTIFS( OFFSET(raw!$A$1,2,MATCH(回答数!$A13,raw!$2:$2,0)-1,COUNTA(raw!$A:$A)-1,1),回答数!$B13, OFFSET(raw!$A$1,2,MATCH($D$1,raw!$2:$2,0)-1,COUNTA(raw!$A:$A)-1,1),F$2) -> 0 | G13: =COUNTIFS( OFFSET(raw!$A$1,2,MATCH(回答数!$A13,raw!$2:$2,0)-1,COUNTA(raw!$A:$A)-1,1),回答数!$B13, OFFSET(raw!$A$1,2,MATCH($D$1,raw!$2:$2,0)-1,COUNTA(raw!$A:$A)-1,1),G$2) -> 3 | H13: =COUNTIFS( OFFSET(raw!$A$1,2,MATCH(回答数!$A13,raw!$2:$2,0)-1,COUNTA(raw!$A:$A)-1,1),回答数!$B13, OFFSET(raw!$A$1,2,MATCH($D$1,raw!$2:$2,0)-1,COUNTA(raw!$A:$A)-1,1),H$2) -> 0 | I13: =COUNTIFS( OFFSET(raw!$A$1,2,MATCH(回答数!$A13,raw!$2:$2,0)-1,COUNTA(raw!$A:$A)-1,1),回答数!$B13, OFFSET(raw!$A$1,2,MATCH($D$1,raw!$2:$2,0)-1,COUNTA(raw!$A:$A)-1,1),I$2) -> 1 | J13: =COUNTIFS( OFFSET(raw!$A$1,2,MATCH(回答数!$A13,raw!$2:$2,0)-1,COUNTA(raw!$A:$A)-1,1),回答数!$B13, OFFSET(raw!$A$1,2,MATCH($D$1,raw!$2:$2,0)-1,COUNTA(raw!$A:$A)-1,1),J$2) -> 11 | K13: =COUNTIFS( OFFSET(raw!$A$1,2,MATCH(回答数!$A13,raw!$2:$2,0)-1,COUNTA(raw!$A:$A)-1,1),回答数!$B13, OFFSET(raw!$A$1,2,MATCH($D$1,raw!$2:$2,0)-1,COUNTA(raw!$A:$A)-1,1),K$2) -> 3 | L13: =COUNTIFS( OFFSET(raw!$A$1,2,MATCH(回答数!$A13,raw!$2:$2,0)-1,COUNTA(raw!$A:$A)-1,1),回答数!$B13, OFFSET(raw!$A$1,2,MATCH($D$1,raw!$2:$2,0)-1,COUNTA(raw!$A:$A)-1,1),L$2) -> 2 | M13: =COUNTIFS( OFFSET(raw!$A$1,2,MATCH(回答数!$A13,raw!$2:$2,0)-1,COUNTA(raw!$A:$A)-1,1),回答数!$B13, OFFSET(raw!$A$1,2,MATCH($D$1,raw!$2:$2,0)-1,COUNTA(raw!$A:$A)-1,1),M$2) -> 0 | N13: =COUNTIFS( OFFSET(raw!$A$1,2,MATCH(回答数!$A13,raw!$2:$2,0)-1,COUNTA(raw!$A:$A)-1,1),回答数!$B13, OFFSET(raw!$A$1,2,MATCH($D$1,raw!$2:$2,0)-1,COUNTA(raw!$A:$A)-1,1),N$2) -> 1 | O13: =COUNTIFS( OFFSET(raw!$A$1,2,MATCH(回答数!$A13,raw!$2:$2,0)-1,COUNTA(raw!$A:$A)-1,1),回答数!$B13, OFFSET(raw!$A$1,2,MATCH($D$1,raw!$2:$2,0)-1,COUNTA(raw!$A:$A)-1,1),O$2) -> 6 | P13: 35
A14: 回答エリア | B14: 三国湊 エリア | D14: =COUNTIFS( OFFSET(raw!$A$1,2,MATCH(回答数!$A14,raw!$2:$2,0)-1,COUNTA(raw!$A:$A)-1,1),回答数!$B14, OFFSET(raw!$A$1,2,MATCH($D$1,raw!$2:$2,0)-1,COUNTA(raw!$A:$A)-1,1),D$2) -> 1 | E14: =COUNTIFS( OFFSET(raw!$A$1,2,MATCH(回答数!$A14,raw!$2:$2,0)-1,COUNTA(raw!$A:$A)-1,1),回答数!$B14, OFFSET(raw!$A$1,2,MATCH($D$1,raw!$2:$2,0)-1,COUNTA(raw!$A:$A)-1,1),E$2) -> 35 | F14: =COUNTIFS( OFFSET(raw!$A$1,2,MATCH(回答数!$A14,raw!$2:$2,0)-1,COUNTA(raw!$A:$A)-1,1),回答数!$B14, OFFSET(raw!$A$1,2,MATCH($D$1,raw!$2:$2,0)-1,COUNTA(raw!$A:$A)-1,1),F$2) -> 34 | G14: =COUNTIFS( OFFSET(raw!$A$1,2,MATCH(回答数!$A14,raw!$2:$2,0)-1,COUNTA(raw!$A:$A)-1,1),回答数!$B14, OFFSET(raw!$A$1,2,MATCH($D$1,raw!$2:$2,0)-1,COUNTA(raw!$A:$A)-1,1),G$2) -> 51 | H14: =COUNTIFS( OFFSET(raw!$A$1,2,MATCH(回答数!$A14,raw!$2:$2,0)-1,COUNTA(raw!$A:$A)-1,1),回答数!$B14, OFFSET(raw!$A$1,2,MATCH($D$1,raw!$2:$2,0)-1,COUNTA(raw!$A:$A)-1,1),H$2) -> 22 | I14: =COUNTIFS( OFFSET(raw!$A$1,2,MATCH(回答数!$A14,raw!$2:$2,0)-1,COUNTA(raw!$A:$A)-1,1),回答数!$B14, OFFSET(raw!$A$1,2,MATCH($D$1,raw!$2:$2,0)-1,COUNTA(raw!$A:$A)-1,1),I$2) -> 24 | J14: =COUNTIFS( OFFSET(raw!$A$1,2,MATCH(回答数!$A14,raw!$2:$2,0)-1,COUNTA(raw!$A:$A)-1,1),回答数!$B14, OFFSET(raw!$A$1,2,MATCH($D$1,raw!$2:$2,0)-1,COUNTA(raw!$A:$A)-1,1),J$2) -> 25 | K14: =COUNTIFS( OFFSET(raw!$A$1,2,MATCH(回答数!$A14,raw!$2:$2,0)-1,COUNTA(raw!$A:$A)-1,1),回答数!$B14, OFFSET(raw!$A$1,2,MATCH($D$1,raw!$2:$2,0)-1,COUNTA(raw!$A:$A)-1,1),K$2) -> 18 | L14: =COUNTIFS( OFFSET(raw!$A$1,2,MATCH(回答数!$A14,raw!$2:$2,0)-1,COUNTA(raw!$A:$A)-1,1),回答数!$B14, OFFSET(raw!$A$1,2,MATCH($D$1,raw!$2:$2,0)-1,COUNTA(raw!$A:$A)-1,1),L$2) -> 20 | M14: =COUNTIFS( OFFSET(raw!$A$1,2,MATCH(回答数!$A14,raw!$2:$2,0)-1,COUNTA(raw!$A:$A)-1,1),回答数!$B14, OFFSET(raw!$A$1,2,MATCH($D$1,raw!$2:$2,0)-1,COUNTA(raw!$A:$A)-1,1),M$2) -> 15 | N14: =COUNTIFS( OFFSET(raw!$A$1,2,MATCH(回答数!$A14,raw!$2:$2,0)-1,COUNTA(raw!$A:$A)-1,1),回答数!$B14, OFFSET(raw!$A$1,2,MATCH($D$1,raw!$2:$2,0)-1,COUNTA(raw!$A:$A)-1,1),N$2) -> 26 | O14: =COUNTIFS( OFFSET(raw!$A$1,2,MATCH(回答数!$A14,raw!$2:$2,0)-1,COUNTA(raw!$A:$A)-1,1),回答数!$B14, OFFSET(raw!$A$1,2,MATCH($D$1,raw!$2:$2,0)-1,COUNTA(raw!$A:$A)-1,1),O$2) -> 42 | P14: 313
A15: 回答エリア | B15: 東尋坊 エリア | D15: =COUNTIFS( OFFSET(raw!$A$1,2,MATCH(回答数!$A15,raw!$2:$2,0)-1,COUNTA(raw!$A:$A)-1,1),回答数!$B15, OFFSET(raw!$A$1,2,MATCH($D$1,raw!$2:$2,0)-1,COUNTA(raw!$A:$A)-1,1),D$2) -> 1 | E15: =COUNTIFS( OFFSET(raw!$A$1,2,MATCH(回答数!$A15,raw!$2:$2,0)-1,COUNTA(raw!$A:$A)-1,1),回答数!$B15, OFFSET(raw!$A$1,2,MATCH($D$1,raw!$2:$2,0)-1,COUNTA(raw!$A:$A)-1,1),E$2) -> 38 | F15: =COUNTIFS( OFFSET(raw!$A$1,2,MATCH(回答数!$A15,raw!$2:$2,0)-1,COUNTA(raw!$A:$A)-1,1),回答数!$B15, OFFSET(raw!$A$1,2,MATCH($D$1,raw!$2:$2,0)-1,COUNTA(raw!$A:$A)-1,1),F$2) -> 31 | G15: =COUNTIFS( OFFSET(raw!$A$1,2,MATCH(回答数!$A15,raw!$2:$2,0)-1,COUNTA(raw!$A:$A)-1,1),回答数!$B15, OFFSET(raw!$A$1,2,MATCH($D$1,raw!$2:$2,0)-1,COUNTA(raw!$A:$A)-1,1),G$2) -> 45 | H15: =COUNTIFS( OFFSET(raw!$A$1,2,MATCH(回答数!$A15,raw!$2:$2,0)-1,COUNTA(raw!$A:$A)-1,1),回答数!$B15, OFFSET(raw!$A$1,2,MATCH($D$1,raw!$2:$2,0)-1,COUNTA(raw!$A:$A)-1,1),H$2) -> 48 | I15: =COUNTIFS( OFFSET(raw!$A$1,2,MATCH(回答数!$A15,raw!$2:$2,0)-1,COUNTA(raw!$A:$A)-1,1),回答数!$B15, OFFSET(raw!$A$1,2,MATCH($D$1,raw!$2:$2,0)-1,COUNTA(raw!$A:$A)-1,1),I$2) -> 19 | J15: =COUNTIFS( OFFSET(raw!$A$1,2,MATCH(回答数!$A15,raw!$2:$2,0)-1,COUNTA(raw!$A:$A)-1,1),回答数!$B15, OFFSET(raw!$A$1,2,MATCH($D$1,raw!$2:$2,0)-1,COUNTA(raw!$A:$A)-1,1),J$2) -> 23 | K15: =COUNTIFS( OFFSET(raw!$A$1,2,MATCH(回答数!$A15,raw!$2:$2,0)-1,COUNTA(raw!$A:$A)-1,1),回答数!$B15, OFFSET(raw!$A$1,2,MATCH($D$1,raw!$2:$2,0)-1,COUNTA(raw!$A:$A)-1,1),K$2) -> 31 | L15: =COUNTIFS( OFFSET(raw!$A$1,2,MATCH(回答数!$A15,raw!$2:$2,0)-1,COUNTA(raw!$A:$A)-1,1),回答数!$B15, OFFSET(raw!$A$1,2,MATCH($D$1,raw!$2:$2,0)-1,COUNTA(raw!$A:$A)-1,1),L$2) -> 22 | M15: =COUNTIFS( OFFSET(raw!$A$1,2,MATCH(回答数!$A15,raw!$2:$2,0)-1,COUNTA(raw!$A:$A)-1,1),回答数!$B15, OFFSET(raw!$A$1,2,MATCH($D$1,raw!$2:$2,0)-1,COUNTA(raw!$A:$A)-1,1),M$2) -> 3 | N15: =COUNTIFS( OFFSET(raw!$A$1,2,MATCH(回答数!$A15,raw!$2:$2,0)-1,COUNTA(raw!$A:$A)-1,1),回答数!$B15, OFFSET(raw!$A$1,2,MATCH($D$1,raw!$2:$2,0)-1,COUNTA(raw!$A:$A)-1,1),N$2) -> 20 | O15: =COUNTIFS( OFFSET(raw!$A$1,2,MATCH(回答数!$A15,raw!$2:$2,0)-1,COUNTA(raw!$A:$A)-1,1),回答数!$B15, OFFSET(raw!$A$1,2,MATCH($D$1,raw!$2:$2,0)-1,COUNTA(raw!$A:$A)-1,1),O$2) -> 69 | P15: 350
A16: 回答エリア | B16: 越前松島水族館 エリア | D16: =COUNTIFS( OFFSET(raw!$A$1,2,MATCH(回答数!$A16,raw!$2:$2,0)-1,COUNTA(raw!$A:$A)-1,1),回答数!$B16, OFFSET(raw!$A$1,2,MATCH($D$1,raw!$2:$2,0)-1,COUNTA(raw!$A:$A)-1,1),D$2) -> 3 | E16: =COUNTIFS( OFFSET(raw!$A$1,2,MATCH(回答数!$A16,raw!$2:$2,0)-1,COUNTA(raw!$A:$A)-1,1),回答数!$B16, OFFSET(raw!$A$1,2,MATCH($D$1,raw!$2:$2,0)-1,COUNTA(raw!$A:$A)-1,1),E$2) -> 29 | F16: =COUNTIFS( OFFSET(raw!$A$1,2,MATCH(回答数!$A16,raw!$2:$2,0)-1,COUNTA(raw!$A:$A)-1,1),回答数!$B16, OFFSET(raw!$A$1,2,MATCH($D$1,raw!$2:$2,0)-1,COUNTA(raw!$A:$A)-1,1),F$2) -> 16 | G16: =COUNTIFS( OFFSET(raw!$A$1,2,MATCH(回答数!$A16,raw!$2:$2,0)-1,COUNTA(raw!$A:$A)-1,1),回答数!$B16, OFFSET(raw!$A$1,2,MATCH($D$1,raw!$2:$2,0)-1,COUNTA(raw!$A:$A)-1,1),G$2) -> 27 | H16: =COUNTIFS( OFFSET(raw!$A$1,2,MATCH(回答数!$A16,raw!$2:$2,0)-1,COUNTA(raw!$A:$A)-1,1),回答数!$B16, OFFSET(raw!$A$1,2,MATCH($D$1,raw!$2:$2,0)-1,COUNTA(raw!$A:$A)-1,1),H$2) -> 18 | I16: =COUNTIFS( OFFSET(raw!$A$1,2,MATCH(回答数!$A16,raw!$2:$2,0)-1,COUNTA(raw!$A:$A)-1,1),回答数!$B16, OFFSET(raw!$A$1,2,MATCH($D$1,raw!$2:$2,0)-1,COUNTA(raw!$A:$A)-1,1),I$2) -> 15 | J16: =COUNTIFS( OFFSET(raw!$A$1,2,MATCH(回答数!$A16,raw!$2:$2,0)-1,COUNTA(raw!$A:$A)-1,1),回答数!$B16, OFFSET(raw!$A$1,2,MATCH($D$1,raw!$2:$2,0)-1,COUNTA(raw!$A:$A)-1,1),J$2) -> 15 | K16: =COUNTIFS( OFFSET(raw!$A$1,2,MATCH(回答数!$A16,raw!$2:$2,0)-1,COUNTA(raw!$A:$A)-1,1),回答数!$B16, OFFSET(raw!$A$1,2,MATCH($D$1,raw!$2:$2,0)-1,COUNTA(raw!$A:$A)-1,1),K$2) -> 18 | L16: =COUNTIFS( OFFSET(raw!$A$1,2,MATCH(回答数!$A16,raw!$2:$2,0)-1,COUNTA(raw!$A:$A)-1,1),回答数!$B16, OFFSET(raw!$A$1,2,MATCH($D$1,raw!$2:$2,0)-1,COUNTA(raw!$A:$A)-1,1),L$2) -> 22 | M16: =COUNTIFS( OFFSET(raw!$A$1,2,MATCH(回答数!$A16,raw!$2:$2,0)-1,COUNTA(raw!$A:$A)-1,1),回答数!$B16, OFFSET(raw!$A$1,2,MATCH($D$1,raw!$2:$2,0)-1,COUNTA(raw!$A:$A)-1,1),M$2) -> 8 | N16: =COUNTIFS( OFFSET(raw!$A$1,2,MATCH(回答数!$A16,raw!$2:$2,0)-1,COUNTA(raw!$A:$A)-1,1),回答数!$B16, OFFSET(raw!$A$1,2,MATCH($D$1,raw!$2:$2,0)-1,COUNTA(raw!$A:$A)-1,1),N$2) -> 12 | O16: =COUNTIFS( OFFSET(raw!$A$1,2,MATCH(回答数!$A16,raw!$2:$2,0)-1,COUNTA(raw!$A:$A)-1,1),回答数!$B16, OFFSET(raw!$A$1,2,MATCH($D$1,raw!$2:$2,0)-1,COUNTA(raw!$A:$A)-1,1),O$2) -> 25 | P16: 208
A17: 回答エリア | B17: 芝政ワールド エリア | D17: =COUNTIFS( OFFSET(raw!$A$1,2,MATCH(回答数!$A17,raw!$2:$2,0)-1,COUNTA(raw!$A:$A)-1,1),回答数!$B17, OFFSET(raw!$A$1,2,MATCH($D$1,raw!$2:$2,0)-1,COUNTA(raw!$A:$A)-1,1),D$2) -> 0 | E17: =COUNTIFS( OFFSET(raw!$A$1,2,MATCH(回答数!$A17,raw!$2:$2,0)-1,COUNTA(raw!$A:$A)-1,1),回答数!$B17, OFFSET(raw!$A$1,2,MATCH($D$1,raw!$2:$2,0)-1,COUNTA(raw!$A:$A)-1,1),E$2) -> 2 | F17: =COUNTIFS( OFFSET(raw!$A$1,2,MATCH(回答数!$A17,raw!$2:$2,0)-1,COUNTA(raw!$A:$A)-1,1),回答数!$B17, OFFSET(raw!$A$1,2,MATCH($D$1,raw!$2:$2,0)-1,COUNTA(raw!$A:$A)-1,1),F$2) -> 0 | G17: =COUNTIFS( OFFSET(raw!$A$1,2,MATCH(回答数!$A17,raw!$2:$2,0)-1,COUNTA(raw!$A:$A)-1,1),回答数!$B17, OFFSET(raw!$A$1,2,MATCH($D$1,raw!$2:$2,0)-1,COUNTA(raw!$A:$A)-1,1),G$2) -> 2 | H17: =COUNTIFS( OFFSET(raw!$A$1,2,MATCH(回答数!$A17,raw!$2:$2,0)-1,COUNTA(raw!$A:$A)-1,1),回答数!$B17, OFFSET(raw!$A$1,2,MATCH($D$1,raw!$2:$2,0)-1,COUNTA(raw!$A:$A)-1,1),H$2) -> 3 | I17: =COUNTIFS( OFFSET(raw!$A$1,2,MATCH(回答数!$A17,raw!$2:$2,0)-1,COUNTA(raw!$A:$A)-1,1),回答数!$B17, OFFSET(raw!$A$1,2,MATCH($D$1,raw!$2:$2,0)-1,COUNTA(raw!$A:$A)-1,1),I$2) -> 2 | J17: =COUNTIFS( OFFSET(raw!$A$1,2,MATCH(回答数!$A17,raw!$2:$2,0)-1,COUNTA(raw!$A:$A)-1,1),回答数!$B17, OFFSET(raw!$A$1,2,MATCH($D$1,raw!$2:$2,0)-1,COUNTA(raw!$A:$A)-1,1),J$2) -> 0 | K17: =COUNTIFS( OFFSET(raw!$A$1,2,MATCH(回答数!$A17,raw!$2:$2,0)-1,COUNTA(raw!$A:$A)-1,1),回答数!$B17, OFFSET(raw!$A$1,2,MATCH($D$1,raw!$2:$2,0)-1,COUNTA(raw!$A:$A)-1,1),K$2) -> 1 | L17: =COUNTIFS( OFFSET(raw!$A$1,2,MATCH(回答数!$A17,raw!$2:$2,0)-1,COUNTA(raw!$A:$A)-1,1),回答数!$B17, OFFSET(raw!$A$1,2,MATCH($D$1,raw!$2:$2,0)-1,COUNTA(raw!$A:$A)-1,1),L$2) -> 0 | M17: =COUNTIFS( OFFSET(raw!$A$1,2,MATCH(回答数!$A17,raw!$2:$2,0)-1,COUNTA(raw!$A:$A)-1,1),回答数!$B17, OFFSET(raw!$A$1,2,MATCH($D$1,raw!$2:$2,0)-1,COUNTA(raw!$A:$A)-1,1),M$2) -> 0 | N17: =COUNTIFS( OFFSET(raw!$A$1,2,MATCH(回答数!$A17,raw!$2:$2,0)-1,COUNTA(raw!$A:$A)-1,1),回答数!$B17, OFFSET(raw!$A$1,2,MATCH($D$1,raw!$2:$2,0)-1,COUNTA(raw!$A:$A)-1,1),N$2) -> 1 | O17: =COUNTIFS( OFFSET(raw!$A$1,2,MATCH(回答数!$A17,raw!$2:$2,0)-1,COUNTA(raw!$A:$A)-1,1),回答数!$B17, OFFSET(raw!$A$1,2,MATCH($D$1,raw!$2:$2,0)-1,COUNTA(raw!$A:$A)-1,1),O$2) -> 9 | P17: 20
A18: 回答エリア | B18: 丸岡城 エリア | D18: =COUNTIFS( OFFSET(raw!$A$1,2,MATCH(回答数!$A18,raw!$2:$2,0)-1,COUNTA(raw!$A:$A)-1,1),回答数!$B18, OFFSET(raw!$A$1,2,MATCH($D$1,raw!$2:$2,0)-1,COUNTA(raw!$A:$A)-1,1),D$2) -> 5 | E18: =COUNTIFS( OFFSET(raw!$A$1,2,MATCH(回答数!$A18,raw!$2:$2,0)-1,COUNTA(raw!$A:$A)-1,1),回答数!$B18, OFFSET(raw!$A$1,2,MATCH($D$1,raw!$2:$2,0)-1,COUNTA(raw!$A:$A)-1,1),E$2) -> 68 | F18: =COUNTIFS( OFFSET(raw!$A$1,2,MATCH(回答数!$A18,raw!$2:$2,0)-1,COUNTA(raw!$A:$A)-1,1),回答数!$B18, OFFSET(raw!$A$1,2,MATCH($D$1,raw!$2:$2,0)-1,COUNTA(raw!$A:$A)-1,1),F$2) -> 48 | G18: =COUNTIFS( OFFSET(raw!$A$1,2,MATCH(回答数!$A18,raw!$2:$2,0)-1,COUNTA(raw!$A:$A)-1,1),回答数!$B18, OFFSET(raw!$A$1,2,MATCH($D$1,raw!$2:$2,0)-1,COUNTA(raw!$A:$A)-1,1),G$2) -> 54 | H18: =COUNTIFS( OFFSET(raw!$A$1,2,MATCH(回答数!$A18,raw!$2:$2,0)-1,COUNTA(raw!$A:$A)-1,1),回答数!$B18, OFFSET(raw!$A$1,2,MATCH($D$1,raw!$2:$2,0)-1,COUNTA(raw!$A:$A)-1,1),H$2) -> 53 | I18: =COUNTIFS( OFFSET(raw!$A$1,2,MATCH(回答数!$A18,raw!$2:$2,0)-1,COUNTA(raw!$A:$A)-1,1),回答数!$B18, OFFSET(raw!$A$1,2,MATCH($D$1,raw!$2:$2,0)-1,COUNTA(raw!$A:$A)-1,1),I$2) -> 33 | J18: =COUNTIFS( OFFSET(raw!$A$1,2,MATCH(回答数!$A18,raw!$2:$2,0)-1,COUNTA(raw!$A:$A)-1,1),回答数!$B18, OFFSET(raw!$A$1,2,MATCH($D$1,raw!$2:$2,0)-1,COUNTA(raw!$A:$A)-1,1),J$2) -> 54 | K18: =COUNTIFS( OFFSET(raw!$A$1,2,MATCH(回答数!$A18,raw!$2:$2,0)-1,COUNTA(raw!$A:$A)-1,1),回答数!$B18, OFFSET(raw!$A$1,2,MATCH($D$1,raw!$2:$2,0)-1,COUNTA(raw!$A:$A)-1,1),K$2) -> 66 | L18: =COUNTIFS( OFFSET(raw!$A$1,2,MATCH(回答数!$A18,raw!$2:$2,0)-1,COUNTA(raw!$A:$A)-1,1),回答数!$B18, OFFSET(raw!$A$1,2,MATCH($D$1,raw!$2:$2,0)-1,COUNTA(raw!$A:$A)-1,1),L$2) -> 40 | M18: =COUNTIFS( OFFSET(raw!$A$1,2,MATCH(回答数!$A18,raw!$2:$2,0)-1,COUNTA(raw!$A:$A)-1,1),回答数!$B18, OFFSET(raw!$A$1,2,MATCH($D$1,raw!$2:$2,0)-1,COUNTA(raw!$A:$A)-1,1),M$2) -> 20 | N18: =COUNTIFS( OFFSET(raw!$A$1,2,MATCH(回答数!$A18,raw!$2:$2,0)-1,COUNTA(raw!$A:$A)-1,1),回答数!$B18, OFFSET(raw!$A$1,2,MATCH($D$1,raw!$2:$2,0)-1,COUNTA(raw!$A:$A)-1,1),N$2) -> 27 | O18: =COUNTIFS( OFFSET(raw!$A$1,2,MATCH(回答数!$A18,raw!$2:$2,0)-1,COUNTA(raw!$A:$A)-1,1),回答数!$B18, OFFSET(raw!$A$1,2,MATCH($D$1,raw!$2:$2,0)-1,COUNTA(raw!$A:$A)-1,1),O$2) -> 51 | P18: 519
A19: 回答エリア | B19: 花の駅 ゆりの里公園 エリア | D19: =COUNTIFS( OFFSET(raw!$A$1,2,MATCH(回答数!$A19,raw!$2:$2,0)-1,COUNTA(raw!$A:$A)-1,1),回答数!$B19, OFFSET(raw!$A$1,2,MATCH($D$1,raw!$2:$2,0)-1,COUNTA(raw!$A:$A)-1,1),D$2) -> 0 | E19: =COUNTIFS( OFFSET(raw!$A$1,2,MATCH(回答数!$A19,raw!$2:$2,0)-1,COUNTA(raw!$A:$A)-1,1),回答数!$B19, OFFSET(raw!$A$1,2,MATCH($D$1,raw!$2:$2,0)-1,COUNTA(raw!$A:$A)-1,1),E$2) -> 16 | F19: =COUNTIFS( OFFSET(raw!$A$1,2,MATCH(回答数!$A19,raw!$2:$2,0)-1,COUNTA(raw!$A:$A)-1,1),回答数!$B19, OFFSET(raw!$A$1,2,MATCH($D$1,raw!$2:$2,0)-1,COUNTA(raw!$A:$A)-1,1),F$2) -> 15 | G19: =COUNTIFS( OFFSET(raw!$A$1,2,MATCH(回答数!$A19,raw!$2:$2,0)-1,COUNTA(raw!$A:$A)-1,1),回答数!$B19, OFFSET(raw!$A$1,2,MATCH($D$1,raw!$2:$2,0)-1,COUNTA(raw!$A:$A)-1,1),G$2) -> 3 | H19: =COUNTIFS( OFFSET(raw!$A$1,2,MATCH(回答数!$A19,raw!$2:$2,0)-1,COUNTA(raw!$A:$A)-1,1),回答数!$B19, OFFSET(raw!$A$1,2,MATCH($D$1,raw!$2:$2,0)-1,COUNTA(raw!$A:$A)-1,1),H$2) -> 18 | I19: =COUNTIFS( OFFSET(raw!$A$1,2,MATCH(回答数!$A19,raw!$2:$2,0)-1,COUNTA(raw!$A:$A)-1,1),回答数!$B19, OFFSET(raw!$A$1,2,MATCH($D$1,raw!$2:$2,0)-1,COUNTA(raw!$A:$A)-1,1),I$2) -> 13 | J19: =COUNTIFS( OFFSET(raw!$A$1,2,MATCH(回答数!$A19,raw!$2:$2,0)-1,COUNTA(raw!$A:$A)-1,1),回答数!$B19, OFFSET(raw!$A$1,2,MATCH($D$1,raw!$2:$2,0)-1,COUNTA(raw!$A:$A)-1,1),J$2) -> 18 | K19: =COUNTIFS( OFFSET(raw!$A$1,2,MATCH(回答数!$A19,raw!$2:$2,0)-1,COUNTA(raw!$A:$A)-1,1),回答数!$B19, OFFSET(raw!$A$1,2,MATCH($D$1,raw!$2:$2,0)-1,COUNTA(raw!$A:$A)-1,1),K$2) -> 16 | L19: =COUNTIFS( OFFSET(raw!$A$1,2,MATCH(回答数!$A19,raw!$2:$2,0)-1,COUNTA(raw!$A:$A)-1,1),回答数!$B19, OFFSET(raw!$A$1,2,MATCH($D$1,raw!$2:$2,0)-1,COUNTA(raw!$A:$A)-1,1),L$2) -> 10 | M19: =COUNTIFS( OFFSET(raw!$A$1,2,MATCH(回答数!$A19,raw!$2:$2,0)-1,COUNTA(raw!$A:$A)-1,1),回答数!$B19, OFFSET(raw!$A$1,2,MATCH($D$1,raw!$2:$2,0)-1,COUNTA(raw!$A:$A)-1,1),M$2) -> 13 | N19: =COUNTIFS( OFFSET(raw!$A$1,2,MATCH(回答数!$A19,raw!$2:$2,0)-1,COUNTA(raw!$A:$A)-1,1),回答数!$B19, OFFSET(raw!$A$1,2,MATCH($D$1,raw!$2:$2,0)-1,COUNTA(raw!$A:$A)-1,1),N$2) -> 13 | O19: =COUNTIFS( OFFSET(raw!$A$1,2,MATCH(回答数!$A19,raw!$2:$2,0)-1,COUNTA(raw!$A:$A)-1,1),回答数!$B19, OFFSET(raw!$A$1,2,MATCH($D$1,raw!$2:$2,0)-1,COUNTA(raw!$A:$A)-1,1),O$2) -> 26 | P19: 161
A20: 回答エリア | B20: 道の駅みくに ふれあいパーク三里浜 エリア | D20: =COUNTIFS( OFFSET(raw!$A$1,2,MATCH(回答数!$A20,raw!$2:$2,0)-1,COUNTA(raw!$A:$A)-1,1),回答数!$B20, OFFSET(raw!$A$1,2,MATCH($D$1,raw!$2:$2,0)-1,COUNTA(raw!$A:$A)-1,1),D$2) -> 1 | E20: =COUNTIFS( OFFSET(raw!$A$1,2,MATCH(回答数!$A20,raw!$2:$2,0)-1,COUNTA(raw!$A:$A)-1,1),回答数!$B20, OFFSET(raw!$A$1,2,MATCH($D$1,raw!$2:$2,0)-1,COUNTA(raw!$A:$A)-1,1),E$2) -> 41 | F20: =COUNTIFS( OFFSET(raw!$A$1,2,MATCH(回答数!$A20,raw!$2:$2,0)-1,COUNTA(raw!$A:$A)-1,1),回答数!$B20, OFFSET(raw!$A$1,2,MATCH($D$1,raw!$2:$2,0)-1,COUNTA(raw!$A:$A)-1,1),F$2) -> 50 | G20: =COUNTIFS( OFFSET(raw!$A$1,2,MATCH(回答数!$A20,raw!$2:$2,0)-1,COUNTA(raw!$A:$A)-1,1),回答数!$B20, OFFSET(raw!$A$1,2,MATCH($D$1,raw!$2:$2,0)-1,COUNTA(raw!$A:$A)-1,1),G$2) -> 28 | H20: =COUNTIFS( OFFSET(raw!$A$1,2,MATCH(回答数!$A20,raw!$2:$2,0)-1,COUNTA(raw!$A:$A)-1,1),回答数!$B20, OFFSET(raw!$A$1,2,MATCH($D$1,raw!$2:$2,0)-1,COUNTA(raw!$A:$A)-1,1),H$2) -> 26 | I20: =COUNTIFS( OFFSET(raw!$A$1,2,MATCH(回答数!$A20,raw!$2:$2,0)-1,COUNTA(raw!$A:$A)-1,1),回答数!$B20, OFFSET(raw!$A$1,2,MATCH($D$1,raw!$2:$2,0)-1,COUNTA(raw!$A:$A)-1,1),I$2) -> 20 | J20: =COUNTIFS( OFFSET(raw!$A$1,2,MATCH(回答数!$A20,raw!$2:$2,0)-1,COUNTA(raw!$A:$A)-1,1),回答数!$B20, OFFSET(raw!$A$1,2,MATCH($D$1,raw!$2:$2,0)-1,COUNTA(raw!$A:$A)-1,1),J$2) -> 20 | K20: =COUNTIFS( OFFSET(raw!$A$1,2,MATCH(回答数!$A20,raw!$2:$2,0)-1,COUNTA(raw!$A:$A)-1,1),回答数!$B20, OFFSET(raw!$A$1,2,MATCH($D$1,raw!$2:$2,0)-1,COUNTA(raw!$A:$A)-1,1),K$2) -> 30 | L20: =COUNTIFS( OFFSET(raw!$A$1,2,MATCH(回答数!$A20,raw!$2:$2,0)-1,COUNTA(raw!$A:$A)-1,1),回答数!$B20, OFFSET(raw!$A$1,2,MATCH($D$1,raw!$2:$2,0)-1,COUNTA(raw!$A:$A)-1,1),L$2) -> 30 | M20: =COUNTIFS( OFFSET(raw!$A$1,2,MATCH(回答数!$A20,raw!$2:$2,0)-1,COUNTA(raw!$A:$A)-1,1),回答数!$B20, OFFSET(raw!$A$1,2,MATCH($D$1,raw!$2:$2,0)-1,COUNTA(raw!$A:$A)-1,1),M$2) -> 7 | N20: =COUNTIFS( OFFSET(raw!$A$1,2,MATCH(回答数!$A20,raw!$2:$2,0)-1,COUNTA(raw!$A:$A)-1,1),回答数!$B20, OFFSET(raw!$A$1,2,MATCH($D$1,raw!$2:$2,0)-1,COUNTA(raw!$A:$A)-1,1),N$2) -> 4 | O20: =COUNTIFS( OFFSET(raw!$A$1,2,MATCH(回答数!$A20,raw!$2:$2,0)-1,COUNTA(raw!$A:$A)-1,1),回答数!$B20, OFFSET(raw!$A$1,2,MATCH($D$1,raw!$2:$2,0)-1,COUNTA(raw!$A:$A)-1,1),O$2) -> 29 | P20: 286
A21: 回答エリア | B21: JR芦原温泉駅 エリア | D21: =COUNTIFS( OFFSET(raw!$A$1,2,MATCH(回答数!$A21,raw!$2:$2,0)-1,COUNTA(raw!$A:$A)-1,1),回答数!$B21, OFFSET(raw!$A$1,2,MATCH($D$1,raw!$2:$2,0)-1,COUNTA(raw!$A:$A)-1,1),D$2) -> 5 | E21: =COUNTIFS( OFFSET(raw!$A$1,2,MATCH(回答数!$A21,raw!$2:$2,0)-1,COUNTA(raw!$A:$A)-1,1),回答数!$B21, OFFSET(raw!$A$1,2,MATCH($D$1,raw!$2:$2,0)-1,COUNTA(raw!$A:$A)-1,1),E$2) -> 53 | F21: =COUNTIFS( OFFSET(raw!$A$1,2,MATCH(回答数!$A21,raw!$2:$2,0)-1,COUNTA(raw!$A:$A)-1,1),回答数!$B21, OFFSET(raw!$A$1,2,MATCH($D$1,raw!$2:$2,0)-1,COUNTA(raw!$A:$A)-1,1),F$2) -> 25 | G21: =COUNTIFS( OFFSET(raw!$A$1,2,MATCH(回答数!$A21,raw!$2:$2,0)-1,COUNTA(raw!$A:$A)-1,1),回答数!$B21, OFFSET(raw!$A$1,2,MATCH($D$1,raw!$2:$2,0)-1,COUNTA(raw!$A:$A)-1,1),G$2) -> 22 | H21: =COUNTIFS( OFFSET(raw!$A$1,2,MATCH(回答数!$A21,raw!$2:$2,0)-1,COUNTA(raw!$A:$A)-1,1),回答数!$B21, OFFSET(raw!$A$1,2,MATCH($D$1,raw!$2:$2,0)-1,COUNTA(raw!$A:$A)-1,1),H$2) -> 18 | I21: =COUNTIFS( OFFSET(raw!$A$1,2,MATCH(回答数!$A21,raw!$2:$2,0)-1,COUNTA(raw!$A:$A)-1,1),回答数!$B21, OFFSET(raw!$A$1,2,MATCH($D$1,raw!$2:$2,0)-1,COUNTA(raw!$A:$A)-1,1),I$2) -> 27 | J21: =COUNTIFS( OFFSET(raw!$A$1,2,MATCH(回答数!$A21,raw!$2:$2,0)-1,COUNTA(raw!$A:$A)-1,1),回答数!$B21, OFFSET(raw!$A$1,2,MATCH($D$1,raw!$2:$2,0)-1,COUNTA(raw!$A:$A)-1,1),J$2) -> 23 | K21: =COUNTIFS( OFFSET(raw!$A$1,2,MATCH(回答数!$A21,raw!$2:$2,0)-1,COUNTA(raw!$A:$A)-1,1),回答数!$B21, OFFSET(raw!$A$1,2,MATCH($D$1,raw!$2:$2,0)-1,COUNTA(raw!$A:$A)-1,1),K$2) -> 27 | L21: =COUNTIFS( OFFSET(raw!$A$1,2,MATCH(回答数!$A21,raw!$2:$2,0)-1,COUNTA(raw!$A:$A)-1,1),回答数!$B21, OFFSET(raw!$A$1,2,MATCH($D$1,raw!$2:$2,0)-1,COUNTA(raw!$A:$A)-1,1),L$2) -> 41 | M21: =COUNTIFS( OFFSET(raw!$A$1,2,MATCH(回答数!$A21,raw!$2:$2,0)-1,COUNTA(raw!$A:$A)-1,1),回答数!$B21, OFFSET(raw!$A$1,2,MATCH($D$1,raw!$2:$2,0)-1,COUNTA(raw!$A:$A)-1,1),M$2) -> 14 | N21: =COUNTIFS( OFFSET(raw!$A$1,2,MATCH(回答数!$A21,raw!$2:$2,0)-1,COUNTA(raw!$A:$A)-1,1),回答数!$B21, OFFSET(raw!$A$1,2,MATCH($D$1,raw!$2:$2,0)-1,COUNTA(raw!$A:$A)-1,1),N$2) -> 17 | O21: =COUNTIFS( OFFSET(raw!$A$1,2,MATCH(回答数!$A21,raw!$2:$2,0)-1,COUNTA(raw!$A:$A)-1,1),回答数!$B21, OFFSET(raw!$A$1,2,MATCH($D$1,raw!$2:$2,0)-1,COUNTA(raw!$A:$A)-1,1),O$2) -> 37 | P21: 309
A22: 回答エリア | B22: あわら湯のまち エリア | D22: =COUNTIFS( OFFSET(raw!$A$1,2,MATCH(回答数!$A22,raw!$2:$2,0)-1,COUNTA(raw!$A:$A)-1,1),回答数!$B22, OFFSET(raw!$A$1,2,MATCH($D$1,raw!$2:$2,0)-1,COUNTA(raw!$A:$A)-1,1),D$2) -> 13 | E22: =COUNTIFS( OFFSET(raw!$A$1,2,MATCH(回答数!$A22,raw!$2:$2,0)-1,COUNTA(raw!$A:$A)-1,1),回答数!$B22, OFFSET(raw!$A$1,2,MATCH($D$1,raw!$2:$2,0)-1,COUNTA(raw!$A:$A)-1,1),E$2) -> 158 | F22: =COUNTIFS( OFFSET(raw!$A$1,2,MATCH(回答数!$A22,raw!$2:$2,0)-1,COUNTA(raw!$A:$A)-1,1),回答数!$B22, OFFSET(raw!$A$1,2,MATCH($D$1,raw!$2:$2,0)-1,COUNTA(raw!$A:$A)-1,1),F$2) -> 134 | G22: =COUNTIFS( OFFSET(raw!$A$1,2,MATCH(回答数!$A22,raw!$2:$2,0)-1,COUNTA(raw!$A:$A)-1,1),回答数!$B22, OFFSET(raw!$A$1,2,MATCH($D$1,raw!$2:$2,0)-1,COUNTA(raw!$A:$A)-1,1),G$2) -> 163 | H22: =COUNTIFS( OFFSET(raw!$A$1,2,MATCH(回答数!$A22,raw!$2:$2,0)-1,COUNTA(raw!$A:$A)-1,1),回答数!$B22, OFFSET(raw!$A$1,2,MATCH($D$1,raw!$2:$2,0)-1,COUNTA(raw!$A:$A)-1,1),H$2) -> 92 | I22: =COUNTIFS( OFFSET(raw!$A$1,2,MATCH(回答数!$A22,raw!$2:$2,0)-1,COUNTA(raw!$A:$A)-1,1),回答数!$B22, OFFSET(raw!$A$1,2,MATCH($D$1,raw!$2:$2,0)-1,COUNTA(raw!$A:$A)-1,1),I$2) -> 104 | J22: =COUNTIFS( OFFSET(raw!$A$1,2,MATCH(回答数!$A22,raw!$2:$2,0)-1,COUNTA(raw!$A:$A)-1,1),回答数!$B22, OFFSET(raw!$A$1,2,MATCH($D$1,raw!$2:$2,0)-1,COUNTA(raw!$A:$A)-1,1),J$2) -> 65 | K22: =COUNTIFS( OFFSET(raw!$A$1,2,MATCH(回答数!$A22,raw!$2:$2,0)-1,COUNTA(raw!$A:$A)-1,1),回答数!$B22, OFFSET(raw!$A$1,2,MATCH($D$1,raw!$2:$2,0)-1,COUNTA(raw!$A:$A)-1,1),K$2) -> 95 | L22: =COUNTIFS( OFFSET(raw!$A$1,2,MATCH(回答数!$A22,raw!$2:$2,0)-1,COUNTA(raw!$A:$A)-1,1),回答数!$B22, OFFSET(raw!$A$1,2,MATCH($D$1,raw!$2:$2,0)-1,COUNTA(raw!$A:$A)-1,1),L$2) -> 85 | M22: =COUNTIFS( OFFSET(raw!$A$1,2,MATCH(回答数!$A22,raw!$2:$2,0)-1,COUNTA(raw!$A:$A)-1,1),回答数!$B22, OFFSET(raw!$A$1,2,MATCH($D$1,raw!$2:$2,0)-1,COUNTA(raw!$A:$A)-1,1),M$2) -> 57 | N22: =COUNTIFS( OFFSET(raw!$A$1,2,MATCH(回答数!$A22,raw!$2:$2,0)-1,COUNTA(raw!$A:$A)-1,1),回答数!$B22, OFFSET(raw!$A$1,2,MATCH($D$1,raw!$2:$2,0)-1,COUNTA(raw!$A:$A)-1,1),N$2) -> 95 | O22: =COUNTIFS( OFFSET(raw!$A$1,2,MATCH(回答数!$A22,raw!$2:$2,0)-1,COUNTA(raw!$A:$A)-1,1),回答数!$B22, OFFSET(raw!$A$1,2,MATCH($D$1,raw!$2:$2,0)-1,COUNTA(raw!$A:$A)-1,1),O$2) -> 250 | P22: 1311
A23: 回答エリア | B23: フルーツライン エリア | D23: =COUNTIFS( OFFSET(raw!$A$1,2,MATCH(回答数!$A23,raw!$2:$2,0)-1,COUNTA(raw!$A:$A)-1,1),回答数!$B23, OFFSET(raw!$A$1,2,MATCH($D$1,raw!$2:$2,0)-1,COUNTA(raw!$A:$A)-1,1),D$2) -> 4 | E23: =COUNTIFS( OFFSET(raw!$A$1,2,MATCH(回答数!$A23,raw!$2:$2,0)-1,COUNTA(raw!$A:$A)-1,1),回答数!$B23, OFFSET(raw!$A$1,2,MATCH($D$1,raw!$2:$2,0)-1,COUNTA(raw!$A:$A)-1,1),E$2) -> 43 | F23: =COUNTIFS( OFFSET(raw!$A$1,2,MATCH(回答数!$A23,raw!$2:$2,0)-1,COUNTA(raw!$A:$A)-1,1),回答数!$B23, OFFSET(raw!$A$1,2,MATCH($D$1,raw!$2:$2,0)-1,COUNTA(raw!$A:$A)-1,1),F$2) -> 28 | G23: =COUNTIFS( OFFSET(raw!$A$1,2,MATCH(回答数!$A23,raw!$2:$2,0)-1,COUNTA(raw!$A:$A)-1,1),回答数!$B23, OFFSET(raw!$A$1,2,MATCH($D$1,raw!$2:$2,0)-1,COUNTA(raw!$A:$A)-1,1),G$2) -> 23 | H23: =COUNTIFS( OFFSET(raw!$A$1,2,MATCH(回答数!$A23,raw!$2:$2,0)-1,COUNTA(raw!$A:$A)-1,1),回答数!$B23, OFFSET(raw!$A$1,2,MATCH($D$1,raw!$2:$2,0)-1,COUNTA(raw!$A:$A)-1,1),H$2) -> 25 | I23: =COUNTIFS( OFFSET(raw!$A$1,2,MATCH(回答数!$A23,raw!$2:$2,0)-1,COUNTA(raw!$A:$A)-1,1),回答数!$B23, OFFSET(raw!$A$1,2,MATCH($D$1,raw!$2:$2,0)-1,COUNTA(raw!$A:$A)-1,1),I$2) -> 23 | J23: =COUNTIFS( OFFSET(raw!$A$1,2,MATCH(回答数!$A23,raw!$2:$2,0)-1,COUNTA(raw!$A:$A)-1,1),回答数!$B23, OFFSET(raw!$A$1,2,MATCH($D$1,raw!$2:$2,0)-1,COUNTA(raw!$A:$A)-1,1),J$2) -> 19 | K23: =COUNTIFS( OFFSET(raw!$A$1,2,MATCH(回答数!$A23,raw!$2:$2,0)-1,COUNTA(raw!$A:$A)-1,1),回答数!$B23, OFFSET(raw!$A$1,2,MATCH($D$1,raw!$2:$2,0)-1,COUNTA(raw!$A:$A)-1,1),K$2) -> 26 | L23: =COUNTIFS( OFFSET(raw!$A$1,2,MATCH(回答数!$A23,raw!$2:$2,0)-1,COUNTA(raw!$A:$A)-1,1),回答数!$B23, OFFSET(raw!$A$1,2,MATCH($D$1,raw!$2:$2,0)-1,COUNTA(raw!$A:$A)-1,1),L$2) -> 20 | M23: =COUNTIFS( OFFSET(raw!$A$1,2,MATCH(回答数!$A23,raw!$2:$2,0)-1,COUNTA(raw!$A:$A)-1,1),回答数!$B23, OFFSET(raw!$A$1,2,MATCH($D$1,raw!$2:$2,0)-1,COUNTA(raw!$A:$A)-1,1),M$2) -> 1 | N23: =COUNTIFS( OFFSET(raw!$A$1,2,MATCH(回答数!$A23,raw!$2:$2,0)-1,COUNTA(raw!$A:$A)-1,1),回答数!$B23, OFFSET(raw!$A$1,2,MATCH($D$1,raw!$2:$2,0)-1,COUNTA(raw!$A:$A)-1,1),N$2) -> 0 | O23: =COUNTIFS( OFFSET(raw!$A$1,2,MATCH(回答数!$A23,raw!$2:$2,0)-1,COUNTA(raw!$A:$A)-1,1),回答数!$B23, OFFSET(raw!$A$1,2,MATCH($D$1,raw!$2:$2,0)-1,COUNTA(raw!$A:$A)-1,1),O$2) -> 8 | P23: 220
A24: 回答エリア | B24: 波松 エリア | D24: =COUNTIFS( OFFSET(raw!$A$1,2,MATCH(回答数!$A24,raw!$2:$2,0)-1,COUNTA(raw!$A:$A)-1,1),回答数!$B24, OFFSET(raw!$A$1,2,MATCH($D$1,raw!$2:$2,0)-1,COUNTA(raw!$A:$A)-1,1),D$2) -> 0 | E24: =COUNTIFS( OFFSET(raw!$A$1,2,MATCH(回答数!$A24,raw!$2:$2,0)-1,COUNTA(raw!$A:$A)-1,1),回答数!$B24, OFFSET(raw!$A$1,2,MATCH($D$1,raw!$2:$2,0)-1,COUNTA(raw!$A:$A)-1,1),E$2) -> 4 | F24: =COUNTIFS( OFFSET(raw!$A$1,2,MATCH(回答数!$A24,raw!$2:$2,0)-1,COUNTA(raw!$A:$A)-1,1),回答数!$B24, OFFSET(raw!$A$1,2,MATCH($D$1,raw!$2:$2,0)-1,COUNTA(raw!$A:$A)-1,1),F$2) -> 4 | G24: =COUNTIFS( OFFSET(raw!$A$1,2,MATCH(回答数!$A24,raw!$2:$2,0)-1,COUNTA(raw!$A:$A)-1,1),回答数!$B24, OFFSET(raw!$A$1,2,MATCH($D$1,raw!$2:$2,0)-1,COUNTA(raw!$A:$A)-1,1),G$2) -> 0 | H24: =COUNTIFS( OFFSET(raw!$A$1,2,MATCH(回答数!$A24,raw!$2:$2,0)-1,COUNTA(raw!$A:$A)-1,1),回答数!$B24, OFFSET(raw!$A$1,2,MATCH($D$1,raw!$2:$2,0)-1,COUNTA(raw!$A:$A)-1,1),H$2) -> 5 | I24: =COUNTIFS( OFFSET(raw!$A$1,2,MATCH(回答数!$A24,raw!$2:$2,0)-1,COUNTA(raw!$A:$A)-1,1),回答数!$B24, OFFSET(raw!$A$1,2,MATCH($D$1,raw!$2:$2,0)-1,COUNTA(raw!$A:$A)-1,1),I$2) -> 4 | J24: =COUNTIFS( OFFSET(raw!$A$1,2,MATCH(回答数!$A24,raw!$2:$2,0)-1,COUNTA(raw!$A:$A)-1,1),回答数!$B24, OFFSET(raw!$A$1,2,MATCH($D$1,raw!$2:$2,0)-1,COUNTA(raw!$A:$A)-1,1),J$2) -> 4 | K24: =COUNTIFS( OFFSET(raw!$A$1,2,MATCH(回答数!$A24,raw!$2:$2,0)-1,COUNTA(raw!$A:$A)-1,1),回答数!$B24, OFFSET(raw!$A$1,2,MATCH($D$1,raw!$2:$2,0)-1,COUNTA(raw!$A:$A)-1,1),K$2) -> 3 | L24: =COUNTIFS( OFFSET(raw!$A$1,2,MATCH(回答数!$A24,raw!$2:$2,0)-1,COUNTA(raw!$A:$A)-1,1),回答数!$B24, OFFSET(raw!$A$1,2,MATCH($D$1,raw!$2:$2,0)-1,COUNTA(raw!$A:$A)-1,1),L$2) -> 0 | M24: =COUNTIFS( OFFSET(raw!$A$1,2,MATCH(回答数!$A24,raw!$2:$2,0)-1,COUNTA(raw!$A:$A)-1,1),回答数!$B24, OFFSET(raw!$A$1,2,MATCH($D$1,raw!$2:$2,0)-1,COUNTA(raw!$A:$A)-1,1),M$2) -> 0 | N24: =COUNTIFS( OFFSET(raw!$A$1,2,MATCH(回答数!$A24,raw!$2:$2,0)-1,COUNTA(raw!$A:$A)-1,1),回答数!$B24, OFFSET(raw!$A$1,2,MATCH($D$1,raw!$2:$2,0)-1,COUNTA(raw!$A:$A)-1,1),N$2) -> 3 | O24: =COUNTIFS( OFFSET(raw!$A$1,2,MATCH(回答数!$A24,raw!$2:$2,0)-1,COUNTA(raw!$A:$A)-1,1),回答数!$B24, OFFSET(raw!$A$1,2,MATCH($D$1,raw!$2:$2,0)-1,COUNTA(raw!$A:$A)-1,1),O$2) -> 1 | P24: 28
A25: 回答エリア | B25: 北潟湖 エリア | D25: =COUNTIFS( OFFSET(raw!$A$1,2,MATCH(回答数!$A25,raw!$2:$2,0)-1,COUNTA(raw!$A:$A)-1,1),回答数!$B25, OFFSET(raw!$A$1,2,MATCH($D$1,raw!$2:$2,0)-1,COUNTA(raw!$A:$A)-1,1),D$2) -> 9 | E25: =COUNTIFS( OFFSET(raw!$A$1,2,MATCH(回答数!$A25,raw!$2:$2,0)-1,COUNTA(raw!$A:$A)-1,1),回答数!$B25, OFFSET(raw!$A$1,2,MATCH($D$1,raw!$2:$2,0)-1,COUNTA(raw!$A:$A)-1,1),E$2) -> 103 | F25: =COUNTIFS( OFFSET(raw!$A$1,2,MATCH(回答数!$A25,raw!$2:$2,0)-1,COUNTA(raw!$A:$A)-1,1),回答数!$B25, OFFSET(raw!$A$1,2,MATCH($D$1,raw!$2:$2,0)-1,COUNTA(raw!$A:$A)-1,1),F$2) -> 66 | G25: =COUNTIFS( OFFSET(raw!$A$1,2,MATCH(回答数!$A25,raw!$2:$2,0)-1,COUNTA(raw!$A:$A)-1,1),回答数!$B25, OFFSET(raw!$A$1,2,MATCH($D$1,raw!$2:$2,0)-1,COUNTA(raw!$A:$A)-1,1),G$2) -> 33 | H25: =COUNTIFS( OFFSET(raw!$A$1,2,MATCH(回答数!$A25,raw!$2:$2,0)-1,COUNTA(raw!$A:$A)-1,1),回答数!$B25, OFFSET(raw!$A$1,2,MATCH($D$1,raw!$2:$2,0)-1,COUNTA(raw!$A:$A)-1,1),H$2) -> 21 | I25: =COUNTIFS( OFFSET(raw!$A$1,2,MATCH(回答数!$A25,raw!$2:$2,0)-1,COUNTA(raw!$A:$A)-1,1),回答数!$B25, OFFSET(raw!$A$1,2,MATCH($D$1,raw!$2:$2,0)-1,COUNTA(raw!$A:$A)-1,1),I$2) -> 30 | J25: =COUNTIFS( OFFSET(raw!$A$1,2,MATCH(回答数!$A25,raw!$2:$2,0)-1,COUNTA(raw!$A:$A)-1,1),回答数!$B25, OFFSET(raw!$A$1,2,MATCH($D$1,raw!$2:$2,0)-1,COUNTA(raw!$A:$A)-1,1),J$2) -> 26 | K25: =COUNTIFS( OFFSET(raw!$A$1,2,MATCH(回答数!$A25,raw!$2:$2,0)-1,COUNTA(raw!$A:$A)-1,1),回答数!$B25, OFFSET(raw!$A$1,2,MATCH($D$1,raw!$2:$2,0)-1,COUNTA(raw!$A:$A)-1,1),K$2) -> 41 | L25: =COUNTIFS( OFFSET(raw!$A$1,2,MATCH(回答数!$A25,raw!$2:$2,0)-1,COUNTA(raw!$A:$A)-1,1),回答数!$B25, OFFSET(raw!$A$1,2,MATCH($D$1,raw!$2:$2,0)-1,COUNTA(raw!$A:$A)-1,1),L$2) -> 42 | M25: =COUNTIFS( OFFSET(raw!$A$1,2,MATCH(回答数!$A25,raw!$2:$2,0)-1,COUNTA(raw!$A:$A)-1,1),回答数!$B25, OFFSET(raw!$A$1,2,MATCH($D$1,raw!$2:$2,0)-1,COUNTA(raw!$A:$A)-1,1),M$2) -> 10 | N25: =COUNTIFS( OFFSET(raw!$A$1,2,MATCH(回答数!$A25,raw!$2:$2,0)-1,COUNTA(raw!$A:$A)-1,1),回答数!$B25, OFFSET(raw!$A$1,2,MATCH($D$1,raw!$2:$2,0)-1,COUNTA(raw!$A:$A)-1,1),N$2) -> 34 | O25: =COUNTIFS( OFFSET(raw!$A$1,2,MATCH(回答数!$A25,raw!$2:$2,0)-1,COUNTA(raw!$A:$A)-1,1),回答数!$B25, OFFSET(raw!$A$1,2,MATCH($D$1,raw!$2:$2,0)-1,COUNTA(raw!$A:$A)-1,1),O$2) -> 30 | P25: 445
A26: 回答エリア | B26: 越前大野城・城下町 エリア | D26: =COUNTIFS( OFFSET(raw!$A$1,2,MATCH(回答数!$A26,raw!$2:$2,0)-1,COUNTA(raw!$A:$A)-1,1),回答数!$B26, OFFSET(raw!$A$1,2,MATCH($D$1,raw!$2:$2,0)-1,COUNTA(raw!$A:$A)-1,1),D$2) -> 12 | E26: =COUNTIFS( OFFSET(raw!$A$1,2,MATCH(回答数!$A26,raw!$2:$2,0)-1,COUNTA(raw!$A:$A)-1,1),回答数!$B26, OFFSET(raw!$A$1,2,MATCH($D$1,raw!$2:$2,0)-1,COUNTA(raw!$A:$A)-1,1),E$2) -> 79 | F26: =COUNTIFS( OFFSET(raw!$A$1,2,MATCH(回答数!$A26,raw!$2:$2,0)-1,COUNTA(raw!$A:$A)-1,1),回答数!$B26, OFFSET(raw!$A$1,2,MATCH($D$1,raw!$2:$2,0)-1,COUNTA(raw!$A:$A)-1,1),F$2) -> 49 | G26: =COUNTIFS( OFFSET(raw!$A$1,2,MATCH(回答数!$A26,raw!$2:$2,0)-1,COUNTA(raw!$A:$A)-1,1),回答数!$B26, OFFSET(raw!$A$1,2,MATCH($D$1,raw!$2:$2,0)-1,COUNTA(raw!$A:$A)-1,1),G$2) -> 48 | H26: =COUNTIFS( OFFSET(raw!$A$1,2,MATCH(回答数!$A26,raw!$2:$2,0)-1,COUNTA(raw!$A:$A)-1,1),回答数!$B26, OFFSET(raw!$A$1,2,MATCH($D$1,raw!$2:$2,0)-1,COUNTA(raw!$A:$A)-1,1),H$2) -> 53 | I26: =COUNTIFS( OFFSET(raw!$A$1,2,MATCH(回答数!$A26,raw!$2:$2,0)-1,COUNTA(raw!$A:$A)-1,1),回答数!$B26, OFFSET(raw!$A$1,2,MATCH($D$1,raw!$2:$2,0)-1,COUNTA(raw!$A:$A)-1,1),I$2) -> 52 | J26: =COUNTIFS( OFFSET(raw!$A$1,2,MATCH(回答数!$A26,raw!$2:$2,0)-1,COUNTA(raw!$A:$A)-1,1),回答数!$B26, OFFSET(raw!$A$1,2,MATCH($D$1,raw!$2:$2,0)-1,COUNTA(raw!$A:$A)-1,1),J$2) -> 51 | K26: =COUNTIFS( OFFSET(raw!$A$1,2,MATCH(回答数!$A26,raw!$2:$2,0)-1,COUNTA(raw!$A:$A)-1,1),回答数!$B26, OFFSET(raw!$A$1,2,MATCH($D$1,raw!$2:$2,0)-1,COUNTA(raw!$A:$A)-1,1),K$2) -> 53 | L26: =COUNTIFS( OFFSET(raw!$A$1,2,MATCH(回答数!$A26,raw!$2:$2,0)-1,COUNTA(raw!$A:$A)-1,1),回答数!$B26, OFFSET(raw!$A$1,2,MATCH($D$1,raw!$2:$2,0)-1,COUNTA(raw!$A:$A)-1,1),L$2) -> 13 | M26: =COUNTIFS( OFFSET(raw!$A$1,2,MATCH(回答数!$A26,raw!$2:$2,0)-1,COUNTA(raw!$A:$A)-1,1),回答数!$B26, OFFSET(raw!$A$1,2,MATCH($D$1,raw!$2:$2,0)-1,COUNTA(raw!$A:$A)-1,1),M$2) -> 0 | N26: =COUNTIFS( OFFSET(raw!$A$1,2,MATCH(回答数!$A26,raw!$2:$2,0)-1,COUNTA(raw!$A:$A)-1,1),回答数!$B26, OFFSET(raw!$A$1,2,MATCH($D$1,raw!$2:$2,0)-1,COUNTA(raw!$A:$A)-1,1),N$2) -> 3 | O26: =COUNTIFS( OFFSET(raw!$A$1,2,MATCH(回答数!$A26,raw!$2:$2,0)-1,COUNTA(raw!$A:$A)-1,1),回答数!$B26, OFFSET(raw!$A$1,2,MATCH($D$1,raw!$2:$2,0)-1,COUNTA(raw!$A:$A)-1,1),O$2) -> 53 | P26: 466
A27: 回答エリア | B27: 道の駅「越前おおの荒島の郷」 エリア | D27: =COUNTIFS( OFFSET(raw!$A$1,2,MATCH(回答数!$A27,raw!$2:$2,0)-1,COUNTA(raw!$A:$A)-1,1),回答数!$B27, OFFSET(raw!$A$1,2,MATCH($D$1,raw!$2:$2,0)-1,COUNTA(raw!$A:$A)-1,1),D$2) -> 0 | E27: =COUNTIFS( OFFSET(raw!$A$1,2,MATCH(回答数!$A27,raw!$2:$2,0)-1,COUNTA(raw!$A:$A)-1,1),回答数!$B27, OFFSET(raw!$A$1,2,MATCH($D$1,raw!$2:$2,0)-1,COUNTA(raw!$A:$A)-1,1),E$2) -> 35 | F27: =COUNTIFS( OFFSET(raw!$A$1,2,MATCH(回答数!$A27,raw!$2:$2,0)-1,COUNTA(raw!$A:$A)-1,1),回答数!$B27, OFFSET(raw!$A$1,2,MATCH($D$1,raw!$2:$2,0)-1,COUNTA(raw!$A:$A)-1,1),F$2) -> 47 | G27: =COUNTIFS( OFFSET(raw!$A$1,2,MATCH(回答数!$A27,raw!$2:$2,0)-1,COUNTA(raw!$A:$A)-1,1),回答数!$B27, OFFSET(raw!$A$1,2,MATCH($D$1,raw!$2:$2,0)-1,COUNTA(raw!$A:$A)-1,1),G$2) -> 32 | H27: =COUNTIFS( OFFSET(raw!$A$1,2,MATCH(回答数!$A27,raw!$2:$2,0)-1,COUNTA(raw!$A:$A)-1,1),回答数!$B27, OFFSET(raw!$A$1,2,MATCH($D$1,raw!$2:$2,0)-1,COUNTA(raw!$A:$A)-1,1),H$2) -> 53 | I27: =COUNTIFS( OFFSET(raw!$A$1,2,MATCH(回答数!$A27,raw!$2:$2,0)-1,COUNTA(raw!$A:$A)-1,1),回答数!$B27, OFFSET(raw!$A$1,2,MATCH($D$1,raw!$2:$2,0)-1,COUNTA(raw!$A:$A)-1,1),I$2) -> 35 | J27: =COUNTIFS( OFFSET(raw!$A$1,2,MATCH(回答数!$A27,raw!$2:$2,0)-1,COUNTA(raw!$A:$A)-1,1),回答数!$B27, OFFSET(raw!$A$1,2,MATCH($D$1,raw!$2:$2,0)-1,COUNTA(raw!$A:$A)-1,1),J$2) -> 41 | K27: =COUNTIFS( OFFSET(raw!$A$1,2,MATCH(回答数!$A27,raw!$2:$2,0)-1,COUNTA(raw!$A:$A)-1,1),回答数!$B27, OFFSET(raw!$A$1,2,MATCH($D$1,raw!$2:$2,0)-1,COUNTA(raw!$A:$A)-1,1),K$2) -> 43 | L27: =COUNTIFS( OFFSET(raw!$A$1,2,MATCH(回答数!$A27,raw!$2:$2,0)-1,COUNTA(raw!$A:$A)-1,1),回答数!$B27, OFFSET(raw!$A$1,2,MATCH($D$1,raw!$2:$2,0)-1,COUNTA(raw!$A:$A)-1,1),L$2) -> 14 | M27: =COUNTIFS( OFFSET(raw!$A$1,2,MATCH(回答数!$A27,raw!$2:$2,0)-1,COUNTA(raw!$A:$A)-1,1),回答数!$B27, OFFSET(raw!$A$1,2,MATCH($D$1,raw!$2:$2,0)-1,COUNTA(raw!$A:$A)-1,1),M$2) -> 5 | N27: =COUNTIFS( OFFSET(raw!$A$1,2,MATCH(回答数!$A27,raw!$2:$2,0)-1,COUNTA(raw!$A:$A)-1,1),回答数!$B27, OFFSET(raw!$A$1,2,MATCH($D$1,raw!$2:$2,0)-1,COUNTA(raw!$A:$A)-1,1),N$2) -> 10 | O27: =COUNTIFS( OFFSET(raw!$A$1,2,MATCH(回答数!$A27,raw!$2:$2,0)-1,COUNTA(raw!$A:$A)-1,1),回答数!$B27, OFFSET(raw!$A$1,2,MATCH($D$1,raw!$2:$2,0)-1,COUNTA(raw!$A:$A)-1,1),O$2) -> 13 | P27: 328
A28: 回答エリア | B28: JR九頭竜湖駅 エリア | D28: =COUNTIFS( OFFSET(raw!$A$1,2,MATCH(回答数!$A28,raw!$2:$2,0)-1,COUNTA(raw!$A:$A)-1,1),回答数!$B28, OFFSET(raw!$A$1,2,MATCH($D$1,raw!$2:$2,0)-1,COUNTA(raw!$A:$A)-1,1),D$2) -> 5 | E28: =COUNTIFS( OFFSET(raw!$A$1,2,MATCH(回答数!$A28,raw!$2:$2,0)-1,COUNTA(raw!$A:$A)-1,1),回答数!$B28, OFFSET(raw!$A$1,2,MATCH($D$1,raw!$2:$2,0)-1,COUNTA(raw!$A:$A)-1,1),E$2) -> 28 | F28: =COUNTIFS( OFFSET(raw!$A$1,2,MATCH(回答数!$A28,raw!$2:$2,0)-1,COUNTA(raw!$A:$A)-1,1),回答数!$B28, OFFSET(raw!$A$1,2,MATCH($D$1,raw!$2:$2,0)-1,COUNTA(raw!$A:$A)-1,1),F$2) -> 23 | G28: =COUNTIFS( OFFSET(raw!$A$1,2,MATCH(回答数!$A28,raw!$2:$2,0)-1,COUNTA(raw!$A:$A)-1,1),回答数!$B28, OFFSET(raw!$A$1,2,MATCH($D$1,raw!$2:$2,0)-1,COUNTA(raw!$A:$A)-1,1),G$2) -> 23 | H28: =COUNTIFS( OFFSET(raw!$A$1,2,MATCH(回答数!$A28,raw!$2:$2,0)-1,COUNTA(raw!$A:$A)-1,1),回答数!$B28, OFFSET(raw!$A$1,2,MATCH($D$1,raw!$2:$2,0)-1,COUNTA(raw!$A:$A)-1,1),H$2) -> 23 | I28: =COUNTIFS( OFFSET(raw!$A$1,2,MATCH(回答数!$A28,raw!$2:$2,0)-1,COUNTA(raw!$A:$A)-1,1),回答数!$B28, OFFSET(raw!$A$1,2,MATCH($D$1,raw!$2:$2,0)-1,COUNTA(raw!$A:$A)-1,1),I$2) -> 17 | J28: =COUNTIFS( OFFSET(raw!$A$1,2,MATCH(回答数!$A28,raw!$2:$2,0)-1,COUNTA(raw!$A:$A)-1,1),回答数!$B28, OFFSET(raw!$A$1,2,MATCH($D$1,raw!$2:$2,0)-1,COUNTA(raw!$A:$A)-1,1),J$2) -> 16 | K28: =COUNTIFS( OFFSET(raw!$A$1,2,MATCH(回答数!$A28,raw!$2:$2,0)-1,COUNTA(raw!$A:$A)-1,1),回答数!$B28, OFFSET(raw!$A$1,2,MATCH($D$1,raw!$2:$2,0)-1,COUNTA(raw!$A:$A)-1,1),K$2) -> 31 | L28: =COUNTIFS( OFFSET(raw!$A$1,2,MATCH(回答数!$A28,raw!$2:$2,0)-1,COUNTA(raw!$A:$A)-1,1),回答数!$B28, OFFSET(raw!$A$1,2,MATCH($D$1,raw!$2:$2,0)-1,COUNTA(raw!$A:$A)-1,1),L$2) -> 14 | M28: =COUNTIFS( OFFSET(raw!$A$1,2,MATCH(回答数!$A28,raw!$2:$2,0)-1,COUNTA(raw!$A:$A)-1,1),回答数!$B28, OFFSET(raw!$A$1,2,MATCH($D$1,raw!$2:$2,0)-1,COUNTA(raw!$A:$A)-1,1),M$2) -> 2 | N28: =COUNTIFS( OFFSET(raw!$A$1,2,MATCH(回答数!$A28,raw!$2:$2,0)-1,COUNTA(raw!$A:$A)-1,1),回答数!$B28, OFFSET(raw!$A$1,2,MATCH($D$1,raw!$2:$2,0)-1,COUNTA(raw!$A:$A)-1,1),N$2) -> 8 | O28: =COUNTIFS( OFFSET(raw!$A$1,2,MATCH(回答数!$A28,raw!$2:$2,0)-1,COUNTA(raw!$A:$A)-1,1),回答数!$B28, OFFSET(raw!$A$1,2,MATCH($D$1,raw!$2:$2,0)-1,COUNTA(raw!$A:$A)-1,1),O$2) -> 13 | P28: 203
A29: 回答エリア | B29: 六呂師高原 エリア | D29: =COUNTIFS( OFFSET(raw!$A$1,2,MATCH(回答数!$A29,raw!$2:$2,0)-1,COUNTA(raw!$A:$A)-1,1),回答数!$B29, OFFSET(raw!$A$1,2,MATCH($D$1,raw!$2:$2,0)-1,COUNTA(raw!$A:$A)-1,1),D$2) -> 1 | E29: =COUNTIFS( OFFSET(raw!$A$1,2,MATCH(回答数!$A29,raw!$2:$2,0)-1,COUNTA(raw!$A:$A)-1,1),回答数!$B29, OFFSET(raw!$A$1,2,MATCH($D$1,raw!$2:$2,0)-1,COUNTA(raw!$A:$A)-1,1),E$2) -> 6 | F29: =COUNTIFS( OFFSET(raw!$A$1,2,MATCH(回答数!$A29,raw!$2:$2,0)-1,COUNTA(raw!$A:$A)-1,1),回答数!$B29, OFFSET(raw!$A$1,2,MATCH($D$1,raw!$2:$2,0)-1,COUNTA(raw!$A:$A)-1,1),F$2) -> 4 | G29: =COUNTIFS( OFFSET(raw!$A$1,2,MATCH(回答数!$A29,raw!$2:$2,0)-1,COUNTA(raw!$A:$A)-1,1),回答数!$B29, OFFSET(raw!$A$1,2,MATCH($D$1,raw!$2:$2,0)-1,COUNTA(raw!$A:$A)-1,1),G$2) -> 3 | H29: =COUNTIFS( OFFSET(raw!$A$1,2,MATCH(回答数!$A29,raw!$2:$2,0)-1,COUNTA(raw!$A:$A)-1,1),回答数!$B29, OFFSET(raw!$A$1,2,MATCH($D$1,raw!$2:$2,0)-1,COUNTA(raw!$A:$A)-1,1),H$2) -> 6 | I29: =COUNTIFS( OFFSET(raw!$A$1,2,MATCH(回答数!$A29,raw!$2:$2,0)-1,COUNTA(raw!$A:$A)-1,1),回答数!$B29, OFFSET(raw!$A$1,2,MATCH($D$1,raw!$2:$2,0)-1,COUNTA(raw!$A:$A)-1,1),I$2) -> 7 | J29: =COUNTIFS( OFFSET(raw!$A$1,2,MATCH(回答数!$A29,raw!$2:$2,0)-1,COUNTA(raw!$A:$A)-1,1),回答数!$B29, OFFSET(raw!$A$1,2,MATCH($D$1,raw!$2:$2,0)-1,COUNTA(raw!$A:$A)-1,1),J$2) -> 4 | K29: =COUNTIFS( OFFSET(raw!$A$1,2,MATCH(回答数!$A29,raw!$2:$2,0)-1,COUNTA(raw!$A:$A)-1,1),回答数!$B29, OFFSET(raw!$A$1,2,MATCH($D$1,raw!$2:$2,0)-1,COUNTA(raw!$A:$A)-1,1),K$2) -> 2 | L29: =COUNTIFS( OFFSET(raw!$A$1,2,MATCH(回答数!$A29,raw!$2:$2,0)-1,COUNTA(raw!$A:$A)-1,1),回答数!$B29, OFFSET(raw!$A$1,2,MATCH($D$1,raw!$2:$2,0)-1,COUNTA(raw!$A:$A)-1,1),L$2) -> 2 | M29: =COUNTIFS( OFFSET(raw!$A$1,2,MATCH(回答数!$A29,raw!$2:$2,0)-1,COUNTA(raw!$A:$A)-1,1),回答数!$B29, OFFSET(raw!$A$1,2,MATCH($D$1,raw!$2:$2,0)-1,COUNTA(raw!$A:$A)-1,1),M$2) -> 0 | N29: =COUNTIFS( OFFSET(raw!$A$1,2,MATCH(回答数!$A29,raw!$2:$2,0)-1,COUNTA(raw!$A:$A)-1,1),回答数!$B29, OFFSET(raw!$A$1,2,MATCH($D$1,raw!$2:$2,0)-1,COUNTA(raw!$A:$A)-1,1),N$2) -> 0 | O29: =COUNTIFS( OFFSET(raw!$A$1,2,MATCH(回答数!$A29,raw!$2:$2,0)-1,COUNTA(raw!$A:$A)-1,1),回答数!$B29, OFFSET(raw!$A$1,2,MATCH($D$1,raw!$2:$2,0)-1,COUNTA(raw!$A:$A)-1,1),O$2) -> 0 | P29: 35
A30: 回答エリア | B30: スーベニアショップ ラプトル エリア | D30: =COUNTIFS( OFFSET(raw!$A$1,2,MATCH(回答数!$A30,raw!$2:$2,0)-1,COUNTA(raw!$A:$A)-1,1),回答数!$B30, OFFSET(raw!$A$1,2,MATCH($D$1,raw!$2:$2,0)-1,COUNTA(raw!$A:$A)-1,1),D$2) -> 0 | E30: =COUNTIFS( OFFSET(raw!$A$1,2,MATCH(回答数!$A30,raw!$2:$2,0)-1,COUNTA(raw!$A:$A)-1,1),回答数!$B30, OFFSET(raw!$A$1,2,MATCH($D$1,raw!$2:$2,0)-1,COUNTA(raw!$A:$A)-1,1),E$2) -> 0 | F30: =COUNTIFS( OFFSET(raw!$A$1,2,MATCH(回答数!$A30,raw!$2:$2,0)-1,COUNTA(raw!$A:$A)-1,1),回答数!$B30, OFFSET(raw!$A$1,2,MATCH($D$1,raw!$2:$2,0)-1,COUNTA(raw!$A:$A)-1,1),F$2) -> 0 | G30: =COUNTIFS( OFFSET(raw!$A$1,2,MATCH(回答数!$A30,raw!$2:$2,0)-1,COUNTA(raw!$A:$A)-1,1),回答数!$B30, OFFSET(raw!$A$1,2,MATCH($D$1,raw!$2:$2,0)-1,COUNTA(raw!$A:$A)-1,1),G$2) -> 68 | H30: =COUNTIFS( OFFSET(raw!$A$1,2,MATCH(回答数!$A30,raw!$2:$2,0)-1,COUNTA(raw!$A:$A)-1,1),回答数!$B30, OFFSET(raw!$A$1,2,MATCH($D$1,raw!$2:$2,0)-1,COUNTA(raw!$A:$A)-1,1),H$2) -> 84 | I30: =COUNTIFS( OFFSET(raw!$A$1,2,MATCH(回答数!$A30,raw!$2:$2,0)-1,COUNTA(raw!$A:$A)-1,1),回答数!$B30, OFFSET(raw!$A$1,2,MATCH($D$1,raw!$2:$2,0)-1,COUNTA(raw!$A:$A)-1,1),I$2) -> 63 | J30: =COUNTIFS( OFFSET(raw!$A$1,2,MATCH(回答数!$A30,raw!$2:$2,0)-1,COUNTA(raw!$A:$A)-1,1),回答数!$B30, OFFSET(raw!$A$1,2,MATCH($D$1,raw!$2:$2,0)-1,COUNTA(raw!$A:$A)-1,1),J$2) -> 58 | K30: =COUNTIFS( OFFSET(raw!$A$1,2,MATCH(回答数!$A30,raw!$2:$2,0)-1,COUNTA(raw!$A:$A)-1,1),回答数!$B30, OFFSET(raw!$A$1,2,MATCH($D$1,raw!$2:$2,0)-1,COUNTA(raw!$A:$A)-1,1),K$2) -> 53 | L30: =COUNTIFS( OFFSET(raw!$A$1,2,MATCH(回答数!$A30,raw!$2:$2,0)-1,COUNTA(raw!$A:$A)-1,1),回答数!$B30, OFFSET(raw!$A$1,2,MATCH($D$1,raw!$2:$2,0)-1,COUNTA(raw!$A:$A)-1,1),L$2) -> 53 | M30: =COUNTIFS( OFFSET(raw!$A$1,2,MATCH(回答数!$A30,raw!$2:$2,0)-1,COUNTA(raw!$A:$A)-1,1),回答数!$B30, OFFSET(raw!$A$1,2,MATCH($D$1,raw!$2:$2,0)-1,COUNTA(raw!$A:$A)-1,1),M$2) -> 22 | N30: =COUNTIFS( OFFSET(raw!$A$1,2,MATCH(回答数!$A30,raw!$2:$2,0)-1,COUNTA(raw!$A:$A)-1,1),回答数!$B30, OFFSET(raw!$A$1,2,MATCH($D$1,raw!$2:$2,0)-1,COUNTA(raw!$A:$A)-1,1),N$2) -> 29 | O30: =COUNTIFS( OFFSET(raw!$A$1,2,MATCH(回答数!$A30,raw!$2:$2,0)-1,COUNTA(raw!$A:$A)-1,1),回答数!$B30, OFFSET(raw!$A$1,2,MATCH($D$1,raw!$2:$2,0)-1,COUNTA(raw!$A:$A)-1,1),O$2) -> 74 | P30: 504
A31: 回答エリア | B31: 道の駅「恐竜渓谷かつやま」 エリア | D31: =COUNTIFS( OFFSET(raw!$A$1,2,MATCH(回答数!$A31,raw!$2:$2,0)-1,COUNTA(raw!$A:$A)-1,1),回答数!$B31, OFFSET(raw!$A$1,2,MATCH($D$1,raw!$2:$2,0)-1,COUNTA(raw!$A:$A)-1,1),D$2) -> 10 | E31: =COUNTIFS( OFFSET(raw!$A$1,2,MATCH(回答数!$A31,raw!$2:$2,0)-1,COUNTA(raw!$A:$A)-1,1),回答数!$B31, OFFSET(raw!$A$1,2,MATCH($D$1,raw!$2:$2,0)-1,COUNTA(raw!$A:$A)-1,1),E$2) -> 63 | F31: =COUNTIFS( OFFSET(raw!$A$1,2,MATCH(回答数!$A31,raw!$2:$2,0)-1,COUNTA(raw!$A:$A)-1,1),回答数!$B31, OFFSET(raw!$A$1,2,MATCH($D$1,raw!$2:$2,0)-1,COUNTA(raw!$A:$A)-1,1),F$2) -> 24 | G31: =COUNTIFS( OFFSET(raw!$A$1,2,MATCH(回答数!$A31,raw!$2:$2,0)-1,COUNTA(raw!$A:$A)-1,1),回答数!$B31, OFFSET(raw!$A$1,2,MATCH($D$1,raw!$2:$2,0)-1,COUNTA(raw!$A:$A)-1,1),G$2) -> 36 | H31: =COUNTIFS( OFFSET(raw!$A$1,2,MATCH(回答数!$A31,raw!$2:$2,0)-1,COUNTA(raw!$A:$A)-1,1),回答数!$B31, OFFSET(raw!$A$1,2,MATCH($D$1,raw!$2:$2,0)-1,COUNTA(raw!$A:$A)-1,1),H$2) -> 34 | I31: =COUNTIFS( OFFSET(raw!$A$1,2,MATCH(回答数!$A31,raw!$2:$2,0)-1,COUNTA(raw!$A:$A)-1,1),回答数!$B31, OFFSET(raw!$A$1,2,MATCH($D$1,raw!$2:$2,0)-1,COUNTA(raw!$A:$A)-1,1),I$2) -> 35 | J31: =COUNTIFS( OFFSET(raw!$A$1,2,MATCH(回答数!$A31,raw!$2:$2,0)-1,COUNTA(raw!$A:$A)-1,1),回答数!$B31, OFFSET(raw!$A$1,2,MATCH($D$1,raw!$2:$2,0)-1,COUNTA(raw!$A:$A)-1,1),J$2) -> 25 | K31: =COUNTIFS( OFFSET(raw!$A$1,2,MATCH(回答数!$A31,raw!$2:$2,0)-1,COUNTA(raw!$A:$A)-1,1),回答数!$B31, OFFSET(raw!$A$1,2,MATCH($D$1,raw!$2:$2,0)-1,COUNTA(raw!$A:$A)-1,1),K$2) -> 32 | L31: =COUNTIFS( OFFSET(raw!$A$1,2,MATCH(回答数!$A31,raw!$2:$2,0)-1,COUNTA(raw!$A:$A)-1,1),回答数!$B31, OFFSET(raw!$A$1,2,MATCH($D$1,raw!$2:$2,0)-1,COUNTA(raw!$A:$A)-1,1),L$2) -> 31 | M31: =COUNTIFS( OFFSET(raw!$A$1,2,MATCH(回答数!$A31,raw!$2:$2,0)-1,COUNTA(raw!$A:$A)-1,1),回答数!$B31, OFFSET(raw!$A$1,2,MATCH($D$1,raw!$2:$2,0)-1,COUNTA(raw!$A:$A)-1,1),M$2) -> 10 | N31: =COUNTIFS( OFFSET(raw!$A$1,2,MATCH(回答数!$A31,raw!$2:$2,0)-1,COUNTA(raw!$A:$A)-1,1),回答数!$B31, OFFSET(raw!$A$1,2,MATCH($D$1,raw!$2:$2,0)-1,COUNTA(raw!$A:$A)-1,1),N$2) -> 23 | O31: =COUNTIFS( OFFSET(raw!$A$1,2,MATCH(回答数!$A31,raw!$2:$2,0)-1,COUNTA(raw!$A:$A)-1,1),回答数!$B31, OFFSET(raw!$A$1,2,MATCH($D$1,raw!$2:$2,0)-1,COUNTA(raw!$A:$A)-1,1),O$2) -> 67 | P31: 390
A32: 回答エリア | B32: スキージャム勝山 エリア | D32: =COUNTIFS( OFFSET(raw!$A$1,2,MATCH(回答数!$A32,raw!$2:$2,0)-1,COUNTA(raw!$A:$A)-1,1),回答数!$B32, OFFSET(raw!$A$1,2,MATCH($D$1,raw!$2:$2,0)-1,COUNTA(raw!$A:$A)-1,1),D$2) -> 0 | E32: =COUNTIFS( OFFSET(raw!$A$1,2,MATCH(回答数!$A32,raw!$2:$2,0)-1,COUNTA(raw!$A:$A)-1,1),回答数!$B32, OFFSET(raw!$A$1,2,MATCH($D$1,raw!$2:$2,0)-1,COUNTA(raw!$A:$A)-1,1),E$2) -> 13 | F32: =COUNTIFS( OFFSET(raw!$A$1,2,MATCH(回答数!$A32,raw!$2:$2,0)-1,COUNTA(raw!$A:$A)-1,1),回答数!$B32, OFFSET(raw!$A$1,2,MATCH($D$1,raw!$2:$2,0)-1,COUNTA(raw!$A:$A)-1,1),F$2) -> 3 | G32: =COUNTIFS( OFFSET(raw!$A$1,2,MATCH(回答数!$A32,raw!$2:$2,0)-1,COUNTA(raw!$A:$A)-1,1),回答数!$B32, OFFSET(raw!$A$1,2,MATCH($D$1,raw!$2:$2,0)-1,COUNTA(raw!$A:$A)-1,1),G$2) -> 6 | H32: =COUNTIFS( OFFSET(raw!$A$1,2,MATCH(回答数!$A32,raw!$2:$2,0)-1,COUNTA(raw!$A:$A)-1,1),回答数!$B32, OFFSET(raw!$A$1,2,MATCH($D$1,raw!$2:$2,0)-1,COUNTA(raw!$A:$A)-1,1),H$2) -> 19 | I32: =COUNTIFS( OFFSET(raw!$A$1,2,MATCH(回答数!$A32,raw!$2:$2,0)-1,COUNTA(raw!$A:$A)-1,1),回答数!$B32, OFFSET(raw!$A$1,2,MATCH($D$1,raw!$2:$2,0)-1,COUNTA(raw!$A:$A)-1,1),I$2) -> 12 | J32: =COUNTIFS( OFFSET(raw!$A$1,2,MATCH(回答数!$A32,raw!$2:$2,0)-1,COUNTA(raw!$A:$A)-1,1),回答数!$B32, OFFSET(raw!$A$1,2,MATCH($D$1,raw!$2:$2,0)-1,COUNTA(raw!$A:$A)-1,1),J$2) -> 16 | K32: =COUNTIFS( OFFSET(raw!$A$1,2,MATCH(回答数!$A32,raw!$2:$2,0)-1,COUNTA(raw!$A:$A)-1,1),回答数!$B32, OFFSET(raw!$A$1,2,MATCH($D$1,raw!$2:$2,0)-1,COUNTA(raw!$A:$A)-1,1),K$2) -> 5 | L32: =COUNTIFS( OFFSET(raw!$A$1,2,MATCH(回答数!$A32,raw!$2:$2,0)-1,COUNTA(raw!$A:$A)-1,1),回答数!$B32, OFFSET(raw!$A$1,2,MATCH($D$1,raw!$2:$2,0)-1,COUNTA(raw!$A:$A)-1,1),L$2) -> 11 | M32: =COUNTIFS( OFFSET(raw!$A$1,2,MATCH(回答数!$A32,raw!$2:$2,0)-1,COUNTA(raw!$A:$A)-1,1),回答数!$B32, OFFSET(raw!$A$1,2,MATCH($D$1,raw!$2:$2,0)-1,COUNTA(raw!$A:$A)-1,1),M$2) -> 22 | N32: =COUNTIFS( OFFSET(raw!$A$1,2,MATCH(回答数!$A32,raw!$2:$2,0)-1,COUNTA(raw!$A:$A)-1,1),回答数!$B32, OFFSET(raw!$A$1,2,MATCH($D$1,raw!$2:$2,0)-1,COUNTA(raw!$A:$A)-1,1),N$2) -> 7 | O32: =COUNTIFS( OFFSET(raw!$A$1,2,MATCH(回答数!$A32,raw!$2:$2,0)-1,COUNTA(raw!$A:$A)-1,1),回答数!$B32, OFFSET(raw!$A$1,2,MATCH($D$1,raw!$2:$2,0)-1,COUNTA(raw!$A:$A)-1,1),O$2) -> 9 | P32: 123
A33: 回答エリア | B33: 越前大仏 エリア | D33: =COUNTIFS( OFFSET(raw!$A$1,2,MATCH(回答数!$A33,raw!$2:$2,0)-1,COUNTA(raw!$A:$A)-1,1),回答数!$B33, OFFSET(raw!$A$1,2,MATCH($D$1,raw!$2:$2,0)-1,COUNTA(raw!$A:$A)-1,1),D$2) -> 0 | E33: =COUNTIFS( OFFSET(raw!$A$1,2,MATCH(回答数!$A33,raw!$2:$2,0)-1,COUNTA(raw!$A:$A)-1,1),回答数!$B33, OFFSET(raw!$A$1,2,MATCH($D$1,raw!$2:$2,0)-1,COUNTA(raw!$A:$A)-1,1),E$2) -> 6 | F33: =COUNTIFS( OFFSET(raw!$A$1,2,MATCH(回答数!$A33,raw!$2:$2,0)-1,COUNTA(raw!$A:$A)-1,1),回答数!$B33, OFFSET(raw!$A$1,2,MATCH($D$1,raw!$2:$2,0)-1,COUNTA(raw!$A:$A)-1,1),F$2) -> 7 | G33: =COUNTIFS( OFFSET(raw!$A$1,2,MATCH(回答数!$A33,raw!$2:$2,0)-1,COUNTA(raw!$A:$A)-1,1),回答数!$B33, OFFSET(raw!$A$1,2,MATCH($D$1,raw!$2:$2,0)-1,COUNTA(raw!$A:$A)-1,1),G$2) -> 12 | H33: =COUNTIFS( OFFSET(raw!$A$1,2,MATCH(回答数!$A33,raw!$2:$2,0)-1,COUNTA(raw!$A:$A)-1,1),回答数!$B33, OFFSET(raw!$A$1,2,MATCH($D$1,raw!$2:$2,0)-1,COUNTA(raw!$A:$A)-1,1),H$2) -> 8 | I33: =COUNTIFS( OFFSET(raw!$A$1,2,MATCH(回答数!$A33,raw!$2:$2,0)-1,COUNTA(raw!$A:$A)-1,1),回答数!$B33, OFFSET(raw!$A$1,2,MATCH($D$1,raw!$2:$2,0)-1,COUNTA(raw!$A:$A)-1,1),I$2) -> 3 | J33: =COUNTIFS( OFFSET(raw!$A$1,2,MATCH(回答数!$A33,raw!$2:$2,0)-1,COUNTA(raw!$A:$A)-1,1),回答数!$B33, OFFSET(raw!$A$1,2,MATCH($D$1,raw!$2:$2,0)-1,COUNTA(raw!$A:$A)-1,1),J$2) -> 4 | K33: =COUNTIFS( OFFSET(raw!$A$1,2,MATCH(回答数!$A33,raw!$2:$2,0)-1,COUNTA(raw!$A:$A)-1,1),回答数!$B33, OFFSET(raw!$A$1,2,MATCH($D$1,raw!$2:$2,0)-1,COUNTA(raw!$A:$A)-1,1),K$2) -> 4 | L33: =COUNTIFS( OFFSET(raw!$A$1,2,MATCH(回答数!$A33,raw!$2:$2,0)-1,COUNTA(raw!$A:$A)-1,1),回答数!$B33, OFFSET(raw!$A$1,2,MATCH($D$1,raw!$2:$2,0)-1,COUNTA(raw!$A:$A)-1,1),L$2) -> 3 | M33: =COUNTIFS( OFFSET(raw!$A$1,2,MATCH(回答数!$A33,raw!$2:$2,0)-1,COUNTA(raw!$A:$A)-1,1),回答数!$B33, OFFSET(raw!$A$1,2,MATCH($D$1,raw!$2:$2,0)-1,COUNTA(raw!$A:$A)-1,1),M$2) -> 1 | N33: =COUNTIFS( OFFSET(raw!$A$1,2,MATCH(回答数!$A33,raw!$2:$2,0)-1,COUNTA(raw!$A:$A)-1,1),回答数!$B33, OFFSET(raw!$A$1,2,MATCH($D$1,raw!$2:$2,0)-1,COUNTA(raw!$A:$A)-1,1),N$2) -> 1 | O33: =COUNTIFS( OFFSET(raw!$A$1,2,MATCH(回答数!$A33,raw!$2:$2,0)-1,COUNTA(raw!$A:$A)-1,1),回答数!$B33, OFFSET(raw!$A$1,2,MATCH($D$1,raw!$2:$2,0)-1,COUNTA(raw!$A:$A)-1,1),O$2) -> 4 | P33: 53
A34: 回答エリア | B34: 平泉寺白山神社 エリア | D34: =COUNTIFS( OFFSET(raw!$A$1,2,MATCH(回答数!$A34,raw!$2:$2,0)-1,COUNTA(raw!$A:$A)-1,1),回答数!$B34, OFFSET(raw!$A$1,2,MATCH($D$1,raw!$2:$2,0)-1,COUNTA(raw!$A:$A)-1,1),D$2) -> 0 | E34: =COUNTIFS( OFFSET(raw!$A$1,2,MATCH(回答数!$A34,raw!$2:$2,0)-1,COUNTA(raw!$A:$A)-1,1),回答数!$B34, OFFSET(raw!$A$1,2,MATCH($D$1,raw!$2:$2,0)-1,COUNTA(raw!$A:$A)-1,1),E$2) -> 32 | F34: =COUNTIFS( OFFSET(raw!$A$1,2,MATCH(回答数!$A34,raw!$2:$2,0)-1,COUNTA(raw!$A:$A)-1,1),回答数!$B34, OFFSET(raw!$A$1,2,MATCH($D$1,raw!$2:$2,0)-1,COUNTA(raw!$A:$A)-1,1),F$2) -> 13 | G34: =COUNTIFS( OFFSET(raw!$A$1,2,MATCH(回答数!$A34,raw!$2:$2,0)-1,COUNTA(raw!$A:$A)-1,1),回答数!$B34, OFFSET(raw!$A$1,2,MATCH($D$1,raw!$2:$2,0)-1,COUNTA(raw!$A:$A)-1,1),G$2) -> 27 | H34: =COUNTIFS( OFFSET(raw!$A$1,2,MATCH(回答数!$A34,raw!$2:$2,0)-1,COUNTA(raw!$A:$A)-1,1),回答数!$B34, OFFSET(raw!$A$1,2,MATCH($D$1,raw!$2:$2,0)-1,COUNTA(raw!$A:$A)-1,1),H$2) -> 20 | I34: =COUNTIFS( OFFSET(raw!$A$1,2,MATCH(回答数!$A34,raw!$2:$2,0)-1,COUNTA(raw!$A:$A)-1,1),回答数!$B34, OFFSET(raw!$A$1,2,MATCH($D$1,raw!$2:$2,0)-1,COUNTA(raw!$A:$A)-1,1),I$2) -> 11 | J34: =COUNTIFS( OFFSET(raw!$A$1,2,MATCH(回答数!$A34,raw!$2:$2,0)-1,COUNTA(raw!$A:$A)-1,1),回答数!$B34, OFFSET(raw!$A$1,2,MATCH($D$1,raw!$2:$2,0)-1,COUNTA(raw!$A:$A)-1,1),J$2) -> 15 | K34: =COUNTIFS( OFFSET(raw!$A$1,2,MATCH(回答数!$A34,raw!$2:$2,0)-1,COUNTA(raw!$A:$A)-1,1),回答数!$B34, OFFSET(raw!$A$1,2,MATCH($D$1,raw!$2:$2,0)-1,COUNTA(raw!$A:$A)-1,1),K$2) -> 7 | L34: =COUNTIFS( OFFSET(raw!$A$1,2,MATCH(回答数!$A34,raw!$2:$2,0)-1,COUNTA(raw!$A:$A)-1,1),回答数!$B34, OFFSET(raw!$A$1,2,MATCH($D$1,raw!$2:$2,0)-1,COUNTA(raw!$A:$A)-1,1),L$2) -> 8 | M34: =COUNTIFS( OFFSET(raw!$A$1,2,MATCH(回答数!$A34,raw!$2:$2,0)-1,COUNTA(raw!$A:$A)-1,1),回答数!$B34, OFFSET(raw!$A$1,2,MATCH($D$1,raw!$2:$2,0)-1,COUNTA(raw!$A:$A)-1,1),M$2) -> 4 | N34: =COUNTIFS( OFFSET(raw!$A$1,2,MATCH(回答数!$A34,raw!$2:$2,0)-1,COUNTA(raw!$A:$A)-1,1),回答数!$B34, OFFSET(raw!$A$1,2,MATCH($D$1,raw!$2:$2,0)-1,COUNTA(raw!$A:$A)-1,1),N$2) -> 1 | O34: =COUNTIFS( OFFSET(raw!$A$1,2,MATCH(回答数!$A34,raw!$2:$2,0)-1,COUNTA(raw!$A:$A)-1,1),回答数!$B34, OFFSET(raw!$A$1,2,MATCH($D$1,raw!$2:$2,0)-1,COUNTA(raw!$A:$A)-1,1),O$2) -> 6 | P34: 144
A35: 回答エリア | B35: はたや記念館 ゆめおーれ勝山 エリア | D35: =COUNTIFS( OFFSET(raw!$A$1,2,MATCH(回答数!$A35,raw!$2:$2,0)-1,COUNTA(raw!$A:$A)-1,1),回答数!$B35, OFFSET(raw!$A$1,2,MATCH($D$1,raw!$2:$2,0)-1,COUNTA(raw!$A:$A)-1,1),D$2) -> 2 | E35: =COUNTIFS( OFFSET(raw!$A$1,2,MATCH(回答数!$A35,raw!$2:$2,0)-1,COUNTA(raw!$A:$A)-1,1),回答数!$B35, OFFSET(raw!$A$1,2,MATCH($D$1,raw!$2:$2,0)-1,COUNTA(raw!$A:$A)-1,1),E$2) -> 19 | F35: =COUNTIFS( OFFSET(raw!$A$1,2,MATCH(回答数!$A35,raw!$2:$2,0)-1,COUNTA(raw!$A:$A)-1,1),回答数!$B35, OFFSET(raw!$A$1,2,MATCH($D$1,raw!$2:$2,0)-1,COUNTA(raw!$A:$A)-1,1),F$2) -> 6 | G35: =COUNTIFS( OFFSET(raw!$A$1,2,MATCH(回答数!$A35,raw!$2:$2,0)-1,COUNTA(raw!$A:$A)-1,1),回答数!$B35, OFFSET(raw!$A$1,2,MATCH($D$1,raw!$2:$2,0)-1,COUNTA(raw!$A:$A)-1,1),G$2) -> 15 | H35: =COUNTIFS( OFFSET(raw!$A$1,2,MATCH(回答数!$A35,raw!$2:$2,0)-1,COUNTA(raw!$A:$A)-1,1),回答数!$B35, OFFSET(raw!$A$1,2,MATCH($D$1,raw!$2:$2,0)-1,COUNTA(raw!$A:$A)-1,1),H$2) -> 13 | I35: =COUNTIFS( OFFSET(raw!$A$1,2,MATCH(回答数!$A35,raw!$2:$2,0)-1,COUNTA(raw!$A:$A)-1,1),回答数!$B35, OFFSET(raw!$A$1,2,MATCH($D$1,raw!$2:$2,0)-1,COUNTA(raw!$A:$A)-1,1),I$2) -> 4 | J35: =COUNTIFS( OFFSET(raw!$A$1,2,MATCH(回答数!$A35,raw!$2:$2,0)-1,COUNTA(raw!$A:$A)-1,1),回答数!$B35, OFFSET(raw!$A$1,2,MATCH($D$1,raw!$2:$2,0)-1,COUNTA(raw!$A:$A)-1,1),J$2) -> 11 | K35: =COUNTIFS( OFFSET(raw!$A$1,2,MATCH(回答数!$A35,raw!$2:$2,0)-1,COUNTA(raw!$A:$A)-1,1),回答数!$B35, OFFSET(raw!$A$1,2,MATCH($D$1,raw!$2:$2,0)-1,COUNTA(raw!$A:$A)-1,1),K$2) -> 13 | L35: =COUNTIFS( OFFSET(raw!$A$1,2,MATCH(回答数!$A35,raw!$2:$2,0)-1,COUNTA(raw!$A:$A)-1,1),回答数!$B35, OFFSET(raw!$A$1,2,MATCH($D$1,raw!$2:$2,0)-1,COUNTA(raw!$A:$A)-1,1),L$2) -> 17 | M35: =COUNTIFS( OFFSET(raw!$A$1,2,MATCH(回答数!$A35,raw!$2:$2,0)-1,COUNTA(raw!$A:$A)-1,1),回答数!$B35, OFFSET(raw!$A$1,2,MATCH($D$1,raw!$2:$2,0)-1,COUNTA(raw!$A:$A)-1,1),M$2) -> 4 | N35: =COUNTIFS( OFFSET(raw!$A$1,2,MATCH(回答数!$A35,raw!$2:$2,0)-1,COUNTA(raw!$A:$A)-1,1),回答数!$B35, OFFSET(raw!$A$1,2,MATCH($D$1,raw!$2:$2,0)-1,COUNTA(raw!$A:$A)-1,1),N$2) -> 11 | O35: =COUNTIFS( OFFSET(raw!$A$1,2,MATCH(回答数!$A35,raw!$2:$2,0)-1,COUNTA(raw!$A:$A)-1,1),回答数!$B35, OFFSET(raw!$A$1,2,MATCH($D$1,raw!$2:$2,0)-1,COUNTA(raw!$A:$A)-1,1),O$2) -> 13 | P35: 128
A36: 回答エリア | B36: えちぜん鉄道 永平寺口駅 エリア | D36: =COUNTIFS( OFFSET(raw!$A$1,2,MATCH(回答数!$A36,raw!$2:$2,0)-1,COUNTA(raw!$A:$A)-1,1),回答数!$B36, OFFSET(raw!$A$1,2,MATCH($D$1,raw!$2:$2,0)-1,COUNTA(raw!$A:$A)-1,1),D$2) -> 1 | E36: =COUNTIFS( OFFSET(raw!$A$1,2,MATCH(回答数!$A36,raw!$2:$2,0)-1,COUNTA(raw!$A:$A)-1,1),回答数!$B36, OFFSET(raw!$A$1,2,MATCH($D$1,raw!$2:$2,0)-1,COUNTA(raw!$A:$A)-1,1),E$2) -> 37 | F36: =COUNTIFS( OFFSET(raw!$A$1,2,MATCH(回答数!$A36,raw!$2:$2,0)-1,COUNTA(raw!$A:$A)-1,1),回答数!$B36, OFFSET(raw!$A$1,2,MATCH($D$1,raw!$2:$2,0)-1,COUNTA(raw!$A:$A)-1,1),F$2) -> 11 | G36: =COUNTIFS( OFFSET(raw!$A$1,2,MATCH(回答数!$A36,raw!$2:$2,0)-1,COUNTA(raw!$A:$A)-1,1),回答数!$B36, OFFSET(raw!$A$1,2,MATCH($D$1,raw!$2:$2,0)-1,COUNTA(raw!$A:$A)-1,1),G$2) -> 8 | H36: =COUNTIFS( OFFSET(raw!$A$1,2,MATCH(回答数!$A36,raw!$2:$2,0)-1,COUNTA(raw!$A:$A)-1,1),回答数!$B36, OFFSET(raw!$A$1,2,MATCH($D$1,raw!$2:$2,0)-1,COUNTA(raw!$A:$A)-1,1),H$2) -> 8 | I36: =COUNTIFS( OFFSET(raw!$A$1,2,MATCH(回答数!$A36,raw!$2:$2,0)-1,COUNTA(raw!$A:$A)-1,1),回答数!$B36, OFFSET(raw!$A$1,2,MATCH($D$1,raw!$2:$2,0)-1,COUNTA(raw!$A:$A)-1,1),I$2) -> 8 | J36: =COUNTIFS( OFFSET(raw!$A$1,2,MATCH(回答数!$A36,raw!$2:$2,0)-1,COUNTA(raw!$A:$A)-1,1),回答数!$B36, OFFSET(raw!$A$1,2,MATCH($D$1,raw!$2:$2,0)-1,COUNTA(raw!$A:$A)-1,1),J$2) -> 20 | K36: =COUNTIFS( OFFSET(raw!$A$1,2,MATCH(回答数!$A36,raw!$2:$2,0)-1,COUNTA(raw!$A:$A)-1,1),回答数!$B36, OFFSET(raw!$A$1,2,MATCH($D$1,raw!$2:$2,0)-1,COUNTA(raw!$A:$A)-1,1),K$2) -> 11 | L36: =COUNTIFS( OFFSET(raw!$A$1,2,MATCH(回答数!$A36,raw!$2:$2,0)-1,COUNTA(raw!$A:$A)-1,1),回答数!$B36, OFFSET(raw!$A$1,2,MATCH($D$1,raw!$2:$2,0)-1,COUNTA(raw!$A:$A)-1,1),L$2) -> 6 | M36: =COUNTIFS( OFFSET(raw!$A$1,2,MATCH(回答数!$A36,raw!$2:$2,0)-1,COUNTA(raw!$A:$A)-1,1),回答数!$B36, OFFSET(raw!$A$1,2,MATCH($D$1,raw!$2:$2,0)-1,COUNTA(raw!$A:$A)-1,1),M$2) -> 5 | N36: =COUNTIFS( OFFSET(raw!$A$1,2,MATCH(回答数!$A36,raw!$2:$2,0)-1,COUNTA(raw!$A:$A)-1,1),回答数!$B36, OFFSET(raw!$A$1,2,MATCH($D$1,raw!$2:$2,0)-1,COUNTA(raw!$A:$A)-1,1),N$2) -> 7 | O36: =COUNTIFS( OFFSET(raw!$A$1,2,MATCH(回答数!$A36,raw!$2:$2,0)-1,COUNTA(raw!$A:$A)-1,1),回答数!$B36, OFFSET(raw!$A$1,2,MATCH($D$1,raw!$2:$2,0)-1,COUNTA(raw!$A:$A)-1,1),O$2) -> 18 | P36: 140
A37: 回答エリア | B37: 九頭竜川 エリア（鮎・釣り） | D37: =COUNTIFS( OFFSET(raw!$A$1,2,MATCH(回答数!$A37,raw!$2:$2,0)-1,COUNTA(raw!$A:$A)-1,1),回答数!$B37, OFFSET(raw!$A$1,2,MATCH($D$1,raw!$2:$2,0)-1,COUNTA(raw!$A:$A)-1,1),D$2) -> 0 | E37: =COUNTIFS( OFFSET(raw!$A$1,2,MATCH(回答数!$A37,raw!$2:$2,0)-1,COUNTA(raw!$A:$A)-1,1),回答数!$B37, OFFSET(raw!$A$1,2,MATCH($D$1,raw!$2:$2,0)-1,COUNTA(raw!$A:$A)-1,1),E$2) -> 2 | F37: =COUNTIFS( OFFSET(raw!$A$1,2,MATCH(回答数!$A37,raw!$2:$2,0)-1,COUNTA(raw!$A:$A)-1,1),回答数!$B37, OFFSET(raw!$A$1,2,MATCH($D$1,raw!$2:$2,0)-1,COUNTA(raw!$A:$A)-1,1),F$2) -> 4 | G37: =COUNTIFS( OFFSET(raw!$A$1,2,MATCH(回答数!$A37,raw!$2:$2,0)-1,COUNTA(raw!$A:$A)-1,1),回答数!$B37, OFFSET(raw!$A$1,2,MATCH($D$1,raw!$2:$2,0)-1,COUNTA(raw!$A:$A)-1,1),G$2) -> 3 | H37: =COUNTIFS( OFFSET(raw!$A$1,2,MATCH(回答数!$A37,raw!$2:$2,0)-1,COUNTA(raw!$A:$A)-1,1),回答数!$B37, OFFSET(raw!$A$1,2,MATCH($D$1,raw!$2:$2,0)-1,COUNTA(raw!$A:$A)-1,1),H$2) -> 3 | I37: =COUNTIFS( OFFSET(raw!$A$1,2,MATCH(回答数!$A37,raw!$2:$2,0)-1,COUNTA(raw!$A:$A)-1,1),回答数!$B37, OFFSET(raw!$A$1,2,MATCH($D$1,raw!$2:$2,0)-1,COUNTA(raw!$A:$A)-1,1),I$2) -> 4 | J37: =COUNTIFS( OFFSET(raw!$A$1,2,MATCH(回答数!$A37,raw!$2:$2,0)-1,COUNTA(raw!$A:$A)-1,1),回答数!$B37, OFFSET(raw!$A$1,2,MATCH($D$1,raw!$2:$2,0)-1,COUNTA(raw!$A:$A)-1,1),J$2) -> 1 | K37: =COUNTIFS( OFFSET(raw!$A$1,2,MATCH(回答数!$A37,raw!$2:$2,0)-1,COUNTA(raw!$A:$A)-1,1),回答数!$B37, OFFSET(raw!$A$1,2,MATCH($D$1,raw!$2:$2,0)-1,COUNTA(raw!$A:$A)-1,1),K$2) -> 2 | L37: =COUNTIFS( OFFSET(raw!$A$1,2,MATCH(回答数!$A37,raw!$2:$2,0)-1,COUNTA(raw!$A:$A)-1,1),回答数!$B37, OFFSET(raw!$A$1,2,MATCH($D$1,raw!$2:$2,0)-1,COUNTA(raw!$A:$A)-1,1),L$2) -> 0 | M37: =COUNTIFS( OFFSET(raw!$A$1,2,MATCH(回答数!$A37,raw!$2:$2,0)-1,COUNTA(raw!$A:$A)-1,1),回答数!$B37, OFFSET(raw!$A$1,2,MATCH($D$1,raw!$2:$2,0)-1,COUNTA(raw!$A:$A)-1,1),M$2) -> 0 | N37: =COUNTIFS( OFFSET(raw!$A$1,2,MATCH(回答数!$A37,raw!$2:$2,0)-1,COUNTA(raw!$A:$A)-1,1),回答数!$B37, OFFSET(raw!$A$1,2,MATCH($D$1,raw!$2:$2,0)-1,COUNTA(raw!$A:$A)-1,1),N$2) -> 0 | O37: =COUNTIFS( OFFSET(raw!$A$1,2,MATCH(回答数!$A37,raw!$2:$2,0)-1,COUNTA(raw!$A:$A)-1,1),回答数!$B37, OFFSET(raw!$A$1,2,MATCH($D$1,raw!$2:$2,0)-1,COUNTA(raw!$A:$A)-1,1),O$2) -> 0 | P37: 19
A38: 回答エリア | B38: えちぜん鉄道 松岡駅 エリア | D38: =COUNTIFS( OFFSET(raw!$A$1,2,MATCH(回答数!$A38,raw!$2:$2,0)-1,COUNTA(raw!$A:$A)-1,1),回答数!$B38, OFFSET(raw!$A$1,2,MATCH($D$1,raw!$2:$2,0)-1,COUNTA(raw!$A:$A)-1,1),D$2) -> 0 | E38: =COUNTIFS( OFFSET(raw!$A$1,2,MATCH(回答数!$A38,raw!$2:$2,0)-1,COUNTA(raw!$A:$A)-1,1),回答数!$B38, OFFSET(raw!$A$1,2,MATCH($D$1,raw!$2:$2,0)-1,COUNTA(raw!$A:$A)-1,1),E$2) -> 16 | F38: =COUNTIFS( OFFSET(raw!$A$1,2,MATCH(回答数!$A38,raw!$2:$2,0)-1,COUNTA(raw!$A:$A)-1,1),回答数!$B38, OFFSET(raw!$A$1,2,MATCH($D$1,raw!$2:$2,0)-1,COUNTA(raw!$A:$A)-1,1),F$2) -> 11 | G38: =COUNTIFS( OFFSET(raw!$A$1,2,MATCH(回答数!$A38,raw!$2:$2,0)-1,COUNTA(raw!$A:$A)-1,1),回答数!$B38, OFFSET(raw!$A$1,2,MATCH($D$1,raw!$2:$2,0)-1,COUNTA(raw!$A:$A)-1,1),G$2) -> 4 | H38: =COUNTIFS( OFFSET(raw!$A$1,2,MATCH(回答数!$A38,raw!$2:$2,0)-1,COUNTA(raw!$A:$A)-1,1),回答数!$B38, OFFSET(raw!$A$1,2,MATCH($D$1,raw!$2:$2,0)-1,COUNTA(raw!$A:$A)-1,1),H$2) -> 17 | I38: =COUNTIFS( OFFSET(raw!$A$1,2,MATCH(回答数!$A38,raw!$2:$2,0)-1,COUNTA(raw!$A:$A)-1,1),回答数!$B38, OFFSET(raw!$A$1,2,MATCH($D$1,raw!$2:$2,0)-1,COUNTA(raw!$A:$A)-1,1),I$2) -> 17 | J38: =COUNTIFS( OFFSET(raw!$A$1,2,MATCH(回答数!$A38,raw!$2:$2,0)-1,COUNTA(raw!$A:$A)-1,1),回答数!$B38, OFFSET(raw!$A$1,2,MATCH($D$1,raw!$2:$2,0)-1,COUNTA(raw!$A:$A)-1,1),J$2) -> 17 | K38: =COUNTIFS( OFFSET(raw!$A$1,2,MATCH(回答数!$A38,raw!$2:$2,0)-1,COUNTA(raw!$A:$A)-1,1),回答数!$B38, OFFSET(raw!$A$1,2,MATCH($D$1,raw!$2:$2,0)-1,COUNTA(raw!$A:$A)-1,1),K$2) -> 21 | L38: =COUNTIFS( OFFSET(raw!$A$1,2,MATCH(回答数!$A38,raw!$2:$2,0)-1,COUNTA(raw!$A:$A)-1,1),回答数!$B38, OFFSET(raw!$A$1,2,MATCH($D$1,raw!$2:$2,0)-1,COUNTA(raw!$A:$A)-1,1),L$2) -> 10 | M38: =COUNTIFS( OFFSET(raw!$A$1,2,MATCH(回答数!$A38,raw!$2:$2,0)-1,COUNTA(raw!$A:$A)-1,1),回答数!$B38, OFFSET(raw!$A$1,2,MATCH($D$1,raw!$2:$2,0)-1,COUNTA(raw!$A:$A)-1,1),M$2) -> 8 | N38: =COUNTIFS( OFFSET(raw!$A$1,2,MATCH(回答数!$A38,raw!$2:$2,0)-1,COUNTA(raw!$A:$A)-1,1),回答数!$B38, OFFSET(raw!$A$1,2,MATCH($D$1,raw!$2:$2,0)-1,COUNTA(raw!$A:$A)-1,1),N$2) -> 8 | O38: =COUNTIFS( OFFSET(raw!$A$1,2,MATCH(回答数!$A38,raw!$2:$2,0)-1,COUNTA(raw!$A:$A)-1,1),回答数!$B38, OFFSET(raw!$A$1,2,MATCH($D$1,raw!$2:$2,0)-1,COUNTA(raw!$A:$A)-1,1),O$2) -> 44 | P38: 173
A39: 回答エリア | B39: 大本山 永平寺 エリア | D39: =COUNTIFS( OFFSET(raw!$A$1,2,MATCH(回答数!$A39,raw!$2:$2,0)-1,COUNTA(raw!$A:$A)-1,1),回答数!$B39, OFFSET(raw!$A$1,2,MATCH($D$1,raw!$2:$2,0)-1,COUNTA(raw!$A:$A)-1,1),D$2) -> 18 | E39: =COUNTIFS( OFFSET(raw!$A$1,2,MATCH(回答数!$A39,raw!$2:$2,0)-1,COUNTA(raw!$A:$A)-1,1),回答数!$B39, OFFSET(raw!$A$1,2,MATCH($D$1,raw!$2:$2,0)-1,COUNTA(raw!$A:$A)-1,1),E$2) -> 288 | F39: =COUNTIFS( OFFSET(raw!$A$1,2,MATCH(回答数!$A39,raw!$2:$2,0)-1,COUNTA(raw!$A:$A)-1,1),回答数!$B39, OFFSET(raw!$A$1,2,MATCH($D$1,raw!$2:$2,0)-1,COUNTA(raw!$A:$A)-1,1),F$2) -> 170 | G39: =COUNTIFS( OFFSET(raw!$A$1,2,MATCH(回答数!$A39,raw!$2:$2,0)-1,COUNTA(raw!$A:$A)-1,1),回答数!$B39, OFFSET(raw!$A$1,2,MATCH($D$1,raw!$2:$2,0)-1,COUNTA(raw!$A:$A)-1,1),G$2) -> 108 | H39: =COUNTIFS( OFFSET(raw!$A$1,2,MATCH(回答数!$A39,raw!$2:$2,0)-1,COUNTA(raw!$A:$A)-1,1),回答数!$B39, OFFSET(raw!$A$1,2,MATCH($D$1,raw!$2:$2,0)-1,COUNTA(raw!$A:$A)-1,1),H$2) -> 92 | I39: =COUNTIFS( OFFSET(raw!$A$1,2,MATCH(回答数!$A39,raw!$2:$2,0)-1,COUNTA(raw!$A:$A)-1,1),回答数!$B39, OFFSET(raw!$A$1,2,MATCH($D$1,raw!$2:$2,0)-1,COUNTA(raw!$A:$A)-1,1),I$2) -> 44 | J39: =COUNTIFS( OFFSET(raw!$A$1,2,MATCH(回答数!$A39,raw!$2:$2,0)-1,COUNTA(raw!$A:$A)-1,1),回答数!$B39, OFFSET(raw!$A$1,2,MATCH($D$1,raw!$2:$2,0)-1,COUNTA(raw!$A:$A)-1,1),J$2) -> 39 | K39: =COUNTIFS( OFFSET(raw!$A$1,2,MATCH(回答数!$A39,raw!$2:$2,0)-1,COUNTA(raw!$A:$A)-1,1),回答数!$B39, OFFSET(raw!$A$1,2,MATCH($D$1,raw!$2:$2,0)-1,COUNTA(raw!$A:$A)-1,1),K$2) -> 38 | L39: =COUNTIFS( OFFSET(raw!$A$1,2,MATCH(回答数!$A39,raw!$2:$2,0)-1,COUNTA(raw!$A:$A)-1,1),回答数!$B39, OFFSET(raw!$A$1,2,MATCH($D$1,raw!$2:$2,0)-1,COUNTA(raw!$A:$A)-1,1),L$2) -> 12 | M39: =COUNTIFS( OFFSET(raw!$A$1,2,MATCH(回答数!$A39,raw!$2:$2,0)-1,COUNTA(raw!$A:$A)-1,1),回答数!$B39, OFFSET(raw!$A$1,2,MATCH($D$1,raw!$2:$2,0)-1,COUNTA(raw!$A:$A)-1,1),M$2) -> 2 | N39: =COUNTIFS( OFFSET(raw!$A$1,2,MATCH(回答数!$A39,raw!$2:$2,0)-1,COUNTA(raw!$A:$A)-1,1),回答数!$B39, OFFSET(raw!$A$1,2,MATCH($D$1,raw!$2:$2,0)-1,COUNTA(raw!$A:$A)-1,1),N$2) -> 8 | O39: =COUNTIFS( OFFSET(raw!$A$1,2,MATCH(回答数!$A39,raw!$2:$2,0)-1,COUNTA(raw!$A:$A)-1,1),回答数!$B39, OFFSET(raw!$A$1,2,MATCH($D$1,raw!$2:$2,0)-1,COUNTA(raw!$A:$A)-1,1),O$2) -> 20 | P39: 839
A40: 回答エリア | B40: 道の駅「禅の里」 エリア | D40: =COUNTIFS( OFFSET(raw!$A$1,2,MATCH(回答数!$A40,raw!$2:$2,0)-1,COUNTA(raw!$A:$A)-1,1),回答数!$B40, OFFSET(raw!$A$1,2,MATCH($D$1,raw!$2:$2,0)-1,COUNTA(raw!$A:$A)-1,1),D$2) -> 1 | E40: =COUNTIFS( OFFSET(raw!$A$1,2,MATCH(回答数!$A40,raw!$2:$2,0)-1,COUNTA(raw!$A:$A)-1,1),回答数!$B40, OFFSET(raw!$A$1,2,MATCH($D$1,raw!$2:$2,0)-1,COUNTA(raw!$A:$A)-1,1),E$2) -> 9 | F40: =COUNTIFS( OFFSET(raw!$A$1,2,MATCH(回答数!$A40,raw!$2:$2,0)-1,COUNTA(raw!$A:$A)-1,1),回答数!$B40, OFFSET(raw!$A$1,2,MATCH($D$1,raw!$2:$2,0)-1,COUNTA(raw!$A:$A)-1,1),F$2) -> 8 | G40: =COUNTIFS( OFFSET(raw!$A$1,2,MATCH(回答数!$A40,raw!$2:$2,0)-1,COUNTA(raw!$A:$A)-1,1),回答数!$B40, OFFSET(raw!$A$1,2,MATCH($D$1,raw!$2:$2,0)-1,COUNTA(raw!$A:$A)-1,1),G$2) -> 8 | H40: =COUNTIFS( OFFSET(raw!$A$1,2,MATCH(回答数!$A40,raw!$2:$2,0)-1,COUNTA(raw!$A:$A)-1,1),回答数!$B40, OFFSET(raw!$A$1,2,MATCH($D$1,raw!$2:$2,0)-1,COUNTA(raw!$A:$A)-1,1),H$2) -> 17 | I40: =COUNTIFS( OFFSET(raw!$A$1,2,MATCH(回答数!$A40,raw!$2:$2,0)-1,COUNTA(raw!$A:$A)-1,1),回答数!$B40, OFFSET(raw!$A$1,2,MATCH($D$1,raw!$2:$2,0)-1,COUNTA(raw!$A:$A)-1,1),I$2) -> 8 | J40: =COUNTIFS( OFFSET(raw!$A$1,2,MATCH(回答数!$A40,raw!$2:$2,0)-1,COUNTA(raw!$A:$A)-1,1),回答数!$B40, OFFSET(raw!$A$1,2,MATCH($D$1,raw!$2:$2,0)-1,COUNTA(raw!$A:$A)-1,1),J$2) -> 21 | K40: =COUNTIFS( OFFSET(raw!$A$1,2,MATCH(回答数!$A40,raw!$2:$2,0)-1,COUNTA(raw!$A:$A)-1,1),回答数!$B40, OFFSET(raw!$A$1,2,MATCH($D$1,raw!$2:$2,0)-1,COUNTA(raw!$A:$A)-1,1),K$2) -> 18 | L40: =COUNTIFS( OFFSET(raw!$A$1,2,MATCH(回答数!$A40,raw!$2:$2,0)-1,COUNTA(raw!$A:$A)-1,1),回答数!$B40, OFFSET(raw!$A$1,2,MATCH($D$1,raw!$2:$2,0)-1,COUNTA(raw!$A:$A)-1,1),L$2) -> 19 | M40: =COUNTIFS( OFFSET(raw!$A$1,2,MATCH(回答数!$A40,raw!$2:$2,0)-1,COUNTA(raw!$A:$A)-1,1),回答数!$B40, OFFSET(raw!$A$1,2,MATCH($D$1,raw!$2:$2,0)-1,COUNTA(raw!$A:$A)-1,1),M$2) -> 4 | N40: =COUNTIFS( OFFSET(raw!$A$1,2,MATCH(回答数!$A40,raw!$2:$2,0)-1,COUNTA(raw!$A:$A)-1,1),回答数!$B40, OFFSET(raw!$A$1,2,MATCH($D$1,raw!$2:$2,0)-1,COUNTA(raw!$A:$A)-1,1),N$2) -> 8 | O40: =COUNTIFS( OFFSET(raw!$A$1,2,MATCH(回答数!$A40,raw!$2:$2,0)-1,COUNTA(raw!$A:$A)-1,1),回答数!$B40, OFFSET(raw!$A$1,2,MATCH($D$1,raw!$2:$2,0)-1,COUNTA(raw!$A:$A)-1,1),O$2) -> 16 | P40: 137
A41: 回答エリア | B41: 越前和紙の里 エリア | D41: =COUNTIFS( OFFSET(raw!$A$1,2,MATCH(回答数!$A41,raw!$2:$2,0)-1,COUNTA(raw!$A:$A)-1,1),回答数!$B41, OFFSET(raw!$A$1,2,MATCH($D$1,raw!$2:$2,0)-1,COUNTA(raw!$A:$A)-1,1),D$2) -> 0 | E41: =COUNTIFS( OFFSET(raw!$A$1,2,MATCH(回答数!$A41,raw!$2:$2,0)-1,COUNTA(raw!$A:$A)-1,1),回答数!$B41, OFFSET(raw!$A$1,2,MATCH($D$1,raw!$2:$2,0)-1,COUNTA(raw!$A:$A)-1,1),E$2) -> 11 | F41: =COUNTIFS( OFFSET(raw!$A$1,2,MATCH(回答数!$A41,raw!$2:$2,0)-1,COUNTA(raw!$A:$A)-1,1),回答数!$B41, OFFSET(raw!$A$1,2,MATCH($D$1,raw!$2:$2,0)-1,COUNTA(raw!$A:$A)-1,1),F$2) -> 10 | G41: =COUNTIFS( OFFSET(raw!$A$1,2,MATCH(回答数!$A41,raw!$2:$2,0)-1,COUNTA(raw!$A:$A)-1,1),回答数!$B41, OFFSET(raw!$A$1,2,MATCH($D$1,raw!$2:$2,0)-1,COUNTA(raw!$A:$A)-1,1),G$2) -> 9 | H41: =COUNTIFS( OFFSET(raw!$A$1,2,MATCH(回答数!$A41,raw!$2:$2,0)-1,COUNTA(raw!$A:$A)-1,1),回答数!$B41, OFFSET(raw!$A$1,2,MATCH($D$1,raw!$2:$2,0)-1,COUNTA(raw!$A:$A)-1,1),H$2) -> 6 | I41: =COUNTIFS( OFFSET(raw!$A$1,2,MATCH(回答数!$A41,raw!$2:$2,0)-1,COUNTA(raw!$A:$A)-1,1),回答数!$B41, OFFSET(raw!$A$1,2,MATCH($D$1,raw!$2:$2,0)-1,COUNTA(raw!$A:$A)-1,1),I$2) -> 7 | J41: =COUNTIFS( OFFSET(raw!$A$1,2,MATCH(回答数!$A41,raw!$2:$2,0)-1,COUNTA(raw!$A:$A)-1,1),回答数!$B41, OFFSET(raw!$A$1,2,MATCH($D$1,raw!$2:$2,0)-1,COUNTA(raw!$A:$A)-1,1),J$2) -> 6 | K41: =COUNTIFS( OFFSET(raw!$A$1,2,MATCH(回答数!$A41,raw!$2:$2,0)-1,COUNTA(raw!$A:$A)-1,1),回答数!$B41, OFFSET(raw!$A$1,2,MATCH($D$1,raw!$2:$2,0)-1,COUNTA(raw!$A:$A)-1,1),K$2) -> 14 | L41: =COUNTIFS( OFFSET(raw!$A$1,2,MATCH(回答数!$A41,raw!$2:$2,0)-1,COUNTA(raw!$A:$A)-1,1),回答数!$B41, OFFSET(raw!$A$1,2,MATCH($D$1,raw!$2:$2,0)-1,COUNTA(raw!$A:$A)-1,1),L$2) -> 26 | M41: =COUNTIFS( OFFSET(raw!$A$1,2,MATCH(回答数!$A41,raw!$2:$2,0)-1,COUNTA(raw!$A:$A)-1,1),回答数!$B41, OFFSET(raw!$A$1,2,MATCH($D$1,raw!$2:$2,0)-1,COUNTA(raw!$A:$A)-1,1),M$2) -> 2 | N41: =COUNTIFS( OFFSET(raw!$A$1,2,MATCH(回答数!$A41,raw!$2:$2,0)-1,COUNTA(raw!$A:$A)-1,1),回答数!$B41, OFFSET(raw!$A$1,2,MATCH($D$1,raw!$2:$2,0)-1,COUNTA(raw!$A:$A)-1,1),N$2) -> 3 | O41: =COUNTIFS( OFFSET(raw!$A$1,2,MATCH(回答数!$A41,raw!$2:$2,0)-1,COUNTA(raw!$A:$A)-1,1),回答数!$B41, OFFSET(raw!$A$1,2,MATCH($D$1,raw!$2:$2,0)-1,COUNTA(raw!$A:$A)-1,1),O$2) -> 18 | P41: 112
A42: 回答エリア | B42: 越前そばの里 エリア | D42: =COUNTIFS( OFFSET(raw!$A$1,2,MATCH(回答数!$A42,raw!$2:$2,0)-1,COUNTA(raw!$A:$A)-1,1),回答数!$B42, OFFSET(raw!$A$1,2,MATCH($D$1,raw!$2:$2,0)-1,COUNTA(raw!$A:$A)-1,1),D$2) -> 8 | E42: =COUNTIFS( OFFSET(raw!$A$1,2,MATCH(回答数!$A42,raw!$2:$2,0)-1,COUNTA(raw!$A:$A)-1,1),回答数!$B42, OFFSET(raw!$A$1,2,MATCH($D$1,raw!$2:$2,0)-1,COUNTA(raw!$A:$A)-1,1),E$2) -> 208 | F42: =COUNTIFS( OFFSET(raw!$A$1,2,MATCH(回答数!$A42,raw!$2:$2,0)-1,COUNTA(raw!$A:$A)-1,1),回答数!$B42, OFFSET(raw!$A$1,2,MATCH($D$1,raw!$2:$2,0)-1,COUNTA(raw!$A:$A)-1,1),F$2) -> 233 | G42: =COUNTIFS( OFFSET(raw!$A$1,2,MATCH(回答数!$A42,raw!$2:$2,0)-1,COUNTA(raw!$A:$A)-1,1),回答数!$B42, OFFSET(raw!$A$1,2,MATCH($D$1,raw!$2:$2,0)-1,COUNTA(raw!$A:$A)-1,1),G$2) -> 145 | H42: =COUNTIFS( OFFSET(raw!$A$1,2,MATCH(回答数!$A42,raw!$2:$2,0)-1,COUNTA(raw!$A:$A)-1,1),回答数!$B42, OFFSET(raw!$A$1,2,MATCH($D$1,raw!$2:$2,0)-1,COUNTA(raw!$A:$A)-1,1),H$2) -> 34 | I42: =COUNTIFS( OFFSET(raw!$A$1,2,MATCH(回答数!$A42,raw!$2:$2,0)-1,COUNTA(raw!$A:$A)-1,1),回答数!$B42, OFFSET(raw!$A$1,2,MATCH($D$1,raw!$2:$2,0)-1,COUNTA(raw!$A:$A)-1,1),I$2) -> 29 | J42: =COUNTIFS( OFFSET(raw!$A$1,2,MATCH(回答数!$A42,raw!$2:$2,0)-1,COUNTA(raw!$A:$A)-1,1),回答数!$B42, OFFSET(raw!$A$1,2,MATCH($D$1,raw!$2:$2,0)-1,COUNTA(raw!$A:$A)-1,1),J$2) -> 27 | K42: =COUNTIFS( OFFSET(raw!$A$1,2,MATCH(回答数!$A42,raw!$2:$2,0)-1,COUNTA(raw!$A:$A)-1,1),回答数!$B42, OFFSET(raw!$A$1,2,MATCH($D$1,raw!$2:$2,0)-1,COUNTA(raw!$A:$A)-1,1),K$2) -> 22 | L42: =COUNTIFS( OFFSET(raw!$A$1,2,MATCH(回答数!$A42,raw!$2:$2,0)-1,COUNTA(raw!$A:$A)-1,1),回答数!$B42, OFFSET(raw!$A$1,2,MATCH($D$1,raw!$2:$2,0)-1,COUNTA(raw!$A:$A)-1,1),L$2) -> 40 | M42: =COUNTIFS( OFFSET(raw!$A$1,2,MATCH(回答数!$A42,raw!$2:$2,0)-1,COUNTA(raw!$A:$A)-1,1),回答数!$B42, OFFSET(raw!$A$1,2,MATCH($D$1,raw!$2:$2,0)-1,COUNTA(raw!$A:$A)-1,1),M$2) -> 16 | N42: =COUNTIFS( OFFSET(raw!$A$1,2,MATCH(回答数!$A42,raw!$2:$2,0)-1,COUNTA(raw!$A:$A)-1,1),回答数!$B42, OFFSET(raw!$A$1,2,MATCH($D$1,raw!$2:$2,0)-1,COUNTA(raw!$A:$A)-1,1),N$2) -> 21 | O42: =COUNTIFS( OFFSET(raw!$A$1,2,MATCH(回答数!$A42,raw!$2:$2,0)-1,COUNTA(raw!$A:$A)-1,1),回答数!$B42, OFFSET(raw!$A$1,2,MATCH($D$1,raw!$2:$2,0)-1,COUNTA(raw!$A:$A)-1,1),O$2) -> 219 | P42: 1002
A43: 回答エリア | B43: 北陸新幹線 越前たけふ駅 エリア | D43: =COUNTIFS( OFFSET(raw!$A$1,2,MATCH(回答数!$A43,raw!$2:$2,0)-1,COUNTA(raw!$A:$A)-1,1),回答数!$B43, OFFSET(raw!$A$1,2,MATCH($D$1,raw!$2:$2,0)-1,COUNTA(raw!$A:$A)-1,1),D$2) -> 11 | E43: =COUNTIFS( OFFSET(raw!$A$1,2,MATCH(回答数!$A43,raw!$2:$2,0)-1,COUNTA(raw!$A:$A)-1,1),回答数!$B43, OFFSET(raw!$A$1,2,MATCH($D$1,raw!$2:$2,0)-1,COUNTA(raw!$A:$A)-1,1),E$2) -> 124 | F43: =COUNTIFS( OFFSET(raw!$A$1,2,MATCH(回答数!$A43,raw!$2:$2,0)-1,COUNTA(raw!$A:$A)-1,1),回答数!$B43, OFFSET(raw!$A$1,2,MATCH($D$1,raw!$2:$2,0)-1,COUNTA(raw!$A:$A)-1,1),F$2) -> 80 | G43: =COUNTIFS( OFFSET(raw!$A$1,2,MATCH(回答数!$A43,raw!$2:$2,0)-1,COUNTA(raw!$A:$A)-1,1),回答数!$B43, OFFSET(raw!$A$1,2,MATCH($D$1,raw!$2:$2,0)-1,COUNTA(raw!$A:$A)-1,1),G$2) -> 66 | H43: =COUNTIFS( OFFSET(raw!$A$1,2,MATCH(回答数!$A43,raw!$2:$2,0)-1,COUNTA(raw!$A:$A)-1,1),回答数!$B43, OFFSET(raw!$A$1,2,MATCH($D$1,raw!$2:$2,0)-1,COUNTA(raw!$A:$A)-1,1),H$2) -> 47 | I43: =COUNTIFS( OFFSET(raw!$A$1,2,MATCH(回答数!$A43,raw!$2:$2,0)-1,COUNTA(raw!$A:$A)-1,1),回答数!$B43, OFFSET(raw!$A$1,2,MATCH($D$1,raw!$2:$2,0)-1,COUNTA(raw!$A:$A)-1,1),I$2) -> 47 | J43: =COUNTIFS( OFFSET(raw!$A$1,2,MATCH(回答数!$A43,raw!$2:$2,0)-1,COUNTA(raw!$A:$A)-1,1),回答数!$B43, OFFSET(raw!$A$1,2,MATCH($D$1,raw!$2:$2,0)-1,COUNTA(raw!$A:$A)-1,1),J$2) -> 45 | K43: =COUNTIFS( OFFSET(raw!$A$1,2,MATCH(回答数!$A43,raw!$2:$2,0)-1,COUNTA(raw!$A:$A)-1,1),回答数!$B43, OFFSET(raw!$A$1,2,MATCH($D$1,raw!$2:$2,0)-1,COUNTA(raw!$A:$A)-1,1),K$2) -> 74 | L43: =COUNTIFS( OFFSET(raw!$A$1,2,MATCH(回答数!$A43,raw!$2:$2,0)-1,COUNTA(raw!$A:$A)-1,1),回答数!$B43, OFFSET(raw!$A$1,2,MATCH($D$1,raw!$2:$2,0)-1,COUNTA(raw!$A:$A)-1,1),L$2) -> 71 | M43: =COUNTIFS( OFFSET(raw!$A$1,2,MATCH(回答数!$A43,raw!$2:$2,0)-1,COUNTA(raw!$A:$A)-1,1),回答数!$B43, OFFSET(raw!$A$1,2,MATCH($D$1,raw!$2:$2,0)-1,COUNTA(raw!$A:$A)-1,1),M$2) -> 43 | N43: =COUNTIFS( OFFSET(raw!$A$1,2,MATCH(回答数!$A43,raw!$2:$2,0)-1,COUNTA(raw!$A:$A)-1,1),回答数!$B43, OFFSET(raw!$A$1,2,MATCH($D$1,raw!$2:$2,0)-1,COUNTA(raw!$A:$A)-1,1),N$2) -> 68 | O43: =COUNTIFS( OFFSET(raw!$A$1,2,MATCH(回答数!$A43,raw!$2:$2,0)-1,COUNTA(raw!$A:$A)-1,1),回答数!$B43, OFFSET(raw!$A$1,2,MATCH($D$1,raw!$2:$2,0)-1,COUNTA(raw!$A:$A)-1,1),O$2) -> 110 | P43: 786
A44: 回答エリア | B44: タケフナイフビレッジ エリア | D44: =COUNTIFS( OFFSET(raw!$A$1,2,MATCH(回答数!$A44,raw!$2:$2,0)-1,COUNTA(raw!$A:$A)-1,1),回答数!$B44, OFFSET(raw!$A$1,2,MATCH($D$1,raw!$2:$2,0)-1,COUNTA(raw!$A:$A)-1,1),D$2) -> 0 | E44: =COUNTIFS( OFFSET(raw!$A$1,2,MATCH(回答数!$A44,raw!$2:$2,0)-1,COUNTA(raw!$A:$A)-1,1),回答数!$B44, OFFSET(raw!$A$1,2,MATCH($D$1,raw!$2:$2,0)-1,COUNTA(raw!$A:$A)-1,1),E$2) -> 7 | F44: =COUNTIFS( OFFSET(raw!$A$1,2,MATCH(回答数!$A44,raw!$2:$2,0)-1,COUNTA(raw!$A:$A)-1,1),回答数!$B44, OFFSET(raw!$A$1,2,MATCH($D$1,raw!$2:$2,0)-1,COUNTA(raw!$A:$A)-1,1),F$2) -> 3 | G44: =COUNTIFS( OFFSET(raw!$A$1,2,MATCH(回答数!$A44,raw!$2:$2,0)-1,COUNTA(raw!$A:$A)-1,1),回答数!$B44, OFFSET(raw!$A$1,2,MATCH($D$1,raw!$2:$2,0)-1,COUNTA(raw!$A:$A)-1,1),G$2) -> 10 | H44: =COUNTIFS( OFFSET(raw!$A$1,2,MATCH(回答数!$A44,raw!$2:$2,0)-1,COUNTA(raw!$A:$A)-1,1),回答数!$B44, OFFSET(raw!$A$1,2,MATCH($D$1,raw!$2:$2,0)-1,COUNTA(raw!$A:$A)-1,1),H$2) -> 4 | I44: =COUNTIFS( OFFSET(raw!$A$1,2,MATCH(回答数!$A44,raw!$2:$2,0)-1,COUNTA(raw!$A:$A)-1,1),回答数!$B44, OFFSET(raw!$A$1,2,MATCH($D$1,raw!$2:$2,0)-1,COUNTA(raw!$A:$A)-1,1),I$2) -> 3 | J44: =COUNTIFS( OFFSET(raw!$A$1,2,MATCH(回答数!$A44,raw!$2:$2,0)-1,COUNTA(raw!$A:$A)-1,1),回答数!$B44, OFFSET(raw!$A$1,2,MATCH($D$1,raw!$2:$2,0)-1,COUNTA(raw!$A:$A)-1,1),J$2) -> 11 | K44: =COUNTIFS( OFFSET(raw!$A$1,2,MATCH(回答数!$A44,raw!$2:$2,0)-1,COUNTA(raw!$A:$A)-1,1),回答数!$B44, OFFSET(raw!$A$1,2,MATCH($D$1,raw!$2:$2,0)-1,COUNTA(raw!$A:$A)-1,1),K$2) -> 9 | L44: =COUNTIFS( OFFSET(raw!$A$1,2,MATCH(回答数!$A44,raw!$2:$2,0)-1,COUNTA(raw!$A:$A)-1,1),回答数!$B44, OFFSET(raw!$A$1,2,MATCH($D$1,raw!$2:$2,0)-1,COUNTA(raw!$A:$A)-1,1),L$2) -> 2 | M44: =COUNTIFS( OFFSET(raw!$A$1,2,MATCH(回答数!$A44,raw!$2:$2,0)-1,COUNTA(raw!$A:$A)-1,1),回答数!$B44, OFFSET(raw!$A$1,2,MATCH($D$1,raw!$2:$2,0)-1,COUNTA(raw!$A:$A)-1,1),M$2) -> 2 | N44: =COUNTIFS( OFFSET(raw!$A$1,2,MATCH(回答数!$A44,raw!$2:$2,0)-1,COUNTA(raw!$A:$A)-1,1),回答数!$B44, OFFSET(raw!$A$1,2,MATCH($D$1,raw!$2:$2,0)-1,COUNTA(raw!$A:$A)-1,1),N$2) -> 0 | O44: =COUNTIFS( OFFSET(raw!$A$1,2,MATCH(回答数!$A44,raw!$2:$2,0)-1,COUNTA(raw!$A:$A)-1,1),回答数!$B44, OFFSET(raw!$A$1,2,MATCH($D$1,raw!$2:$2,0)-1,COUNTA(raw!$A:$A)-1,1),O$2) -> 7 | P44: 58
A45: 回答エリア | B45: 武生駅 エリア | D45: =COUNTIFS( OFFSET(raw!$A$1,2,MATCH(回答数!$A45,raw!$2:$2,0)-1,COUNTA(raw!$A:$A)-1,1),回答数!$B45, OFFSET(raw!$A$1,2,MATCH($D$1,raw!$2:$2,0)-1,COUNTA(raw!$A:$A)-1,1),D$2) -> 2 | E45: =COUNTIFS( OFFSET(raw!$A$1,2,MATCH(回答数!$A45,raw!$2:$2,0)-1,COUNTA(raw!$A:$A)-1,1),回答数!$B45, OFFSET(raw!$A$1,2,MATCH($D$1,raw!$2:$2,0)-1,COUNTA(raw!$A:$A)-1,1),E$2) -> 26 | F45: =COUNTIFS( OFFSET(raw!$A$1,2,MATCH(回答数!$A45,raw!$2:$2,0)-1,COUNTA(raw!$A:$A)-1,1),回答数!$B45, OFFSET(raw!$A$1,2,MATCH($D$1,raw!$2:$2,0)-1,COUNTA(raw!$A:$A)-1,1),F$2) -> 6 | G45: =COUNTIFS( OFFSET(raw!$A$1,2,MATCH(回答数!$A45,raw!$2:$2,0)-1,COUNTA(raw!$A:$A)-1,1),回答数!$B45, OFFSET(raw!$A$1,2,MATCH($D$1,raw!$2:$2,0)-1,COUNTA(raw!$A:$A)-1,1),G$2) -> 9 | H45: =COUNTIFS( OFFSET(raw!$A$1,2,MATCH(回答数!$A45,raw!$2:$2,0)-1,COUNTA(raw!$A:$A)-1,1),回答数!$B45, OFFSET(raw!$A$1,2,MATCH($D$1,raw!$2:$2,0)-1,COUNTA(raw!$A:$A)-1,1),H$2) -> 7 | I45: =COUNTIFS( OFFSET(raw!$A$1,2,MATCH(回答数!$A45,raw!$2:$2,0)-1,COUNTA(raw!$A:$A)-1,1),回答数!$B45, OFFSET(raw!$A$1,2,MATCH($D$1,raw!$2:$2,0)-1,COUNTA(raw!$A:$A)-1,1),I$2) -> 5 | J45: =COUNTIFS( OFFSET(raw!$A$1,2,MATCH(回答数!$A45,raw!$2:$2,0)-1,COUNTA(raw!$A:$A)-1,1),回答数!$B45, OFFSET(raw!$A$1,2,MATCH($D$1,raw!$2:$2,0)-1,COUNTA(raw!$A:$A)-1,1),J$2) -> 6 | K45: =COUNTIFS( OFFSET(raw!$A$1,2,MATCH(回答数!$A45,raw!$2:$2,0)-1,COUNTA(raw!$A:$A)-1,1),回答数!$B45, OFFSET(raw!$A$1,2,MATCH($D$1,raw!$2:$2,0)-1,COUNTA(raw!$A:$A)-1,1),K$2) -> 10 | L45: =COUNTIFS( OFFSET(raw!$A$1,2,MATCH(回答数!$A45,raw!$2:$2,0)-1,COUNTA(raw!$A:$A)-1,1),回答数!$B45, OFFSET(raw!$A$1,2,MATCH($D$1,raw!$2:$2,0)-1,COUNTA(raw!$A:$A)-1,1),L$2) -> 10 | M45: =COUNTIFS( OFFSET(raw!$A$1,2,MATCH(回答数!$A45,raw!$2:$2,0)-1,COUNTA(raw!$A:$A)-1,1),回答数!$B45, OFFSET(raw!$A$1,2,MATCH($D$1,raw!$2:$2,0)-1,COUNTA(raw!$A:$A)-1,1),M$2) -> 0 | N45: =COUNTIFS( OFFSET(raw!$A$1,2,MATCH(回答数!$A45,raw!$2:$2,0)-1,COUNTA(raw!$A:$A)-1,1),回答数!$B45, OFFSET(raw!$A$1,2,MATCH($D$1,raw!$2:$2,0)-1,COUNTA(raw!$A:$A)-1,1),N$2) -> 8 | O45: =COUNTIFS( OFFSET(raw!$A$1,2,MATCH(回答数!$A45,raw!$2:$2,0)-1,COUNTA(raw!$A:$A)-1,1),回答数!$B45, OFFSET(raw!$A$1,2,MATCH($D$1,raw!$2:$2,0)-1,COUNTA(raw!$A:$A)-1,1),O$2) -> 20 | P45: 109
A46: 回答エリア | B46: 紫式部公園 エリア | D46: =COUNTIFS( OFFSET(raw!$A$1,2,MATCH(回答数!$A46,raw!$2:$2,0)-1,COUNTA(raw!$A:$A)-1,1),回答数!$B46, OFFSET(raw!$A$1,2,MATCH($D$1,raw!$2:$2,0)-1,COUNTA(raw!$A:$A)-1,1),D$2) -> 3 | E46: =COUNTIFS( OFFSET(raw!$A$1,2,MATCH(回答数!$A46,raw!$2:$2,0)-1,COUNTA(raw!$A:$A)-1,1),回答数!$B46, OFFSET(raw!$A$1,2,MATCH($D$1,raw!$2:$2,0)-1,COUNTA(raw!$A:$A)-1,1),E$2) -> 15 | F46: =COUNTIFS( OFFSET(raw!$A$1,2,MATCH(回答数!$A46,raw!$2:$2,0)-1,COUNTA(raw!$A:$A)-1,1),回答数!$B46, OFFSET(raw!$A$1,2,MATCH($D$1,raw!$2:$2,0)-1,COUNTA(raw!$A:$A)-1,1),F$2) -> 12 | G46: =COUNTIFS( OFFSET(raw!$A$1,2,MATCH(回答数!$A46,raw!$2:$2,0)-1,COUNTA(raw!$A:$A)-1,1),回答数!$B46, OFFSET(raw!$A$1,2,MATCH($D$1,raw!$2:$2,0)-1,COUNTA(raw!$A:$A)-1,1),G$2) -> 23 | H46: =COUNTIFS( OFFSET(raw!$A$1,2,MATCH(回答数!$A46,raw!$2:$2,0)-1,COUNTA(raw!$A:$A)-1,1),回答数!$B46, OFFSET(raw!$A$1,2,MATCH($D$1,raw!$2:$2,0)-1,COUNTA(raw!$A:$A)-1,1),H$2) -> 9 | I46: =COUNTIFS( OFFSET(raw!$A$1,2,MATCH(回答数!$A46,raw!$2:$2,0)-1,COUNTA(raw!$A:$A)-1,1),回答数!$B46, OFFSET(raw!$A$1,2,MATCH($D$1,raw!$2:$2,0)-1,COUNTA(raw!$A:$A)-1,1),I$2) -> 8 | J46: =COUNTIFS( OFFSET(raw!$A$1,2,MATCH(回答数!$A46,raw!$2:$2,0)-1,COUNTA(raw!$A:$A)-1,1),回答数!$B46, OFFSET(raw!$A$1,2,MATCH($D$1,raw!$2:$2,0)-1,COUNTA(raw!$A:$A)-1,1),J$2) -> 20 | K46: =COUNTIFS( OFFSET(raw!$A$1,2,MATCH(回答数!$A46,raw!$2:$2,0)-1,COUNTA(raw!$A:$A)-1,1),回答数!$B46, OFFSET(raw!$A$1,2,MATCH($D$1,raw!$2:$2,0)-1,COUNTA(raw!$A:$A)-1,1),K$2) -> 13 | L46: =COUNTIFS( OFFSET(raw!$A$1,2,MATCH(回答数!$A46,raw!$2:$2,0)-1,COUNTA(raw!$A:$A)-1,1),回答数!$B46, OFFSET(raw!$A$1,2,MATCH($D$1,raw!$2:$2,0)-1,COUNTA(raw!$A:$A)-1,1),L$2) -> 27 | M46: =COUNTIFS( OFFSET(raw!$A$1,2,MATCH(回答数!$A46,raw!$2:$2,0)-1,COUNTA(raw!$A:$A)-1,1),回答数!$B46, OFFSET(raw!$A$1,2,MATCH($D$1,raw!$2:$2,0)-1,COUNTA(raw!$A:$A)-1,1),M$2) -> 2 | N46: =COUNTIFS( OFFSET(raw!$A$1,2,MATCH(回答数!$A46,raw!$2:$2,0)-1,COUNTA(raw!$A:$A)-1,1),回答数!$B46, OFFSET(raw!$A$1,2,MATCH($D$1,raw!$2:$2,0)-1,COUNTA(raw!$A:$A)-1,1),N$2) -> 17 | O46: =COUNTIFS( OFFSET(raw!$A$1,2,MATCH(回答数!$A46,raw!$2:$2,0)-1,COUNTA(raw!$A:$A)-1,1),回答数!$B46, OFFSET(raw!$A$1,2,MATCH($D$1,raw!$2:$2,0)-1,COUNTA(raw!$A:$A)-1,1),O$2) -> 64 | P46: 213
A47: 回答エリア | B47: だるまちゃん広場 エリア | D47: =COUNTIFS( OFFSET(raw!$A$1,2,MATCH(回答数!$A47,raw!$2:$2,0)-1,COUNTA(raw!$A:$A)-1,1),回答数!$B47, OFFSET(raw!$A$1,2,MATCH($D$1,raw!$2:$2,0)-1,COUNTA(raw!$A:$A)-1,1),D$2) -> 2 | E47: =COUNTIFS( OFFSET(raw!$A$1,2,MATCH(回答数!$A47,raw!$2:$2,0)-1,COUNTA(raw!$A:$A)-1,1),回答数!$B47, OFFSET(raw!$A$1,2,MATCH($D$1,raw!$2:$2,0)-1,COUNTA(raw!$A:$A)-1,1),E$2) -> 23 | F47: =COUNTIFS( OFFSET(raw!$A$1,2,MATCH(回答数!$A47,raw!$2:$2,0)-1,COUNTA(raw!$A:$A)-1,1),回答数!$B47, OFFSET(raw!$A$1,2,MATCH($D$1,raw!$2:$2,0)-1,COUNTA(raw!$A:$A)-1,1),F$2) -> 4 | G47: =COUNTIFS( OFFSET(raw!$A$1,2,MATCH(回答数!$A47,raw!$2:$2,0)-1,COUNTA(raw!$A:$A)-1,1),回答数!$B47, OFFSET(raw!$A$1,2,MATCH($D$1,raw!$2:$2,0)-1,COUNTA(raw!$A:$A)-1,1),G$2) -> 4 | H47: =COUNTIFS( OFFSET(raw!$A$1,2,MATCH(回答数!$A47,raw!$2:$2,0)-1,COUNTA(raw!$A:$A)-1,1),回答数!$B47, OFFSET(raw!$A$1,2,MATCH($D$1,raw!$2:$2,0)-1,COUNTA(raw!$A:$A)-1,1),H$2) -> 11 | I47: =COUNTIFS( OFFSET(raw!$A$1,2,MATCH(回答数!$A47,raw!$2:$2,0)-1,COUNTA(raw!$A:$A)-1,1),回答数!$B47, OFFSET(raw!$A$1,2,MATCH($D$1,raw!$2:$2,0)-1,COUNTA(raw!$A:$A)-1,1),I$2) -> 20 | J47: =COUNTIFS( OFFSET(raw!$A$1,2,MATCH(回答数!$A47,raw!$2:$2,0)-1,COUNTA(raw!$A:$A)-1,1),回答数!$B47, OFFSET(raw!$A$1,2,MATCH($D$1,raw!$2:$2,0)-1,COUNTA(raw!$A:$A)-1,1),J$2) -> 27 | K47: =COUNTIFS( OFFSET(raw!$A$1,2,MATCH(回答数!$A47,raw!$2:$2,0)-1,COUNTA(raw!$A:$A)-1,1),回答数!$B47, OFFSET(raw!$A$1,2,MATCH($D$1,raw!$2:$2,0)-1,COUNTA(raw!$A:$A)-1,1),K$2) -> 20 | L47: =COUNTIFS( OFFSET(raw!$A$1,2,MATCH(回答数!$A47,raw!$2:$2,0)-1,COUNTA(raw!$A:$A)-1,1),回答数!$B47, OFFSET(raw!$A$1,2,MATCH($D$1,raw!$2:$2,0)-1,COUNTA(raw!$A:$A)-1,1),L$2) -> 18 | M47: =COUNTIFS( OFFSET(raw!$A$1,2,MATCH(回答数!$A47,raw!$2:$2,0)-1,COUNTA(raw!$A:$A)-1,1),回答数!$B47, OFFSET(raw!$A$1,2,MATCH($D$1,raw!$2:$2,0)-1,COUNTA(raw!$A:$A)-1,1),M$2) -> 3 | N47: =COUNTIFS( OFFSET(raw!$A$1,2,MATCH(回答数!$A47,raw!$2:$2,0)-1,COUNTA(raw!$A:$A)-1,1),回答数!$B47, OFFSET(raw!$A$1,2,MATCH($D$1,raw!$2:$2,0)-1,COUNTA(raw!$A:$A)-1,1),N$2) -> 11 | O47: =COUNTIFS( OFFSET(raw!$A$1,2,MATCH(回答数!$A47,raw!$2:$2,0)-1,COUNTA(raw!$A:$A)-1,1),回答数!$B47, OFFSET(raw!$A$1,2,MATCH($D$1,raw!$2:$2,0)-1,COUNTA(raw!$A:$A)-1,1),O$2) -> 15 | P47: =D47+E47+F47+G47+H47+I47+J47+K47+L47+M47+N47+O47 -> 158
A48: 回答エリア | B48: 刃物の里 エリア | D48: =COUNTIFS( OFFSET(raw!$A$1,2,MATCH(回答数!$A48,raw!$2:$2,0)-1,COUNTA(raw!$A:$A)-1,1),回答数!$B48, OFFSET(raw!$A$1,2,MATCH($D$1,raw!$2:$2,0)-1,COUNTA(raw!$A:$A)-1,1),D$2) -> 0 | E48: =COUNTIFS( OFFSET(raw!$A$1,2,MATCH(回答数!$A48,raw!$2:$2,0)-1,COUNTA(raw!$A:$A)-1,1),回答数!$B48, OFFSET(raw!$A$1,2,MATCH($D$1,raw!$2:$2,0)-1,COUNTA(raw!$A:$A)-1,1),E$2) -> 2 | F48: =COUNTIFS( OFFSET(raw!$A$1,2,MATCH(回答数!$A48,raw!$2:$2,0)-1,COUNTA(raw!$A:$A)-1,1),回答数!$B48, OFFSET(raw!$A$1,2,MATCH($D$1,raw!$2:$2,0)-1,COUNTA(raw!$A:$A)-1,1),F$2) -> 1 | G48: =COUNTIFS( OFFSET(raw!$A$1,2,MATCH(回答数!$A48,raw!$2:$2,0)-1,COUNTA(raw!$A:$A)-1,1),回答数!$B48, OFFSET(raw!$A$1,2,MATCH($D$1,raw!$2:$2,0)-1,COUNTA(raw!$A:$A)-1,1),G$2) -> 2 | H48: =COUNTIFS( OFFSET(raw!$A$1,2,MATCH(回答数!$A48,raw!$2:$2,0)-1,COUNTA(raw!$A:$A)-1,1),回答数!$B48, OFFSET(raw!$A$1,2,MATCH($D$1,raw!$2:$2,0)-1,COUNTA(raw!$A:$A)-1,1),H$2) -> 2 | I48: =COUNTIFS( OFFSET(raw!$A$1,2,MATCH(回答数!$A48,raw!$2:$2,0)-1,COUNTA(raw!$A:$A)-1,1),回答数!$B48, OFFSET(raw!$A$1,2,MATCH($D$1,raw!$2:$2,0)-1,COUNTA(raw!$A:$A)-1,1),I$2) -> 0 | J48: =COUNTIFS( OFFSET(raw!$A$1,2,MATCH(回答数!$A48,raw!$2:$2,0)-1,COUNTA(raw!$A:$A)-1,1),回答数!$B48, OFFSET(raw!$A$1,2,MATCH($D$1,raw!$2:$2,0)-1,COUNTA(raw!$A:$A)-1,1),J$2) -> 0 | K48: =COUNTIFS( OFFSET(raw!$A$1,2,MATCH(回答数!$A48,raw!$2:$2,0)-1,COUNTA(raw!$A:$A)-1,1),回答数!$B48, OFFSET(raw!$A$1,2,MATCH($D$1,raw!$2:$2,0)-1,COUNTA(raw!$A:$A)-1,1),K$2) -> 4 | L48: =COUNTIFS( OFFSET(raw!$A$1,2,MATCH(回答数!$A48,raw!$2:$2,0)-1,COUNTA(raw!$A:$A)-1,1),回答数!$B48, OFFSET(raw!$A$1,2,MATCH($D$1,raw!$2:$2,0)-1,COUNTA(raw!$A:$A)-1,1),L$2) -> 1 | M48: =COUNTIFS( OFFSET(raw!$A$1,2,MATCH(回答数!$A48,raw!$2:$2,0)-1,COUNTA(raw!$A:$A)-1,1),回答数!$B48, OFFSET(raw!$A$1,2,MATCH($D$1,raw!$2:$2,0)-1,COUNTA(raw!$A:$A)-1,1),M$2) -> 1 | N48: =COUNTIFS( OFFSET(raw!$A$1,2,MATCH(回答数!$A48,raw!$2:$2,0)-1,COUNTA(raw!$A:$A)-1,1),回答数!$B48, OFFSET(raw!$A$1,2,MATCH($D$1,raw!$2:$2,0)-1,COUNTA(raw!$A:$A)-1,1),N$2) -> 0 | O48: =COUNTIFS( OFFSET(raw!$A$1,2,MATCH(回答数!$A48,raw!$2:$2,0)-1,COUNTA(raw!$A:$A)-1,1),回答数!$B48, OFFSET(raw!$A$1,2,MATCH($D$1,raw!$2:$2,0)-1,COUNTA(raw!$A:$A)-1,1),O$2) -> 3 | P48: 16
A49: 回答エリア | B49: 道の駅「西山公園」 エリア | D49: =COUNTIFS( OFFSET(raw!$A$1,2,MATCH(回答数!$A49,raw!$2:$2,0)-1,COUNTA(raw!$A:$A)-1,1),回答数!$B49, OFFSET(raw!$A$1,2,MATCH($D$1,raw!$2:$2,0)-1,COUNTA(raw!$A:$A)-1,1),D$2) -> 1 | E49: =COUNTIFS( OFFSET(raw!$A$1,2,MATCH(回答数!$A49,raw!$2:$2,0)-1,COUNTA(raw!$A:$A)-1,1),回答数!$B49, OFFSET(raw!$A$1,2,MATCH($D$1,raw!$2:$2,0)-1,COUNTA(raw!$A:$A)-1,1),E$2) -> 31 | F49: =COUNTIFS( OFFSET(raw!$A$1,2,MATCH(回答数!$A49,raw!$2:$2,0)-1,COUNTA(raw!$A:$A)-1,1),回答数!$B49, OFFSET(raw!$A$1,2,MATCH($D$1,raw!$2:$2,0)-1,COUNTA(raw!$A:$A)-1,1),F$2) -> 16 | G49: =COUNTIFS( OFFSET(raw!$A$1,2,MATCH(回答数!$A49,raw!$2:$2,0)-1,COUNTA(raw!$A:$A)-1,1),回答数!$B49, OFFSET(raw!$A$1,2,MATCH($D$1,raw!$2:$2,0)-1,COUNTA(raw!$A:$A)-1,1),G$2) -> 22 | H49: =COUNTIFS( OFFSET(raw!$A$1,2,MATCH(回答数!$A49,raw!$2:$2,0)-1,COUNTA(raw!$A:$A)-1,1),回答数!$B49, OFFSET(raw!$A$1,2,MATCH($D$1,raw!$2:$2,0)-1,COUNTA(raw!$A:$A)-1,1),H$2) -> 26 | I49: =COUNTIFS( OFFSET(raw!$A$1,2,MATCH(回答数!$A49,raw!$2:$2,0)-1,COUNTA(raw!$A:$A)-1,1),回答数!$B49, OFFSET(raw!$A$1,2,MATCH($D$1,raw!$2:$2,0)-1,COUNTA(raw!$A:$A)-1,1),I$2) -> 13 | J49: =COUNTIFS( OFFSET(raw!$A$1,2,MATCH(回答数!$A49,raw!$2:$2,0)-1,COUNTA(raw!$A:$A)-1,1),回答数!$B49, OFFSET(raw!$A$1,2,MATCH($D$1,raw!$2:$2,0)-1,COUNTA(raw!$A:$A)-1,1),J$2) -> 26 | K49: =COUNTIFS( OFFSET(raw!$A$1,2,MATCH(回答数!$A49,raw!$2:$2,0)-1,COUNTA(raw!$A:$A)-1,1),回答数!$B49, OFFSET(raw!$A$1,2,MATCH($D$1,raw!$2:$2,0)-1,COUNTA(raw!$A:$A)-1,1),K$2) -> 31 | L49: =COUNTIFS( OFFSET(raw!$A$1,2,MATCH(回答数!$A49,raw!$2:$2,0)-1,COUNTA(raw!$A:$A)-1,1),回答数!$B49, OFFSET(raw!$A$1,2,MATCH($D$1,raw!$2:$2,0)-1,COUNTA(raw!$A:$A)-1,1),L$2) -> 28 | M49: =COUNTIFS( OFFSET(raw!$A$1,2,MATCH(回答数!$A49,raw!$2:$2,0)-1,COUNTA(raw!$A:$A)-1,1),回答数!$B49, OFFSET(raw!$A$1,2,MATCH($D$1,raw!$2:$2,0)-1,COUNTA(raw!$A:$A)-1,1),M$2) -> 4 | N49: =COUNTIFS( OFFSET(raw!$A$1,2,MATCH(回答数!$A49,raw!$2:$2,0)-1,COUNTA(raw!$A:$A)-1,1),回答数!$B49, OFFSET(raw!$A$1,2,MATCH($D$1,raw!$2:$2,0)-1,COUNTA(raw!$A:$A)-1,1),N$2) -> 9 | O49: =COUNTIFS( OFFSET(raw!$A$1,2,MATCH(回答数!$A49,raw!$2:$2,0)-1,COUNTA(raw!$A:$A)-1,1),回答数!$B49, OFFSET(raw!$A$1,2,MATCH($D$1,raw!$2:$2,0)-1,COUNTA(raw!$A:$A)-1,1),O$2) -> 30 | P49: 237
A50: 回答エリア | B50: メガネストリート エリア | D50: =COUNTIFS( OFFSET(raw!$A$1,2,MATCH(回答数!$A50,raw!$2:$2,0)-1,COUNTA(raw!$A:$A)-1,1),回答数!$B50, OFFSET(raw!$A$1,2,MATCH($D$1,raw!$2:$2,0)-1,COUNTA(raw!$A:$A)-1,1),D$2) -> 0 | E50: =COUNTIFS( OFFSET(raw!$A$1,2,MATCH(回答数!$A50,raw!$2:$2,0)-1,COUNTA(raw!$A:$A)-1,1),回答数!$B50, OFFSET(raw!$A$1,2,MATCH($D$1,raw!$2:$2,0)-1,COUNTA(raw!$A:$A)-1,1),E$2) -> 14 | F50: =COUNTIFS( OFFSET(raw!$A$1,2,MATCH(回答数!$A50,raw!$2:$2,0)-1,COUNTA(raw!$A:$A)-1,1),回答数!$B50, OFFSET(raw!$A$1,2,MATCH($D$1,raw!$2:$2,0)-1,COUNTA(raw!$A:$A)-1,1),F$2) -> 15 | G50: =COUNTIFS( OFFSET(raw!$A$1,2,MATCH(回答数!$A50,raw!$2:$2,0)-1,COUNTA(raw!$A:$A)-1,1),回答数!$B50, OFFSET(raw!$A$1,2,MATCH($D$1,raw!$2:$2,0)-1,COUNTA(raw!$A:$A)-1,1),G$2) -> 12 | H50: =COUNTIFS( OFFSET(raw!$A$1,2,MATCH(回答数!$A50,raw!$2:$2,0)-1,COUNTA(raw!$A:$A)-1,1),回答数!$B50, OFFSET(raw!$A$1,2,MATCH($D$1,raw!$2:$2,0)-1,COUNTA(raw!$A:$A)-1,1),H$2) -> 14 | I50: =COUNTIFS( OFFSET(raw!$A$1,2,MATCH(回答数!$A50,raw!$2:$2,0)-1,COUNTA(raw!$A:$A)-1,1),回答数!$B50, OFFSET(raw!$A$1,2,MATCH($D$1,raw!$2:$2,0)-1,COUNTA(raw!$A:$A)-1,1),I$2) -> 11 | J50: =COUNTIFS( OFFSET(raw!$A$1,2,MATCH(回答数!$A50,raw!$2:$2,0)-1,COUNTA(raw!$A:$A)-1,1),回答数!$B50, OFFSET(raw!$A$1,2,MATCH($D$1,raw!$2:$2,0)-1,COUNTA(raw!$A:$A)-1,1),J$2) -> 10 | K50: =COUNTIFS( OFFSET(raw!$A$1,2,MATCH(回答数!$A50,raw!$2:$2,0)-1,COUNTA(raw!$A:$A)-1,1),回答数!$B50, OFFSET(raw!$A$1,2,MATCH($D$1,raw!$2:$2,0)-1,COUNTA(raw!$A:$A)-1,1),K$2) -> 7 | L50: =COUNTIFS( OFFSET(raw!$A$1,2,MATCH(回答数!$A50,raw!$2:$2,0)-1,COUNTA(raw!$A:$A)-1,1),回答数!$B50, OFFSET(raw!$A$1,2,MATCH($D$1,raw!$2:$2,0)-1,COUNTA(raw!$A:$A)-1,1),L$2) -> 15 | M50: =COUNTIFS( OFFSET(raw!$A$1,2,MATCH(回答数!$A50,raw!$2:$2,0)-1,COUNTA(raw!$A:$A)-1,1),回答数!$B50, OFFSET(raw!$A$1,2,MATCH($D$1,raw!$2:$2,0)-1,COUNTA(raw!$A:$A)-1,1),M$2) -> 5 | N50: =COUNTIFS( OFFSET(raw!$A$1,2,MATCH(回答数!$A50,raw!$2:$2,0)-1,COUNTA(raw!$A:$A)-1,1),回答数!$B50, OFFSET(raw!$A$1,2,MATCH($D$1,raw!$2:$2,0)-1,COUNTA(raw!$A:$A)-1,1),N$2) -> 5 | O50: =COUNTIFS( OFFSET(raw!$A$1,2,MATCH(回答数!$A50,raw!$2:$2,0)-1,COUNTA(raw!$A:$A)-1,1),回答数!$B50, OFFSET(raw!$A$1,2,MATCH($D$1,raw!$2:$2,0)-1,COUNTA(raw!$A:$A)-1,1),O$2) -> 32 | P50: 140
A51: 回答エリア | B51: うるしの里 エリア | D51: =COUNTIFS( OFFSET(raw!$A$1,2,MATCH(回答数!$A51,raw!$2:$2,0)-1,COUNTA(raw!$A:$A)-1,1),回答数!$B51, OFFSET(raw!$A$1,2,MATCH($D$1,raw!$2:$2,0)-1,COUNTA(raw!$A:$A)-1,1),D$2) -> 1 | E51: =COUNTIFS( OFFSET(raw!$A$1,2,MATCH(回答数!$A51,raw!$2:$2,0)-1,COUNTA(raw!$A:$A)-1,1),回答数!$B51, OFFSET(raw!$A$1,2,MATCH($D$1,raw!$2:$2,0)-1,COUNTA(raw!$A:$A)-1,1),E$2) -> 14 | F51: =COUNTIFS( OFFSET(raw!$A$1,2,MATCH(回答数!$A51,raw!$2:$2,0)-1,COUNTA(raw!$A:$A)-1,1),回答数!$B51, OFFSET(raw!$A$1,2,MATCH($D$1,raw!$2:$2,0)-1,COUNTA(raw!$A:$A)-1,1),F$2) -> 8 | G51: =COUNTIFS( OFFSET(raw!$A$1,2,MATCH(回答数!$A51,raw!$2:$2,0)-1,COUNTA(raw!$A:$A)-1,1),回答数!$B51, OFFSET(raw!$A$1,2,MATCH($D$1,raw!$2:$2,0)-1,COUNTA(raw!$A:$A)-1,1),G$2) -> 9 | H51: =COUNTIFS( OFFSET(raw!$A$1,2,MATCH(回答数!$A51,raw!$2:$2,0)-1,COUNTA(raw!$A:$A)-1,1),回答数!$B51, OFFSET(raw!$A$1,2,MATCH($D$1,raw!$2:$2,0)-1,COUNTA(raw!$A:$A)-1,1),H$2) -> 4 | I51: =COUNTIFS( OFFSET(raw!$A$1,2,MATCH(回答数!$A51,raw!$2:$2,0)-1,COUNTA(raw!$A:$A)-1,1),回答数!$B51, OFFSET(raw!$A$1,2,MATCH($D$1,raw!$2:$2,0)-1,COUNTA(raw!$A:$A)-1,1),I$2) -> 8 | J51: =COUNTIFS( OFFSET(raw!$A$1,2,MATCH(回答数!$A51,raw!$2:$2,0)-1,COUNTA(raw!$A:$A)-1,1),回答数!$B51, OFFSET(raw!$A$1,2,MATCH($D$1,raw!$2:$2,0)-1,COUNTA(raw!$A:$A)-1,1),J$2) -> 24 | K51: =COUNTIFS( OFFSET(raw!$A$1,2,MATCH(回答数!$A51,raw!$2:$2,0)-1,COUNTA(raw!$A:$A)-1,1),回答数!$B51, OFFSET(raw!$A$1,2,MATCH($D$1,raw!$2:$2,0)-1,COUNTA(raw!$A:$A)-1,1),K$2) -> 15 | L51: =COUNTIFS( OFFSET(raw!$A$1,2,MATCH(回答数!$A51,raw!$2:$2,0)-1,COUNTA(raw!$A:$A)-1,1),回答数!$B51, OFFSET(raw!$A$1,2,MATCH($D$1,raw!$2:$2,0)-1,COUNTA(raw!$A:$A)-1,1),L$2) -> 20 | M51: =COUNTIFS( OFFSET(raw!$A$1,2,MATCH(回答数!$A51,raw!$2:$2,0)-1,COUNTA(raw!$A:$A)-1,1),回答数!$B51, OFFSET(raw!$A$1,2,MATCH($D$1,raw!$2:$2,0)-1,COUNTA(raw!$A:$A)-1,1),M$2) -> 4 | N51: =COUNTIFS( OFFSET(raw!$A$1,2,MATCH(回答数!$A51,raw!$2:$2,0)-1,COUNTA(raw!$A:$A)-1,1),回答数!$B51, OFFSET(raw!$A$1,2,MATCH($D$1,raw!$2:$2,0)-1,COUNTA(raw!$A:$A)-1,1),N$2) -> 6 | O51: =COUNTIFS( OFFSET(raw!$A$1,2,MATCH(回答数!$A51,raw!$2:$2,0)-1,COUNTA(raw!$A:$A)-1,1),回答数!$B51, OFFSET(raw!$A$1,2,MATCH($D$1,raw!$2:$2,0)-1,COUNTA(raw!$A:$A)-1,1),O$2) -> 10 | P51: 123
A52: 回答エリア | B52: まちの市場 こってコテいけだ エリア | D52: =COUNTIFS( OFFSET(raw!$A$1,2,MATCH(回答数!$A52,raw!$2:$2,0)-1,COUNTA(raw!$A:$A)-1,1),回答数!$B52, OFFSET(raw!$A$1,2,MATCH($D$1,raw!$2:$2,0)-1,COUNTA(raw!$A:$A)-1,1),D$2) -> 3 | E52: =COUNTIFS( OFFSET(raw!$A$1,2,MATCH(回答数!$A52,raw!$2:$2,0)-1,COUNTA(raw!$A:$A)-1,1),回答数!$B52, OFFSET(raw!$A$1,2,MATCH($D$1,raw!$2:$2,0)-1,COUNTA(raw!$A:$A)-1,1),E$2) -> 8 | F52: =COUNTIFS( OFFSET(raw!$A$1,2,MATCH(回答数!$A52,raw!$2:$2,0)-1,COUNTA(raw!$A:$A)-1,1),回答数!$B52, OFFSET(raw!$A$1,2,MATCH($D$1,raw!$2:$2,0)-1,COUNTA(raw!$A:$A)-1,1),F$2) -> 5 | G52: =COUNTIFS( OFFSET(raw!$A$1,2,MATCH(回答数!$A52,raw!$2:$2,0)-1,COUNTA(raw!$A:$A)-1,1),回答数!$B52, OFFSET(raw!$A$1,2,MATCH($D$1,raw!$2:$2,0)-1,COUNTA(raw!$A:$A)-1,1),G$2) -> 3 | H52: =COUNTIFS( OFFSET(raw!$A$1,2,MATCH(回答数!$A52,raw!$2:$2,0)-1,COUNTA(raw!$A:$A)-1,1),回答数!$B52, OFFSET(raw!$A$1,2,MATCH($D$1,raw!$2:$2,0)-1,COUNTA(raw!$A:$A)-1,1),H$2) -> 11 | I52: =COUNTIFS( OFFSET(raw!$A$1,2,MATCH(回答数!$A52,raw!$2:$2,0)-1,COUNTA(raw!$A:$A)-1,1),回答数!$B52, OFFSET(raw!$A$1,2,MATCH($D$1,raw!$2:$2,0)-1,COUNTA(raw!$A:$A)-1,1),I$2) -> 5 | J52: =COUNTIFS( OFFSET(raw!$A$1,2,MATCH(回答数!$A52,raw!$2:$2,0)-1,COUNTA(raw!$A:$A)-1,1),回答数!$B52, OFFSET(raw!$A$1,2,MATCH($D$1,raw!$2:$2,0)-1,COUNTA(raw!$A:$A)-1,1),J$2) -> 3 | K52: =COUNTIFS( OFFSET(raw!$A$1,2,MATCH(回答数!$A52,raw!$2:$2,0)-1,COUNTA(raw!$A:$A)-1,1),回答数!$B52, OFFSET(raw!$A$1,2,MATCH($D$1,raw!$2:$2,0)-1,COUNTA(raw!$A:$A)-1,1),K$2) -> 23 | L52: =COUNTIFS( OFFSET(raw!$A$1,2,MATCH(回答数!$A52,raw!$2:$2,0)-1,COUNTA(raw!$A:$A)-1,1),回答数!$B52, OFFSET(raw!$A$1,2,MATCH($D$1,raw!$2:$2,0)-1,COUNTA(raw!$A:$A)-1,1),L$2) -> 22 | M52: =COUNTIFS( OFFSET(raw!$A$1,2,MATCH(回答数!$A52,raw!$2:$2,0)-1,COUNTA(raw!$A:$A)-1,1),回答数!$B52, OFFSET(raw!$A$1,2,MATCH($D$1,raw!$2:$2,0)-1,COUNTA(raw!$A:$A)-1,1),M$2) -> 6 | N52: =COUNTIFS( OFFSET(raw!$A$1,2,MATCH(回答数!$A52,raw!$2:$2,0)-1,COUNTA(raw!$A:$A)-1,1),回答数!$B52, OFFSET(raw!$A$1,2,MATCH($D$1,raw!$2:$2,0)-1,COUNTA(raw!$A:$A)-1,1),N$2) -> 9 | O52: =COUNTIFS( OFFSET(raw!$A$1,2,MATCH(回答数!$A52,raw!$2:$2,0)-1,COUNTA(raw!$A:$A)-1,1),回答数!$B52, OFFSET(raw!$A$1,2,MATCH($D$1,raw!$2:$2,0)-1,COUNTA(raw!$A:$A)-1,1),O$2) -> 19 | P52: 117
A53: 回答エリア | B53: かずら橋 エリア | D53: =COUNTIFS( OFFSET(raw!$A$1,2,MATCH(回答数!$A53,raw!$2:$2,0)-1,COUNTA(raw!$A:$A)-1,1),回答数!$B53, OFFSET(raw!$A$1,2,MATCH($D$1,raw!$2:$2,0)-1,COUNTA(raw!$A:$A)-1,1),D$2) -> 2 | E53: =COUNTIFS( OFFSET(raw!$A$1,2,MATCH(回答数!$A53,raw!$2:$2,0)-1,COUNTA(raw!$A:$A)-1,1),回答数!$B53, OFFSET(raw!$A$1,2,MATCH($D$1,raw!$2:$2,0)-1,COUNTA(raw!$A:$A)-1,1),E$2) -> 9 | F53: =COUNTIFS( OFFSET(raw!$A$1,2,MATCH(回答数!$A53,raw!$2:$2,0)-1,COUNTA(raw!$A:$A)-1,1),回答数!$B53, OFFSET(raw!$A$1,2,MATCH($D$1,raw!$2:$2,0)-1,COUNTA(raw!$A:$A)-1,1),F$2) -> 11 | G53: =COUNTIFS( OFFSET(raw!$A$1,2,MATCH(回答数!$A53,raw!$2:$2,0)-1,COUNTA(raw!$A:$A)-1,1),回答数!$B53, OFFSET(raw!$A$1,2,MATCH($D$1,raw!$2:$2,0)-1,COUNTA(raw!$A:$A)-1,1),G$2) -> 10 | H53: =COUNTIFS( OFFSET(raw!$A$1,2,MATCH(回答数!$A53,raw!$2:$2,0)-1,COUNTA(raw!$A:$A)-1,1),回答数!$B53, OFFSET(raw!$A$1,2,MATCH($D$1,raw!$2:$2,0)-1,COUNTA(raw!$A:$A)-1,1),H$2) -> 7 | I53: =COUNTIFS( OFFSET(raw!$A$1,2,MATCH(回答数!$A53,raw!$2:$2,0)-1,COUNTA(raw!$A:$A)-1,1),回答数!$B53, OFFSET(raw!$A$1,2,MATCH($D$1,raw!$2:$2,0)-1,COUNTA(raw!$A:$A)-1,1),I$2) -> 9 | J53: =COUNTIFS( OFFSET(raw!$A$1,2,MATCH(回答数!$A53,raw!$2:$2,0)-1,COUNTA(raw!$A:$A)-1,1),回答数!$B53, OFFSET(raw!$A$1,2,MATCH($D$1,raw!$2:$2,0)-1,COUNTA(raw!$A:$A)-1,1),J$2) -> 13 | K53: =COUNTIFS( OFFSET(raw!$A$1,2,MATCH(回答数!$A53,raw!$2:$2,0)-1,COUNTA(raw!$A:$A)-1,1),回答数!$B53, OFFSET(raw!$A$1,2,MATCH($D$1,raw!$2:$2,0)-1,COUNTA(raw!$A:$A)-1,1),K$2) -> 7 | L53: =COUNTIFS( OFFSET(raw!$A$1,2,MATCH(回答数!$A53,raw!$2:$2,0)-1,COUNTA(raw!$A:$A)-1,1),回答数!$B53, OFFSET(raw!$A$1,2,MATCH($D$1,raw!$2:$2,0)-1,COUNTA(raw!$A:$A)-1,1),L$2) -> 5 | M53: =COUNTIFS( OFFSET(raw!$A$1,2,MATCH(回答数!$A53,raw!$2:$2,0)-1,COUNTA(raw!$A:$A)-1,1),回答数!$B53, OFFSET(raw!$A$1,2,MATCH($D$1,raw!$2:$2,0)-1,COUNTA(raw!$A:$A)-1,1),M$2) -> 16 | N53: =COUNTIFS( OFFSET(raw!$A$1,2,MATCH(回答数!$A53,raw!$2:$2,0)-1,COUNTA(raw!$A:$A)-1,1),回答数!$B53, OFFSET(raw!$A$1,2,MATCH($D$1,raw!$2:$2,0)-1,COUNTA(raw!$A:$A)-1,1),N$2) -> 28 | O53: =COUNTIFS( OFFSET(raw!$A$1,2,MATCH(回答数!$A53,raw!$2:$2,0)-1,COUNTA(raw!$A:$A)-1,1),回答数!$B53, OFFSET(raw!$A$1,2,MATCH($D$1,raw!$2:$2,0)-1,COUNTA(raw!$A:$A)-1,1),O$2) -> 15 | P53: 132
A54: 回答エリア | B54: 道の駅「越前」 エリア | D54: =COUNTIFS( OFFSET(raw!$A$1,2,MATCH(回答数!$A54,raw!$2:$2,0)-1,COUNTA(raw!$A:$A)-1,1),回答数!$B54, OFFSET(raw!$A$1,2,MATCH($D$1,raw!$2:$2,0)-1,COUNTA(raw!$A:$A)-1,1),D$2) -> 4 | E54: =COUNTIFS( OFFSET(raw!$A$1,2,MATCH(回答数!$A54,raw!$2:$2,0)-1,COUNTA(raw!$A:$A)-1,1),回答数!$B54, OFFSET(raw!$A$1,2,MATCH($D$1,raw!$2:$2,0)-1,COUNTA(raw!$A:$A)-1,1),E$2) -> 58 | F54: =COUNTIFS( OFFSET(raw!$A$1,2,MATCH(回答数!$A54,raw!$2:$2,0)-1,COUNTA(raw!$A:$A)-1,1),回答数!$B54, OFFSET(raw!$A$1,2,MATCH($D$1,raw!$2:$2,0)-1,COUNTA(raw!$A:$A)-1,1),F$2) -> 49 | G54: =COUNTIFS( OFFSET(raw!$A$1,2,MATCH(回答数!$A54,raw!$2:$2,0)-1,COUNTA(raw!$A:$A)-1,1),回答数!$B54, OFFSET(raw!$A$1,2,MATCH($D$1,raw!$2:$2,0)-1,COUNTA(raw!$A:$A)-1,1),G$2) -> 49 | H54: =COUNTIFS( OFFSET(raw!$A$1,2,MATCH(回答数!$A54,raw!$2:$2,0)-1,COUNTA(raw!$A:$A)-1,1),回答数!$B54, OFFSET(raw!$A$1,2,MATCH($D$1,raw!$2:$2,0)-1,COUNTA(raw!$A:$A)-1,1),H$2) -> 30 | I54: =COUNTIFS( OFFSET(raw!$A$1,2,MATCH(回答数!$A54,raw!$2:$2,0)-1,COUNTA(raw!$A:$A)-1,1),回答数!$B54, OFFSET(raw!$A$1,2,MATCH($D$1,raw!$2:$2,0)-1,COUNTA(raw!$A:$A)-1,1),I$2) -> 41 | J54: =COUNTIFS( OFFSET(raw!$A$1,2,MATCH(回答数!$A54,raw!$2:$2,0)-1,COUNTA(raw!$A:$A)-1,1),回答数!$B54, OFFSET(raw!$A$1,2,MATCH($D$1,raw!$2:$2,0)-1,COUNTA(raw!$A:$A)-1,1),J$2) -> 39 | K54: =COUNTIFS( OFFSET(raw!$A$1,2,MATCH(回答数!$A54,raw!$2:$2,0)-1,COUNTA(raw!$A:$A)-1,1),回答数!$B54, OFFSET(raw!$A$1,2,MATCH($D$1,raw!$2:$2,0)-1,COUNTA(raw!$A:$A)-1,1),K$2) -> 112 | L54: =COUNTIFS( OFFSET(raw!$A$1,2,MATCH(回答数!$A54,raw!$2:$2,0)-1,COUNTA(raw!$A:$A)-1,1),回答数!$B54, OFFSET(raw!$A$1,2,MATCH($D$1,raw!$2:$2,0)-1,COUNTA(raw!$A:$A)-1,1),L$2) -> 60 | M54: =COUNTIFS( OFFSET(raw!$A$1,2,MATCH(回答数!$A54,raw!$2:$2,0)-1,COUNTA(raw!$A:$A)-1,1),回答数!$B54, OFFSET(raw!$A$1,2,MATCH($D$1,raw!$2:$2,0)-1,COUNTA(raw!$A:$A)-1,1),M$2) -> 28 | N54: =COUNTIFS( OFFSET(raw!$A$1,2,MATCH(回答数!$A54,raw!$2:$2,0)-1,COUNTA(raw!$A:$A)-1,1),回答数!$B54, OFFSET(raw!$A$1,2,MATCH($D$1,raw!$2:$2,0)-1,COUNTA(raw!$A:$A)-1,1),N$2) -> 56 | O54: =COUNTIFS( OFFSET(raw!$A$1,2,MATCH(回答数!$A54,raw!$2:$2,0)-1,COUNTA(raw!$A:$A)-1,1),回答数!$B54, OFFSET(raw!$A$1,2,MATCH($D$1,raw!$2:$2,0)-1,COUNTA(raw!$A:$A)-1,1),O$2) -> 59 | P54: 585
A55: 回答エリア | B55: 道の駅「パークイン丹生ヶ丘」 エリア | D55: =COUNTIFS( OFFSET(raw!$A$1,2,MATCH(回答数!$A55,raw!$2:$2,0)-1,COUNTA(raw!$A:$A)-1,1),回答数!$B55, OFFSET(raw!$A$1,2,MATCH($D$1,raw!$2:$2,0)-1,COUNTA(raw!$A:$A)-1,1),D$2) -> 3 | E55: =COUNTIFS( OFFSET(raw!$A$1,2,MATCH(回答数!$A55,raw!$2:$2,0)-1,COUNTA(raw!$A:$A)-1,1),回答数!$B55, OFFSET(raw!$A$1,2,MATCH($D$1,raw!$2:$2,0)-1,COUNTA(raw!$A:$A)-1,1),E$2) -> 20 | F55: =COUNTIFS( OFFSET(raw!$A$1,2,MATCH(回答数!$A55,raw!$2:$2,0)-1,COUNTA(raw!$A:$A)-1,1),回答数!$B55, OFFSET(raw!$A$1,2,MATCH($D$1,raw!$2:$2,0)-1,COUNTA(raw!$A:$A)-1,1),F$2) -> 26 | G55: =COUNTIFS( OFFSET(raw!$A$1,2,MATCH(回答数!$A55,raw!$2:$2,0)-1,COUNTA(raw!$A:$A)-1,1),回答数!$B55, OFFSET(raw!$A$1,2,MATCH($D$1,raw!$2:$2,0)-1,COUNTA(raw!$A:$A)-1,1),G$2) -> 32 | H55: =COUNTIFS( OFFSET(raw!$A$1,2,MATCH(回答数!$A55,raw!$2:$2,0)-1,COUNTA(raw!$A:$A)-1,1),回答数!$B55, OFFSET(raw!$A$1,2,MATCH($D$1,raw!$2:$2,0)-1,COUNTA(raw!$A:$A)-1,1),H$2) -> 25 | I55: =COUNTIFS( OFFSET(raw!$A$1,2,MATCH(回答数!$A55,raw!$2:$2,0)-1,COUNTA(raw!$A:$A)-1,1),回答数!$B55, OFFSET(raw!$A$1,2,MATCH($D$1,raw!$2:$2,0)-1,COUNTA(raw!$A:$A)-1,1),I$2) -> 20 | J55: =COUNTIFS( OFFSET(raw!$A$1,2,MATCH(回答数!$A55,raw!$2:$2,0)-1,COUNTA(raw!$A:$A)-1,1),回答数!$B55, OFFSET(raw!$A$1,2,MATCH($D$1,raw!$2:$2,0)-1,COUNTA(raw!$A:$A)-1,1),J$2) -> 28 | K55: =COUNTIFS( OFFSET(raw!$A$1,2,MATCH(回答数!$A55,raw!$2:$2,0)-1,COUNTA(raw!$A:$A)-1,1),回答数!$B55, OFFSET(raw!$A$1,2,MATCH($D$1,raw!$2:$2,0)-1,COUNTA(raw!$A:$A)-1,1),K$2) -> 31 | L55: =COUNTIFS( OFFSET(raw!$A$1,2,MATCH(回答数!$A55,raw!$2:$2,0)-1,COUNTA(raw!$A:$A)-1,1),回答数!$B55, OFFSET(raw!$A$1,2,MATCH($D$1,raw!$2:$2,0)-1,COUNTA(raw!$A:$A)-1,1),L$2) -> 29 | M55: =COUNTIFS( OFFSET(raw!$A$1,2,MATCH(回答数!$A55,raw!$2:$2,0)-1,COUNTA(raw!$A:$A)-1,1),回答数!$B55, OFFSET(raw!$A$1,2,MATCH($D$1,raw!$2:$2,0)-1,COUNTA(raw!$A:$A)-1,1),M$2) -> 13 | N55: =COUNTIFS( OFFSET(raw!$A$1,2,MATCH(回答数!$A55,raw!$2:$2,0)-1,COUNTA(raw!$A:$A)-1,1),回答数!$B55, OFFSET(raw!$A$1,2,MATCH($D$1,raw!$2:$2,0)-1,COUNTA(raw!$A:$A)-1,1),N$2) -> 19 | O55: =COUNTIFS( OFFSET(raw!$A$1,2,MATCH(回答数!$A55,raw!$2:$2,0)-1,COUNTA(raw!$A:$A)-1,1),回答数!$B55, OFFSET(raw!$A$1,2,MATCH($D$1,raw!$2:$2,0)-1,COUNTA(raw!$A:$A)-1,1),O$2) -> 22 | P55: 268
A56: 回答エリア | B56: 劔神社 エリア | D56: =COUNTIFS( OFFSET(raw!$A$1,2,MATCH(回答数!$A56,raw!$2:$2,0)-1,COUNTA(raw!$A:$A)-1,1),回答数!$B56, OFFSET(raw!$A$1,2,MATCH($D$1,raw!$2:$2,0)-1,COUNTA(raw!$A:$A)-1,1),D$2) -> 4 | E56: =COUNTIFS( OFFSET(raw!$A$1,2,MATCH(回答数!$A56,raw!$2:$2,0)-1,COUNTA(raw!$A:$A)-1,1),回答数!$B56, OFFSET(raw!$A$1,2,MATCH($D$1,raw!$2:$2,0)-1,COUNTA(raw!$A:$A)-1,1),E$2) -> 32 | F56: =COUNTIFS( OFFSET(raw!$A$1,2,MATCH(回答数!$A56,raw!$2:$2,0)-1,COUNTA(raw!$A:$A)-1,1),回答数!$B56, OFFSET(raw!$A$1,2,MATCH($D$1,raw!$2:$2,0)-1,COUNTA(raw!$A:$A)-1,1),F$2) -> 12 | G56: =COUNTIFS( OFFSET(raw!$A$1,2,MATCH(回答数!$A56,raw!$2:$2,0)-1,COUNTA(raw!$A:$A)-1,1),回答数!$B56, OFFSET(raw!$A$1,2,MATCH($D$1,raw!$2:$2,0)-1,COUNTA(raw!$A:$A)-1,1),G$2) -> 15 | H56: =COUNTIFS( OFFSET(raw!$A$1,2,MATCH(回答数!$A56,raw!$2:$2,0)-1,COUNTA(raw!$A:$A)-1,1),回答数!$B56, OFFSET(raw!$A$1,2,MATCH($D$1,raw!$2:$2,0)-1,COUNTA(raw!$A:$A)-1,1),H$2) -> 3 | I56: =COUNTIFS( OFFSET(raw!$A$1,2,MATCH(回答数!$A56,raw!$2:$2,0)-1,COUNTA(raw!$A:$A)-1,1),回答数!$B56, OFFSET(raw!$A$1,2,MATCH($D$1,raw!$2:$2,0)-1,COUNTA(raw!$A:$A)-1,1),I$2) -> 13 | J56: =COUNTIFS( OFFSET(raw!$A$1,2,MATCH(回答数!$A56,raw!$2:$2,0)-1,COUNTA(raw!$A:$A)-1,1),回答数!$B56, OFFSET(raw!$A$1,2,MATCH($D$1,raw!$2:$2,0)-1,COUNTA(raw!$A:$A)-1,1),J$2) -> 6 | K56: =COUNTIFS( OFFSET(raw!$A$1,2,MATCH(回答数!$A56,raw!$2:$2,0)-1,COUNTA(raw!$A:$A)-1,1),回答数!$B56, OFFSET(raw!$A$1,2,MATCH($D$1,raw!$2:$2,0)-1,COUNTA(raw!$A:$A)-1,1),K$2) -> 26 | L56: =COUNTIFS( OFFSET(raw!$A$1,2,MATCH(回答数!$A56,raw!$2:$2,0)-1,COUNTA(raw!$A:$A)-1,1),回答数!$B56, OFFSET(raw!$A$1,2,MATCH($D$1,raw!$2:$2,0)-1,COUNTA(raw!$A:$A)-1,1),L$2) -> 20 | M56: =COUNTIFS( OFFSET(raw!$A$1,2,MATCH(回答数!$A56,raw!$2:$2,0)-1,COUNTA(raw!$A:$A)-1,1),回答数!$B56, OFFSET(raw!$A$1,2,MATCH($D$1,raw!$2:$2,0)-1,COUNTA(raw!$A:$A)-1,1),M$2) -> 4 | N56: =COUNTIFS( OFFSET(raw!$A$1,2,MATCH(回答数!$A56,raw!$2:$2,0)-1,COUNTA(raw!$A:$A)-1,1),回答数!$B56, OFFSET(raw!$A$1,2,MATCH($D$1,raw!$2:$2,0)-1,COUNTA(raw!$A:$A)-1,1),N$2) -> 5 | O56: =COUNTIFS( OFFSET(raw!$A$1,2,MATCH(回答数!$A56,raw!$2:$2,0)-1,COUNTA(raw!$A:$A)-1,1),回答数!$B56, OFFSET(raw!$A$1,2,MATCH($D$1,raw!$2:$2,0)-1,COUNTA(raw!$A:$A)-1,1),O$2) -> 52 | P56: 192
A57: 回答エリア | B57: 越前陶芸村 エリア | D57: =COUNTIFS( OFFSET(raw!$A$1,2,MATCH(回答数!$A57,raw!$2:$2,0)-1,COUNTA(raw!$A:$A)-1,1),回答数!$B57, OFFSET(raw!$A$1,2,MATCH($D$1,raw!$2:$2,0)-1,COUNTA(raw!$A:$A)-1,1),D$2) -> 0 | E57: =COUNTIFS( OFFSET(raw!$A$1,2,MATCH(回答数!$A57,raw!$2:$2,0)-1,COUNTA(raw!$A:$A)-1,1),回答数!$B57, OFFSET(raw!$A$1,2,MATCH($D$1,raw!$2:$2,0)-1,COUNTA(raw!$A:$A)-1,1),E$2) -> 33 | F57: =COUNTIFS( OFFSET(raw!$A$1,2,MATCH(回答数!$A57,raw!$2:$2,0)-1,COUNTA(raw!$A:$A)-1,1),回答数!$B57, OFFSET(raw!$A$1,2,MATCH($D$1,raw!$2:$2,0)-1,COUNTA(raw!$A:$A)-1,1),F$2) -> 13 | G57: =COUNTIFS( OFFSET(raw!$A$1,2,MATCH(回答数!$A57,raw!$2:$2,0)-1,COUNTA(raw!$A:$A)-1,1),回答数!$B57, OFFSET(raw!$A$1,2,MATCH($D$1,raw!$2:$2,0)-1,COUNTA(raw!$A:$A)-1,1),G$2) -> 13 | H57: =COUNTIFS( OFFSET(raw!$A$1,2,MATCH(回答数!$A57,raw!$2:$2,0)-1,COUNTA(raw!$A:$A)-1,1),回答数!$B57, OFFSET(raw!$A$1,2,MATCH($D$1,raw!$2:$2,0)-1,COUNTA(raw!$A:$A)-1,1),H$2) -> 10 | I57: =COUNTIFS( OFFSET(raw!$A$1,2,MATCH(回答数!$A57,raw!$2:$2,0)-1,COUNTA(raw!$A:$A)-1,1),回答数!$B57, OFFSET(raw!$A$1,2,MATCH($D$1,raw!$2:$2,0)-1,COUNTA(raw!$A:$A)-1,1),I$2) -> 11 | J57: =COUNTIFS( OFFSET(raw!$A$1,2,MATCH(回答数!$A57,raw!$2:$2,0)-1,COUNTA(raw!$A:$A)-1,1),回答数!$B57, OFFSET(raw!$A$1,2,MATCH($D$1,raw!$2:$2,0)-1,COUNTA(raw!$A:$A)-1,1),J$2) -> 12 | K57: =COUNTIFS( OFFSET(raw!$A$1,2,MATCH(回答数!$A57,raw!$2:$2,0)-1,COUNTA(raw!$A:$A)-1,1),回答数!$B57, OFFSET(raw!$A$1,2,MATCH($D$1,raw!$2:$2,0)-1,COUNTA(raw!$A:$A)-1,1),K$2) -> 30 | L57: =COUNTIFS( OFFSET(raw!$A$1,2,MATCH(回答数!$A57,raw!$2:$2,0)-1,COUNTA(raw!$A:$A)-1,1),回答数!$B57, OFFSET(raw!$A$1,2,MATCH($D$1,raw!$2:$2,0)-1,COUNTA(raw!$A:$A)-1,1),L$2) -> 23 | M57: =COUNTIFS( OFFSET(raw!$A$1,2,MATCH(回答数!$A57,raw!$2:$2,0)-1,COUNTA(raw!$A:$A)-1,1),回答数!$B57, OFFSET(raw!$A$1,2,MATCH($D$1,raw!$2:$2,0)-1,COUNTA(raw!$A:$A)-1,1),M$2) -> 4 | N57: =COUNTIFS( OFFSET(raw!$A$1,2,MATCH(回答数!$A57,raw!$2:$2,0)-1,COUNTA(raw!$A:$A)-1,1),回答数!$B57, OFFSET(raw!$A$1,2,MATCH($D$1,raw!$2:$2,0)-1,COUNTA(raw!$A:$A)-1,1),N$2) -> 5 | O57: =COUNTIFS( OFFSET(raw!$A$1,2,MATCH(回答数!$A57,raw!$2:$2,0)-1,COUNTA(raw!$A:$A)-1,1),回答数!$B57, OFFSET(raw!$A$1,2,MATCH($D$1,raw!$2:$2,0)-1,COUNTA(raw!$A:$A)-1,1),O$2) -> 7 | P57: 161
A58: 回答エリア | B58: 越前海岸 越前岬 エリア | D58: =COUNTIFS( OFFSET(raw!$A$1,2,MATCH(回答数!$A58,raw!$2:$2,0)-1,COUNTA(raw!$A:$A)-1,1),回答数!$B58, OFFSET(raw!$A$1,2,MATCH($D$1,raw!$2:$2,0)-1,COUNTA(raw!$A:$A)-1,1),D$2) -> 2 | E58: =COUNTIFS( OFFSET(raw!$A$1,2,MATCH(回答数!$A58,raw!$2:$2,0)-1,COUNTA(raw!$A:$A)-1,1),回答数!$B58, OFFSET(raw!$A$1,2,MATCH($D$1,raw!$2:$2,0)-1,COUNTA(raw!$A:$A)-1,1),E$2) -> 16 | F58: =COUNTIFS( OFFSET(raw!$A$1,2,MATCH(回答数!$A58,raw!$2:$2,0)-1,COUNTA(raw!$A:$A)-1,1),回答数!$B58, OFFSET(raw!$A$1,2,MATCH($D$1,raw!$2:$2,0)-1,COUNTA(raw!$A:$A)-1,1),F$2) -> 6 | G58: =COUNTIFS( OFFSET(raw!$A$1,2,MATCH(回答数!$A58,raw!$2:$2,0)-1,COUNTA(raw!$A:$A)-1,1),回答数!$B58, OFFSET(raw!$A$1,2,MATCH($D$1,raw!$2:$2,0)-1,COUNTA(raw!$A:$A)-1,1),G$2) -> 6 | H58: =COUNTIFS( OFFSET(raw!$A$1,2,MATCH(回答数!$A58,raw!$2:$2,0)-1,COUNTA(raw!$A:$A)-1,1),回答数!$B58, OFFSET(raw!$A$1,2,MATCH($D$1,raw!$2:$2,0)-1,COUNTA(raw!$A:$A)-1,1),H$2) -> 8 | I58: =COUNTIFS( OFFSET(raw!$A$1,2,MATCH(回答数!$A58,raw!$2:$2,0)-1,COUNTA(raw!$A:$A)-1,1),回答数!$B58, OFFSET(raw!$A$1,2,MATCH($D$1,raw!$2:$2,0)-1,COUNTA(raw!$A:$A)-1,1),I$2) -> 6 | J58: =COUNTIFS( OFFSET(raw!$A$1,2,MATCH(回答数!$A58,raw!$2:$2,0)-1,COUNTA(raw!$A:$A)-1,1),回答数!$B58, OFFSET(raw!$A$1,2,MATCH($D$1,raw!$2:$2,0)-1,COUNTA(raw!$A:$A)-1,1),J$2) -> 16 | K58: =COUNTIFS( OFFSET(raw!$A$1,2,MATCH(回答数!$A58,raw!$2:$2,0)-1,COUNTA(raw!$A:$A)-1,1),回答数!$B58, OFFSET(raw!$A$1,2,MATCH($D$1,raw!$2:$2,0)-1,COUNTA(raw!$A:$A)-1,1),K$2) -> 28 | L58: =COUNTIFS( OFFSET(raw!$A$1,2,MATCH(回答数!$A58,raw!$2:$2,0)-1,COUNTA(raw!$A:$A)-1,1),回答数!$B58, OFFSET(raw!$A$1,2,MATCH($D$1,raw!$2:$2,0)-1,COUNTA(raw!$A:$A)-1,1),L$2) -> 29 | M58: =COUNTIFS( OFFSET(raw!$A$1,2,MATCH(回答数!$A58,raw!$2:$2,0)-1,COUNTA(raw!$A:$A)-1,1),回答数!$B58, OFFSET(raw!$A$1,2,MATCH($D$1,raw!$2:$2,0)-1,COUNTA(raw!$A:$A)-1,1),M$2) -> 27 | N58: =COUNTIFS( OFFSET(raw!$A$1,2,MATCH(回答数!$A58,raw!$2:$2,0)-1,COUNTA(raw!$A:$A)-1,1),回答数!$B58, OFFSET(raw!$A$1,2,MATCH($D$1,raw!$2:$2,0)-1,COUNTA(raw!$A:$A)-1,1),N$2) -> 29 | O58: =COUNTIFS( OFFSET(raw!$A$1,2,MATCH(回答数!$A58,raw!$2:$2,0)-1,COUNTA(raw!$A:$A)-1,1),回答数!$B58, OFFSET(raw!$A$1,2,MATCH($D$1,raw!$2:$2,0)-1,COUNTA(raw!$A:$A)-1,1),O$2) -> 10 | P58: 183
A59: 回答エリア | B59: 越前漁港 エリア | D59: =COUNTIFS( OFFSET(raw!$A$1,2,MATCH(回答数!$A59,raw!$2:$2,0)-1,COUNTA(raw!$A:$A)-1,1),回答数!$B59, OFFSET(raw!$A$1,2,MATCH($D$1,raw!$2:$2,0)-1,COUNTA(raw!$A:$A)-1,1),D$2) -> 0 | E59: =COUNTIFS( OFFSET(raw!$A$1,2,MATCH(回答数!$A59,raw!$2:$2,0)-1,COUNTA(raw!$A:$A)-1,1),回答数!$B59, OFFSET(raw!$A$1,2,MATCH($D$1,raw!$2:$2,0)-1,COUNTA(raw!$A:$A)-1,1),E$2) -> 3 | F59: =COUNTIFS( OFFSET(raw!$A$1,2,MATCH(回答数!$A59,raw!$2:$2,0)-1,COUNTA(raw!$A:$A)-1,1),回答数!$B59, OFFSET(raw!$A$1,2,MATCH($D$1,raw!$2:$2,0)-1,COUNTA(raw!$A:$A)-1,1),F$2) -> 3 | G59: =COUNTIFS( OFFSET(raw!$A$1,2,MATCH(回答数!$A59,raw!$2:$2,0)-1,COUNTA(raw!$A:$A)-1,1),回答数!$B59, OFFSET(raw!$A$1,2,MATCH($D$1,raw!$2:$2,0)-1,COUNTA(raw!$A:$A)-1,1),G$2) -> 0 | H59: =COUNTIFS( OFFSET(raw!$A$1,2,MATCH(回答数!$A59,raw!$2:$2,0)-1,COUNTA(raw!$A:$A)-1,1),回答数!$B59, OFFSET(raw!$A$1,2,MATCH($D$1,raw!$2:$2,0)-1,COUNTA(raw!$A:$A)-1,1),H$2) -> 5 | I59: =COUNTIFS( OFFSET(raw!$A$1,2,MATCH(回答数!$A59,raw!$2:$2,0)-1,COUNTA(raw!$A:$A)-1,1),回答数!$B59, OFFSET(raw!$A$1,2,MATCH($D$1,raw!$2:$2,0)-1,COUNTA(raw!$A:$A)-1,1),I$2) -> 2 | J59: =COUNTIFS( OFFSET(raw!$A$1,2,MATCH(回答数!$A59,raw!$2:$2,0)-1,COUNTA(raw!$A:$A)-1,1),回答数!$B59, OFFSET(raw!$A$1,2,MATCH($D$1,raw!$2:$2,0)-1,COUNTA(raw!$A:$A)-1,1),J$2) -> 4 | K59: =COUNTIFS( OFFSET(raw!$A$1,2,MATCH(回答数!$A59,raw!$2:$2,0)-1,COUNTA(raw!$A:$A)-1,1),回答数!$B59, OFFSET(raw!$A$1,2,MATCH($D$1,raw!$2:$2,0)-1,COUNTA(raw!$A:$A)-1,1),K$2) -> 8 | L59: =COUNTIFS( OFFSET(raw!$A$1,2,MATCH(回答数!$A59,raw!$2:$2,0)-1,COUNTA(raw!$A:$A)-1,1),回答数!$B59, OFFSET(raw!$A$1,2,MATCH($D$1,raw!$2:$2,0)-1,COUNTA(raw!$A:$A)-1,1),L$2) -> 5 | M59: =COUNTIFS( OFFSET(raw!$A$1,2,MATCH(回答数!$A59,raw!$2:$2,0)-1,COUNTA(raw!$A:$A)-1,1),回答数!$B59, OFFSET(raw!$A$1,2,MATCH($D$1,raw!$2:$2,0)-1,COUNTA(raw!$A:$A)-1,1),M$2) -> 2 | N59: =COUNTIFS( OFFSET(raw!$A$1,2,MATCH(回答数!$A59,raw!$2:$2,0)-1,COUNTA(raw!$A:$A)-1,1),回答数!$B59, OFFSET(raw!$A$1,2,MATCH($D$1,raw!$2:$2,0)-1,COUNTA(raw!$A:$A)-1,1),N$2) -> 3 | O59: =COUNTIFS( OFFSET(raw!$A$1,2,MATCH(回答数!$A59,raw!$2:$2,0)-1,COUNTA(raw!$A:$A)-1,1),回答数!$B59, OFFSET(raw!$A$1,2,MATCH($D$1,raw!$2:$2,0)-1,COUNTA(raw!$A:$A)-1,1),O$2) -> 7 | P59: 42
A60: 回答エリア | B60: 越前海岸 茂原民宿街 エリア | D60: =COUNTIFS( OFFSET(raw!$A$1,2,MATCH(回答数!$A60,raw!$2:$2,0)-1,COUNTA(raw!$A:$A)-1,1),回答数!$B60, OFFSET(raw!$A$1,2,MATCH($D$1,raw!$2:$2,0)-1,COUNTA(raw!$A:$A)-1,1),D$2) -> 0 | E60: =COUNTIFS( OFFSET(raw!$A$1,2,MATCH(回答数!$A60,raw!$2:$2,0)-1,COUNTA(raw!$A:$A)-1,1),回答数!$B60, OFFSET(raw!$A$1,2,MATCH($D$1,raw!$2:$2,0)-1,COUNTA(raw!$A:$A)-1,1),E$2) -> 2 | F60: =COUNTIFS( OFFSET(raw!$A$1,2,MATCH(回答数!$A60,raw!$2:$2,0)-1,COUNTA(raw!$A:$A)-1,1),回答数!$B60, OFFSET(raw!$A$1,2,MATCH($D$1,raw!$2:$2,0)-1,COUNTA(raw!$A:$A)-1,1),F$2) -> 0 | G60: =COUNTIFS( OFFSET(raw!$A$1,2,MATCH(回答数!$A60,raw!$2:$2,0)-1,COUNTA(raw!$A:$A)-1,1),回答数!$B60, OFFSET(raw!$A$1,2,MATCH($D$1,raw!$2:$2,0)-1,COUNTA(raw!$A:$A)-1,1),G$2) -> 0 | H60: =COUNTIFS( OFFSET(raw!$A$1,2,MATCH(回答数!$A60,raw!$2:$2,0)-1,COUNTA(raw!$A:$A)-1,1),回答数!$B60, OFFSET(raw!$A$1,2,MATCH($D$1,raw!$2:$2,0)-1,COUNTA(raw!$A:$A)-1,1),H$2) -> 0 | I60: =COUNTIFS( OFFSET(raw!$A$1,2,MATCH(回答数!$A60,raw!$2:$2,0)-1,COUNTA(raw!$A:$A)-1,1),回答数!$B60, OFFSET(raw!$A$1,2,MATCH($D$1,raw!$2:$2,0)-1,COUNTA(raw!$A:$A)-1,1),I$2) -> 0 | J60: =COUNTIFS( OFFSET(raw!$A$1,2,MATCH(回答数!$A60,raw!$2:$2,0)-1,COUNTA(raw!$A:$A)-1,1),回答数!$B60, OFFSET(raw!$A$1,2,MATCH($D$1,raw!$2:$2,0)-1,COUNTA(raw!$A:$A)-1,1),J$2) -> 0 | K60: =COUNTIFS( OFFSET(raw!$A$1,2,MATCH(回答数!$A60,raw!$2:$2,0)-1,COUNTA(raw!$A:$A)-1,1),回答数!$B60, OFFSET(raw!$A$1,2,MATCH($D$1,raw!$2:$2,0)-1,COUNTA(raw!$A:$A)-1,1),K$2) -> 2 | L60: =COUNTIFS( OFFSET(raw!$A$1,2,MATCH(回答数!$A60,raw!$2:$2,0)-1,COUNTA(raw!$A:$A)-1,1),回答数!$B60, OFFSET(raw!$A$1,2,MATCH($D$1,raw!$2:$2,0)-1,COUNTA(raw!$A:$A)-1,1),L$2) -> 0 | M60: =COUNTIFS( OFFSET(raw!$A$1,2,MATCH(回答数!$A60,raw!$2:$2,0)-1,COUNTA(raw!$A:$A)-1,1),回答数!$B60, OFFSET(raw!$A$1,2,MATCH($D$1,raw!$2:$2,0)-1,COUNTA(raw!$A:$A)-1,1),M$2) -> 0 | N60: =COUNTIFS( OFFSET(raw!$A$1,2,MATCH(回答数!$A60,raw!$2:$2,0)-1,COUNTA(raw!$A:$A)-1,1),回答数!$B60, OFFSET(raw!$A$1,2,MATCH($D$1,raw!$2:$2,0)-1,COUNTA(raw!$A:$A)-1,1),N$2) -> 2 | O60: =COUNTIFS( OFFSET(raw!$A$1,2,MATCH(回答数!$A60,raw!$2:$2,0)-1,COUNTA(raw!$A:$A)-1,1),回答数!$B60, OFFSET(raw!$A$1,2,MATCH($D$1,raw!$2:$2,0)-1,COUNTA(raw!$A:$A)-1,1),O$2) -> 8 | P60: 14
A61: 回答エリア | B61: 越前海岸 高佐米ノ旅館街 エリア | D61: =COUNTIFS( OFFSET(raw!$A$1,2,MATCH(回答数!$A61,raw!$2:$2,0)-1,COUNTA(raw!$A:$A)-1,1),回答数!$B61, OFFSET(raw!$A$1,2,MATCH($D$1,raw!$2:$2,0)-1,COUNTA(raw!$A:$A)-1,1),D$2) -> 1 | E61: =COUNTIFS( OFFSET(raw!$A$1,2,MATCH(回答数!$A61,raw!$2:$2,0)-1,COUNTA(raw!$A:$A)-1,1),回答数!$B61, OFFSET(raw!$A$1,2,MATCH($D$1,raw!$2:$2,0)-1,COUNTA(raw!$A:$A)-1,1),E$2) -> 6 | F61: =COUNTIFS( OFFSET(raw!$A$1,2,MATCH(回答数!$A61,raw!$2:$2,0)-1,COUNTA(raw!$A:$A)-1,1),回答数!$B61, OFFSET(raw!$A$1,2,MATCH($D$1,raw!$2:$2,0)-1,COUNTA(raw!$A:$A)-1,1),F$2) -> 2 | G61: =COUNTIFS( OFFSET(raw!$A$1,2,MATCH(回答数!$A61,raw!$2:$2,0)-1,COUNTA(raw!$A:$A)-1,1),回答数!$B61, OFFSET(raw!$A$1,2,MATCH($D$1,raw!$2:$2,0)-1,COUNTA(raw!$A:$A)-1,1),G$2) -> 6 | H61: =COUNTIFS( OFFSET(raw!$A$1,2,MATCH(回答数!$A61,raw!$2:$2,0)-1,COUNTA(raw!$A:$A)-1,1),回答数!$B61, OFFSET(raw!$A$1,2,MATCH($D$1,raw!$2:$2,0)-1,COUNTA(raw!$A:$A)-1,1),H$2) -> 1 | I61: =COUNTIFS( OFFSET(raw!$A$1,2,MATCH(回答数!$A61,raw!$2:$2,0)-1,COUNTA(raw!$A:$A)-1,1),回答数!$B61, OFFSET(raw!$A$1,2,MATCH($D$1,raw!$2:$2,0)-1,COUNTA(raw!$A:$A)-1,1),I$2) -> 1 | J61: =COUNTIFS( OFFSET(raw!$A$1,2,MATCH(回答数!$A61,raw!$2:$2,0)-1,COUNTA(raw!$A:$A)-1,1),回答数!$B61, OFFSET(raw!$A$1,2,MATCH($D$1,raw!$2:$2,0)-1,COUNTA(raw!$A:$A)-1,1),J$2) -> 1 | K61: =COUNTIFS( OFFSET(raw!$A$1,2,MATCH(回答数!$A61,raw!$2:$2,0)-1,COUNTA(raw!$A:$A)-1,1),回答数!$B61, OFFSET(raw!$A$1,2,MATCH($D$1,raw!$2:$2,0)-1,COUNTA(raw!$A:$A)-1,1),K$2) -> 7 | L61: =COUNTIFS( OFFSET(raw!$A$1,2,MATCH(回答数!$A61,raw!$2:$2,0)-1,COUNTA(raw!$A:$A)-1,1),回答数!$B61, OFFSET(raw!$A$1,2,MATCH($D$1,raw!$2:$2,0)-1,COUNTA(raw!$A:$A)-1,1),L$2) -> 4 | M61: =COUNTIFS( OFFSET(raw!$A$1,2,MATCH(回答数!$A61,raw!$2:$2,0)-1,COUNTA(raw!$A:$A)-1,1),回答数!$B61, OFFSET(raw!$A$1,2,MATCH($D$1,raw!$2:$2,0)-1,COUNTA(raw!$A:$A)-1,1),M$2) -> 4 | N61: =COUNTIFS( OFFSET(raw!$A$1,2,MATCH(回答数!$A61,raw!$2:$2,0)-1,COUNTA(raw!$A:$A)-1,1),回答数!$B61, OFFSET(raw!$A$1,2,MATCH($D$1,raw!$2:$2,0)-1,COUNTA(raw!$A:$A)-1,1),N$2) -> 1 | O61: =COUNTIFS( OFFSET(raw!$A$1,2,MATCH(回答数!$A61,raw!$2:$2,0)-1,COUNTA(raw!$A:$A)-1,1),回答数!$B61, OFFSET(raw!$A$1,2,MATCH($D$1,raw!$2:$2,0)-1,COUNTA(raw!$A:$A)-1,1),O$2) -> 12 | P61: 46
A62: 回答エリア | B62: 越前海岸 くりや旅館街 エリア | D62: =COUNTIFS( OFFSET(raw!$A$1,2,MATCH(回答数!$A62,raw!$2:$2,0)-1,COUNTA(raw!$A:$A)-1,1),回答数!$B62, OFFSET(raw!$A$1,2,MATCH($D$1,raw!$2:$2,0)-1,COUNTA(raw!$A:$A)-1,1),D$2) -> 3 | E62: =COUNTIFS( OFFSET(raw!$A$1,2,MATCH(回答数!$A62,raw!$2:$2,0)-1,COUNTA(raw!$A:$A)-1,1),回答数!$B62, OFFSET(raw!$A$1,2,MATCH($D$1,raw!$2:$2,0)-1,COUNTA(raw!$A:$A)-1,1),E$2) -> 21 | F62: =COUNTIFS( OFFSET(raw!$A$1,2,MATCH(回答数!$A62,raw!$2:$2,0)-1,COUNTA(raw!$A:$A)-1,1),回答数!$B62, OFFSET(raw!$A$1,2,MATCH($D$1,raw!$2:$2,0)-1,COUNTA(raw!$A:$A)-1,1),F$2) -> 16 | G62: =COUNTIFS( OFFSET(raw!$A$1,2,MATCH(回答数!$A62,raw!$2:$2,0)-1,COUNTA(raw!$A:$A)-1,1),回答数!$B62, OFFSET(raw!$A$1,2,MATCH($D$1,raw!$2:$2,0)-1,COUNTA(raw!$A:$A)-1,1),G$2) -> 11 | H62: =COUNTIFS( OFFSET(raw!$A$1,2,MATCH(回答数!$A62,raw!$2:$2,0)-1,COUNTA(raw!$A:$A)-1,1),回答数!$B62, OFFSET(raw!$A$1,2,MATCH($D$1,raw!$2:$2,0)-1,COUNTA(raw!$A:$A)-1,1),H$2) -> 10 | I62: =COUNTIFS( OFFSET(raw!$A$1,2,MATCH(回答数!$A62,raw!$2:$2,0)-1,COUNTA(raw!$A:$A)-1,1),回答数!$B62, OFFSET(raw!$A$1,2,MATCH($D$1,raw!$2:$2,0)-1,COUNTA(raw!$A:$A)-1,1),I$2) -> 5 | J62: =COUNTIFS( OFFSET(raw!$A$1,2,MATCH(回答数!$A62,raw!$2:$2,0)-1,COUNTA(raw!$A:$A)-1,1),回答数!$B62, OFFSET(raw!$A$1,2,MATCH($D$1,raw!$2:$2,0)-1,COUNTA(raw!$A:$A)-1,1),J$2) -> 3 | K62: =COUNTIFS( OFFSET(raw!$A$1,2,MATCH(回答数!$A62,raw!$2:$2,0)-1,COUNTA(raw!$A:$A)-1,1),回答数!$B62, OFFSET(raw!$A$1,2,MATCH($D$1,raw!$2:$2,0)-1,COUNTA(raw!$A:$A)-1,1),K$2) -> 18 | L62: =COUNTIFS( OFFSET(raw!$A$1,2,MATCH(回答数!$A62,raw!$2:$2,0)-1,COUNTA(raw!$A:$A)-1,1),回答数!$B62, OFFSET(raw!$A$1,2,MATCH($D$1,raw!$2:$2,0)-1,COUNTA(raw!$A:$A)-1,1),L$2) -> 20 | M62: =COUNTIFS( OFFSET(raw!$A$1,2,MATCH(回答数!$A62,raw!$2:$2,0)-1,COUNTA(raw!$A:$A)-1,1),回答数!$B62, OFFSET(raw!$A$1,2,MATCH($D$1,raw!$2:$2,0)-1,COUNTA(raw!$A:$A)-1,1),M$2) -> 3 | N62: =COUNTIFS( OFFSET(raw!$A$1,2,MATCH(回答数!$A62,raw!$2:$2,0)-1,COUNTA(raw!$A:$A)-1,1),回答数!$B62, OFFSET(raw!$A$1,2,MATCH($D$1,raw!$2:$2,0)-1,COUNTA(raw!$A:$A)-1,1),N$2) -> 8 | O62: =COUNTIFS( OFFSET(raw!$A$1,2,MATCH(回答数!$A62,raw!$2:$2,0)-1,COUNTA(raw!$A:$A)-1,1),回答数!$B62, OFFSET(raw!$A$1,2,MATCH($D$1,raw!$2:$2,0)-1,COUNTA(raw!$A:$A)-1,1),O$2) -> 10 | P62: 128
A63: 回答エリア | B63: 道の駅「南えちぜん山海里」 エリア | D63: =COUNTIFS( OFFSET(raw!$A$1,2,MATCH(回答数!$A63,raw!$2:$2,0)-1,COUNTA(raw!$A:$A)-1,1),回答数!$B63, OFFSET(raw!$A$1,2,MATCH($D$1,raw!$2:$2,0)-1,COUNTA(raw!$A:$A)-1,1),D$2) -> 5 | E63: =COUNTIFS( OFFSET(raw!$A$1,2,MATCH(回答数!$A63,raw!$2:$2,0)-1,COUNTA(raw!$A:$A)-1,1),回答数!$B63, OFFSET(raw!$A$1,2,MATCH($D$1,raw!$2:$2,0)-1,COUNTA(raw!$A:$A)-1,1),E$2) -> 78 | F63: =COUNTIFS( OFFSET(raw!$A$1,2,MATCH(回答数!$A63,raw!$2:$2,0)-1,COUNTA(raw!$A:$A)-1,1),回答数!$B63, OFFSET(raw!$A$1,2,MATCH($D$1,raw!$2:$2,0)-1,COUNTA(raw!$A:$A)-1,1),F$2) -> 56 | G63: =COUNTIFS( OFFSET(raw!$A$1,2,MATCH(回答数!$A63,raw!$2:$2,0)-1,COUNTA(raw!$A:$A)-1,1),回答数!$B63, OFFSET(raw!$A$1,2,MATCH($D$1,raw!$2:$2,0)-1,COUNTA(raw!$A:$A)-1,1),G$2) -> 66 | H63: =COUNTIFS( OFFSET(raw!$A$1,2,MATCH(回答数!$A63,raw!$2:$2,0)-1,COUNTA(raw!$A:$A)-1,1),回答数!$B63, OFFSET(raw!$A$1,2,MATCH($D$1,raw!$2:$2,0)-1,COUNTA(raw!$A:$A)-1,1),H$2) -> 68 | I63: =COUNTIFS( OFFSET(raw!$A$1,2,MATCH(回答数!$A63,raw!$2:$2,0)-1,COUNTA(raw!$A:$A)-1,1),回答数!$B63, OFFSET(raw!$A$1,2,MATCH($D$1,raw!$2:$2,0)-1,COUNTA(raw!$A:$A)-1,1),I$2) -> 59 | J63: =COUNTIFS( OFFSET(raw!$A$1,2,MATCH(回答数!$A63,raw!$2:$2,0)-1,COUNTA(raw!$A:$A)-1,1),回答数!$B63, OFFSET(raw!$A$1,2,MATCH($D$1,raw!$2:$2,0)-1,COUNTA(raw!$A:$A)-1,1),J$2) -> 54 | K63: =COUNTIFS( OFFSET(raw!$A$1,2,MATCH(回答数!$A63,raw!$2:$2,0)-1,COUNTA(raw!$A:$A)-1,1),回答数!$B63, OFFSET(raw!$A$1,2,MATCH($D$1,raw!$2:$2,0)-1,COUNTA(raw!$A:$A)-1,1),K$2) -> 100 | L63: =COUNTIFS( OFFSET(raw!$A$1,2,MATCH(回答数!$A63,raw!$2:$2,0)-1,COUNTA(raw!$A:$A)-1,1),回答数!$B63, OFFSET(raw!$A$1,2,MATCH($D$1,raw!$2:$2,0)-1,COUNTA(raw!$A:$A)-1,1),L$2) -> 100 | M63: =COUNTIFS( OFFSET(raw!$A$1,2,MATCH(回答数!$A63,raw!$2:$2,0)-1,COUNTA(raw!$A:$A)-1,1),回答数!$B63, OFFSET(raw!$A$1,2,MATCH($D$1,raw!$2:$2,0)-1,COUNTA(raw!$A:$A)-1,1),M$2) -> 57 | N63: =COUNTIFS( OFFSET(raw!$A$1,2,MATCH(回答数!$A63,raw!$2:$2,0)-1,COUNTA(raw!$A:$A)-1,1),回答数!$B63, OFFSET(raw!$A$1,2,MATCH($D$1,raw!$2:$2,0)-1,COUNTA(raw!$A:$A)-1,1),N$2) -> 53 | O63: =COUNTIFS( OFFSET(raw!$A$1,2,MATCH(回答数!$A63,raw!$2:$2,0)-1,COUNTA(raw!$A:$A)-1,1),回答数!$B63, OFFSET(raw!$A$1,2,MATCH($D$1,raw!$2:$2,0)-1,COUNTA(raw!$A:$A)-1,1),O$2) -> 60 | P63: 756
A64: 回答エリア | B64: 北前船主の館 右近家 エリア | D64: =COUNTIFS( OFFSET(raw!$A$1,2,MATCH(回答数!$A64,raw!$2:$2,0)-1,COUNTA(raw!$A:$A)-1,1),回答数!$B64, OFFSET(raw!$A$1,2,MATCH($D$1,raw!$2:$2,0)-1,COUNTA(raw!$A:$A)-1,1),D$2) -> 0 | E64: =COUNTIFS( OFFSET(raw!$A$1,2,MATCH(回答数!$A64,raw!$2:$2,0)-1,COUNTA(raw!$A:$A)-1,1),回答数!$B64, OFFSET(raw!$A$1,2,MATCH($D$1,raw!$2:$2,0)-1,COUNTA(raw!$A:$A)-1,1),E$2) -> 5 | F64: =COUNTIFS( OFFSET(raw!$A$1,2,MATCH(回答数!$A64,raw!$2:$2,0)-1,COUNTA(raw!$A:$A)-1,1),回答数!$B64, OFFSET(raw!$A$1,2,MATCH($D$1,raw!$2:$2,0)-1,COUNTA(raw!$A:$A)-1,1),F$2) -> 4 | G64: =COUNTIFS( OFFSET(raw!$A$1,2,MATCH(回答数!$A64,raw!$2:$2,0)-1,COUNTA(raw!$A:$A)-1,1),回答数!$B64, OFFSET(raw!$A$1,2,MATCH($D$1,raw!$2:$2,0)-1,COUNTA(raw!$A:$A)-1,1),G$2) -> 11 | H64: =COUNTIFS( OFFSET(raw!$A$1,2,MATCH(回答数!$A64,raw!$2:$2,0)-1,COUNTA(raw!$A:$A)-1,1),回答数!$B64, OFFSET(raw!$A$1,2,MATCH($D$1,raw!$2:$2,0)-1,COUNTA(raw!$A:$A)-1,1),H$2) -> 5 | I64: =COUNTIFS( OFFSET(raw!$A$1,2,MATCH(回答数!$A64,raw!$2:$2,0)-1,COUNTA(raw!$A:$A)-1,1),回答数!$B64, OFFSET(raw!$A$1,2,MATCH($D$1,raw!$2:$2,0)-1,COUNTA(raw!$A:$A)-1,1),I$2) -> 16 | J64: =COUNTIFS( OFFSET(raw!$A$1,2,MATCH(回答数!$A64,raw!$2:$2,0)-1,COUNTA(raw!$A:$A)-1,1),回答数!$B64, OFFSET(raw!$A$1,2,MATCH($D$1,raw!$2:$2,0)-1,COUNTA(raw!$A:$A)-1,1),J$2) -> 5 | K64: =COUNTIFS( OFFSET(raw!$A$1,2,MATCH(回答数!$A64,raw!$2:$2,0)-1,COUNTA(raw!$A:$A)-1,1),回答数!$B64, OFFSET(raw!$A$1,2,MATCH($D$1,raw!$2:$2,0)-1,COUNTA(raw!$A:$A)-1,1),K$2) -> 10 | L64: =COUNTIFS( OFFSET(raw!$A$1,2,MATCH(回答数!$A64,raw!$2:$2,0)-1,COUNTA(raw!$A:$A)-1,1),回答数!$B64, OFFSET(raw!$A$1,2,MATCH($D$1,raw!$2:$2,0)-1,COUNTA(raw!$A:$A)-1,1),L$2) -> 18 | M64: =COUNTIFS( OFFSET(raw!$A$1,2,MATCH(回答数!$A64,raw!$2:$2,0)-1,COUNTA(raw!$A:$A)-1,1),回答数!$B64, OFFSET(raw!$A$1,2,MATCH($D$1,raw!$2:$2,0)-1,COUNTA(raw!$A:$A)-1,1),M$2) -> 4 | N64: =COUNTIFS( OFFSET(raw!$A$1,2,MATCH(回答数!$A64,raw!$2:$2,0)-1,COUNTA(raw!$A:$A)-1,1),回答数!$B64, OFFSET(raw!$A$1,2,MATCH($D$1,raw!$2:$2,0)-1,COUNTA(raw!$A:$A)-1,1),N$2) -> 2 | O64: =COUNTIFS( OFFSET(raw!$A$1,2,MATCH(回答数!$A64,raw!$2:$2,0)-1,COUNTA(raw!$A:$A)-1,1),回答数!$B64, OFFSET(raw!$A$1,2,MATCH($D$1,raw!$2:$2,0)-1,COUNTA(raw!$A:$A)-1,1),O$2) -> 10 | P64: 90
A65: 回答エリア | B65: 今庄宿 エリア | D65: =COUNTIFS( OFFSET(raw!$A$1,2,MATCH(回答数!$A65,raw!$2:$2,0)-1,COUNTA(raw!$A:$A)-1,1),回答数!$B65, OFFSET(raw!$A$1,2,MATCH($D$1,raw!$2:$2,0)-1,COUNTA(raw!$A:$A)-1,1),D$2) -> 0 | E65: =COUNTIFS( OFFSET(raw!$A$1,2,MATCH(回答数!$A65,raw!$2:$2,0)-1,COUNTA(raw!$A:$A)-1,1),回答数!$B65, OFFSET(raw!$A$1,2,MATCH($D$1,raw!$2:$2,0)-1,COUNTA(raw!$A:$A)-1,1),E$2) -> 8 | F65: =COUNTIFS( OFFSET(raw!$A$1,2,MATCH(回答数!$A65,raw!$2:$2,0)-1,COUNTA(raw!$A:$A)-1,1),回答数!$B65, OFFSET(raw!$A$1,2,MATCH($D$1,raw!$2:$2,0)-1,COUNTA(raw!$A:$A)-1,1),F$2) -> 4 | G65: =COUNTIFS( OFFSET(raw!$A$1,2,MATCH(回答数!$A65,raw!$2:$2,0)-1,COUNTA(raw!$A:$A)-1,1),回答数!$B65, OFFSET(raw!$A$1,2,MATCH($D$1,raw!$2:$2,0)-1,COUNTA(raw!$A:$A)-1,1),G$2) -> 7 | H65: =COUNTIFS( OFFSET(raw!$A$1,2,MATCH(回答数!$A65,raw!$2:$2,0)-1,COUNTA(raw!$A:$A)-1,1),回答数!$B65, OFFSET(raw!$A$1,2,MATCH($D$1,raw!$2:$2,0)-1,COUNTA(raw!$A:$A)-1,1),H$2) -> 3 | I65: =COUNTIFS( OFFSET(raw!$A$1,2,MATCH(回答数!$A65,raw!$2:$2,0)-1,COUNTA(raw!$A:$A)-1,1),回答数!$B65, OFFSET(raw!$A$1,2,MATCH($D$1,raw!$2:$2,0)-1,COUNTA(raw!$A:$A)-1,1),I$2) -> 6 | J65: =COUNTIFS( OFFSET(raw!$A$1,2,MATCH(回答数!$A65,raw!$2:$2,0)-1,COUNTA(raw!$A:$A)-1,1),回答数!$B65, OFFSET(raw!$A$1,2,MATCH($D$1,raw!$2:$2,0)-1,COUNTA(raw!$A:$A)-1,1),J$2) -> 4 | K65: =COUNTIFS( OFFSET(raw!$A$1,2,MATCH(回答数!$A65,raw!$2:$2,0)-1,COUNTA(raw!$A:$A)-1,1),回答数!$B65, OFFSET(raw!$A$1,2,MATCH($D$1,raw!$2:$2,0)-1,COUNTA(raw!$A:$A)-1,1),K$2) -> 7 | L65: =COUNTIFS( OFFSET(raw!$A$1,2,MATCH(回答数!$A65,raw!$2:$2,0)-1,COUNTA(raw!$A:$A)-1,1),回答数!$B65, OFFSET(raw!$A$1,2,MATCH($D$1,raw!$2:$2,0)-1,COUNTA(raw!$A:$A)-1,1),L$2) -> 6 | M65: =COUNTIFS( OFFSET(raw!$A$1,2,MATCH(回答数!$A65,raw!$2:$2,0)-1,COUNTA(raw!$A:$A)-1,1),回答数!$B65, OFFSET(raw!$A$1,2,MATCH($D$1,raw!$2:$2,0)-1,COUNTA(raw!$A:$A)-1,1),M$2) -> 4 | N65: =COUNTIFS( OFFSET(raw!$A$1,2,MATCH(回答数!$A65,raw!$2:$2,0)-1,COUNTA(raw!$A:$A)-1,1),回答数!$B65, OFFSET(raw!$A$1,2,MATCH($D$1,raw!$2:$2,0)-1,COUNTA(raw!$A:$A)-1,1),N$2) -> 1 | O65: =COUNTIFS( OFFSET(raw!$A$1,2,MATCH(回答数!$A65,raw!$2:$2,0)-1,COUNTA(raw!$A:$A)-1,1),回答数!$B65, OFFSET(raw!$A$1,2,MATCH($D$1,raw!$2:$2,0)-1,COUNTA(raw!$A:$A)-1,1),O$2) -> 12 | P65: 62
A66: 回答エリア | B66: 日本海さかな街 エリア | D66: =COUNTIFS( OFFSET(raw!$A$1,2,MATCH(回答数!$A66,raw!$2:$2,0)-1,COUNTA(raw!$A:$A)-1,1),回答数!$B66, OFFSET(raw!$A$1,2,MATCH($D$1,raw!$2:$2,0)-1,COUNTA(raw!$A:$A)-1,1),D$2) -> 4 | E66: =COUNTIFS( OFFSET(raw!$A$1,2,MATCH(回答数!$A66,raw!$2:$2,0)-1,COUNTA(raw!$A:$A)-1,1),回答数!$B66, OFFSET(raw!$A$1,2,MATCH($D$1,raw!$2:$2,0)-1,COUNTA(raw!$A:$A)-1,1),E$2) -> 31 | F66: =COUNTIFS( OFFSET(raw!$A$1,2,MATCH(回答数!$A66,raw!$2:$2,0)-1,COUNTA(raw!$A:$A)-1,1),回答数!$B66, OFFSET(raw!$A$1,2,MATCH($D$1,raw!$2:$2,0)-1,COUNTA(raw!$A:$A)-1,1),F$2) -> 27 | G66: =COUNTIFS( OFFSET(raw!$A$1,2,MATCH(回答数!$A66,raw!$2:$2,0)-1,COUNTA(raw!$A:$A)-1,1),回答数!$B66, OFFSET(raw!$A$1,2,MATCH($D$1,raw!$2:$2,0)-1,COUNTA(raw!$A:$A)-1,1),G$2) -> 68 | H66: =COUNTIFS( OFFSET(raw!$A$1,2,MATCH(回答数!$A66,raw!$2:$2,0)-1,COUNTA(raw!$A:$A)-1,1),回答数!$B66, OFFSET(raw!$A$1,2,MATCH($D$1,raw!$2:$2,0)-1,COUNTA(raw!$A:$A)-1,1),H$2) -> 28 | I66: =COUNTIFS( OFFSET(raw!$A$1,2,MATCH(回答数!$A66,raw!$2:$2,0)-1,COUNTA(raw!$A:$A)-1,1),回答数!$B66, OFFSET(raw!$A$1,2,MATCH($D$1,raw!$2:$2,0)-1,COUNTA(raw!$A:$A)-1,1),I$2) -> 29 | J66: =COUNTIFS( OFFSET(raw!$A$1,2,MATCH(回答数!$A66,raw!$2:$2,0)-1,COUNTA(raw!$A:$A)-1,1),回答数!$B66, OFFSET(raw!$A$1,2,MATCH($D$1,raw!$2:$2,0)-1,COUNTA(raw!$A:$A)-1,1),J$2) -> 22 | K66: =COUNTIFS( OFFSET(raw!$A$1,2,MATCH(回答数!$A66,raw!$2:$2,0)-1,COUNTA(raw!$A:$A)-1,1),回答数!$B66, OFFSET(raw!$A$1,2,MATCH($D$1,raw!$2:$2,0)-1,COUNTA(raw!$A:$A)-1,1),K$2) -> 26 | L66: =COUNTIFS( OFFSET(raw!$A$1,2,MATCH(回答数!$A66,raw!$2:$2,0)-1,COUNTA(raw!$A:$A)-1,1),回答数!$B66, OFFSET(raw!$A$1,2,MATCH($D$1,raw!$2:$2,0)-1,COUNTA(raw!$A:$A)-1,1),L$2) -> 32 | M66: =COUNTIFS( OFFSET(raw!$A$1,2,MATCH(回答数!$A66,raw!$2:$2,0)-1,COUNTA(raw!$A:$A)-1,1),回答数!$B66, OFFSET(raw!$A$1,2,MATCH($D$1,raw!$2:$2,0)-1,COUNTA(raw!$A:$A)-1,1),M$2) -> 16 | N66: =COUNTIFS( OFFSET(raw!$A$1,2,MATCH(回答数!$A66,raw!$2:$2,0)-1,COUNTA(raw!$A:$A)-1,1),回答数!$B66, OFFSET(raw!$A$1,2,MATCH($D$1,raw!$2:$2,0)-1,COUNTA(raw!$A:$A)-1,1),N$2) -> 21 | O66: =COUNTIFS( OFFSET(raw!$A$1,2,MATCH(回答数!$A66,raw!$2:$2,0)-1,COUNTA(raw!$A:$A)-1,1),回答数!$B66, OFFSET(raw!$A$1,2,MATCH($D$1,raw!$2:$2,0)-1,COUNTA(raw!$A:$A)-1,1),O$2) -> 37 | P66: 341
A67: 回答エリア | B67: 神楽通り エリア | D67: =COUNTIFS( OFFSET(raw!$A$1,2,MATCH(回答数!$A67,raw!$2:$2,0)-1,COUNTA(raw!$A:$A)-1,1),回答数!$B67, OFFSET(raw!$A$1,2,MATCH($D$1,raw!$2:$2,0)-1,COUNTA(raw!$A:$A)-1,1),D$2) -> 1 | E67: =COUNTIFS( OFFSET(raw!$A$1,2,MATCH(回答数!$A67,raw!$2:$2,0)-1,COUNTA(raw!$A:$A)-1,1),回答数!$B67, OFFSET(raw!$A$1,2,MATCH($D$1,raw!$2:$2,0)-1,COUNTA(raw!$A:$A)-1,1),E$2) -> 6 | F67: =COUNTIFS( OFFSET(raw!$A$1,2,MATCH(回答数!$A67,raw!$2:$2,0)-1,COUNTA(raw!$A:$A)-1,1),回答数!$B67, OFFSET(raw!$A$1,2,MATCH($D$1,raw!$2:$2,0)-1,COUNTA(raw!$A:$A)-1,1),F$2) -> 6 | G67: =COUNTIFS( OFFSET(raw!$A$1,2,MATCH(回答数!$A67,raw!$2:$2,0)-1,COUNTA(raw!$A:$A)-1,1),回答数!$B67, OFFSET(raw!$A$1,2,MATCH($D$1,raw!$2:$2,0)-1,COUNTA(raw!$A:$A)-1,1),G$2) -> 4 | H67: =COUNTIFS( OFFSET(raw!$A$1,2,MATCH(回答数!$A67,raw!$2:$2,0)-1,COUNTA(raw!$A:$A)-1,1),回答数!$B67, OFFSET(raw!$A$1,2,MATCH($D$1,raw!$2:$2,0)-1,COUNTA(raw!$A:$A)-1,1),H$2) -> 11 | I67: =COUNTIFS( OFFSET(raw!$A$1,2,MATCH(回答数!$A67,raw!$2:$2,0)-1,COUNTA(raw!$A:$A)-1,1),回答数!$B67, OFFSET(raw!$A$1,2,MATCH($D$1,raw!$2:$2,0)-1,COUNTA(raw!$A:$A)-1,1),I$2) -> 21 | J67: =COUNTIFS( OFFSET(raw!$A$1,2,MATCH(回答数!$A67,raw!$2:$2,0)-1,COUNTA(raw!$A:$A)-1,1),回答数!$B67, OFFSET(raw!$A$1,2,MATCH($D$1,raw!$2:$2,0)-1,COUNTA(raw!$A:$A)-1,1),J$2) -> 5 | K67: =COUNTIFS( OFFSET(raw!$A$1,2,MATCH(回答数!$A67,raw!$2:$2,0)-1,COUNTA(raw!$A:$A)-1,1),回答数!$B67, OFFSET(raw!$A$1,2,MATCH($D$1,raw!$2:$2,0)-1,COUNTA(raw!$A:$A)-1,1),K$2) -> 6 | L67: =COUNTIFS( OFFSET(raw!$A$1,2,MATCH(回答数!$A67,raw!$2:$2,0)-1,COUNTA(raw!$A:$A)-1,1),回答数!$B67, OFFSET(raw!$A$1,2,MATCH($D$1,raw!$2:$2,0)-1,COUNTA(raw!$A:$A)-1,1),L$2) -> 7 | M67: =COUNTIFS( OFFSET(raw!$A$1,2,MATCH(回答数!$A67,raw!$2:$2,0)-1,COUNTA(raw!$A:$A)-1,1),回答数!$B67, OFFSET(raw!$A$1,2,MATCH($D$1,raw!$2:$2,0)-1,COUNTA(raw!$A:$A)-1,1),M$2) -> 3 | N67: =COUNTIFS( OFFSET(raw!$A$1,2,MATCH(回答数!$A67,raw!$2:$2,0)-1,COUNTA(raw!$A:$A)-1,1),回答数!$B67, OFFSET(raw!$A$1,2,MATCH($D$1,raw!$2:$2,0)-1,COUNTA(raw!$A:$A)-1,1),N$2) -> 5 | O67: =COUNTIFS( OFFSET(raw!$A$1,2,MATCH(回答数!$A67,raw!$2:$2,0)-1,COUNTA(raw!$A:$A)-1,1),回答数!$B67, OFFSET(raw!$A$1,2,MATCH($D$1,raw!$2:$2,0)-1,COUNTA(raw!$A:$A)-1,1),O$2) -> 36 | P67: 111
A68: 回答エリア | B68: JR敦賀駅前 エリア | D68: =COUNTIFS( OFFSET(raw!$A$1,2,MATCH(回答数!$A68,raw!$2:$2,0)-1,COUNTA(raw!$A:$A)-1,1),回答数!$B68, OFFSET(raw!$A$1,2,MATCH($D$1,raw!$2:$2,0)-1,COUNTA(raw!$A:$A)-1,1),D$2) -> 8 | E68: =COUNTIFS( OFFSET(raw!$A$1,2,MATCH(回答数!$A68,raw!$2:$2,0)-1,COUNTA(raw!$A:$A)-1,1),回答数!$B68, OFFSET(raw!$A$1,2,MATCH($D$1,raw!$2:$2,0)-1,COUNTA(raw!$A:$A)-1,1),E$2) -> 61 | F68: =COUNTIFS( OFFSET(raw!$A$1,2,MATCH(回答数!$A68,raw!$2:$2,0)-1,COUNTA(raw!$A:$A)-1,1),回答数!$B68, OFFSET(raw!$A$1,2,MATCH($D$1,raw!$2:$2,0)-1,COUNTA(raw!$A:$A)-1,1),F$2) -> 60 | G68: =COUNTIFS( OFFSET(raw!$A$1,2,MATCH(回答数!$A68,raw!$2:$2,0)-1,COUNTA(raw!$A:$A)-1,1),回答数!$B68, OFFSET(raw!$A$1,2,MATCH($D$1,raw!$2:$2,0)-1,COUNTA(raw!$A:$A)-1,1),G$2) -> 79 | H68: =COUNTIFS( OFFSET(raw!$A$1,2,MATCH(回答数!$A68,raw!$2:$2,0)-1,COUNTA(raw!$A:$A)-1,1),回答数!$B68, OFFSET(raw!$A$1,2,MATCH($D$1,raw!$2:$2,0)-1,COUNTA(raw!$A:$A)-1,1),H$2) -> 49 | I68: =COUNTIFS( OFFSET(raw!$A$1,2,MATCH(回答数!$A68,raw!$2:$2,0)-1,COUNTA(raw!$A:$A)-1,1),回答数!$B68, OFFSET(raw!$A$1,2,MATCH($D$1,raw!$2:$2,0)-1,COUNTA(raw!$A:$A)-1,1),I$2) -> 51 | J68: =COUNTIFS( OFFSET(raw!$A$1,2,MATCH(回答数!$A68,raw!$2:$2,0)-1,COUNTA(raw!$A:$A)-1,1),回答数!$B68, OFFSET(raw!$A$1,2,MATCH($D$1,raw!$2:$2,0)-1,COUNTA(raw!$A:$A)-1,1),J$2) -> 69 | K68: =COUNTIFS( OFFSET(raw!$A$1,2,MATCH(回答数!$A68,raw!$2:$2,0)-1,COUNTA(raw!$A:$A)-1,1),回答数!$B68, OFFSET(raw!$A$1,2,MATCH($D$1,raw!$2:$2,0)-1,COUNTA(raw!$A:$A)-1,1),K$2) -> 71 | L68: =COUNTIFS( OFFSET(raw!$A$1,2,MATCH(回答数!$A68,raw!$2:$2,0)-1,COUNTA(raw!$A:$A)-1,1),回答数!$B68, OFFSET(raw!$A$1,2,MATCH($D$1,raw!$2:$2,0)-1,COUNTA(raw!$A:$A)-1,1),L$2) -> 70 | M68: =COUNTIFS( OFFSET(raw!$A$1,2,MATCH(回答数!$A68,raw!$2:$2,0)-1,COUNTA(raw!$A:$A)-1,1),回答数!$B68, OFFSET(raw!$A$1,2,MATCH($D$1,raw!$2:$2,0)-1,COUNTA(raw!$A:$A)-1,1),M$2) -> 27 | N68: =COUNTIFS( OFFSET(raw!$A$1,2,MATCH(回答数!$A68,raw!$2:$2,0)-1,COUNTA(raw!$A:$A)-1,1),回答数!$B68, OFFSET(raw!$A$1,2,MATCH($D$1,raw!$2:$2,0)-1,COUNTA(raw!$A:$A)-1,1),N$2) -> 50 | O68: =COUNTIFS( OFFSET(raw!$A$1,2,MATCH(回答数!$A68,raw!$2:$2,0)-1,COUNTA(raw!$A:$A)-1,1),回答数!$B68, OFFSET(raw!$A$1,2,MATCH($D$1,raw!$2:$2,0)-1,COUNTA(raw!$A:$A)-1,1),O$2) -> 73 | P68: 668
A69: 回答エリア | B69: 金ヶ崎 エリア | D69: =COUNTIFS( OFFSET(raw!$A$1,2,MATCH(回答数!$A69,raw!$2:$2,0)-1,COUNTA(raw!$A:$A)-1,1),回答数!$B69, OFFSET(raw!$A$1,2,MATCH($D$1,raw!$2:$2,0)-1,COUNTA(raw!$A:$A)-1,1),D$2) -> 4 | E69: =COUNTIFS( OFFSET(raw!$A$1,2,MATCH(回答数!$A69,raw!$2:$2,0)-1,COUNTA(raw!$A:$A)-1,1),回答数!$B69, OFFSET(raw!$A$1,2,MATCH($D$1,raw!$2:$2,0)-1,COUNTA(raw!$A:$A)-1,1),E$2) -> 41 | F69: =COUNTIFS( OFFSET(raw!$A$1,2,MATCH(回答数!$A69,raw!$2:$2,0)-1,COUNTA(raw!$A:$A)-1,1),回答数!$B69, OFFSET(raw!$A$1,2,MATCH($D$1,raw!$2:$2,0)-1,COUNTA(raw!$A:$A)-1,1),F$2) -> 36 | G69: =COUNTIFS( OFFSET(raw!$A$1,2,MATCH(回答数!$A69,raw!$2:$2,0)-1,COUNTA(raw!$A:$A)-1,1),回答数!$B69, OFFSET(raw!$A$1,2,MATCH($D$1,raw!$2:$2,0)-1,COUNTA(raw!$A:$A)-1,1),G$2) -> 40 | H69: =COUNTIFS( OFFSET(raw!$A$1,2,MATCH(回答数!$A69,raw!$2:$2,0)-1,COUNTA(raw!$A:$A)-1,1),回答数!$B69, OFFSET(raw!$A$1,2,MATCH($D$1,raw!$2:$2,0)-1,COUNTA(raw!$A:$A)-1,1),H$2) -> 29 | I69: =COUNTIFS( OFFSET(raw!$A$1,2,MATCH(回答数!$A69,raw!$2:$2,0)-1,COUNTA(raw!$A:$A)-1,1),回答数!$B69, OFFSET(raw!$A$1,2,MATCH($D$1,raw!$2:$2,0)-1,COUNTA(raw!$A:$A)-1,1),I$2) -> 18 | J69: =COUNTIFS( OFFSET(raw!$A$1,2,MATCH(回答数!$A69,raw!$2:$2,0)-1,COUNTA(raw!$A:$A)-1,1),回答数!$B69, OFFSET(raw!$A$1,2,MATCH($D$1,raw!$2:$2,0)-1,COUNTA(raw!$A:$A)-1,1),J$2) -> 29 | K69: =COUNTIFS( OFFSET(raw!$A$1,2,MATCH(回答数!$A69,raw!$2:$2,0)-1,COUNTA(raw!$A:$A)-1,1),回答数!$B69, OFFSET(raw!$A$1,2,MATCH($D$1,raw!$2:$2,0)-1,COUNTA(raw!$A:$A)-1,1),K$2) -> 46 | L69: =COUNTIFS( OFFSET(raw!$A$1,2,MATCH(回答数!$A69,raw!$2:$2,0)-1,COUNTA(raw!$A:$A)-1,1),回答数!$B69, OFFSET(raw!$A$1,2,MATCH($D$1,raw!$2:$2,0)-1,COUNTA(raw!$A:$A)-1,1),L$2) -> 37 | M69: =COUNTIFS( OFFSET(raw!$A$1,2,MATCH(回答数!$A69,raw!$2:$2,0)-1,COUNTA(raw!$A:$A)-1,1),回答数!$B69, OFFSET(raw!$A$1,2,MATCH($D$1,raw!$2:$2,0)-1,COUNTA(raw!$A:$A)-1,1),M$2) -> 18 | N69: =COUNTIFS( OFFSET(raw!$A$1,2,MATCH(回答数!$A69,raw!$2:$2,0)-1,COUNTA(raw!$A:$A)-1,1),回答数!$B69, OFFSET(raw!$A$1,2,MATCH($D$1,raw!$2:$2,0)-1,COUNTA(raw!$A:$A)-1,1),N$2) -> 24 | O69: =COUNTIFS( OFFSET(raw!$A$1,2,MATCH(回答数!$A69,raw!$2:$2,0)-1,COUNTA(raw!$A:$A)-1,1),回答数!$B69, OFFSET(raw!$A$1,2,MATCH($D$1,raw!$2:$2,0)-1,COUNTA(raw!$A:$A)-1,1),O$2) -> 67 | P69: 389
A70: 回答エリア | B70: 敦賀市立博物館 エリア | D70: =COUNTIFS( OFFSET(raw!$A$1,2,MATCH(回答数!$A70,raw!$2:$2,0)-1,COUNTA(raw!$A:$A)-1,1),回答数!$B70, OFFSET(raw!$A$1,2,MATCH($D$1,raw!$2:$2,0)-1,COUNTA(raw!$A:$A)-1,1),D$2) -> 2 | E70: =COUNTIFS( OFFSET(raw!$A$1,2,MATCH(回答数!$A70,raw!$2:$2,0)-1,COUNTA(raw!$A:$A)-1,1),回答数!$B70, OFFSET(raw!$A$1,2,MATCH($D$1,raw!$2:$2,0)-1,COUNTA(raw!$A:$A)-1,1),E$2) -> 11 | F70: =COUNTIFS( OFFSET(raw!$A$1,2,MATCH(回答数!$A70,raw!$2:$2,0)-1,COUNTA(raw!$A:$A)-1,1),回答数!$B70, OFFSET(raw!$A$1,2,MATCH($D$1,raw!$2:$2,0)-1,COUNTA(raw!$A:$A)-1,1),F$2) -> 14 | G70: =COUNTIFS( OFFSET(raw!$A$1,2,MATCH(回答数!$A70,raw!$2:$2,0)-1,COUNTA(raw!$A:$A)-1,1),回答数!$B70, OFFSET(raw!$A$1,2,MATCH($D$1,raw!$2:$2,0)-1,COUNTA(raw!$A:$A)-1,1),G$2) -> 19 | H70: =COUNTIFS( OFFSET(raw!$A$1,2,MATCH(回答数!$A70,raw!$2:$2,0)-1,COUNTA(raw!$A:$A)-1,1),回答数!$B70, OFFSET(raw!$A$1,2,MATCH($D$1,raw!$2:$2,0)-1,COUNTA(raw!$A:$A)-1,1),H$2) -> 7 | I70: =COUNTIFS( OFFSET(raw!$A$1,2,MATCH(回答数!$A70,raw!$2:$2,0)-1,COUNTA(raw!$A:$A)-1,1),回答数!$B70, OFFSET(raw!$A$1,2,MATCH($D$1,raw!$2:$2,0)-1,COUNTA(raw!$A:$A)-1,1),I$2) -> 2 | J70: =COUNTIFS( OFFSET(raw!$A$1,2,MATCH(回答数!$A70,raw!$2:$2,0)-1,COUNTA(raw!$A:$A)-1,1),回答数!$B70, OFFSET(raw!$A$1,2,MATCH($D$1,raw!$2:$2,0)-1,COUNTA(raw!$A:$A)-1,1),J$2) -> 5 | K70: =COUNTIFS( OFFSET(raw!$A$1,2,MATCH(回答数!$A70,raw!$2:$2,0)-1,COUNTA(raw!$A:$A)-1,1),回答数!$B70, OFFSET(raw!$A$1,2,MATCH($D$1,raw!$2:$2,0)-1,COUNTA(raw!$A:$A)-1,1),K$2) -> 7 | L70: =COUNTIFS( OFFSET(raw!$A$1,2,MATCH(回答数!$A70,raw!$2:$2,0)-1,COUNTA(raw!$A:$A)-1,1),回答数!$B70, OFFSET(raw!$A$1,2,MATCH($D$1,raw!$2:$2,0)-1,COUNTA(raw!$A:$A)-1,1),L$2) -> 10 | M70: =COUNTIFS( OFFSET(raw!$A$1,2,MATCH(回答数!$A70,raw!$2:$2,0)-1,COUNTA(raw!$A:$A)-1,1),回答数!$B70, OFFSET(raw!$A$1,2,MATCH($D$1,raw!$2:$2,0)-1,COUNTA(raw!$A:$A)-1,1),M$2) -> 3 | N70: =COUNTIFS( OFFSET(raw!$A$1,2,MATCH(回答数!$A70,raw!$2:$2,0)-1,COUNTA(raw!$A:$A)-1,1),回答数!$B70, OFFSET(raw!$A$1,2,MATCH($D$1,raw!$2:$2,0)-1,COUNTA(raw!$A:$A)-1,1),N$2) -> 6 | O70: =COUNTIFS( OFFSET(raw!$A$1,2,MATCH(回答数!$A70,raw!$2:$2,0)-1,COUNTA(raw!$A:$A)-1,1),回答数!$B70, OFFSET(raw!$A$1,2,MATCH($D$1,raw!$2:$2,0)-1,COUNTA(raw!$A:$A)-1,1),O$2) -> 20 | P70: =D70+E70+F70+G70+H70+I70+J70+K70+L70+M70+N70+O70 -> 106
A71: 回答エリア | B71: 水島 エリア | D71: =COUNTIFS( OFFSET(raw!$A$1,2,MATCH(回答数!$A71,raw!$2:$2,0)-1,COUNTA(raw!$A:$A)-1,1),回答数!$B71, OFFSET(raw!$A$1,2,MATCH($D$1,raw!$2:$2,0)-1,COUNTA(raw!$A:$A)-1,1),D$2) -> 0 | E71: =COUNTIFS( OFFSET(raw!$A$1,2,MATCH(回答数!$A71,raw!$2:$2,0)-1,COUNTA(raw!$A:$A)-1,1),回答数!$B71, OFFSET(raw!$A$1,2,MATCH($D$1,raw!$2:$2,0)-1,COUNTA(raw!$A:$A)-1,1),E$2) -> 3 | F71: =COUNTIFS( OFFSET(raw!$A$1,2,MATCH(回答数!$A71,raw!$2:$2,0)-1,COUNTA(raw!$A:$A)-1,1),回答数!$B71, OFFSET(raw!$A$1,2,MATCH($D$1,raw!$2:$2,0)-1,COUNTA(raw!$A:$A)-1,1),F$2) -> 0 | G71: =COUNTIFS( OFFSET(raw!$A$1,2,MATCH(回答数!$A71,raw!$2:$2,0)-1,COUNTA(raw!$A:$A)-1,1),回答数!$B71, OFFSET(raw!$A$1,2,MATCH($D$1,raw!$2:$2,0)-1,COUNTA(raw!$A:$A)-1,1),G$2) -> 4 | H71: =COUNTIFS( OFFSET(raw!$A$1,2,MATCH(回答数!$A71,raw!$2:$2,0)-1,COUNTA(raw!$A:$A)-1,1),回答数!$B71, OFFSET(raw!$A$1,2,MATCH($D$1,raw!$2:$2,0)-1,COUNTA(raw!$A:$A)-1,1),H$2) -> 4 | I71: =COUNTIFS( OFFSET(raw!$A$1,2,MATCH(回答数!$A71,raw!$2:$2,0)-1,COUNTA(raw!$A:$A)-1,1),回答数!$B71, OFFSET(raw!$A$1,2,MATCH($D$1,raw!$2:$2,0)-1,COUNTA(raw!$A:$A)-1,1),I$2) -> 0 | J71: =COUNTIFS( OFFSET(raw!$A$1,2,MATCH(回答数!$A71,raw!$2:$2,0)-1,COUNTA(raw!$A:$A)-1,1),回答数!$B71, OFFSET(raw!$A$1,2,MATCH($D$1,raw!$2:$2,0)-1,COUNTA(raw!$A:$A)-1,1),J$2) -> 0 | K71: =COUNTIFS( OFFSET(raw!$A$1,2,MATCH(回答数!$A71,raw!$2:$2,0)-1,COUNTA(raw!$A:$A)-1,1),回答数!$B71, OFFSET(raw!$A$1,2,MATCH($D$1,raw!$2:$2,0)-1,COUNTA(raw!$A:$A)-1,1),K$2) -> 1 | L71: =COUNTIFS( OFFSET(raw!$A$1,2,MATCH(回答数!$A71,raw!$2:$2,0)-1,COUNTA(raw!$A:$A)-1,1),回答数!$B71, OFFSET(raw!$A$1,2,MATCH($D$1,raw!$2:$2,0)-1,COUNTA(raw!$A:$A)-1,1),L$2) -> 2 | M71: =COUNTIFS( OFFSET(raw!$A$1,2,MATCH(回答数!$A71,raw!$2:$2,0)-1,COUNTA(raw!$A:$A)-1,1),回答数!$B71, OFFSET(raw!$A$1,2,MATCH($D$1,raw!$2:$2,0)-1,COUNTA(raw!$A:$A)-1,1),M$2) -> 0 | N71: =COUNTIFS( OFFSET(raw!$A$1,2,MATCH(回答数!$A71,raw!$2:$2,0)-1,COUNTA(raw!$A:$A)-1,1),回答数!$B71, OFFSET(raw!$A$1,2,MATCH($D$1,raw!$2:$2,0)-1,COUNTA(raw!$A:$A)-1,1),N$2) -> 1 | O71: =COUNTIFS( OFFSET(raw!$A$1,2,MATCH(回答数!$A71,raw!$2:$2,0)-1,COUNTA(raw!$A:$A)-1,1),回答数!$B71, OFFSET(raw!$A$1,2,MATCH($D$1,raw!$2:$2,0)-1,COUNTA(raw!$A:$A)-1,1),O$2) -> 2 | P71: 17
A72: 回答エリア | B72: 小浜市 阿納 エリア | D72: =COUNTIFS( OFFSET(raw!$A$1,2,MATCH(回答数!$A72,raw!$2:$2,0)-1,COUNTA(raw!$A:$A)-1,1),回答数!$B72, OFFSET(raw!$A$1,2,MATCH($D$1,raw!$2:$2,0)-1,COUNTA(raw!$A:$A)-1,1),D$2) -> 0 | E72: =COUNTIFS( OFFSET(raw!$A$1,2,MATCH(回答数!$A72,raw!$2:$2,0)-1,COUNTA(raw!$A:$A)-1,1),回答数!$B72, OFFSET(raw!$A$1,2,MATCH($D$1,raw!$2:$2,0)-1,COUNTA(raw!$A:$A)-1,1),E$2) -> 15 | F72: =COUNTIFS( OFFSET(raw!$A$1,2,MATCH(回答数!$A72,raw!$2:$2,0)-1,COUNTA(raw!$A:$A)-1,1),回答数!$B72, OFFSET(raw!$A$1,2,MATCH($D$1,raw!$2:$2,0)-1,COUNTA(raw!$A:$A)-1,1),F$2) -> 6 | G72: =COUNTIFS( OFFSET(raw!$A$1,2,MATCH(回答数!$A72,raw!$2:$2,0)-1,COUNTA(raw!$A:$A)-1,1),回答数!$B72, OFFSET(raw!$A$1,2,MATCH($D$1,raw!$2:$2,0)-1,COUNTA(raw!$A:$A)-1,1),G$2) -> 10 | H72: =COUNTIFS( OFFSET(raw!$A$1,2,MATCH(回答数!$A72,raw!$2:$2,0)-1,COUNTA(raw!$A:$A)-1,1),回答数!$B72, OFFSET(raw!$A$1,2,MATCH($D$1,raw!$2:$2,0)-1,COUNTA(raw!$A:$A)-1,1),H$2) -> 16 | I72: =COUNTIFS( OFFSET(raw!$A$1,2,MATCH(回答数!$A72,raw!$2:$2,0)-1,COUNTA(raw!$A:$A)-1,1),回答数!$B72, OFFSET(raw!$A$1,2,MATCH($D$1,raw!$2:$2,0)-1,COUNTA(raw!$A:$A)-1,1),I$2) -> 8 | J72: =COUNTIFS( OFFSET(raw!$A$1,2,MATCH(回答数!$A72,raw!$2:$2,0)-1,COUNTA(raw!$A:$A)-1,1),回答数!$B72, OFFSET(raw!$A$1,2,MATCH($D$1,raw!$2:$2,0)-1,COUNTA(raw!$A:$A)-1,1),J$2) -> 16 | K72: =COUNTIFS( OFFSET(raw!$A$1,2,MATCH(回答数!$A72,raw!$2:$2,0)-1,COUNTA(raw!$A:$A)-1,1),回答数!$B72, OFFSET(raw!$A$1,2,MATCH($D$1,raw!$2:$2,0)-1,COUNTA(raw!$A:$A)-1,1),K$2) -> 42 | L72: =COUNTIFS( OFFSET(raw!$A$1,2,MATCH(回答数!$A72,raw!$2:$2,0)-1,COUNTA(raw!$A:$A)-1,1),回答数!$B72, OFFSET(raw!$A$1,2,MATCH($D$1,raw!$2:$2,0)-1,COUNTA(raw!$A:$A)-1,1),L$2) -> 22 | M72: =COUNTIFS( OFFSET(raw!$A$1,2,MATCH(回答数!$A72,raw!$2:$2,0)-1,COUNTA(raw!$A:$A)-1,1),回答数!$B72, OFFSET(raw!$A$1,2,MATCH($D$1,raw!$2:$2,0)-1,COUNTA(raw!$A:$A)-1,1),M$2) -> 15 | N72: =COUNTIFS( OFFSET(raw!$A$1,2,MATCH(回答数!$A72,raw!$2:$2,0)-1,COUNTA(raw!$A:$A)-1,1),回答数!$B72, OFFSET(raw!$A$1,2,MATCH($D$1,raw!$2:$2,0)-1,COUNTA(raw!$A:$A)-1,1),N$2) -> 22 | O72: =COUNTIFS( OFFSET(raw!$A$1,2,MATCH(回答数!$A72,raw!$2:$2,0)-1,COUNTA(raw!$A:$A)-1,1),回答数!$B72, OFFSET(raw!$A$1,2,MATCH($D$1,raw!$2:$2,0)-1,COUNTA(raw!$A:$A)-1,1),O$2) -> 33 | P72: 205
A73: 回答エリア | B73: 道の駅「若狭おばま」 エリア | D73: =COUNTIFS( OFFSET(raw!$A$1,2,MATCH(回答数!$A73,raw!$2:$2,0)-1,COUNTA(raw!$A:$A)-1,1),回答数!$B73, OFFSET(raw!$A$1,2,MATCH($D$1,raw!$2:$2,0)-1,COUNTA(raw!$A:$A)-1,1),D$2) -> 0 | E73: =COUNTIFS( OFFSET(raw!$A$1,2,MATCH(回答数!$A73,raw!$2:$2,0)-1,COUNTA(raw!$A:$A)-1,1),回答数!$B73, OFFSET(raw!$A$1,2,MATCH($D$1,raw!$2:$2,0)-1,COUNTA(raw!$A:$A)-1,1),E$2) -> 27 | F73: =COUNTIFS( OFFSET(raw!$A$1,2,MATCH(回答数!$A73,raw!$2:$2,0)-1,COUNTA(raw!$A:$A)-1,1),回答数!$B73, OFFSET(raw!$A$1,2,MATCH($D$1,raw!$2:$2,0)-1,COUNTA(raw!$A:$A)-1,1),F$2) -> 30 | G73: =COUNTIFS( OFFSET(raw!$A$1,2,MATCH(回答数!$A73,raw!$2:$2,0)-1,COUNTA(raw!$A:$A)-1,1),回答数!$B73, OFFSET(raw!$A$1,2,MATCH($D$1,raw!$2:$2,0)-1,COUNTA(raw!$A:$A)-1,1),G$2) -> 31 | H73: =COUNTIFS( OFFSET(raw!$A$1,2,MATCH(回答数!$A73,raw!$2:$2,0)-1,COUNTA(raw!$A:$A)-1,1),回答数!$B73, OFFSET(raw!$A$1,2,MATCH($D$1,raw!$2:$2,0)-1,COUNTA(raw!$A:$A)-1,1),H$2) -> 19 | I73: =COUNTIFS( OFFSET(raw!$A$1,2,MATCH(回答数!$A73,raw!$2:$2,0)-1,COUNTA(raw!$A:$A)-1,1),回答数!$B73, OFFSET(raw!$A$1,2,MATCH($D$1,raw!$2:$2,0)-1,COUNTA(raw!$A:$A)-1,1),I$2) -> 17 | J73: =COUNTIFS( OFFSET(raw!$A$1,2,MATCH(回答数!$A73,raw!$2:$2,0)-1,COUNTA(raw!$A:$A)-1,1),回答数!$B73, OFFSET(raw!$A$1,2,MATCH($D$1,raw!$2:$2,0)-1,COUNTA(raw!$A:$A)-1,1),J$2) -> 12 | K73: =COUNTIFS( OFFSET(raw!$A$1,2,MATCH(回答数!$A73,raw!$2:$2,0)-1,COUNTA(raw!$A:$A)-1,1),回答数!$B73, OFFSET(raw!$A$1,2,MATCH($D$1,raw!$2:$2,0)-1,COUNTA(raw!$A:$A)-1,1),K$2) -> 22 | L73: =COUNTIFS( OFFSET(raw!$A$1,2,MATCH(回答数!$A73,raw!$2:$2,0)-1,COUNTA(raw!$A:$A)-1,1),回答数!$B73, OFFSET(raw!$A$1,2,MATCH($D$1,raw!$2:$2,0)-1,COUNTA(raw!$A:$A)-1,1),L$2) -> 35 | M73: =COUNTIFS( OFFSET(raw!$A$1,2,MATCH(回答数!$A73,raw!$2:$2,0)-1,COUNTA(raw!$A:$A)-1,1),回答数!$B73, OFFSET(raw!$A$1,2,MATCH($D$1,raw!$2:$2,0)-1,COUNTA(raw!$A:$A)-1,1),M$2) -> 23 | N73: =COUNTIFS( OFFSET(raw!$A$1,2,MATCH(回答数!$A73,raw!$2:$2,0)-1,COUNTA(raw!$A:$A)-1,1),回答数!$B73, OFFSET(raw!$A$1,2,MATCH($D$1,raw!$2:$2,0)-1,COUNTA(raw!$A:$A)-1,1),N$2) -> 11 | O73: =COUNTIFS( OFFSET(raw!$A$1,2,MATCH(回答数!$A73,raw!$2:$2,0)-1,COUNTA(raw!$A:$A)-1,1),回答数!$B73, OFFSET(raw!$A$1,2,MATCH($D$1,raw!$2:$2,0)-1,COUNTA(raw!$A:$A)-1,1),O$2) -> 59 | P73: 286
A74: 回答エリア | B74: 小浜 エリア（宿泊施設） | D74: =COUNTIFS( OFFSET(raw!$A$1,2,MATCH(回答数!$A74,raw!$2:$2,0)-1,COUNTA(raw!$A:$A)-1,1),回答数!$B74, OFFSET(raw!$A$1,2,MATCH($D$1,raw!$2:$2,0)-1,COUNTA(raw!$A:$A)-1,1),D$2) -> 1 | E74: =COUNTIFS( OFFSET(raw!$A$1,2,MATCH(回答数!$A74,raw!$2:$2,0)-1,COUNTA(raw!$A:$A)-1,1),回答数!$B74, OFFSET(raw!$A$1,2,MATCH($D$1,raw!$2:$2,0)-1,COUNTA(raw!$A:$A)-1,1),E$2) -> 24 | F74: =COUNTIFS( OFFSET(raw!$A$1,2,MATCH(回答数!$A74,raw!$2:$2,0)-1,COUNTA(raw!$A:$A)-1,1),回答数!$B74, OFFSET(raw!$A$1,2,MATCH($D$1,raw!$2:$2,0)-1,COUNTA(raw!$A:$A)-1,1),F$2) -> 9 | G74: =COUNTIFS( OFFSET(raw!$A$1,2,MATCH(回答数!$A74,raw!$2:$2,0)-1,COUNTA(raw!$A:$A)-1,1),回答数!$B74, OFFSET(raw!$A$1,2,MATCH($D$1,raw!$2:$2,0)-1,COUNTA(raw!$A:$A)-1,1),G$2) -> 27 | H74: =COUNTIFS( OFFSET(raw!$A$1,2,MATCH(回答数!$A74,raw!$2:$2,0)-1,COUNTA(raw!$A:$A)-1,1),回答数!$B74, OFFSET(raw!$A$1,2,MATCH($D$1,raw!$2:$2,0)-1,COUNTA(raw!$A:$A)-1,1),H$2) -> 24 | I74: =COUNTIFS( OFFSET(raw!$A$1,2,MATCH(回答数!$A74,raw!$2:$2,0)-1,COUNTA(raw!$A:$A)-1,1),回答数!$B74, OFFSET(raw!$A$1,2,MATCH($D$1,raw!$2:$2,0)-1,COUNTA(raw!$A:$A)-1,1),I$2) -> 14 | J74: =COUNTIFS( OFFSET(raw!$A$1,2,MATCH(回答数!$A74,raw!$2:$2,0)-1,COUNTA(raw!$A:$A)-1,1),回答数!$B74, OFFSET(raw!$A$1,2,MATCH($D$1,raw!$2:$2,0)-1,COUNTA(raw!$A:$A)-1,1),J$2) -> 10 | K74: =COUNTIFS( OFFSET(raw!$A$1,2,MATCH(回答数!$A74,raw!$2:$2,0)-1,COUNTA(raw!$A:$A)-1,1),回答数!$B74, OFFSET(raw!$A$1,2,MATCH($D$1,raw!$2:$2,0)-1,COUNTA(raw!$A:$A)-1,1),K$2) -> 29 | L74: =COUNTIFS( OFFSET(raw!$A$1,2,MATCH(回答数!$A74,raw!$2:$2,0)-1,COUNTA(raw!$A:$A)-1,1),回答数!$B74, OFFSET(raw!$A$1,2,MATCH($D$1,raw!$2:$2,0)-1,COUNTA(raw!$A:$A)-1,1),L$2) -> 17 | M74: =COUNTIFS( OFFSET(raw!$A$1,2,MATCH(回答数!$A74,raw!$2:$2,0)-1,COUNTA(raw!$A:$A)-1,1),回答数!$B74, OFFSET(raw!$A$1,2,MATCH($D$1,raw!$2:$2,0)-1,COUNTA(raw!$A:$A)-1,1),M$2) -> 10 | N74: =COUNTIFS( OFFSET(raw!$A$1,2,MATCH(回答数!$A74,raw!$2:$2,0)-1,COUNTA(raw!$A:$A)-1,1),回答数!$B74, OFFSET(raw!$A$1,2,MATCH($D$1,raw!$2:$2,0)-1,COUNTA(raw!$A:$A)-1,1),N$2) -> 8 | O74: =COUNTIFS( OFFSET(raw!$A$1,2,MATCH(回答数!$A74,raw!$2:$2,0)-1,COUNTA(raw!$A:$A)-1,1),回答数!$B74, OFFSET(raw!$A$1,2,MATCH($D$1,raw!$2:$2,0)-1,COUNTA(raw!$A:$A)-1,1),O$2) -> 38 | P74: 211
A75: 回答エリア | B75: 若狭フィッシャーマンズワーフ エリア | D75: =COUNTIFS( OFFSET(raw!$A$1,2,MATCH(回答数!$A75,raw!$2:$2,0)-1,COUNTA(raw!$A:$A)-1,1),回答数!$B75, OFFSET(raw!$A$1,2,MATCH($D$1,raw!$2:$2,0)-1,COUNTA(raw!$A:$A)-1,1),D$2) -> 2 | E75: =COUNTIFS( OFFSET(raw!$A$1,2,MATCH(回答数!$A75,raw!$2:$2,0)-1,COUNTA(raw!$A:$A)-1,1),回答数!$B75, OFFSET(raw!$A$1,2,MATCH($D$1,raw!$2:$2,0)-1,COUNTA(raw!$A:$A)-1,1),E$2) -> 32 | F75: =COUNTIFS( OFFSET(raw!$A$1,2,MATCH(回答数!$A75,raw!$2:$2,0)-1,COUNTA(raw!$A:$A)-1,1),回答数!$B75, OFFSET(raw!$A$1,2,MATCH($D$1,raw!$2:$2,0)-1,COUNTA(raw!$A:$A)-1,1),F$2) -> 18 | G75: =COUNTIFS( OFFSET(raw!$A$1,2,MATCH(回答数!$A75,raw!$2:$2,0)-1,COUNTA(raw!$A:$A)-1,1),回答数!$B75, OFFSET(raw!$A$1,2,MATCH($D$1,raw!$2:$2,0)-1,COUNTA(raw!$A:$A)-1,1),G$2) -> 30 | H75: =COUNTIFS( OFFSET(raw!$A$1,2,MATCH(回答数!$A75,raw!$2:$2,0)-1,COUNTA(raw!$A:$A)-1,1),回答数!$B75, OFFSET(raw!$A$1,2,MATCH($D$1,raw!$2:$2,0)-1,COUNTA(raw!$A:$A)-1,1),H$2) -> 36 | I75: =COUNTIFS( OFFSET(raw!$A$1,2,MATCH(回答数!$A75,raw!$2:$2,0)-1,COUNTA(raw!$A:$A)-1,1),回答数!$B75, OFFSET(raw!$A$1,2,MATCH($D$1,raw!$2:$2,0)-1,COUNTA(raw!$A:$A)-1,1),I$2) -> 40 | J75: =COUNTIFS( OFFSET(raw!$A$1,2,MATCH(回答数!$A75,raw!$2:$2,0)-1,COUNTA(raw!$A:$A)-1,1),回答数!$B75, OFFSET(raw!$A$1,2,MATCH($D$1,raw!$2:$2,0)-1,COUNTA(raw!$A:$A)-1,1),J$2) -> 23 | K75: =COUNTIFS( OFFSET(raw!$A$1,2,MATCH(回答数!$A75,raw!$2:$2,0)-1,COUNTA(raw!$A:$A)-1,1),回答数!$B75, OFFSET(raw!$A$1,2,MATCH($D$1,raw!$2:$2,0)-1,COUNTA(raw!$A:$A)-1,1),K$2) -> 32 | L75: =COUNTIFS( OFFSET(raw!$A$1,2,MATCH(回答数!$A75,raw!$2:$2,0)-1,COUNTA(raw!$A:$A)-1,1),回答数!$B75, OFFSET(raw!$A$1,2,MATCH($D$1,raw!$2:$2,0)-1,COUNTA(raw!$A:$A)-1,1),L$2) -> 29 | M75: =COUNTIFS( OFFSET(raw!$A$1,2,MATCH(回答数!$A75,raw!$2:$2,0)-1,COUNTA(raw!$A:$A)-1,1),回答数!$B75, OFFSET(raw!$A$1,2,MATCH($D$1,raw!$2:$2,0)-1,COUNTA(raw!$A:$A)-1,1),M$2) -> 17 | N75: =COUNTIFS( OFFSET(raw!$A$1,2,MATCH(回答数!$A75,raw!$2:$2,0)-1,COUNTA(raw!$A:$A)-1,1),回答数!$B75, OFFSET(raw!$A$1,2,MATCH($D$1,raw!$2:$2,0)-1,COUNTA(raw!$A:$A)-1,1),N$2) -> 14 | O75: =COUNTIFS( OFFSET(raw!$A$1,2,MATCH(回答数!$A75,raw!$2:$2,0)-1,COUNTA(raw!$A:$A)-1,1),回答数!$B75, OFFSET(raw!$A$1,2,MATCH($D$1,raw!$2:$2,0)-1,COUNTA(raw!$A:$A)-1,1),O$2) -> 29 | P75: 302
A76: 回答エリア | B76: 御食国若狭おばま食文化館 エリア | D76: =COUNTIFS( OFFSET(raw!$A$1,2,MATCH(回答数!$A76,raw!$2:$2,0)-1,COUNTA(raw!$A:$A)-1,1),回答数!$B76, OFFSET(raw!$A$1,2,MATCH($D$1,raw!$2:$2,0)-1,COUNTA(raw!$A:$A)-1,1),D$2) -> 2 | E76: =COUNTIFS( OFFSET(raw!$A$1,2,MATCH(回答数!$A76,raw!$2:$2,0)-1,COUNTA(raw!$A:$A)-1,1),回答数!$B76, OFFSET(raw!$A$1,2,MATCH($D$1,raw!$2:$2,0)-1,COUNTA(raw!$A:$A)-1,1),E$2) -> 25 | F76: =COUNTIFS( OFFSET(raw!$A$1,2,MATCH(回答数!$A76,raw!$2:$2,0)-1,COUNTA(raw!$A:$A)-1,1),回答数!$B76, OFFSET(raw!$A$1,2,MATCH($D$1,raw!$2:$2,0)-1,COUNTA(raw!$A:$A)-1,1),F$2) -> 18 | G76: =COUNTIFS( OFFSET(raw!$A$1,2,MATCH(回答数!$A76,raw!$2:$2,0)-1,COUNTA(raw!$A:$A)-1,1),回答数!$B76, OFFSET(raw!$A$1,2,MATCH($D$1,raw!$2:$2,0)-1,COUNTA(raw!$A:$A)-1,1),G$2) -> 25 | H76: =COUNTIFS( OFFSET(raw!$A$1,2,MATCH(回答数!$A76,raw!$2:$2,0)-1,COUNTA(raw!$A:$A)-1,1),回答数!$B76, OFFSET(raw!$A$1,2,MATCH($D$1,raw!$2:$2,0)-1,COUNTA(raw!$A:$A)-1,1),H$2) -> 26 | I76: =COUNTIFS( OFFSET(raw!$A$1,2,MATCH(回答数!$A76,raw!$2:$2,0)-1,COUNTA(raw!$A:$A)-1,1),回答数!$B76, OFFSET(raw!$A$1,2,MATCH($D$1,raw!$2:$2,0)-1,COUNTA(raw!$A:$A)-1,1),I$2) -> 20 | J76: =COUNTIFS( OFFSET(raw!$A$1,2,MATCH(回答数!$A76,raw!$2:$2,0)-1,COUNTA(raw!$A:$A)-1,1),回答数!$B76, OFFSET(raw!$A$1,2,MATCH($D$1,raw!$2:$2,0)-1,COUNTA(raw!$A:$A)-1,1),J$2) -> 10 | K76: =COUNTIFS( OFFSET(raw!$A$1,2,MATCH(回答数!$A76,raw!$2:$2,0)-1,COUNTA(raw!$A:$A)-1,1),回答数!$B76, OFFSET(raw!$A$1,2,MATCH($D$1,raw!$2:$2,0)-1,COUNTA(raw!$A:$A)-1,1),K$2) -> 15 | L76: =COUNTIFS( OFFSET(raw!$A$1,2,MATCH(回答数!$A76,raw!$2:$2,0)-1,COUNTA(raw!$A:$A)-1,1),回答数!$B76, OFFSET(raw!$A$1,2,MATCH($D$1,raw!$2:$2,0)-1,COUNTA(raw!$A:$A)-1,1),L$2) -> 10 | M76: =COUNTIFS( OFFSET(raw!$A$1,2,MATCH(回答数!$A76,raw!$2:$2,0)-1,COUNTA(raw!$A:$A)-1,1),回答数!$B76, OFFSET(raw!$A$1,2,MATCH($D$1,raw!$2:$2,0)-1,COUNTA(raw!$A:$A)-1,1),M$2) -> 4 | N76: =COUNTIFS( OFFSET(raw!$A$1,2,MATCH(回答数!$A76,raw!$2:$2,0)-1,COUNTA(raw!$A:$A)-1,1),回答数!$B76, OFFSET(raw!$A$1,2,MATCH($D$1,raw!$2:$2,0)-1,COUNTA(raw!$A:$A)-1,1),N$2) -> 8 | O76: =COUNTIFS( OFFSET(raw!$A$1,2,MATCH(回答数!$A76,raw!$2:$2,0)-1,COUNTA(raw!$A:$A)-1,1),回答数!$B76, OFFSET(raw!$A$1,2,MATCH($D$1,raw!$2:$2,0)-1,COUNTA(raw!$A:$A)-1,1),O$2) -> 17 | P76: 180
A77: 回答エリア | B77: 小浜市まちの駅 エリア | D77: =COUNTIFS( OFFSET(raw!$A$1,2,MATCH(回答数!$A77,raw!$2:$2,0)-1,COUNTA(raw!$A:$A)-1,1),回答数!$B77, OFFSET(raw!$A$1,2,MATCH($D$1,raw!$2:$2,0)-1,COUNTA(raw!$A:$A)-1,1),D$2) -> 0 | E77: =COUNTIFS( OFFSET(raw!$A$1,2,MATCH(回答数!$A77,raw!$2:$2,0)-1,COUNTA(raw!$A:$A)-1,1),回答数!$B77, OFFSET(raw!$A$1,2,MATCH($D$1,raw!$2:$2,0)-1,COUNTA(raw!$A:$A)-1,1),E$2) -> 4 | F77: =COUNTIFS( OFFSET(raw!$A$1,2,MATCH(回答数!$A77,raw!$2:$2,0)-1,COUNTA(raw!$A:$A)-1,1),回答数!$B77, OFFSET(raw!$A$1,2,MATCH($D$1,raw!$2:$2,0)-1,COUNTA(raw!$A:$A)-1,1),F$2) -> 3 | G77: =COUNTIFS( OFFSET(raw!$A$1,2,MATCH(回答数!$A77,raw!$2:$2,0)-1,COUNTA(raw!$A:$A)-1,1),回答数!$B77, OFFSET(raw!$A$1,2,MATCH($D$1,raw!$2:$2,0)-1,COUNTA(raw!$A:$A)-1,1),G$2) -> 5 | H77: =COUNTIFS( OFFSET(raw!$A$1,2,MATCH(回答数!$A77,raw!$2:$2,0)-1,COUNTA(raw!$A:$A)-1,1),回答数!$B77, OFFSET(raw!$A$1,2,MATCH($D$1,raw!$2:$2,0)-1,COUNTA(raw!$A:$A)-1,1),H$2) -> 13 | I77: =COUNTIFS( OFFSET(raw!$A$1,2,MATCH(回答数!$A77,raw!$2:$2,0)-1,COUNTA(raw!$A:$A)-1,1),回答数!$B77, OFFSET(raw!$A$1,2,MATCH($D$1,raw!$2:$2,0)-1,COUNTA(raw!$A:$A)-1,1),I$2) -> 11 | J77: =COUNTIFS( OFFSET(raw!$A$1,2,MATCH(回答数!$A77,raw!$2:$2,0)-1,COUNTA(raw!$A:$A)-1,1),回答数!$B77, OFFSET(raw!$A$1,2,MATCH($D$1,raw!$2:$2,0)-1,COUNTA(raw!$A:$A)-1,1),J$2) -> 8 | K77: =COUNTIFS( OFFSET(raw!$A$1,2,MATCH(回答数!$A77,raw!$2:$2,0)-1,COUNTA(raw!$A:$A)-1,1),回答数!$B77, OFFSET(raw!$A$1,2,MATCH($D$1,raw!$2:$2,0)-1,COUNTA(raw!$A:$A)-1,1),K$2) -> 6 | L77: =COUNTIFS( OFFSET(raw!$A$1,2,MATCH(回答数!$A77,raw!$2:$2,0)-1,COUNTA(raw!$A:$A)-1,1),回答数!$B77, OFFSET(raw!$A$1,2,MATCH($D$1,raw!$2:$2,0)-1,COUNTA(raw!$A:$A)-1,1),L$2) -> 7 | M77: =COUNTIFS( OFFSET(raw!$A$1,2,MATCH(回答数!$A77,raw!$2:$2,0)-1,COUNTA(raw!$A:$A)-1,1),回答数!$B77, OFFSET(raw!$A$1,2,MATCH($D$1,raw!$2:$2,0)-1,COUNTA(raw!$A:$A)-1,1),M$2) -> 6 | N77: =COUNTIFS( OFFSET(raw!$A$1,2,MATCH(回答数!$A77,raw!$2:$2,0)-1,COUNTA(raw!$A:$A)-1,1),回答数!$B77, OFFSET(raw!$A$1,2,MATCH($D$1,raw!$2:$2,0)-1,COUNTA(raw!$A:$A)-1,1),N$2) -> 2 | O77: =COUNTIFS( OFFSET(raw!$A$1,2,MATCH(回答数!$A77,raw!$2:$2,0)-1,COUNTA(raw!$A:$A)-1,1),回答数!$B77, OFFSET(raw!$A$1,2,MATCH($D$1,raw!$2:$2,0)-1,COUNTA(raw!$A:$A)-1,1),O$2) -> 9 | P77: 74
A78: 回答エリア | B78: 明通寺 エリア | D78: =COUNTIFS( OFFSET(raw!$A$1,2,MATCH(回答数!$A78,raw!$2:$2,0)-1,COUNTA(raw!$A:$A)-1,1),回答数!$B78, OFFSET(raw!$A$1,2,MATCH($D$1,raw!$2:$2,0)-1,COUNTA(raw!$A:$A)-1,1),D$2) -> 6 | E78: =COUNTIFS( OFFSET(raw!$A$1,2,MATCH(回答数!$A78,raw!$2:$2,0)-1,COUNTA(raw!$A:$A)-1,1),回答数!$B78, OFFSET(raw!$A$1,2,MATCH($D$1,raw!$2:$2,0)-1,COUNTA(raw!$A:$A)-1,1),E$2) -> 67 | F78: =COUNTIFS( OFFSET(raw!$A$1,2,MATCH(回答数!$A78,raw!$2:$2,0)-1,COUNTA(raw!$A:$A)-1,1),回答数!$B78, OFFSET(raw!$A$1,2,MATCH($D$1,raw!$2:$2,0)-1,COUNTA(raw!$A:$A)-1,1),F$2) -> 37 | G78: =COUNTIFS( OFFSET(raw!$A$1,2,MATCH(回答数!$A78,raw!$2:$2,0)-1,COUNTA(raw!$A:$A)-1,1),回答数!$B78, OFFSET(raw!$A$1,2,MATCH($D$1,raw!$2:$2,0)-1,COUNTA(raw!$A:$A)-1,1),G$2) -> 43 | H78: =COUNTIFS( OFFSET(raw!$A$1,2,MATCH(回答数!$A78,raw!$2:$2,0)-1,COUNTA(raw!$A:$A)-1,1),回答数!$B78, OFFSET(raw!$A$1,2,MATCH($D$1,raw!$2:$2,0)-1,COUNTA(raw!$A:$A)-1,1),H$2) -> 27 | I78: =COUNTIFS( OFFSET(raw!$A$1,2,MATCH(回答数!$A78,raw!$2:$2,0)-1,COUNTA(raw!$A:$A)-1,1),回答数!$B78, OFFSET(raw!$A$1,2,MATCH($D$1,raw!$2:$2,0)-1,COUNTA(raw!$A:$A)-1,1),I$2) -> 43 | J78: =COUNTIFS( OFFSET(raw!$A$1,2,MATCH(回答数!$A78,raw!$2:$2,0)-1,COUNTA(raw!$A:$A)-1,1),回答数!$B78, OFFSET(raw!$A$1,2,MATCH($D$1,raw!$2:$2,0)-1,COUNTA(raw!$A:$A)-1,1),J$2) -> 50 | K78: =COUNTIFS( OFFSET(raw!$A$1,2,MATCH(回答数!$A78,raw!$2:$2,0)-1,COUNTA(raw!$A:$A)-1,1),回答数!$B78, OFFSET(raw!$A$1,2,MATCH($D$1,raw!$2:$2,0)-1,COUNTA(raw!$A:$A)-1,1),K$2) -> 79 | L78: =COUNTIFS( OFFSET(raw!$A$1,2,MATCH(回答数!$A78,raw!$2:$2,0)-1,COUNTA(raw!$A:$A)-1,1),回答数!$B78, OFFSET(raw!$A$1,2,MATCH($D$1,raw!$2:$2,0)-1,COUNTA(raw!$A:$A)-1,1),L$2) -> 33 | M78: =COUNTIFS( OFFSET(raw!$A$1,2,MATCH(回答数!$A78,raw!$2:$2,0)-1,COUNTA(raw!$A:$A)-1,1),回答数!$B78, OFFSET(raw!$A$1,2,MATCH($D$1,raw!$2:$2,0)-1,COUNTA(raw!$A:$A)-1,1),M$2) -> 11 | N78: =COUNTIFS( OFFSET(raw!$A$1,2,MATCH(回答数!$A78,raw!$2:$2,0)-1,COUNTA(raw!$A:$A)-1,1),回答数!$B78, OFFSET(raw!$A$1,2,MATCH($D$1,raw!$2:$2,0)-1,COUNTA(raw!$A:$A)-1,1),N$2) -> 30 | O78: =COUNTIFS( OFFSET(raw!$A$1,2,MATCH(回答数!$A78,raw!$2:$2,0)-1,COUNTA(raw!$A:$A)-1,1),回答数!$B78, OFFSET(raw!$A$1,2,MATCH($D$1,raw!$2:$2,0)-1,COUNTA(raw!$A:$A)-1,1),O$2) -> 41 | P78: 467
A79: 回答エリア | B79: 箸のふるさと館WAKASA エリア | D79: =COUNTIFS( OFFSET(raw!$A$1,2,MATCH(回答数!$A79,raw!$2:$2,0)-1,COUNTA(raw!$A:$A)-1,1),回答数!$B79, OFFSET(raw!$A$1,2,MATCH($D$1,raw!$2:$2,0)-1,COUNTA(raw!$A:$A)-1,1),D$2) -> 0 | E79: =COUNTIFS( OFFSET(raw!$A$1,2,MATCH(回答数!$A79,raw!$2:$2,0)-1,COUNTA(raw!$A:$A)-1,1),回答数!$B79, OFFSET(raw!$A$1,2,MATCH($D$1,raw!$2:$2,0)-1,COUNTA(raw!$A:$A)-1,1),E$2) -> 9 | F79: =COUNTIFS( OFFSET(raw!$A$1,2,MATCH(回答数!$A79,raw!$2:$2,0)-1,COUNTA(raw!$A:$A)-1,1),回答数!$B79, OFFSET(raw!$A$1,2,MATCH($D$1,raw!$2:$2,0)-1,COUNTA(raw!$A:$A)-1,1),F$2) -> 3 | G79: =COUNTIFS( OFFSET(raw!$A$1,2,MATCH(回答数!$A79,raw!$2:$2,0)-1,COUNTA(raw!$A:$A)-1,1),回答数!$B79, OFFSET(raw!$A$1,2,MATCH($D$1,raw!$2:$2,0)-1,COUNTA(raw!$A:$A)-1,1),G$2) -> 6 | H79: =COUNTIFS( OFFSET(raw!$A$1,2,MATCH(回答数!$A79,raw!$2:$2,0)-1,COUNTA(raw!$A:$A)-1,1),回答数!$B79, OFFSET(raw!$A$1,2,MATCH($D$1,raw!$2:$2,0)-1,COUNTA(raw!$A:$A)-1,1),H$2) -> 22 | I79: =COUNTIFS( OFFSET(raw!$A$1,2,MATCH(回答数!$A79,raw!$2:$2,0)-1,COUNTA(raw!$A:$A)-1,1),回答数!$B79, OFFSET(raw!$A$1,2,MATCH($D$1,raw!$2:$2,0)-1,COUNTA(raw!$A:$A)-1,1),I$2) -> 12 | J79: =COUNTIFS( OFFSET(raw!$A$1,2,MATCH(回答数!$A79,raw!$2:$2,0)-1,COUNTA(raw!$A:$A)-1,1),回答数!$B79, OFFSET(raw!$A$1,2,MATCH($D$1,raw!$2:$2,0)-1,COUNTA(raw!$A:$A)-1,1),J$2) -> 5 | K79: =COUNTIFS( OFFSET(raw!$A$1,2,MATCH(回答数!$A79,raw!$2:$2,0)-1,COUNTA(raw!$A:$A)-1,1),回答数!$B79, OFFSET(raw!$A$1,2,MATCH($D$1,raw!$2:$2,0)-1,COUNTA(raw!$A:$A)-1,1),K$2) -> 9 | L79: =COUNTIFS( OFFSET(raw!$A$1,2,MATCH(回答数!$A79,raw!$2:$2,0)-1,COUNTA(raw!$A:$A)-1,1),回答数!$B79, OFFSET(raw!$A$1,2,MATCH($D$1,raw!$2:$2,0)-1,COUNTA(raw!$A:$A)-1,1),L$2) -> 2 | M79: =COUNTIFS( OFFSET(raw!$A$1,2,MATCH(回答数!$A79,raw!$2:$2,0)-1,COUNTA(raw!$A:$A)-1,1),回答数!$B79, OFFSET(raw!$A$1,2,MATCH($D$1,raw!$2:$2,0)-1,COUNTA(raw!$A:$A)-1,1),M$2) -> 1 | N79: =COUNTIFS( OFFSET(raw!$A$1,2,MATCH(回答数!$A79,raw!$2:$2,0)-1,COUNTA(raw!$A:$A)-1,1),回答数!$B79, OFFSET(raw!$A$1,2,MATCH($D$1,raw!$2:$2,0)-1,COUNTA(raw!$A:$A)-1,1),N$2) -> 2 | O79: =COUNTIFS( OFFSET(raw!$A$1,2,MATCH(回答数!$A79,raw!$2:$2,0)-1,COUNTA(raw!$A:$A)-1,1),回答数!$B79, OFFSET(raw!$A$1,2,MATCH($D$1,raw!$2:$2,0)-1,COUNTA(raw!$A:$A)-1,1),O$2) -> 1 | P79: 72
A80: 回答エリア | B80: 水晶浜 エリア | D80: =COUNTIFS( OFFSET(raw!$A$1,2,MATCH(回答数!$A80,raw!$2:$2,0)-1,COUNTA(raw!$A:$A)-1,1),回答数!$B80, OFFSET(raw!$A$1,2,MATCH($D$1,raw!$2:$2,0)-1,COUNTA(raw!$A:$A)-1,1),D$2) -> 0 | E80: =COUNTIFS( OFFSET(raw!$A$1,2,MATCH(回答数!$A80,raw!$2:$2,0)-1,COUNTA(raw!$A:$A)-1,1),回答数!$B80, OFFSET(raw!$A$1,2,MATCH($D$1,raw!$2:$2,0)-1,COUNTA(raw!$A:$A)-1,1),E$2) -> 0 | F80: =COUNTIFS( OFFSET(raw!$A$1,2,MATCH(回答数!$A80,raw!$2:$2,0)-1,COUNTA(raw!$A:$A)-1,1),回答数!$B80, OFFSET(raw!$A$1,2,MATCH($D$1,raw!$2:$2,0)-1,COUNTA(raw!$A:$A)-1,1),F$2) -> 5 | G80: =COUNTIFS( OFFSET(raw!$A$1,2,MATCH(回答数!$A80,raw!$2:$2,0)-1,COUNTA(raw!$A:$A)-1,1),回答数!$B80, OFFSET(raw!$A$1,2,MATCH($D$1,raw!$2:$2,0)-1,COUNTA(raw!$A:$A)-1,1),G$2) -> 15 | H80: =COUNTIFS( OFFSET(raw!$A$1,2,MATCH(回答数!$A80,raw!$2:$2,0)-1,COUNTA(raw!$A:$A)-1,1),回答数!$B80, OFFSET(raw!$A$1,2,MATCH($D$1,raw!$2:$2,0)-1,COUNTA(raw!$A:$A)-1,1),H$2) -> 27 | I80: =COUNTIFS( OFFSET(raw!$A$1,2,MATCH(回答数!$A80,raw!$2:$2,0)-1,COUNTA(raw!$A:$A)-1,1),回答数!$B80, OFFSET(raw!$A$1,2,MATCH($D$1,raw!$2:$2,0)-1,COUNTA(raw!$A:$A)-1,1),I$2) -> 2 | J80: =COUNTIFS( OFFSET(raw!$A$1,2,MATCH(回答数!$A80,raw!$2:$2,0)-1,COUNTA(raw!$A:$A)-1,1),回答数!$B80, OFFSET(raw!$A$1,2,MATCH($D$1,raw!$2:$2,0)-1,COUNTA(raw!$A:$A)-1,1),J$2) -> 5 | K80: =COUNTIFS( OFFSET(raw!$A$1,2,MATCH(回答数!$A80,raw!$2:$2,0)-1,COUNTA(raw!$A:$A)-1,1),回答数!$B80, OFFSET(raw!$A$1,2,MATCH($D$1,raw!$2:$2,0)-1,COUNTA(raw!$A:$A)-1,1),K$2) -> 15 | L80: =COUNTIFS( OFFSET(raw!$A$1,2,MATCH(回答数!$A80,raw!$2:$2,0)-1,COUNTA(raw!$A:$A)-1,1),回答数!$B80, OFFSET(raw!$A$1,2,MATCH($D$1,raw!$2:$2,0)-1,COUNTA(raw!$A:$A)-1,1),L$2) -> 5 | M80: =COUNTIFS( OFFSET(raw!$A$1,2,MATCH(回答数!$A80,raw!$2:$2,0)-1,COUNTA(raw!$A:$A)-1,1),回答数!$B80, OFFSET(raw!$A$1,2,MATCH($D$1,raw!$2:$2,0)-1,COUNTA(raw!$A:$A)-1,1),M$2) -> 5 | N80: =COUNTIFS( OFFSET(raw!$A$1,2,MATCH(回答数!$A80,raw!$2:$2,0)-1,COUNTA(raw!$A:$A)-1,1),回答数!$B80, OFFSET(raw!$A$1,2,MATCH($D$1,raw!$2:$2,0)-1,COUNTA(raw!$A:$A)-1,1),N$2) -> 10 | O80: =COUNTIFS( OFFSET(raw!$A$1,2,MATCH(回答数!$A80,raw!$2:$2,0)-1,COUNTA(raw!$A:$A)-1,1),回答数!$B80, OFFSET(raw!$A$1,2,MATCH($D$1,raw!$2:$2,0)-1,COUNTA(raw!$A:$A)-1,1),O$2) -> 24 | P80: 113
A81: 回答エリア | B81: 美浜町レイクセンター エリア | D81: =COUNTIFS( OFFSET(raw!$A$1,2,MATCH(回答数!$A81,raw!$2:$2,0)-1,COUNTA(raw!$A:$A)-1,1),回答数!$B81, OFFSET(raw!$A$1,2,MATCH($D$1,raw!$2:$2,0)-1,COUNTA(raw!$A:$A)-1,1),D$2) -> 0 | E81: =COUNTIFS( OFFSET(raw!$A$1,2,MATCH(回答数!$A81,raw!$2:$2,0)-1,COUNTA(raw!$A:$A)-1,1),回答数!$B81, OFFSET(raw!$A$1,2,MATCH($D$1,raw!$2:$2,0)-1,COUNTA(raw!$A:$A)-1,1),E$2) -> 0 | F81: =COUNTIFS( OFFSET(raw!$A$1,2,MATCH(回答数!$A81,raw!$2:$2,0)-1,COUNTA(raw!$A:$A)-1,1),回答数!$B81, OFFSET(raw!$A$1,2,MATCH($D$1,raw!$2:$2,0)-1,COUNTA(raw!$A:$A)-1,1),F$2) -> 0 | G81: =COUNTIFS( OFFSET(raw!$A$1,2,MATCH(回答数!$A81,raw!$2:$2,0)-1,COUNTA(raw!$A:$A)-1,1),回答数!$B81, OFFSET(raw!$A$1,2,MATCH($D$1,raw!$2:$2,0)-1,COUNTA(raw!$A:$A)-1,1),G$2) -> 2 | H81: =COUNTIFS( OFFSET(raw!$A$1,2,MATCH(回答数!$A81,raw!$2:$2,0)-1,COUNTA(raw!$A:$A)-1,1),回答数!$B81, OFFSET(raw!$A$1,2,MATCH($D$1,raw!$2:$2,0)-1,COUNTA(raw!$A:$A)-1,1),H$2) -> 3 | I81: =COUNTIFS( OFFSET(raw!$A$1,2,MATCH(回答数!$A81,raw!$2:$2,0)-1,COUNTA(raw!$A:$A)-1,1),回答数!$B81, OFFSET(raw!$A$1,2,MATCH($D$1,raw!$2:$2,0)-1,COUNTA(raw!$A:$A)-1,1),I$2) -> 9 | J81: =COUNTIFS( OFFSET(raw!$A$1,2,MATCH(回答数!$A81,raw!$2:$2,0)-1,COUNTA(raw!$A:$A)-1,1),回答数!$B81, OFFSET(raw!$A$1,2,MATCH($D$1,raw!$2:$2,0)-1,COUNTA(raw!$A:$A)-1,1),J$2) -> 11 | K81: =COUNTIFS( OFFSET(raw!$A$1,2,MATCH(回答数!$A81,raw!$2:$2,0)-1,COUNTA(raw!$A:$A)-1,1),回答数!$B81, OFFSET(raw!$A$1,2,MATCH($D$1,raw!$2:$2,0)-1,COUNTA(raw!$A:$A)-1,1),K$2) -> 6 | L81: =COUNTIFS( OFFSET(raw!$A$1,2,MATCH(回答数!$A81,raw!$2:$2,0)-1,COUNTA(raw!$A:$A)-1,1),回答数!$B81, OFFSET(raw!$A$1,2,MATCH($D$1,raw!$2:$2,0)-1,COUNTA(raw!$A:$A)-1,1),L$2) -> 2 | M81: =COUNTIFS( OFFSET(raw!$A$1,2,MATCH(回答数!$A81,raw!$2:$2,0)-1,COUNTA(raw!$A:$A)-1,1),回答数!$B81, OFFSET(raw!$A$1,2,MATCH($D$1,raw!$2:$2,0)-1,COUNTA(raw!$A:$A)-1,1),M$2) -> 0 | N81: =COUNTIFS( OFFSET(raw!$A$1,2,MATCH(回答数!$A81,raw!$2:$2,0)-1,COUNTA(raw!$A:$A)-1,1),回答数!$B81, OFFSET(raw!$A$1,2,MATCH($D$1,raw!$2:$2,0)-1,COUNTA(raw!$A:$A)-1,1),N$2) -> 0 | O81: =COUNTIFS( OFFSET(raw!$A$1,2,MATCH(回答数!$A81,raw!$2:$2,0)-1,COUNTA(raw!$A:$A)-1,1),回答数!$B81, OFFSET(raw!$A$1,2,MATCH($D$1,raw!$2:$2,0)-1,COUNTA(raw!$A:$A)-1,1),O$2) -> 3 | P81: 36
A82: 回答エリア | B82: レインボーライン エリア | D82: =COUNTIFS( OFFSET(raw!$A$1,2,MATCH(回答数!$A82,raw!$2:$2,0)-1,COUNTA(raw!$A:$A)-1,1),回答数!$B82, OFFSET(raw!$A$1,2,MATCH($D$1,raw!$2:$2,0)-1,COUNTA(raw!$A:$A)-1,1),D$2) -> 5 | E82: =COUNTIFS( OFFSET(raw!$A$1,2,MATCH(回答数!$A82,raw!$2:$2,0)-1,COUNTA(raw!$A:$A)-1,1),回答数!$B82, OFFSET(raw!$A$1,2,MATCH($D$1,raw!$2:$2,0)-1,COUNTA(raw!$A:$A)-1,1),E$2) -> 70 | F82: =COUNTIFS( OFFSET(raw!$A$1,2,MATCH(回答数!$A82,raw!$2:$2,0)-1,COUNTA(raw!$A:$A)-1,1),回答数!$B82, OFFSET(raw!$A$1,2,MATCH($D$1,raw!$2:$2,0)-1,COUNTA(raw!$A:$A)-1,1),F$2) -> 71 | G82: =COUNTIFS( OFFSET(raw!$A$1,2,MATCH(回答数!$A82,raw!$2:$2,0)-1,COUNTA(raw!$A:$A)-1,1),回答数!$B82, OFFSET(raw!$A$1,2,MATCH($D$1,raw!$2:$2,0)-1,COUNTA(raw!$A:$A)-1,1),G$2) -> 105 | H82: =COUNTIFS( OFFSET(raw!$A$1,2,MATCH(回答数!$A82,raw!$2:$2,0)-1,COUNTA(raw!$A:$A)-1,1),回答数!$B82, OFFSET(raw!$A$1,2,MATCH($D$1,raw!$2:$2,0)-1,COUNTA(raw!$A:$A)-1,1),H$2) -> 51 | I82: =COUNTIFS( OFFSET(raw!$A$1,2,MATCH(回答数!$A82,raw!$2:$2,0)-1,COUNTA(raw!$A:$A)-1,1),回答数!$B82, OFFSET(raw!$A$1,2,MATCH($D$1,raw!$2:$2,0)-1,COUNTA(raw!$A:$A)-1,1),I$2) -> 46 | J82: =COUNTIFS( OFFSET(raw!$A$1,2,MATCH(回答数!$A82,raw!$2:$2,0)-1,COUNTA(raw!$A:$A)-1,1),回答数!$B82, OFFSET(raw!$A$1,2,MATCH($D$1,raw!$2:$2,0)-1,COUNTA(raw!$A:$A)-1,1),J$2) -> 37 | K82: =COUNTIFS( OFFSET(raw!$A$1,2,MATCH(回答数!$A82,raw!$2:$2,0)-1,COUNTA(raw!$A:$A)-1,1),回答数!$B82, OFFSET(raw!$A$1,2,MATCH($D$1,raw!$2:$2,0)-1,COUNTA(raw!$A:$A)-1,1),K$2) -> 48 | L82: =COUNTIFS( OFFSET(raw!$A$1,2,MATCH(回答数!$A82,raw!$2:$2,0)-1,COUNTA(raw!$A:$A)-1,1),回答数!$B82, OFFSET(raw!$A$1,2,MATCH($D$1,raw!$2:$2,0)-1,COUNTA(raw!$A:$A)-1,1),L$2) -> 15 | M82: =COUNTIFS( OFFSET(raw!$A$1,2,MATCH(回答数!$A82,raw!$2:$2,0)-1,COUNTA(raw!$A:$A)-1,1),回答数!$B82, OFFSET(raw!$A$1,2,MATCH($D$1,raw!$2:$2,0)-1,COUNTA(raw!$A:$A)-1,1),M$2) -> 13 | N82: =COUNTIFS( OFFSET(raw!$A$1,2,MATCH(回答数!$A82,raw!$2:$2,0)-1,COUNTA(raw!$A:$A)-1,1),回答数!$B82, OFFSET(raw!$A$1,2,MATCH($D$1,raw!$2:$2,0)-1,COUNTA(raw!$A:$A)-1,1),N$2) -> 7 | O82: =COUNTIFS( OFFSET(raw!$A$1,2,MATCH(回答数!$A82,raw!$2:$2,0)-1,COUNTA(raw!$A:$A)-1,1),回答数!$B82, OFFSET(raw!$A$1,2,MATCH($D$1,raw!$2:$2,0)-1,COUNTA(raw!$A:$A)-1,1),O$2) -> 28 | P82: 496
A83: 回答エリア | B83: 若狭海遊バザール 千鳥苑 エリア | D83: =COUNTIFS( OFFSET(raw!$A$1,2,MATCH(回答数!$A83,raw!$2:$2,0)-1,COUNTA(raw!$A:$A)-1,1),回答数!$B83, OFFSET(raw!$A$1,2,MATCH($D$1,raw!$2:$2,0)-1,COUNTA(raw!$A:$A)-1,1),D$2) -> 0 | E83: =COUNTIFS( OFFSET(raw!$A$1,2,MATCH(回答数!$A83,raw!$2:$2,0)-1,COUNTA(raw!$A:$A)-1,1),回答数!$B83, OFFSET(raw!$A$1,2,MATCH($D$1,raw!$2:$2,0)-1,COUNTA(raw!$A:$A)-1,1),E$2) -> 11 | F83: =COUNTIFS( OFFSET(raw!$A$1,2,MATCH(回答数!$A83,raw!$2:$2,0)-1,COUNTA(raw!$A:$A)-1,1),回答数!$B83, OFFSET(raw!$A$1,2,MATCH($D$1,raw!$2:$2,0)-1,COUNTA(raw!$A:$A)-1,1),F$2) -> 3 | G83: =COUNTIFS( OFFSET(raw!$A$1,2,MATCH(回答数!$A83,raw!$2:$2,0)-1,COUNTA(raw!$A:$A)-1,1),回答数!$B83, OFFSET(raw!$A$1,2,MATCH($D$1,raw!$2:$2,0)-1,COUNTA(raw!$A:$A)-1,1),G$2) -> 19 | H83: =COUNTIFS( OFFSET(raw!$A$1,2,MATCH(回答数!$A83,raw!$2:$2,0)-1,COUNTA(raw!$A:$A)-1,1),回答数!$B83, OFFSET(raw!$A$1,2,MATCH($D$1,raw!$2:$2,0)-1,COUNTA(raw!$A:$A)-1,1),H$2) -> 15 | I83: =COUNTIFS( OFFSET(raw!$A$1,2,MATCH(回答数!$A83,raw!$2:$2,0)-1,COUNTA(raw!$A:$A)-1,1),回答数!$B83, OFFSET(raw!$A$1,2,MATCH($D$1,raw!$2:$2,0)-1,COUNTA(raw!$A:$A)-1,1),I$2) -> 9 | J83: =COUNTIFS( OFFSET(raw!$A$1,2,MATCH(回答数!$A83,raw!$2:$2,0)-1,COUNTA(raw!$A:$A)-1,1),回答数!$B83, OFFSET(raw!$A$1,2,MATCH($D$1,raw!$2:$2,0)-1,COUNTA(raw!$A:$A)-1,1),J$2) -> 13 | K83: =COUNTIFS( OFFSET(raw!$A$1,2,MATCH(回答数!$A83,raw!$2:$2,0)-1,COUNTA(raw!$A:$A)-1,1),回答数!$B83, OFFSET(raw!$A$1,2,MATCH($D$1,raw!$2:$2,0)-1,COUNTA(raw!$A:$A)-1,1),K$2) -> 8 | L83: =COUNTIFS( OFFSET(raw!$A$1,2,MATCH(回答数!$A83,raw!$2:$2,0)-1,COUNTA(raw!$A:$A)-1,1),回答数!$B83, OFFSET(raw!$A$1,2,MATCH($D$1,raw!$2:$2,0)-1,COUNTA(raw!$A:$A)-1,1),L$2) -> 7 | M83: =COUNTIFS( OFFSET(raw!$A$1,2,MATCH(回答数!$A83,raw!$2:$2,0)-1,COUNTA(raw!$A:$A)-1,1),回答数!$B83, OFFSET(raw!$A$1,2,MATCH($D$1,raw!$2:$2,0)-1,COUNTA(raw!$A:$A)-1,1),M$2) -> 4 | N83: =COUNTIFS( OFFSET(raw!$A$1,2,MATCH(回答数!$A83,raw!$2:$2,0)-1,COUNTA(raw!$A:$A)-1,1),回答数!$B83, OFFSET(raw!$A$1,2,MATCH($D$1,raw!$2:$2,0)-1,COUNTA(raw!$A:$A)-1,1),N$2) -> 5 | O83: =COUNTIFS( OFFSET(raw!$A$1,2,MATCH(回答数!$A83,raw!$2:$2,0)-1,COUNTA(raw!$A:$A)-1,1),回答数!$B83, OFFSET(raw!$A$1,2,MATCH($D$1,raw!$2:$2,0)-1,COUNTA(raw!$A:$A)-1,1),O$2) -> 14 | P83: 108
A84: 回答エリア | B84: JR美浜駅 エリア | D84: =COUNTIFS( OFFSET(raw!$A$1,2,MATCH(回答数!$A84,raw!$2:$2,0)-1,COUNTA(raw!$A:$A)-1,1),回答数!$B84, OFFSET(raw!$A$1,2,MATCH($D$1,raw!$2:$2,0)-1,COUNTA(raw!$A:$A)-1,1),D$2) -> 0 | E84: =COUNTIFS( OFFSET(raw!$A$1,2,MATCH(回答数!$A84,raw!$2:$2,0)-1,COUNTA(raw!$A:$A)-1,1),回答数!$B84, OFFSET(raw!$A$1,2,MATCH($D$1,raw!$2:$2,0)-1,COUNTA(raw!$A:$A)-1,1),E$2) -> 15 | F84: =COUNTIFS( OFFSET(raw!$A$1,2,MATCH(回答数!$A84,raw!$2:$2,0)-1,COUNTA(raw!$A:$A)-1,1),回答数!$B84, OFFSET(raw!$A$1,2,MATCH($D$1,raw!$2:$2,0)-1,COUNTA(raw!$A:$A)-1,1),F$2) -> 80 | G84: =COUNTIFS( OFFSET(raw!$A$1,2,MATCH(回答数!$A84,raw!$2:$2,0)-1,COUNTA(raw!$A:$A)-1,1),回答数!$B84, OFFSET(raw!$A$1,2,MATCH($D$1,raw!$2:$2,0)-1,COUNTA(raw!$A:$A)-1,1),G$2) -> 55 | H84: =COUNTIFS( OFFSET(raw!$A$1,2,MATCH(回答数!$A84,raw!$2:$2,0)-1,COUNTA(raw!$A:$A)-1,1),回答数!$B84, OFFSET(raw!$A$1,2,MATCH($D$1,raw!$2:$2,0)-1,COUNTA(raw!$A:$A)-1,1),H$2) -> 39 | I84: =COUNTIFS( OFFSET(raw!$A$1,2,MATCH(回答数!$A84,raw!$2:$2,0)-1,COUNTA(raw!$A:$A)-1,1),回答数!$B84, OFFSET(raw!$A$1,2,MATCH($D$1,raw!$2:$2,0)-1,COUNTA(raw!$A:$A)-1,1),I$2) -> 47 | J84: =COUNTIFS( OFFSET(raw!$A$1,2,MATCH(回答数!$A84,raw!$2:$2,0)-1,COUNTA(raw!$A:$A)-1,1),回答数!$B84, OFFSET(raw!$A$1,2,MATCH($D$1,raw!$2:$2,0)-1,COUNTA(raw!$A:$A)-1,1),J$2) -> 34 | K84: =COUNTIFS( OFFSET(raw!$A$1,2,MATCH(回答数!$A84,raw!$2:$2,0)-1,COUNTA(raw!$A:$A)-1,1),回答数!$B84, OFFSET(raw!$A$1,2,MATCH($D$1,raw!$2:$2,0)-1,COUNTA(raw!$A:$A)-1,1),K$2) -> 41 | L84: =COUNTIFS( OFFSET(raw!$A$1,2,MATCH(回答数!$A84,raw!$2:$2,0)-1,COUNTA(raw!$A:$A)-1,1),回答数!$B84, OFFSET(raw!$A$1,2,MATCH($D$1,raw!$2:$2,0)-1,COUNTA(raw!$A:$A)-1,1),L$2) -> 40 | M84: =COUNTIFS( OFFSET(raw!$A$1,2,MATCH(回答数!$A84,raw!$2:$2,0)-1,COUNTA(raw!$A:$A)-1,1),回答数!$B84, OFFSET(raw!$A$1,2,MATCH($D$1,raw!$2:$2,0)-1,COUNTA(raw!$A:$A)-1,1),M$2) -> 13 | N84: =COUNTIFS( OFFSET(raw!$A$1,2,MATCH(回答数!$A84,raw!$2:$2,0)-1,COUNTA(raw!$A:$A)-1,1),回答数!$B84, OFFSET(raw!$A$1,2,MATCH($D$1,raw!$2:$2,0)-1,COUNTA(raw!$A:$A)-1,1),N$2) -> 44 | O84: =COUNTIFS( OFFSET(raw!$A$1,2,MATCH(回答数!$A84,raw!$2:$2,0)-1,COUNTA(raw!$A:$A)-1,1),回答数!$B84, OFFSET(raw!$A$1,2,MATCH($D$1,raw!$2:$2,0)-1,COUNTA(raw!$A:$A)-1,1),O$2) -> 56 | P84: 464
A85: 回答エリア | B85: 新庄 渓流の里 エリア | D85: =COUNTIFS( OFFSET(raw!$A$1,2,MATCH(回答数!$A85,raw!$2:$2,0)-1,COUNTA(raw!$A:$A)-1,1),回答数!$B85, OFFSET(raw!$A$1,2,MATCH($D$1,raw!$2:$2,0)-1,COUNTA(raw!$A:$A)-1,1),D$2) -> 0 | E85: =COUNTIFS( OFFSET(raw!$A$1,2,MATCH(回答数!$A85,raw!$2:$2,0)-1,COUNTA(raw!$A:$A)-1,1),回答数!$B85, OFFSET(raw!$A$1,2,MATCH($D$1,raw!$2:$2,0)-1,COUNTA(raw!$A:$A)-1,1),E$2) -> 0 | F85: =COUNTIFS( OFFSET(raw!$A$1,2,MATCH(回答数!$A85,raw!$2:$2,0)-1,COUNTA(raw!$A:$A)-1,1),回答数!$B85, OFFSET(raw!$A$1,2,MATCH($D$1,raw!$2:$2,0)-1,COUNTA(raw!$A:$A)-1,1),F$2) -> 0 | G85: =COUNTIFS( OFFSET(raw!$A$1,2,MATCH(回答数!$A85,raw!$2:$2,0)-1,COUNTA(raw!$A:$A)-1,1),回答数!$B85, OFFSET(raw!$A$1,2,MATCH($D$1,raw!$2:$2,0)-1,COUNTA(raw!$A:$A)-1,1),G$2) -> 0 | H85: =COUNTIFS( OFFSET(raw!$A$1,2,MATCH(回答数!$A85,raw!$2:$2,0)-1,COUNTA(raw!$A:$A)-1,1),回答数!$B85, OFFSET(raw!$A$1,2,MATCH($D$1,raw!$2:$2,0)-1,COUNTA(raw!$A:$A)-1,1),H$2) -> 1 | I85: =COUNTIFS( OFFSET(raw!$A$1,2,MATCH(回答数!$A85,raw!$2:$2,0)-1,COUNTA(raw!$A:$A)-1,1),回答数!$B85, OFFSET(raw!$A$1,2,MATCH($D$1,raw!$2:$2,0)-1,COUNTA(raw!$A:$A)-1,1),I$2) -> 0 | J85: =COUNTIFS( OFFSET(raw!$A$1,2,MATCH(回答数!$A85,raw!$2:$2,0)-1,COUNTA(raw!$A:$A)-1,1),回答数!$B85, OFFSET(raw!$A$1,2,MATCH($D$1,raw!$2:$2,0)-1,COUNTA(raw!$A:$A)-1,1),J$2) -> 0 | K85: =COUNTIFS( OFFSET(raw!$A$1,2,MATCH(回答数!$A85,raw!$2:$2,0)-1,COUNTA(raw!$A:$A)-1,1),回答数!$B85, OFFSET(raw!$A$1,2,MATCH($D$1,raw!$2:$2,0)-1,COUNTA(raw!$A:$A)-1,1),K$2) -> 0 | L85: =COUNTIFS( OFFSET(raw!$A$1,2,MATCH(回答数!$A85,raw!$2:$2,0)-1,COUNTA(raw!$A:$A)-1,1),回答数!$B85, OFFSET(raw!$A$1,2,MATCH($D$1,raw!$2:$2,0)-1,COUNTA(raw!$A:$A)-1,1),L$2) -> 0 | M85: =COUNTIFS( OFFSET(raw!$A$1,2,MATCH(回答数!$A85,raw!$2:$2,0)-1,COUNTA(raw!$A:$A)-1,1),回答数!$B85, OFFSET(raw!$A$1,2,MATCH($D$1,raw!$2:$2,0)-1,COUNTA(raw!$A:$A)-1,1),M$2) -> 0 | N85: =COUNTIFS( OFFSET(raw!$A$1,2,MATCH(回答数!$A85,raw!$2:$2,0)-1,COUNTA(raw!$A:$A)-1,1),回答数!$B85, OFFSET(raw!$A$1,2,MATCH($D$1,raw!$2:$2,0)-1,COUNTA(raw!$A:$A)-1,1),N$2) -> 0 | O85: =COUNTIFS( OFFSET(raw!$A$1,2,MATCH(回答数!$A85,raw!$2:$2,0)-1,COUNTA(raw!$A:$A)-1,1),回答数!$B85, OFFSET(raw!$A$1,2,MATCH($D$1,raw!$2:$2,0)-1,COUNTA(raw!$A:$A)-1,1),O$2) -> 1 | P85: 2
A86: 回答エリア | B86: 熊川宿 エリア | D86: =COUNTIFS( OFFSET(raw!$A$1,2,MATCH(回答数!$A86,raw!$2:$2,0)-1,COUNTA(raw!$A:$A)-1,1),回答数!$B86, OFFSET(raw!$A$1,2,MATCH($D$1,raw!$2:$2,0)-1,COUNTA(raw!$A:$A)-1,1),D$2) -> 1 | E86: =COUNTIFS( OFFSET(raw!$A$1,2,MATCH(回答数!$A86,raw!$2:$2,0)-1,COUNTA(raw!$A:$A)-1,1),回答数!$B86, OFFSET(raw!$A$1,2,MATCH($D$1,raw!$2:$2,0)-1,COUNTA(raw!$A:$A)-1,1),E$2) -> 27 | F86: =COUNTIFS( OFFSET(raw!$A$1,2,MATCH(回答数!$A86,raw!$2:$2,0)-1,COUNTA(raw!$A:$A)-1,1),回答数!$B86, OFFSET(raw!$A$1,2,MATCH($D$1,raw!$2:$2,0)-1,COUNTA(raw!$A:$A)-1,1),F$2) -> 18 | G86: =COUNTIFS( OFFSET(raw!$A$1,2,MATCH(回答数!$A86,raw!$2:$2,0)-1,COUNTA(raw!$A:$A)-1,1),回答数!$B86, OFFSET(raw!$A$1,2,MATCH($D$1,raw!$2:$2,0)-1,COUNTA(raw!$A:$A)-1,1),G$2) -> 18 | H86: =COUNTIFS( OFFSET(raw!$A$1,2,MATCH(回答数!$A86,raw!$2:$2,0)-1,COUNTA(raw!$A:$A)-1,1),回答数!$B86, OFFSET(raw!$A$1,2,MATCH($D$1,raw!$2:$2,0)-1,COUNTA(raw!$A:$A)-1,1),H$2) -> 26 | I86: =COUNTIFS( OFFSET(raw!$A$1,2,MATCH(回答数!$A86,raw!$2:$2,0)-1,COUNTA(raw!$A:$A)-1,1),回答数!$B86, OFFSET(raw!$A$1,2,MATCH($D$1,raw!$2:$2,0)-1,COUNTA(raw!$A:$A)-1,1),I$2) -> 26 | J86: =COUNTIFS( OFFSET(raw!$A$1,2,MATCH(回答数!$A86,raw!$2:$2,0)-1,COUNTA(raw!$A:$A)-1,1),回答数!$B86, OFFSET(raw!$A$1,2,MATCH($D$1,raw!$2:$2,0)-1,COUNTA(raw!$A:$A)-1,1),J$2) -> 28 | K86: =COUNTIFS( OFFSET(raw!$A$1,2,MATCH(回答数!$A86,raw!$2:$2,0)-1,COUNTA(raw!$A:$A)-1,1),回答数!$B86, OFFSET(raw!$A$1,2,MATCH($D$1,raw!$2:$2,0)-1,COUNTA(raw!$A:$A)-1,1),K$2) -> 50 | L86: =COUNTIFS( OFFSET(raw!$A$1,2,MATCH(回答数!$A86,raw!$2:$2,0)-1,COUNTA(raw!$A:$A)-1,1),回答数!$B86, OFFSET(raw!$A$1,2,MATCH($D$1,raw!$2:$2,0)-1,COUNTA(raw!$A:$A)-1,1),L$2) -> 26 | M86: =COUNTIFS( OFFSET(raw!$A$1,2,MATCH(回答数!$A86,raw!$2:$2,0)-1,COUNTA(raw!$A:$A)-1,1),回答数!$B86, OFFSET(raw!$A$1,2,MATCH($D$1,raw!$2:$2,0)-1,COUNTA(raw!$A:$A)-1,1),M$2) -> 12 | N86: =COUNTIFS( OFFSET(raw!$A$1,2,MATCH(回答数!$A86,raw!$2:$2,0)-1,COUNTA(raw!$A:$A)-1,1),回答数!$B86, OFFSET(raw!$A$1,2,MATCH($D$1,raw!$2:$2,0)-1,COUNTA(raw!$A:$A)-1,1),N$2) -> 19 | O86: =COUNTIFS( OFFSET(raw!$A$1,2,MATCH(回答数!$A86,raw!$2:$2,0)-1,COUNTA(raw!$A:$A)-1,1),回答数!$B86, OFFSET(raw!$A$1,2,MATCH($D$1,raw!$2:$2,0)-1,COUNTA(raw!$A:$A)-1,1),O$2) -> 31 | P86: 282
A87: 回答エリア | B87: 湖上館パムコ（水月湖）エリア | D87: =COUNTIFS( OFFSET(raw!$A$1,2,MATCH(回答数!$A87,raw!$2:$2,0)-1,COUNTA(raw!$A:$A)-1,1),回答数!$B87, OFFSET(raw!$A$1,2,MATCH($D$1,raw!$2:$2,0)-1,COUNTA(raw!$A:$A)-1,1),D$2) -> 4 | E87: =COUNTIFS( OFFSET(raw!$A$1,2,MATCH(回答数!$A87,raw!$2:$2,0)-1,COUNTA(raw!$A:$A)-1,1),回答数!$B87, OFFSET(raw!$A$1,2,MATCH($D$1,raw!$2:$2,0)-1,COUNTA(raw!$A:$A)-1,1),E$2) -> 30 | F87: =COUNTIFS( OFFSET(raw!$A$1,2,MATCH(回答数!$A87,raw!$2:$2,0)-1,COUNTA(raw!$A:$A)-1,1),回答数!$B87, OFFSET(raw!$A$1,2,MATCH($D$1,raw!$2:$2,0)-1,COUNTA(raw!$A:$A)-1,1),F$2) -> 20 | G87: =COUNTIFS( OFFSET(raw!$A$1,2,MATCH(回答数!$A87,raw!$2:$2,0)-1,COUNTA(raw!$A:$A)-1,1),回答数!$B87, OFFSET(raw!$A$1,2,MATCH($D$1,raw!$2:$2,0)-1,COUNTA(raw!$A:$A)-1,1),G$2) -> 24 | H87: =COUNTIFS( OFFSET(raw!$A$1,2,MATCH(回答数!$A87,raw!$2:$2,0)-1,COUNTA(raw!$A:$A)-1,1),回答数!$B87, OFFSET(raw!$A$1,2,MATCH($D$1,raw!$2:$2,0)-1,COUNTA(raw!$A:$A)-1,1),H$2) -> 16 | I87: =COUNTIFS( OFFSET(raw!$A$1,2,MATCH(回答数!$A87,raw!$2:$2,0)-1,COUNTA(raw!$A:$A)-1,1),回答数!$B87, OFFSET(raw!$A$1,2,MATCH($D$1,raw!$2:$2,0)-1,COUNTA(raw!$A:$A)-1,1),I$2) -> 18 | J87: =COUNTIFS( OFFSET(raw!$A$1,2,MATCH(回答数!$A87,raw!$2:$2,0)-1,COUNTA(raw!$A:$A)-1,1),回答数!$B87, OFFSET(raw!$A$1,2,MATCH($D$1,raw!$2:$2,0)-1,COUNTA(raw!$A:$A)-1,1),J$2) -> 9 | K87: =COUNTIFS( OFFSET(raw!$A$1,2,MATCH(回答数!$A87,raw!$2:$2,0)-1,COUNTA(raw!$A:$A)-1,1),回答数!$B87, OFFSET(raw!$A$1,2,MATCH($D$1,raw!$2:$2,0)-1,COUNTA(raw!$A:$A)-1,1),K$2) -> 12 | L87: =COUNTIFS( OFFSET(raw!$A$1,2,MATCH(回答数!$A87,raw!$2:$2,0)-1,COUNTA(raw!$A:$A)-1,1),回答数!$B87, OFFSET(raw!$A$1,2,MATCH($D$1,raw!$2:$2,0)-1,COUNTA(raw!$A:$A)-1,1),L$2) -> 9 | M87: =COUNTIFS( OFFSET(raw!$A$1,2,MATCH(回答数!$A87,raw!$2:$2,0)-1,COUNTA(raw!$A:$A)-1,1),回答数!$B87, OFFSET(raw!$A$1,2,MATCH($D$1,raw!$2:$2,0)-1,COUNTA(raw!$A:$A)-1,1),M$2) -> 3 | N87: =COUNTIFS( OFFSET(raw!$A$1,2,MATCH(回答数!$A87,raw!$2:$2,0)-1,COUNTA(raw!$A:$A)-1,1),回答数!$B87, OFFSET(raw!$A$1,2,MATCH($D$1,raw!$2:$2,0)-1,COUNTA(raw!$A:$A)-1,1),N$2) -> 19 | O87: =COUNTIFS( OFFSET(raw!$A$1,2,MATCH(回答数!$A87,raw!$2:$2,0)-1,COUNTA(raw!$A:$A)-1,1),回答数!$B87, OFFSET(raw!$A$1,2,MATCH($D$1,raw!$2:$2,0)-1,COUNTA(raw!$A:$A)-1,1),O$2) -> 18 | P87: 182
A88: 回答エリア | B88: 道の駅「三方五湖」 エリア | D88: =COUNTIFS( OFFSET(raw!$A$1,2,MATCH(回答数!$A88,raw!$2:$2,0)-1,COUNTA(raw!$A:$A)-1,1),回答数!$B88, OFFSET(raw!$A$1,2,MATCH($D$1,raw!$2:$2,0)-1,COUNTA(raw!$A:$A)-1,1),D$2) -> 7 | E88: =COUNTIFS( OFFSET(raw!$A$1,2,MATCH(回答数!$A88,raw!$2:$2,0)-1,COUNTA(raw!$A:$A)-1,1),回答数!$B88, OFFSET(raw!$A$1,2,MATCH($D$1,raw!$2:$2,0)-1,COUNTA(raw!$A:$A)-1,1),E$2) -> 55 | F88: =COUNTIFS( OFFSET(raw!$A$1,2,MATCH(回答数!$A88,raw!$2:$2,0)-1,COUNTA(raw!$A:$A)-1,1),回答数!$B88, OFFSET(raw!$A$1,2,MATCH($D$1,raw!$2:$2,0)-1,COUNTA(raw!$A:$A)-1,1),F$2) -> 39 | G88: =COUNTIFS( OFFSET(raw!$A$1,2,MATCH(回答数!$A88,raw!$2:$2,0)-1,COUNTA(raw!$A:$A)-1,1),回答数!$B88, OFFSET(raw!$A$1,2,MATCH($D$1,raw!$2:$2,0)-1,COUNTA(raw!$A:$A)-1,1),G$2) -> 57 | H88: =COUNTIFS( OFFSET(raw!$A$1,2,MATCH(回答数!$A88,raw!$2:$2,0)-1,COUNTA(raw!$A:$A)-1,1),回答数!$B88, OFFSET(raw!$A$1,2,MATCH($D$1,raw!$2:$2,0)-1,COUNTA(raw!$A:$A)-1,1),H$2) -> 37 | I88: =COUNTIFS( OFFSET(raw!$A$1,2,MATCH(回答数!$A88,raw!$2:$2,0)-1,COUNTA(raw!$A:$A)-1,1),回答数!$B88, OFFSET(raw!$A$1,2,MATCH($D$1,raw!$2:$2,0)-1,COUNTA(raw!$A:$A)-1,1),I$2) -> 44 | J88: =COUNTIFS( OFFSET(raw!$A$1,2,MATCH(回答数!$A88,raw!$2:$2,0)-1,COUNTA(raw!$A:$A)-1,1),回答数!$B88, OFFSET(raw!$A$1,2,MATCH($D$1,raw!$2:$2,0)-1,COUNTA(raw!$A:$A)-1,1),J$2) -> 33 | K88: =COUNTIFS( OFFSET(raw!$A$1,2,MATCH(回答数!$A88,raw!$2:$2,0)-1,COUNTA(raw!$A:$A)-1,1),回答数!$B88, OFFSET(raw!$A$1,2,MATCH($D$1,raw!$2:$2,0)-1,COUNTA(raw!$A:$A)-1,1),K$2) -> 33 | L88: =COUNTIFS( OFFSET(raw!$A$1,2,MATCH(回答数!$A88,raw!$2:$2,0)-1,COUNTA(raw!$A:$A)-1,1),回答数!$B88, OFFSET(raw!$A$1,2,MATCH($D$1,raw!$2:$2,0)-1,COUNTA(raw!$A:$A)-1,1),L$2) -> 41 | M88: =COUNTIFS( OFFSET(raw!$A$1,2,MATCH(回答数!$A88,raw!$2:$2,0)-1,COUNTA(raw!$A:$A)-1,1),回答数!$B88, OFFSET(raw!$A$1,2,MATCH($D$1,raw!$2:$2,0)-1,COUNTA(raw!$A:$A)-1,1),M$2) -> 21 | N88: =COUNTIFS( OFFSET(raw!$A$1,2,MATCH(回答数!$A88,raw!$2:$2,0)-1,COUNTA(raw!$A:$A)-1,1),回答数!$B88, OFFSET(raw!$A$1,2,MATCH($D$1,raw!$2:$2,0)-1,COUNTA(raw!$A:$A)-1,1),N$2) -> 26 | O88: =COUNTIFS( OFFSET(raw!$A$1,2,MATCH(回答数!$A88,raw!$2:$2,0)-1,COUNTA(raw!$A:$A)-1,1),回答数!$B88, OFFSET(raw!$A$1,2,MATCH($D$1,raw!$2:$2,0)-1,COUNTA(raw!$A:$A)-1,1),O$2) -> 44 | P88: 437
A89: 回答エリア | B89: うみんぴあ大飯 エリア | D89: =COUNTIFS( OFFSET(raw!$A$1,2,MATCH(回答数!$A89,raw!$2:$2,0)-1,COUNTA(raw!$A:$A)-1,1),回答数!$B89, OFFSET(raw!$A$1,2,MATCH($D$1,raw!$2:$2,0)-1,COUNTA(raw!$A:$A)-1,1),D$2) -> 7 | E89: =COUNTIFS( OFFSET(raw!$A$1,2,MATCH(回答数!$A89,raw!$2:$2,0)-1,COUNTA(raw!$A:$A)-1,1),回答数!$B89, OFFSET(raw!$A$1,2,MATCH($D$1,raw!$2:$2,0)-1,COUNTA(raw!$A:$A)-1,1),E$2) -> 81 | F89: =COUNTIFS( OFFSET(raw!$A$1,2,MATCH(回答数!$A89,raw!$2:$2,0)-1,COUNTA(raw!$A:$A)-1,1),回答数!$B89, OFFSET(raw!$A$1,2,MATCH($D$1,raw!$2:$2,0)-1,COUNTA(raw!$A:$A)-1,1),F$2) -> 43 | G89: =COUNTIFS( OFFSET(raw!$A$1,2,MATCH(回答数!$A89,raw!$2:$2,0)-1,COUNTA(raw!$A:$A)-1,1),回答数!$B89, OFFSET(raw!$A$1,2,MATCH($D$1,raw!$2:$2,0)-1,COUNTA(raw!$A:$A)-1,1),G$2) -> 56 | H89: =COUNTIFS( OFFSET(raw!$A$1,2,MATCH(回答数!$A89,raw!$2:$2,0)-1,COUNTA(raw!$A:$A)-1,1),回答数!$B89, OFFSET(raw!$A$1,2,MATCH($D$1,raw!$2:$2,0)-1,COUNTA(raw!$A:$A)-1,1),H$2) -> 38 | I89: =COUNTIFS( OFFSET(raw!$A$1,2,MATCH(回答数!$A89,raw!$2:$2,0)-1,COUNTA(raw!$A:$A)-1,1),回答数!$B89, OFFSET(raw!$A$1,2,MATCH($D$1,raw!$2:$2,0)-1,COUNTA(raw!$A:$A)-1,1),I$2) -> 29 | J89: =COUNTIFS( OFFSET(raw!$A$1,2,MATCH(回答数!$A89,raw!$2:$2,0)-1,COUNTA(raw!$A:$A)-1,1),回答数!$B89, OFFSET(raw!$A$1,2,MATCH($D$1,raw!$2:$2,0)-1,COUNTA(raw!$A:$A)-1,1),J$2) -> 31 | K89: =COUNTIFS( OFFSET(raw!$A$1,2,MATCH(回答数!$A89,raw!$2:$2,0)-1,COUNTA(raw!$A:$A)-1,1),回答数!$B89, OFFSET(raw!$A$1,2,MATCH($D$1,raw!$2:$2,0)-1,COUNTA(raw!$A:$A)-1,1),K$2) -> 28 | L89: =COUNTIFS( OFFSET(raw!$A$1,2,MATCH(回答数!$A89,raw!$2:$2,0)-1,COUNTA(raw!$A:$A)-1,1),回答数!$B89, OFFSET(raw!$A$1,2,MATCH($D$1,raw!$2:$2,0)-1,COUNTA(raw!$A:$A)-1,1),L$2) -> 24 | M89: =COUNTIFS( OFFSET(raw!$A$1,2,MATCH(回答数!$A89,raw!$2:$2,0)-1,COUNTA(raw!$A:$A)-1,1),回答数!$B89, OFFSET(raw!$A$1,2,MATCH($D$1,raw!$2:$2,0)-1,COUNTA(raw!$A:$A)-1,1),M$2) -> 20 | N89: =COUNTIFS( OFFSET(raw!$A$1,2,MATCH(回答数!$A89,raw!$2:$2,0)-1,COUNTA(raw!$A:$A)-1,1),回答数!$B89, OFFSET(raw!$A$1,2,MATCH($D$1,raw!$2:$2,0)-1,COUNTA(raw!$A:$A)-1,1),N$2) -> 61 | O89: =COUNTIFS( OFFSET(raw!$A$1,2,MATCH(回答数!$A89,raw!$2:$2,0)-1,COUNTA(raw!$A:$A)-1,1),回答数!$B89, OFFSET(raw!$A$1,2,MATCH($D$1,raw!$2:$2,0)-1,COUNTA(raw!$A:$A)-1,1),O$2) -> 183 | P89: 601
A90: 回答エリア | B90: 若州一滴文庫 エリア | D90: =COUNTIFS( OFFSET(raw!$A$1,2,MATCH(回答数!$A90,raw!$2:$2,0)-1,COUNTA(raw!$A:$A)-1,1),回答数!$B90, OFFSET(raw!$A$1,2,MATCH($D$1,raw!$2:$2,0)-1,COUNTA(raw!$A:$A)-1,1),D$2) -> 2 | E90: =COUNTIFS( OFFSET(raw!$A$1,2,MATCH(回答数!$A90,raw!$2:$2,0)-1,COUNTA(raw!$A:$A)-1,1),回答数!$B90, OFFSET(raw!$A$1,2,MATCH($D$1,raw!$2:$2,0)-1,COUNTA(raw!$A:$A)-1,1),E$2) -> 11 | F90: =COUNTIFS( OFFSET(raw!$A$1,2,MATCH(回答数!$A90,raw!$2:$2,0)-1,COUNTA(raw!$A:$A)-1,1),回答数!$B90, OFFSET(raw!$A$1,2,MATCH($D$1,raw!$2:$2,0)-1,COUNTA(raw!$A:$A)-1,1),F$2) -> 5 | G90: =COUNTIFS( OFFSET(raw!$A$1,2,MATCH(回答数!$A90,raw!$2:$2,0)-1,COUNTA(raw!$A:$A)-1,1),回答数!$B90, OFFSET(raw!$A$1,2,MATCH($D$1,raw!$2:$2,0)-1,COUNTA(raw!$A:$A)-1,1),G$2) -> 1 | H90: =COUNTIFS( OFFSET(raw!$A$1,2,MATCH(回答数!$A90,raw!$2:$2,0)-1,COUNTA(raw!$A:$A)-1,1),回答数!$B90, OFFSET(raw!$A$1,2,MATCH($D$1,raw!$2:$2,0)-1,COUNTA(raw!$A:$A)-1,1),H$2) -> 2 | I90: =COUNTIFS( OFFSET(raw!$A$1,2,MATCH(回答数!$A90,raw!$2:$2,0)-1,COUNTA(raw!$A:$A)-1,1),回答数!$B90, OFFSET(raw!$A$1,2,MATCH($D$1,raw!$2:$2,0)-1,COUNTA(raw!$A:$A)-1,1),I$2) -> 4 | J90: =COUNTIFS( OFFSET(raw!$A$1,2,MATCH(回答数!$A90,raw!$2:$2,0)-1,COUNTA(raw!$A:$A)-1,1),回答数!$B90, OFFSET(raw!$A$1,2,MATCH($D$1,raw!$2:$2,0)-1,COUNTA(raw!$A:$A)-1,1),J$2) -> 6 | K90: =COUNTIFS( OFFSET(raw!$A$1,2,MATCH(回答数!$A90,raw!$2:$2,0)-1,COUNTA(raw!$A:$A)-1,1),回答数!$B90, OFFSET(raw!$A$1,2,MATCH($D$1,raw!$2:$2,0)-1,COUNTA(raw!$A:$A)-1,1),K$2) -> 5 | L90: =COUNTIFS( OFFSET(raw!$A$1,2,MATCH(回答数!$A90,raw!$2:$2,0)-1,COUNTA(raw!$A:$A)-1,1),回答数!$B90, OFFSET(raw!$A$1,2,MATCH($D$1,raw!$2:$2,0)-1,COUNTA(raw!$A:$A)-1,1),L$2) -> 10 | M90: =COUNTIFS( OFFSET(raw!$A$1,2,MATCH(回答数!$A90,raw!$2:$2,0)-1,COUNTA(raw!$A:$A)-1,1),回答数!$B90, OFFSET(raw!$A$1,2,MATCH($D$1,raw!$2:$2,0)-1,COUNTA(raw!$A:$A)-1,1),M$2) -> 3 | N90: =COUNTIFS( OFFSET(raw!$A$1,2,MATCH(回答数!$A90,raw!$2:$2,0)-1,COUNTA(raw!$A:$A)-1,1),回答数!$B90, OFFSET(raw!$A$1,2,MATCH($D$1,raw!$2:$2,0)-1,COUNTA(raw!$A:$A)-1,1),N$2) -> 0 | O90: =COUNTIFS( OFFSET(raw!$A$1,2,MATCH(回答数!$A90,raw!$2:$2,0)-1,COUNTA(raw!$A:$A)-1,1),回答数!$B90, OFFSET(raw!$A$1,2,MATCH($D$1,raw!$2:$2,0)-1,COUNTA(raw!$A:$A)-1,1),O$2) -> 14 | P90: 63
A91: 回答エリア | B91: 名田庄 エリア | D91: =COUNTIFS( OFFSET(raw!$A$1,2,MATCH(回答数!$A91,raw!$2:$2,0)-1,COUNTA(raw!$A:$A)-1,1),回答数!$B91, OFFSET(raw!$A$1,2,MATCH($D$1,raw!$2:$2,0)-1,COUNTA(raw!$A:$A)-1,1),D$2) -> 0 | E91: =COUNTIFS( OFFSET(raw!$A$1,2,MATCH(回答数!$A91,raw!$2:$2,0)-1,COUNTA(raw!$A:$A)-1,1),回答数!$B91, OFFSET(raw!$A$1,2,MATCH($D$1,raw!$2:$2,0)-1,COUNTA(raw!$A:$A)-1,1),E$2) -> 20 | F91: =COUNTIFS( OFFSET(raw!$A$1,2,MATCH(回答数!$A91,raw!$2:$2,0)-1,COUNTA(raw!$A:$A)-1,1),回答数!$B91, OFFSET(raw!$A$1,2,MATCH($D$1,raw!$2:$2,0)-1,COUNTA(raw!$A:$A)-1,1),F$2) -> 20 | G91: =COUNTIFS( OFFSET(raw!$A$1,2,MATCH(回答数!$A91,raw!$2:$2,0)-1,COUNTA(raw!$A:$A)-1,1),回答数!$B91, OFFSET(raw!$A$1,2,MATCH($D$1,raw!$2:$2,0)-1,COUNTA(raw!$A:$A)-1,1),G$2) -> 31 | H91: =COUNTIFS( OFFSET(raw!$A$1,2,MATCH(回答数!$A91,raw!$2:$2,0)-1,COUNTA(raw!$A:$A)-1,1),回答数!$B91, OFFSET(raw!$A$1,2,MATCH($D$1,raw!$2:$2,0)-1,COUNTA(raw!$A:$A)-1,1),H$2) -> 19 | I91: =COUNTIFS( OFFSET(raw!$A$1,2,MATCH(回答数!$A91,raw!$2:$2,0)-1,COUNTA(raw!$A:$A)-1,1),回答数!$B91, OFFSET(raw!$A$1,2,MATCH($D$1,raw!$2:$2,0)-1,COUNTA(raw!$A:$A)-1,1),I$2) -> 13 | J91: =COUNTIFS( OFFSET(raw!$A$1,2,MATCH(回答数!$A91,raw!$2:$2,0)-1,COUNTA(raw!$A:$A)-1,1),回答数!$B91, OFFSET(raw!$A$1,2,MATCH($D$1,raw!$2:$2,0)-1,COUNTA(raw!$A:$A)-1,1),J$2) -> 15 | K91: =COUNTIFS( OFFSET(raw!$A$1,2,MATCH(回答数!$A91,raw!$2:$2,0)-1,COUNTA(raw!$A:$A)-1,1),回答数!$B91, OFFSET(raw!$A$1,2,MATCH($D$1,raw!$2:$2,0)-1,COUNTA(raw!$A:$A)-1,1),K$2) -> 32 | L91: =COUNTIFS( OFFSET(raw!$A$1,2,MATCH(回答数!$A91,raw!$2:$2,0)-1,COUNTA(raw!$A:$A)-1,1),回答数!$B91, OFFSET(raw!$A$1,2,MATCH($D$1,raw!$2:$2,0)-1,COUNTA(raw!$A:$A)-1,1),L$2) -> 16 | M91: =COUNTIFS( OFFSET(raw!$A$1,2,MATCH(回答数!$A91,raw!$2:$2,0)-1,COUNTA(raw!$A:$A)-1,1),回答数!$B91, OFFSET(raw!$A$1,2,MATCH($D$1,raw!$2:$2,0)-1,COUNTA(raw!$A:$A)-1,1),M$2) -> 3 | N91: =COUNTIFS( OFFSET(raw!$A$1,2,MATCH(回答数!$A91,raw!$2:$2,0)-1,COUNTA(raw!$A:$A)-1,1),回答数!$B91, OFFSET(raw!$A$1,2,MATCH($D$1,raw!$2:$2,0)-1,COUNTA(raw!$A:$A)-1,1),N$2) -> 4 | O91: =COUNTIFS( OFFSET(raw!$A$1,2,MATCH(回答数!$A91,raw!$2:$2,0)-1,COUNTA(raw!$A:$A)-1,1),回答数!$B91, OFFSET(raw!$A$1,2,MATCH($D$1,raw!$2:$2,0)-1,COUNTA(raw!$A:$A)-1,1),O$2) -> 23 | P91: 196
A92: 回答エリア | B92: 赤礁崎オートキャンプ場 エリア | D92: =COUNTIFS( OFFSET(raw!$A$1,2,MATCH(回答数!$A92,raw!$2:$2,0)-1,COUNTA(raw!$A:$A)-1,1),回答数!$B92, OFFSET(raw!$A$1,2,MATCH($D$1,raw!$2:$2,0)-1,COUNTA(raw!$A:$A)-1,1),D$2) -> 0 | E92: =COUNTIFS( OFFSET(raw!$A$1,2,MATCH(回答数!$A92,raw!$2:$2,0)-1,COUNTA(raw!$A:$A)-1,1),回答数!$B92, OFFSET(raw!$A$1,2,MATCH($D$1,raw!$2:$2,0)-1,COUNTA(raw!$A:$A)-1,1),E$2) -> 8 | F92: =COUNTIFS( OFFSET(raw!$A$1,2,MATCH(回答数!$A92,raw!$2:$2,0)-1,COUNTA(raw!$A:$A)-1,1),回答数!$B92, OFFSET(raw!$A$1,2,MATCH($D$1,raw!$2:$2,0)-1,COUNTA(raw!$A:$A)-1,1),F$2) -> 4 | G92: =COUNTIFS( OFFSET(raw!$A$1,2,MATCH(回答数!$A92,raw!$2:$2,0)-1,COUNTA(raw!$A:$A)-1,1),回答数!$B92, OFFSET(raw!$A$1,2,MATCH($D$1,raw!$2:$2,0)-1,COUNTA(raw!$A:$A)-1,1),G$2) -> 4 | H92: =COUNTIFS( OFFSET(raw!$A$1,2,MATCH(回答数!$A92,raw!$2:$2,0)-1,COUNTA(raw!$A:$A)-1,1),回答数!$B92, OFFSET(raw!$A$1,2,MATCH($D$1,raw!$2:$2,0)-1,COUNTA(raw!$A:$A)-1,1),H$2) -> 4 | I92: =COUNTIFS( OFFSET(raw!$A$1,2,MATCH(回答数!$A92,raw!$2:$2,0)-1,COUNTA(raw!$A:$A)-1,1),回答数!$B92, OFFSET(raw!$A$1,2,MATCH($D$1,raw!$2:$2,0)-1,COUNTA(raw!$A:$A)-1,1),I$2) -> 1 | J92: =COUNTIFS( OFFSET(raw!$A$1,2,MATCH(回答数!$A92,raw!$2:$2,0)-1,COUNTA(raw!$A:$A)-1,1),回答数!$B92, OFFSET(raw!$A$1,2,MATCH($D$1,raw!$2:$2,0)-1,COUNTA(raw!$A:$A)-1,1),J$2) -> 4 | K92: =COUNTIFS( OFFSET(raw!$A$1,2,MATCH(回答数!$A92,raw!$2:$2,0)-1,COUNTA(raw!$A:$A)-1,1),回答数!$B92, OFFSET(raw!$A$1,2,MATCH($D$1,raw!$2:$2,0)-1,COUNTA(raw!$A:$A)-1,1),K$2) -> 5 | L92: =COUNTIFS( OFFSET(raw!$A$1,2,MATCH(回答数!$A92,raw!$2:$2,0)-1,COUNTA(raw!$A:$A)-1,1),回答数!$B92, OFFSET(raw!$A$1,2,MATCH($D$1,raw!$2:$2,0)-1,COUNTA(raw!$A:$A)-1,1),L$2) -> 2 | M92: =COUNTIFS( OFFSET(raw!$A$1,2,MATCH(回答数!$A92,raw!$2:$2,0)-1,COUNTA(raw!$A:$A)-1,1),回答数!$B92, OFFSET(raw!$A$1,2,MATCH($D$1,raw!$2:$2,0)-1,COUNTA(raw!$A:$A)-1,1),M$2) -> 0 | N92: =COUNTIFS( OFFSET(raw!$A$1,2,MATCH(回答数!$A92,raw!$2:$2,0)-1,COUNTA(raw!$A:$A)-1,1),回答数!$B92, OFFSET(raw!$A$1,2,MATCH($D$1,raw!$2:$2,0)-1,COUNTA(raw!$A:$A)-1,1),N$2) -> 0 | O92: =COUNTIFS( OFFSET(raw!$A$1,2,MATCH(回答数!$A92,raw!$2:$2,0)-1,COUNTA(raw!$A:$A)-1,1),回答数!$B92, OFFSET(raw!$A$1,2,MATCH($D$1,raw!$2:$2,0)-1,COUNTA(raw!$A:$A)-1,1),O$2) -> 4 | P92: 36
A93: 回答エリア | B93: 道の駅「シーサイド高浜」 エリア | D93: =COUNTIFS( OFFSET(raw!$A$1,2,MATCH(回答数!$A93,raw!$2:$2,0)-1,COUNTA(raw!$A:$A)-1,1),回答数!$B93, OFFSET(raw!$A$1,2,MATCH($D$1,raw!$2:$2,0)-1,COUNTA(raw!$A:$A)-1,1),D$2) -> 4 | E93: =COUNTIFS( OFFSET(raw!$A$1,2,MATCH(回答数!$A93,raw!$2:$2,0)-1,COUNTA(raw!$A:$A)-1,1),回答数!$B93, OFFSET(raw!$A$1,2,MATCH($D$1,raw!$2:$2,0)-1,COUNTA(raw!$A:$A)-1,1),E$2) -> 19 | F93: =COUNTIFS( OFFSET(raw!$A$1,2,MATCH(回答数!$A93,raw!$2:$2,0)-1,COUNTA(raw!$A:$A)-1,1),回答数!$B93, OFFSET(raw!$A$1,2,MATCH($D$1,raw!$2:$2,0)-1,COUNTA(raw!$A:$A)-1,1),F$2) -> 14 | G93: =COUNTIFS( OFFSET(raw!$A$1,2,MATCH(回答数!$A93,raw!$2:$2,0)-1,COUNTA(raw!$A:$A)-1,1),回答数!$B93, OFFSET(raw!$A$1,2,MATCH($D$1,raw!$2:$2,0)-1,COUNTA(raw!$A:$A)-1,1),G$2) -> 20 | H93: =COUNTIFS( OFFSET(raw!$A$1,2,MATCH(回答数!$A93,raw!$2:$2,0)-1,COUNTA(raw!$A:$A)-1,1),回答数!$B93, OFFSET(raw!$A$1,2,MATCH($D$1,raw!$2:$2,0)-1,COUNTA(raw!$A:$A)-1,1),H$2) -> 7 | I93: =COUNTIFS( OFFSET(raw!$A$1,2,MATCH(回答数!$A93,raw!$2:$2,0)-1,COUNTA(raw!$A:$A)-1,1),回答数!$B93, OFFSET(raw!$A$1,2,MATCH($D$1,raw!$2:$2,0)-1,COUNTA(raw!$A:$A)-1,1),I$2) -> 17 | J93: =COUNTIFS( OFFSET(raw!$A$1,2,MATCH(回答数!$A93,raw!$2:$2,0)-1,COUNTA(raw!$A:$A)-1,1),回答数!$B93, OFFSET(raw!$A$1,2,MATCH($D$1,raw!$2:$2,0)-1,COUNTA(raw!$A:$A)-1,1),J$2) -> 14 | K93: =COUNTIFS( OFFSET(raw!$A$1,2,MATCH(回答数!$A93,raw!$2:$2,0)-1,COUNTA(raw!$A:$A)-1,1),回答数!$B93, OFFSET(raw!$A$1,2,MATCH($D$1,raw!$2:$2,0)-1,COUNTA(raw!$A:$A)-1,1),K$2) -> 24 | L93: =COUNTIFS( OFFSET(raw!$A$1,2,MATCH(回答数!$A93,raw!$2:$2,0)-1,COUNTA(raw!$A:$A)-1,1),回答数!$B93, OFFSET(raw!$A$1,2,MATCH($D$1,raw!$2:$2,0)-1,COUNTA(raw!$A:$A)-1,1),L$2) -> 24 | M93: =COUNTIFS( OFFSET(raw!$A$1,2,MATCH(回答数!$A93,raw!$2:$2,0)-1,COUNTA(raw!$A:$A)-1,1),回答数!$B93, OFFSET(raw!$A$1,2,MATCH($D$1,raw!$2:$2,0)-1,COUNTA(raw!$A:$A)-1,1),M$2) -> 6 | N93: =COUNTIFS( OFFSET(raw!$A$1,2,MATCH(回答数!$A93,raw!$2:$2,0)-1,COUNTA(raw!$A:$A)-1,1),回答数!$B93, OFFSET(raw!$A$1,2,MATCH($D$1,raw!$2:$2,0)-1,COUNTA(raw!$A:$A)-1,1),N$2) -> 8 | O93: =COUNTIFS( OFFSET(raw!$A$1,2,MATCH(回答数!$A93,raw!$2:$2,0)-1,COUNTA(raw!$A:$A)-1,1),回答数!$B93, OFFSET(raw!$A$1,2,MATCH($D$1,raw!$2:$2,0)-1,COUNTA(raw!$A:$A)-1,1),O$2) -> 10 | P93: 167
A94: 回答エリア | B94: 若狭和田 エリア | D94: =COUNTIFS( OFFSET(raw!$A$1,2,MATCH(回答数!$A94,raw!$2:$2,0)-1,COUNTA(raw!$A:$A)-1,1),回答数!$B94, OFFSET(raw!$A$1,2,MATCH($D$1,raw!$2:$2,0)-1,COUNTA(raw!$A:$A)-1,1),D$2) -> 0 | E94: =COUNTIFS( OFFSET(raw!$A$1,2,MATCH(回答数!$A94,raw!$2:$2,0)-1,COUNTA(raw!$A:$A)-1,1),回答数!$B94, OFFSET(raw!$A$1,2,MATCH($D$1,raw!$2:$2,0)-1,COUNTA(raw!$A:$A)-1,1),E$2) -> 7 | F94: =COUNTIFS( OFFSET(raw!$A$1,2,MATCH(回答数!$A94,raw!$2:$2,0)-1,COUNTA(raw!$A:$A)-1,1),回答数!$B94, OFFSET(raw!$A$1,2,MATCH($D$1,raw!$2:$2,0)-1,COUNTA(raw!$A:$A)-1,1),F$2) -> 5 | G94: =COUNTIFS( OFFSET(raw!$A$1,2,MATCH(回答数!$A94,raw!$2:$2,0)-1,COUNTA(raw!$A:$A)-1,1),回答数!$B94, OFFSET(raw!$A$1,2,MATCH($D$1,raw!$2:$2,0)-1,COUNTA(raw!$A:$A)-1,1),G$2) -> 4 | H94: =COUNTIFS( OFFSET(raw!$A$1,2,MATCH(回答数!$A94,raw!$2:$2,0)-1,COUNTA(raw!$A:$A)-1,1),回答数!$B94, OFFSET(raw!$A$1,2,MATCH($D$1,raw!$2:$2,0)-1,COUNTA(raw!$A:$A)-1,1),H$2) -> 3 | I94: =COUNTIFS( OFFSET(raw!$A$1,2,MATCH(回答数!$A94,raw!$2:$2,0)-1,COUNTA(raw!$A:$A)-1,1),回答数!$B94, OFFSET(raw!$A$1,2,MATCH($D$1,raw!$2:$2,0)-1,COUNTA(raw!$A:$A)-1,1),I$2) -> 5 | J94: =COUNTIFS( OFFSET(raw!$A$1,2,MATCH(回答数!$A94,raw!$2:$2,0)-1,COUNTA(raw!$A:$A)-1,1),回答数!$B94, OFFSET(raw!$A$1,2,MATCH($D$1,raw!$2:$2,0)-1,COUNTA(raw!$A:$A)-1,1),J$2) -> 3 | K94: =COUNTIFS( OFFSET(raw!$A$1,2,MATCH(回答数!$A94,raw!$2:$2,0)-1,COUNTA(raw!$A:$A)-1,1),回答数!$B94, OFFSET(raw!$A$1,2,MATCH($D$1,raw!$2:$2,0)-1,COUNTA(raw!$A:$A)-1,1),K$2) -> 9 | L94: =COUNTIFS( OFFSET(raw!$A$1,2,MATCH(回答数!$A94,raw!$2:$2,0)-1,COUNTA(raw!$A:$A)-1,1),回答数!$B94, OFFSET(raw!$A$1,2,MATCH($D$1,raw!$2:$2,0)-1,COUNTA(raw!$A:$A)-1,1),L$2) -> 7 | M94: =COUNTIFS( OFFSET(raw!$A$1,2,MATCH(回答数!$A94,raw!$2:$2,0)-1,COUNTA(raw!$A:$A)-1,1),回答数!$B94, OFFSET(raw!$A$1,2,MATCH($D$1,raw!$2:$2,0)-1,COUNTA(raw!$A:$A)-1,1),M$2) -> 4 | N94: =COUNTIFS( OFFSET(raw!$A$1,2,MATCH(回答数!$A94,raw!$2:$2,0)-1,COUNTA(raw!$A:$A)-1,1),回答数!$B94, OFFSET(raw!$A$1,2,MATCH($D$1,raw!$2:$2,0)-1,COUNTA(raw!$A:$A)-1,1),N$2) -> 4 | O94: =COUNTIFS( OFFSET(raw!$A$1,2,MATCH(回答数!$A94,raw!$2:$2,0)-1,COUNTA(raw!$A:$A)-1,1),回答数!$B94, OFFSET(raw!$A$1,2,MATCH($D$1,raw!$2:$2,0)-1,COUNTA(raw!$A:$A)-1,1),O$2) -> 7 | P94: 58
A95: 回答エリア | B95: 若狭高浜 エリア | D95: =COUNTIFS( OFFSET(raw!$A$1,2,MATCH(回答数!$A95,raw!$2:$2,0)-1,COUNTA(raw!$A:$A)-1,1),回答数!$B95, OFFSET(raw!$A$1,2,MATCH($D$1,raw!$2:$2,0)-1,COUNTA(raw!$A:$A)-1,1),D$2) -> 1 | E95: =COUNTIFS( OFFSET(raw!$A$1,2,MATCH(回答数!$A95,raw!$2:$2,0)-1,COUNTA(raw!$A:$A)-1,1),回答数!$B95, OFFSET(raw!$A$1,2,MATCH($D$1,raw!$2:$2,0)-1,COUNTA(raw!$A:$A)-1,1),E$2) -> 17 | F95: =COUNTIFS( OFFSET(raw!$A$1,2,MATCH(回答数!$A95,raw!$2:$2,0)-1,COUNTA(raw!$A:$A)-1,1),回答数!$B95, OFFSET(raw!$A$1,2,MATCH($D$1,raw!$2:$2,0)-1,COUNTA(raw!$A:$A)-1,1),F$2) -> 10 | G95: =COUNTIFS( OFFSET(raw!$A$1,2,MATCH(回答数!$A95,raw!$2:$2,0)-1,COUNTA(raw!$A:$A)-1,1),回答数!$B95, OFFSET(raw!$A$1,2,MATCH($D$1,raw!$2:$2,0)-1,COUNTA(raw!$A:$A)-1,1),G$2) -> 12 | H95: =COUNTIFS( OFFSET(raw!$A$1,2,MATCH(回答数!$A95,raw!$2:$2,0)-1,COUNTA(raw!$A:$A)-1,1),回答数!$B95, OFFSET(raw!$A$1,2,MATCH($D$1,raw!$2:$2,0)-1,COUNTA(raw!$A:$A)-1,1),H$2) -> 5 | I95: =COUNTIFS( OFFSET(raw!$A$1,2,MATCH(回答数!$A95,raw!$2:$2,0)-1,COUNTA(raw!$A:$A)-1,1),回答数!$B95, OFFSET(raw!$A$1,2,MATCH($D$1,raw!$2:$2,0)-1,COUNTA(raw!$A:$A)-1,1),I$2) -> 9 | J95: =COUNTIFS( OFFSET(raw!$A$1,2,MATCH(回答数!$A95,raw!$2:$2,0)-1,COUNTA(raw!$A:$A)-1,1),回答数!$B95, OFFSET(raw!$A$1,2,MATCH($D$1,raw!$2:$2,0)-1,COUNTA(raw!$A:$A)-1,1),J$2) -> 8 | K95: =COUNTIFS( OFFSET(raw!$A$1,2,MATCH(回答数!$A95,raw!$2:$2,0)-1,COUNTA(raw!$A:$A)-1,1),回答数!$B95, OFFSET(raw!$A$1,2,MATCH($D$1,raw!$2:$2,0)-1,COUNTA(raw!$A:$A)-1,1),K$2) -> 12 | L95: =COUNTIFS( OFFSET(raw!$A$1,2,MATCH(回答数!$A95,raw!$2:$2,0)-1,COUNTA(raw!$A:$A)-1,1),回答数!$B95, OFFSET(raw!$A$1,2,MATCH($D$1,raw!$2:$2,0)-1,COUNTA(raw!$A:$A)-1,1),L$2) -> 12 | M95: =COUNTIFS( OFFSET(raw!$A$1,2,MATCH(回答数!$A95,raw!$2:$2,0)-1,COUNTA(raw!$A:$A)-1,1),回答数!$B95, OFFSET(raw!$A$1,2,MATCH($D$1,raw!$2:$2,0)-1,COUNTA(raw!$A:$A)-1,1),M$2) -> 4 | N95: =COUNTIFS( OFFSET(raw!$A$1,2,MATCH(回答数!$A95,raw!$2:$2,0)-1,COUNTA(raw!$A:$A)-1,1),回答数!$B95, OFFSET(raw!$A$1,2,MATCH($D$1,raw!$2:$2,0)-1,COUNTA(raw!$A:$A)-1,1),N$2) -> 2 | O95: =COUNTIFS( OFFSET(raw!$A$1,2,MATCH(回答数!$A95,raw!$2:$2,0)-1,COUNTA(raw!$A:$A)-1,1),回答数!$B95, OFFSET(raw!$A$1,2,MATCH($D$1,raw!$2:$2,0)-1,COUNTA(raw!$A:$A)-1,1),O$2) -> 14 | P95: 106

Sheet NPS
A1: 集計区分 | C1: NPS | R1: Rank | S1: 回答月 | AG1: （処理用_順位） | AH1: 回答月 | AW1: =施設コード!$A$2 -> 3月 | BD1: 4月 | BE1: 5月 | BF1: 6月 | BG1: 7月 | BH1: 8月 | BI1: 9月 | BJ1: 10月 | BK1: 11月 | BL1: 12月 | BM1: 1月 | BN1: 2月 | BO1: 3月 | BP1: 通年
D2: 4月 | E2: 5月 | F2: 6月 | G2: 7月 | H2: 8月 | I2: 9月 | J2: 10月 | K2: 11月 | L2: 12月 | M2: 1月 | N2: 2月 | O2: 3月 | P2: 通年 | S2: 4月 | T2: 5月 | U2: 6月 | V2: 7月 | W2: 8月 | X2: 9月 | Y2: 10月 | Z2: 11月 | AA2: 12月 | AB2: 1月 | AC2: 2月 | AD2: 3月 | AE2: 通年 | AH2: 4月 | AI2: 5月 | AJ2: 6月 | AK2: 7月 | AL2: 8月 | AM2: 9月 | AN2: 10月 | AO2: 11月 | AP2: 12月 | AQ2: 1月 | AR2: 2月 | AS2: 3月 | AT2: 通年 | AV2: （処理用_順位） | AW2: 順位 | AX2: 回答エリア | AY2: NPS | AZ2: 回答数 | BC2: 福井県 | BD2: =D3 -> -1.244813278 | BE2: =E3 -> 5.759330759 | BF2: 5.558006176 | BG2: 3.2599837 | BH2: 6.3 | BI2: 2.288329519 | BJ2: -4.67032967 | BK2: 7.044601917 | BL2: 3.287108372 | BM2: 12.92517007 | BN2: 6.878698225 | BO2: 13.21530193 | BP2: 5.64988666
A3: 全体 | B3: =施設コード!$D$2 -> 福井県 | D3: =INDEX(【D】NPS!$C$4:$GO$77,MATCH(NPS!$B3,【D】NPS!$B$4:$B$77,0), MATCH(NPS!D$2&NPS!$C$1,【D】NPS!$C$2:$GO$2&【D】NPS!$C$3:$GO$3,0)) -> -1.244813278 | E3: =INDEX(【D】NPS!$C$4:$GO$77,MATCH(NPS!$B3,【D】NPS!$B$4:$B$77,0), MATCH(NPS!E$2&NPS!$C$1,【D】NPS!$C$2:$GO$2&【D】NPS!$C$3:$GO$3,0)) -> 5.759330759 | F3: =INDEX(【D】NPS!$C$4:$GO$77,MATCH(NPS!$B3,【D】NPS!$B$4:$B$77,0), MATCH(NPS!F$2&NPS!$C$1,【D】NPS!$C$2:$GO$2&【D】NPS!$C$3:$GO$3,0)) -> 5.558006176 | G3: =INDEX(【D】NPS!$C$4:$GO$77,MATCH(NPS!$B3,【D】NPS!$B$4:$B$77,0), MATCH(NPS!G$2&NPS!$C$1,【D】NPS!$C$2:$GO$2&【D】NPS!$C$3:$GO$3,0)) -> 3.2599837 | H3: =INDEX(【D】NPS!$C$4:$GO$77,MATCH(NPS!$B3,【D】NPS!$B$4:$B$77,0), MATCH(NPS!H$2&NPS!$C$1,【D】NPS!$C$2:$GO$2&【D】NPS!$C$3:$GO$3,0)) -> 6.3 | I3: =INDEX(【D】NPS!$C$4:$GO$77,MATCH(NPS!$B3,【D】NPS!$B$4:$B$77,0), MATCH(NPS!I$2&NPS!$C$1,【D】NPS!$C$2:$GO$2&【D】NPS!$C$3:$GO$3,0)) -> 2.288329519 | J3: =INDEX(【D】NPS!$C$4:$GO$77,MATCH(NPS!$B3,【D】NPS!$B$4:$B$77,0), MATCH(NPS!J$2&NPS!$C$1,【D】NPS!$C$2:$GO$2&【D】NPS!$C$3:$GO$3,0)) -> -4.67032967 | K3: =INDEX(【D】NPS!$C$4:$GO$77,MATCH(NPS!$B3,【D】NPS!$B$4:$B$77,0), MATCH(NPS!K$2&NPS!$C$1,【D】NPS!$C$2:$GO$2&【D】NPS!$C$3:$GO$3,0)) -> 7.044601917 | L3: =INDEX(【D】NPS!$C$4:$GO$77,MATCH(NPS!$B3,【D】NPS!$B$4:$B$77,0), MATCH(NPS!L$2&NPS!$C$1,【D】NPS!$C$2:$GO$2&【D】NPS!$C$3:$GO$3,0)) -> 3.287108372 | M3: =INDEX(【D】NPS!$C$4:$GO$77,MATCH(NPS!$B3,【D】NPS!$B$4:$B$77,0), MATCH(NPS!M$2&NPS!$C$1,【D】NPS!$C$2:$GO$2&【D】NPS!$C$3:$GO$3,0)) -> 12.92517007 | N3: =INDEX(【D】NPS!$C$4:$GO$77,MATCH(NPS!$B3,【D】NPS!$B$4:$B$77,0), MATCH(NPS!N$2&NPS!$C$1,【D】NPS!$C$2:$GO$2&【D】NPS!$C$3:$GO$3,0)) -> 6.878698225 | O3: =INDEX(【D】NPS!$C$4:$GO$77,MATCH(NPS!$B3,【D】NPS!$B$4:$B$77,0), MATCH(NPS!O$2&NPS!$C$1,【D】NPS!$C$2:$GO$2&【D】NPS!$C$3:$GO$3,0)) -> 13.21530193 | P3: =INDEX(【D】NPS!$C$4:$GO$77,MATCH(NPS!$B3,【D】NPS!$B$4:$B$77,0), MATCH(NPS!P$2&NPS!$C$1,【D】NPS!$C$2:$GO$2&【D】NPS!$C$3:$GO$3,0)) -> 5.64988666 | S3: =INDEX(【D】NPS!$C$4:$GO$96,MATCH(NPS!$B3,【D】NPS!$B$4:$B$96,0), MATCH(NPS!S$2&NPS!$R$1,【D】NPS!$C$2:$GO$2&【D】NPS!$C$3:$GO$3,0)) -> - | T3: =INDEX(【D】NPS!$C$4:$GO$96,MATCH(NPS!$B3,【D】NPS!$B$4:$B$96,0), MATCH(NPS!T$2&NPS!$R$1,【D】NPS!$C$2:$GO$2&【D】NPS!$C$3:$GO$3,0)) -> - | U3: =INDEX(【D】NPS!$C$4:$GO$96,MATCH(NPS!$B3,【D】NPS!$B$4:$B$96,0), MATCH(NPS!U$2&NPS!$R$1,【D】NPS!$C$2:$GO$2&【D】NPS!$C$3:$GO$3,0)) -> - | V3: =INDEX(【D】NPS!$C$4:$GO$96,MATCH(NPS!$B3,【D】NPS!$B$4:$B$96,0), MATCH(NPS!V$2&NPS!$R$1,【D】NPS!$C$2:$GO$2&【D】NPS!$C$3:$GO$3,0)) -> - | W3: =INDEX(【D】NPS!$C$4:$GO$96,MATCH(NPS!$B3,【D】NPS!$B$4:$B$96,0), MATCH(NPS!W$2&NPS!$R$1,【D】NPS!$C$2:$GO$2&【D】NPS!$C$3:$GO$3,0)) -> - | X3: =INDEX(【D】NPS!$C$4:$GO$96,MATCH(NPS!$B3,【D】NPS!$B$4:$B$96,0), MATCH(NPS!X$2&NPS!$R$1,【D】NPS!$C$2:$GO$2&【D】NPS!$C$3:$GO$3,0)) -> - | Y3: =INDEX(【D】NPS!$C$4:$GO$96,MATCH(NPS!$B3,【D】NPS!$B$4:$B$96,0), MATCH(NPS!Y$2&NPS!$R$1,【D】NPS!$C$2:$GO$2&【D】NPS!$C$3:$GO$3,0)) -> - | Z3: =INDEX(【D】NPS!$C$4:$GO$96,MATCH(NPS!$B3,【D】NPS!$B$4:$B$96,0), MATCH(NPS!Z$2&NPS!$R$1,【D】NPS!$C$2:$GO$2&【D】NPS!$C$3:$GO$3,0)) -> - | AA3: =INDEX(【D】NPS!$C$4:$GO$96,MATCH(NPS!$B3,【D】NPS!$B$4:$B$96,0), MATCH(NPS!AA$2&NPS!$R$1,【D】NPS!$C$2:$GO$2&【D】NPS!$C$3:$GO$3,0)) -> - | AB3: =INDEX(【D】NPS!$C$4:$GO$96,MATCH(NPS!$B3,【D】NPS!$B$4:$B$96,0), MATCH(NPS!AB$2&NPS!$R$1,【D】NPS!$C$2:$GO$2&【D】NPS!$C$3:$GO$3,0)) -> - | AC3: =INDEX(【D】NPS!$C$4:$GO$96,MATCH(NPS!$B3,【D】NPS!$B$4:$B$96,0), MATCH(NPS!AC$2&NPS!$R$1,【D】NPS!$C$2:$GO$2&【D】NPS!$C$3:$GO$3,0)) -> - | AD3: =INDEX(【D】NPS!$C$4:$GO$96,MATCH(NPS!$B3,【D】NPS!$B$4:$B$96,0), MATCH(NPS!AD$2&NPS!$R$1,【D】NPS!$C$2:$GO$2&【D】NPS!$C$3:$GO$3,0)) -> - | AE3: =INDEX(【D】NPS!$C$4:$GO$96,MATCH(NPS!$B3,【D】NPS!$B$4:$B$96,0), MATCH(NPS!AE$2&NPS!$R$1,【D】NPS!$C$2:$GO$2&【D】NPS!$C$3:$GO$3,0)) -> - | AH3: =INDEX(【D】NPS!$C$4:$GO$96,MATCH(NPS!$B3,【D】NPS!$B$4:$B$96,0), MATCH(NPS!AH$2&NPS!$AG$1,【D】NPS!$C$2:$GO$2&【D】NPS!$C$3:$GO$3,0)) -> - | AI3: =INDEX(【D】NPS!$C$4:$GO$96,MATCH(NPS!$B3,【D】NPS!$B$4:$B$96,0), MATCH(NPS!AI$2&NPS!$AG$1,【D】NPS!$C$2:$GO$2&【D】NPS!$C$3:$GO$3,0)) -> - | AJ3: =INDEX(【D】NPS!$C$4:$GO$96,MATCH(NPS!$B3,【D】NPS!$B$4:$B$96,0), MATCH(NPS!AJ$2&NPS!$AG$1,【D】NPS!$C$2:$GO$2&【D】NPS!$C$3:$GO$3,0)) -> - | AK3: =INDEX(【D】NPS!$C$4:$GO$96,MATCH(NPS!$B3,【D】NPS!$B$4:$B$96,0), MATCH(NPS!AK$2&NPS!$AG$1,【D】NPS!$C$2:$GO$2&【D】NPS!$C$3:$GO$3,0)) -> - | AL3: =INDEX(【D】NPS!$C$4:$GO$96,MATCH(NPS!$B3,【D】NPS!$B$4:$B$96,0), MATCH(NPS!AL$2&NPS!$AG$1,【D】NPS!$C$2:$GO$2&【D】NPS!$C$3:$GO$3,0)) -> - | AM3: =INDEX(【D】NPS!$C$4:$GO$96,MATCH(NPS!$B3,【D】NPS!$B$4:$B$96,0), MATCH(NPS!AM$2&NPS!$AG$1,【D】NPS!$C$2:$GO$2&【D】NPS!$C$3:$GO$3,0)) -> - | AN3: =INDEX(【D】NPS!$C$4:$GO$96,MATCH(NPS!$B3,【D】NPS!$B$4:$B$96,0), MATCH(NPS!AN$2&NPS!$AG$1,【D】NPS!$C$2:$GO$2&【D】NPS!$C$3:$GO$3,0)) -> - | AO3: =INDEX(【D】NPS!$C$4:$GO$96,MATCH(NPS!$B3,【D】NPS!$B$4:$B$96,0), MATCH(NPS!AO$2&NPS!$AG$1,【D】NPS!$C$2:$GO$2&【D】NPS!$C$3:$GO$3,0)) -> - | AP3: =INDEX(【D】NPS!$C$4:$GO$96,MATCH(NPS!$B3,【D】NPS!$B$4:$B$96,0), MATCH(NPS!AP$2&NPS!$AG$1,【D】NPS!$C$2:$GO$2&【D】NPS!$C$3:$GO$3,0)) -> - | AQ3: =INDEX(【D】NPS!$C$4:$GO$96,MATCH(NPS!$B3,【D】NPS!$B$4:$B$96,0), MATCH(NPS!AQ$2&NPS!$AG$1,【D】NPS!$C$2:$GO$2&【D】NPS!$C$3:$GO$3,0)) -> - | AR3: =INDEX(【D】NPS!$C$4:$GO$96,MATCH(NPS!$B3,【D】NPS!$B$4:$B$96,0), MATCH(NPS!AR$2&NPS!$AG$1,【D】NPS!$C$2:$GO$2&【D】NPS!$C$3:$GO$3,0)) -> - | AS3: =INDEX(【D】NPS!$C$4:$GO$96,MATCH(NPS!$B3,【D】NPS!$B$4:$B$96,0), MATCH(NPS!AS$2&NPS!$AG$1,【D】NPS!$C$2:$GO$2&【D】NPS!$C$3:$GO$3,0)) -> - | AT3: =INDEX(【D】NPS!$C$4:$GO$96,MATCH(NPS!$B3,【D】NPS!$B$4:$B$96,0), MATCH(NPS!AT$2&NPS!$AG$1,【D】NPS!$C$2:$GO$2&【D】NPS!$C$3:$GO$3,0)) -> - | AV3: 1 | AW3: =IFERROR(INDEX($S$6:$AE$95,MATCH(AX3,$B$6:$B$96,0),MATCH(AW$1,$S$2:$AE$2,0)),"-") -> 1 | AX3: =IFERROR( INDEX($B$6:$B$95, MATCH($AV3,OFFSET($AH$6,0,MATCH($AW$1,$AH$2:$AT$2,0)-1,COUNTA($B$6:$B$95),1),0),1),"-") -> 新庄 渓流の里 エリア | AY3: =INDEX($D$6:$P$95,MATCH($AX3,$B$6:$B$95,0),MATCH($AW$1,$D$2:$P$2,0)) -> 100 | AZ3: =INDEX(【D】NPS!$C$7:$HB$96, MATCH(NPS!$AX3,【D】NPS!$B$7:$B$96,0), MATCH(NPS!$AZ$2&NPS!$AW$1,【D】NPS!$C$1:$HB$1&【D】NPS!$C$2:$HB$2,0)) -> 1 | BC3: =施設コード!$E$2 -> (株)まちづくり小浜 | BD3: =D4 -> 0 | BE3: =E4 -> 6.403940887 | BF3: =F4 -> 16.12903226 | BG3: =G4 -> 20.9039548 | BH3: =H4 -> 26.77595628 | BI3: =I4 -> 4.242424242 | BJ3: =J4 -> 0 | BK3: =K4 -> 13.67521368 | BL3: =L4 -> 16.77419355 | BM3: =M4 -> 12.64367816 | BN3: =N4 -> 22.68041237 | BO3: =O4 -> 12.33480176 | BP3: 13.63383417
A4: DMO | B4: =施設コード!$E$2 -> (株)まちづくり小浜 | D4: =INDEX(【D】NPS!$C$4:$GO$77,MATCH(NPS!$B4,【D】NPS!$B$4:$B$77,0), MATCH(NPS!D$2&NPS!$C$1,【D】NPS!$C$2:$GO$2&【D】NPS!$C$3:$GO$3,0)) -> 0 | E4: =INDEX(【D】NPS!$C$4:$GO$77,MATCH(NPS!$B4,【D】NPS!$B$4:$B$77,0), MATCH(NPS!E$2&NPS!$C$1,【D】NPS!$C$2:$GO$2&【D】NPS!$C$3:$GO$3,0)) -> 6.403940887 | F4: =INDEX(【D】NPS!$C$4:$GO$77,MATCH(NPS!$B4,【D】NPS!$B$4:$B$77,0), MATCH(NPS!F$2&NPS!$C$1,【D】NPS!$C$2:$GO$2&【D】NPS!$C$3:$GO$3,0)) -> 16.12903226 | G4: =INDEX(【D】NPS!$C$4:$GO$77,MATCH(NPS!$B4,【D】NPS!$B$4:$B$77,0), MATCH(NPS!G$2&NPS!$C$1,【D】NPS!$C$2:$GO$2&【D】NPS!$C$3:$GO$3,0)) -> 20.9039548 | H4: =INDEX(【D】NPS!$C$4:$GO$77,MATCH(NPS!$B4,【D】NPS!$B$4:$B$77,0), MATCH(NPS!H$2&NPS!$C$1,【D】NPS!$C$2:$GO$2&【D】NPS!$C$3:$GO$3,0)) -> 26.77595628 | I4: =INDEX(【D】NPS!$C$4:$GO$77,MATCH(NPS!$B4,【D】NPS!$B$4:$B$77,0), MATCH(NPS!I$2&NPS!$C$1,【D】NPS!$C$2:$GO$2&【D】NPS!$C$3:$GO$3,0)) -> 4.242424242 | J4: =INDEX(【D】NPS!$C$4:$GO$77,MATCH(NPS!$B4,【D】NPS!$B$4:$B$77,0), MATCH(NPS!J$2&NPS!$C$1,【D】NPS!$C$2:$GO$2&【D】NPS!$C$3:$GO$3,0)) -> 0 | K4: =INDEX(【D】NPS!$C$4:$GO$77,MATCH(NPS!$B4,【D】NPS!$B$4:$B$77,0), MATCH(NPS!K$2&NPS!$C$1,【D】NPS!$C$2:$GO$2&【D】NPS!$C$3:$GO$3,0)) -> 13.67521368 | L4: =INDEX(【D】NPS!$C$4:$GO$77,MATCH(NPS!$B4,【D】NPS!$B$4:$B$77,0), MATCH(NPS!L$2&NPS!$C$1,【D】NPS!$C$2:$GO$2&【D】NPS!$C$3:$GO$3,0)) -> 16.77419355 | M4: =INDEX(【D】NPS!$C$4:$GO$77,MATCH(NPS!$B4,【D】NPS!$B$4:$B$77,0), MATCH(NPS!M$2&NPS!$C$1,【D】NPS!$C$2:$GO$2&【D】NPS!$C$3:$GO$3,0)) -> 12.64367816 | N4: =INDEX(【D】NPS!$C$4:$GO$77,MATCH(NPS!$B4,【D】NPS!$B$4:$B$77,0), MATCH(NPS!N$2&NPS!$C$1,【D】NPS!$C$2:$GO$2&【D】NPS!$C$3:$GO$3,0)) -> 22.68041237 | O4: =INDEX(【D】NPS!$C$4:$GO$77,MATCH(NPS!$B4,【D】NPS!$B$4:$B$77,0), MATCH(NPS!O$2&NPS!$C$1,【D】NPS!$C$2:$GO$2&【D】NPS!$C$3:$GO$3,0)) -> 12.33480176 | P4: =INDEX(【D】NPS!$C$4:$GO$77,MATCH(NPS!$B4,【D】NPS!$B$4:$B$77,0), MATCH(NPS!P$2&NPS!$C$1,【D】NPS!$C$2:$GO$2&【D】NPS!$C$3:$GO$3,0)) -> 13.63383417 | S4: =INDEX(【D】NPS!$C$4:$GO$96,MATCH(NPS!$B4,【D】NPS!$B$4:$B$96,0), MATCH(NPS!S$2&NPS!$R$1,【D】NPS!$C$2:$GO$2&【D】NPS!$C$3:$GO$3,0)) -> - | T4: =INDEX(【D】NPS!$C$4:$GO$96,MATCH(NPS!$B4,【D】NPS!$B$4:$B$96,0), MATCH(NPS!T$2&NPS!$R$1,【D】NPS!$C$2:$GO$2&【D】NPS!$C$3:$GO$3,0)) -> - | U4: =INDEX(【D】NPS!$C$4:$GO$96,MATCH(NPS!$B4,【D】NPS!$B$4:$B$96,0), MATCH(NPS!U$2&NPS!$R$1,【D】NPS!$C$2:$GO$2&【D】NPS!$C$3:$GO$3,0)) -> - | V4: =INDEX(【D】NPS!$C$4:$GO$96,MATCH(NPS!$B4,【D】NPS!$B$4:$B$96,0), MATCH(NPS!V$2&NPS!$R$1,【D】NPS!$C$2:$GO$2&【D】NPS!$C$3:$GO$3,0)) -> - | W4: =INDEX(【D】NPS!$C$4:$GO$96,MATCH(NPS!$B4,【D】NPS!$B$4:$B$96,0), MATCH(NPS!W$2&NPS!$R$1,【D】NPS!$C$2:$GO$2&【D】NPS!$C$3:$GO$3,0)) -> - | X4: =INDEX(【D】NPS!$C$4:$GO$96,MATCH(NPS!$B4,【D】NPS!$B$4:$B$96,0), MATCH(NPS!X$2&NPS!$R$1,【D】NPS!$C$2:$GO$2&【D】NPS!$C$3:$GO$3,0)) -> - | Y4: =INDEX(【D】NPS!$C$4:$GO$96,MATCH(NPS!$B4,【D】NPS!$B$4:$B$96,0), MATCH(NPS!Y$2&NPS!$R$1,【D】NPS!$C$2:$GO$2&【D】NPS!$C$3:$GO$3,0)) -> - | Z4: =INDEX(【D】NPS!$C$4:$GO$96,MATCH(NPS!$B4,【D】NPS!$B$4:$B$96,0), MATCH(NPS!Z$2&NPS!$R$1,【D】NPS!$C$2:$GO$2&【D】NPS!$C$3:$GO$3,0)) -> - | AA4: =INDEX(【D】NPS!$C$4:$GO$96,MATCH(NPS!$B4,【D】NPS!$B$4:$B$96,0), MATCH(NPS!AA$2&NPS!$R$1,【D】NPS!$C$2:$GO$2&【D】NPS!$C$3:$GO$3,0)) -> - | AB4: =INDEX(【D】NPS!$C$4:$GO$96,MATCH(NPS!$B4,【D】NPS!$B$4:$B$96,0), MATCH(NPS!AB$2&NPS!$R$1,【D】NPS!$C$2:$GO$2&【D】NPS!$C$3:$GO$3,0)) -> - | AC4: =INDEX(【D】NPS!$C$4:$GO$96,MATCH(NPS!$B4,【D】NPS!$B$4:$B$96,0), MATCH(NPS!AC$2&NPS!$R$1,【D】NPS!$C$2:$GO$2&【D】NPS!$C$3:$GO$3,0)) -> - | AD4: =INDEX(【D】NPS!$C$4:$GO$96,MATCH(NPS!$B4,【D】NPS!$B$4:$B$96,0), MATCH(NPS!AD$2&NPS!$R$1,【D】NPS!$C$2:$GO$2&【D】NPS!$C$3:$GO$3,0)) -> - | AE4: =INDEX(【D】NPS!$C$4:$GO$96,MATCH(NPS!$B4,【D】NPS!$B$4:$B$96,0), MATCH(NPS!AE$2&NPS!$R$1,【D】NPS!$C$2:$GO$2&【D】NPS!$C$3:$GO$3,0)) -> - | AH4: =INDEX(【D】NPS!$C$4:$GO$96,MATCH(NPS!$B4,【D】NPS!$B$4:$B$96,0), MATCH(NPS!AH$2&NPS!$AG$1,【D】NPS!$C$2:$GO$2&【D】NPS!$C$3:$GO$3,0)) -> - | AI4: =INDEX(【D】NPS!$C$4:$GO$96,MATCH(NPS!$B4,【D】NPS!$B$4:$B$96,0), MATCH(NPS!AI$2&NPS!$AG$1,【D】NPS!$C$2:$GO$2&【D】NPS!$C$3:$GO$3,0)) -> - | AJ4: =INDEX(【D】NPS!$C$4:$GO$96,MATCH(NPS!$B4,【D】NPS!$B$4:$B$96,0), MATCH(NPS!AJ$2&NPS!$AG$1,【D】NPS!$C$2:$GO$2&【D】NPS!$C$3:$GO$3,0)) -> - | AK4: =INDEX(【D】NPS!$C$4:$GO$96,MATCH(NPS!$B4,【D】NPS!$B$4:$B$96,0), MATCH(NPS!AK$2&NPS!$AG$1,【D】NPS!$C$2:$GO$2&【D】NPS!$C$3:$GO$3,0)) -> - | AL4: =INDEX(【D】NPS!$C$4:$GO$96,MATCH(NPS!$B4,【D】NPS!$B$4:$B$96,0), MATCH(NPS!AL$2&NPS!$AG$1,【D】NPS!$C$2:$GO$2&【D】NPS!$C$3:$GO$3,0)) -> - | AM4: =INDEX(【D】NPS!$C$4:$GO$96,MATCH(NPS!$B4,【D】NPS!$B$4:$B$96,0), MATCH(NPS!AM$2&NPS!$AG$1,【D】NPS!$C$2:$GO$2&【D】NPS!$C$3:$GO$3,0)) -> - | AN4: =INDEX(【D】NPS!$C$4:$GO$96,MATCH(NPS!$B4,【D】NPS!$B$4:$B$96,0), MATCH(NPS!AN$2&NPS!$AG$1,【D】NPS!$C$2:$GO$2&【D】NPS!$C$3:$GO$3,0)) -> - | AO4: =INDEX(【D】NPS!$C$4:$GO$96,MATCH(NPS!$B4,【D】NPS!$B$4:$B$96,0), MATCH(NPS!AO$2&NPS!$AG$1,【D】NPS!$C$2:$GO$2&【D】NPS!$C$3:$GO$3,0)) -> - | AP4: =INDEX(【D】NPS!$C$4:$GO$96,MATCH(NPS!$B4,【D】NPS!$B$4:$B$96,0), MATCH(NPS!AP$2&NPS!$AG$1,【D】NPS!$C$2:$GO$2&【D】NPS!$C$3:$GO$3,0)) -> - | AQ4: =INDEX(【D】NPS!$C$4:$GO$96,MATCH(NPS!$B4,【D】NPS!$B$4:$B$96,0), MATCH(NPS!AQ$2&NPS!$AG$1,【D】NPS!$C$2:$GO$2&【D】NPS!$C$3:$GO$3,0)) -> - | AR4: =INDEX(【D】NPS!$C$4:$GO$96,MATCH(NPS!$B4,【D】NPS!$B$4:$B$96,0), MATCH(NPS!AR$2&NPS!$AG$1,【D】NPS!$C$2:$GO$2&【D】NPS!$C$3:$GO$3,0)) -> - | AS4: =INDEX(【D】NPS!$C$4:$GO$96,MATCH(NPS!$B4,【D】NPS!$B$4:$B$96,0), MATCH(NPS!AS$2&NPS!$AG$1,【D】NPS!$C$2:$GO$2&【D】NPS!$C$3:$GO$3,0)) -> - | AT4: =INDEX(【D】NPS!$C$4:$GO$96,MATCH(NPS!$B4,【D】NPS!$B$4:$B$96,0), MATCH(NPS!AT$2&NPS!$AG$1,【D】NPS!$C$2:$GO$2&【D】NPS!$C$3:$GO$3,0)) -> - | AV4: =AV3+1 -> 2 | AW4: =IFERROR(INDEX($S$6:$AE$95,MATCH(AX4,$B$6:$B$96,0),MATCH(AW$1,$S$2:$AE$2,0)),"-") -> 1 | AX4: =IFERROR( INDEX($B$6:$B$95, MATCH($AV4,OFFSET($AH$6,0,MATCH($AW$1,$AH$2:$AT$2,0)-1,COUNTA($B$6:$B$95),1),0),1),"-") -> 水島 エリア | AY4: =INDEX($D$6:$P$95,MATCH($AX4,$B$6:$B$95,0),MATCH($AW$1,$D$2:$P$2,0)) -> 100 | AZ4: =INDEX(【D】NPS!$C$7:$HB$96, MATCH(NPS!$AX4,【D】NPS!$B$7:$B$96,0), MATCH(NPS!$AZ$2&NPS!$AW$1,【D】NPS!$C$1:$HB$1&【D】NPS!$C$2:$HB$2,0)) -> 2 | BC4: =施設コード!$F$2 -> ID(施設コード)を入力してください。 | BD4: None | BE4: None | BF4: None | BG4: None | BH4: None | BI4: None | BJ4: None | BK4: None | BL4: None | BM4: None | BN4: None | BO4: None | BP4: None
A5: 市町村 | B5: =施設コード!$F$2 -> ID(施設コード)を入力してください。 | D5: =INDEX(【D】NPS!$C$4:$GO$77,MATCH(NPS!$B5,【D】NPS!$B$4:$B$77,0), MATCH(NPS!D$2&NPS!$C$1,【D】NPS!$C$2:$GO$2&【D】NPS!$C$3:$GO$3,0)) -> None | E5: =INDEX(【D】NPS!$C$4:$GO$77,MATCH(NPS!$B5,【D】NPS!$B$4:$B$77,0), MATCH(NPS!E$2&NPS!$C$1,【D】NPS!$C$2:$GO$2&【D】NPS!$C$3:$GO$3,0)) -> None | F5: =INDEX(【D】NPS!$C$4:$GO$77,MATCH(NPS!$B5,【D】NPS!$B$4:$B$77,0), MATCH(NPS!F$2&NPS!$C$1,【D】NPS!$C$2:$GO$2&【D】NPS!$C$3:$GO$3,0)) -> None | G5: =INDEX(【D】NPS!$C$4:$GO$77,MATCH(NPS!$B5,【D】NPS!$B$4:$B$77,0), MATCH(NPS!G$2&NPS!$C$1,【D】NPS!$C$2:$GO$2&【D】NPS!$C$3:$GO$3,0)) -> None | H5: =INDEX(【D】NPS!$C$4:$GO$77,MATCH(NPS!$B5,【D】NPS!$B$4:$B$77,0), MATCH(NPS!H$2&NPS!$C$1,【D】NPS!$C$2:$GO$2&【D】NPS!$C$3:$GO$3,0)) -> None | I5: =INDEX(【D】NPS!$C$4:$GO$77,MATCH(NPS!$B5,【D】NPS!$B$4:$B$77,0), MATCH(NPS!I$2&NPS!$C$1,【D】NPS!$C$2:$GO$2&【D】NPS!$C$3:$GO$3,0)) -> None | J5: =INDEX(【D】NPS!$C$4:$GO$77,MATCH(NPS!$B5,【D】NPS!$B$4:$B$77,0), MATCH(NPS!J$2&NPS!$C$1,【D】NPS!$C$2:$GO$2&【D】NPS!$C$3:$GO$3,0)) -> None | K5: =INDEX(【D】NPS!$C$4:$GO$77,MATCH(NPS!$B5,【D】NPS!$B$4:$B$77,0), MATCH(NPS!K$2&NPS!$C$1,【D】NPS!$C$2:$GO$2&【D】NPS!$C$3:$GO$3,0)) -> None | L5: =INDEX(【D】NPS!$C$4:$GO$77,MATCH(NPS!$B5,【D】NPS!$B$4:$B$77,0), MATCH(NPS!L$2&NPS!$C$1,【D】NPS!$C$2:$GO$2&【D】NPS!$C$3:$GO$3,0)) -> None | M5: =INDEX(【D】NPS!$C$4:$GO$77,MATCH(NPS!$B5,【D】NPS!$B$4:$B$77,0), MATCH(NPS!M$2&NPS!$C$1,【D】NPS!$C$2:$GO$2&【D】NPS!$C$3:$GO$3,0)) -> None | N5: =INDEX(【D】NPS!$C$4:$GO$77,MATCH(NPS!$B5,【D】NPS!$B$4:$B$77,0), MATCH(NPS!N$2&NPS!$C$1,【D】NPS!$C$2:$GO$2&【D】NPS!$C$3:$GO$3,0)) -> None | O5: =INDEX(【D】NPS!$C$4:$GO$77,MATCH(NPS!$B5,【D】NPS!$B$4:$B$77,0), MATCH(NPS!O$2&NPS!$C$1,【D】NPS!$C$2:$GO$2&【D】NPS!$C$3:$GO$3,0)) -> None | P5: =INDEX(【D】NPS!$C$4:$GO$77,MATCH(NPS!$B5,【D】NPS!$B$4:$B$77,0), MATCH(NPS!P$2&NPS!$C$1,【D】NPS!$C$2:$GO$2&【D】NPS!$C$3:$GO$3,0)) -> None | S5: =INDEX(【D】NPS!$C$4:$GO$96,MATCH(NPS!$B5,【D】NPS!$B$4:$B$96,0), MATCH(NPS!S$2&NPS!$R$1,【D】NPS!$C$2:$GO$2&【D】NPS!$C$3:$GO$3,0)) -> - | T5: =INDEX(【D】NPS!$C$4:$GO$96,MATCH(NPS!$B5,【D】NPS!$B$4:$B$96,0), MATCH(NPS!T$2&NPS!$R$1,【D】NPS!$C$2:$GO$2&【D】NPS!$C$3:$GO$3,0)) -> - | U5: =INDEX(【D】NPS!$C$4:$GO$96,MATCH(NPS!$B5,【D】NPS!$B$4:$B$96,0), MATCH(NPS!U$2&NPS!$R$1,【D】NPS!$C$2:$GO$2&【D】NPS!$C$3:$GO$3,0)) -> - | V5: =INDEX(【D】NPS!$C$4:$GO$96,MATCH(NPS!$B5,【D】NPS!$B$4:$B$96,0), MATCH(NPS!V$2&NPS!$R$1,【D】NPS!$C$2:$GO$2&【D】NPS!$C$3:$GO$3,0)) -> - | W5: =INDEX(【D】NPS!$C$4:$GO$96,MATCH(NPS!$B5,【D】NPS!$B$4:$B$96,0), MATCH(NPS!W$2&NPS!$R$1,【D】NPS!$C$2:$GO$2&【D】NPS!$C$3:$GO$3,0)) -> - | X5: =INDEX(【D】NPS!$C$4:$GO$96,MATCH(NPS!$B5,【D】NPS!$B$4:$B$96,0), MATCH(NPS!X$2&NPS!$R$1,【D】NPS!$C$2:$GO$2&【D】NPS!$C$3:$GO$3,0)) -> - | Y5: =INDEX(【D】NPS!$C$4:$GO$96,MATCH(NPS!$B5,【D】NPS!$B$4:$B$96,0), MATCH(NPS!Y$2&NPS!$R$1,【D】NPS!$C$2:$GO$2&【D】NPS!$C$3:$GO$3,0)) -> - | Z5: =INDEX(【D】NPS!$C$4:$GO$96,MATCH(NPS!$B5,【D】NPS!$B$4:$B$96,0), MATCH(NPS!Z$2&NPS!$R$1,【D】NPS!$C$2:$GO$2&【D】NPS!$C$3:$GO$3,0)) -> - | AA5: =INDEX(【D】NPS!$C$4:$GO$96,MATCH(NPS!$B5,【D】NPS!$B$4:$B$96,0), MATCH(NPS!AA$2&NPS!$R$1,【D】NPS!$C$2:$GO$2&【D】NPS!$C$3:$GO$3,0)) -> - | AB5: =INDEX(【D】NPS!$C$4:$GO$96,MATCH(NPS!$B5,【D】NPS!$B$4:$B$96,0), MATCH(NPS!AB$2&NPS!$R$1,【D】NPS!$C$2:$GO$2&【D】NPS!$C$3:$GO$3,0)) -> - | AC5: =INDEX(【D】NPS!$C$4:$GO$96,MATCH(NPS!$B5,【D】NPS!$B$4:$B$96,0), MATCH(NPS!AC$2&NPS!$R$1,【D】NPS!$C$2:$GO$2&【D】NPS!$C$3:$GO$3,0)) -> - | AD5: =INDEX(【D】NPS!$C$4:$GO$96,MATCH(NPS!$B5,【D】NPS!$B$4:$B$96,0), MATCH(NPS!AD$2&NPS!$R$1,【D】NPS!$C$2:$GO$2&【D】NPS!$C$3:$GO$3,0)) -> - | AE5: =INDEX(【D】NPS!$C$4:$GO$96,MATCH(NPS!$B5,【D】NPS!$B$4:$B$96,0), MATCH(NPS!AE$2&NPS!$R$1,【D】NPS!$C$2:$GO$2&【D】NPS!$C$3:$GO$3,0)) -> - | AH5: =INDEX(【D】NPS!$C$4:$GO$96,MATCH(NPS!$B5,【D】NPS!$B$4:$B$96,0), MATCH(NPS!AH$2&NPS!$AG$1,【D】NPS!$C$2:$GO$2&【D】NPS!$C$3:$GO$3,0)) -> - | AI5: =INDEX(【D】NPS!$C$4:$GO$96,MATCH(NPS!$B5,【D】NPS!$B$4:$B$96,0), MATCH(NPS!AI$2&NPS!$AG$1,【D】NPS!$C$2:$GO$2&【D】NPS!$C$3:$GO$3,0)) -> - | AJ5: =INDEX(【D】NPS!$C$4:$GO$96,MATCH(NPS!$B5,【D】NPS!$B$4:$B$96,0), MATCH(NPS!AJ$2&NPS!$AG$1,【D】NPS!$C$2:$GO$2&【D】NPS!$C$3:$GO$3,0)) -> - | AK5: =INDEX(【D】NPS!$C$4:$GO$96,MATCH(NPS!$B5,【D】NPS!$B$4:$B$96,0), MATCH(NPS!AK$2&NPS!$AG$1,【D】NPS!$C$2:$GO$2&【D】NPS!$C$3:$GO$3,0)) -> - | AL5: =INDEX(【D】NPS!$C$4:$GO$96,MATCH(NPS!$B5,【D】NPS!$B$4:$B$96,0), MATCH(NPS!AL$2&NPS!$AG$1,【D】NPS!$C$2:$GO$2&【D】NPS!$C$3:$GO$3,0)) -> - | AM5: =INDEX(【D】NPS!$C$4:$GO$96,MATCH(NPS!$B5,【D】NPS!$B$4:$B$96,0), MATCH(NPS!AM$2&NPS!$AG$1,【D】NPS!$C$2:$GO$2&【D】NPS!$C$3:$GO$3,0)) -> - | AN5: =INDEX(【D】NPS!$C$4:$GO$96,MATCH(NPS!$B5,【D】NPS!$B$4:$B$96,0), MATCH(NPS!AN$2&NPS!$AG$1,【D】NPS!$C$2:$GO$2&【D】NPS!$C$3:$GO$3,0)) -> - | AO5: =INDEX(【D】NPS!$C$4:$GO$96,MATCH(NPS!$B5,【D】NPS!$B$4:$B$96,0), MATCH(NPS!AO$2&NPS!$AG$1,【D】NPS!$C$2:$GO$2&【D】NPS!$C$3:$GO$3,0)) -> - | AP5: =INDEX(【D】NPS!$C$4:$GO$96,MATCH(NPS!$B5,【D】NPS!$B$4:$B$96,0), MATCH(NPS!AP$2&NPS!$AG$1,【D】NPS!$C$2:$GO$2&【D】NPS!$C$3:$GO$3,0)) -> - | AQ5: =INDEX(【D】NPS!$C$4:$GO$96,MATCH(NPS!$B5,【D】NPS!$B$4:$B$96,0), MATCH(NPS!AQ$2&NPS!$AG$1,【D】NPS!$C$2:$GO$2&【D】NPS!$C$3:$GO$3,0)) -> - | AR5: =INDEX(【D】NPS!$C$4:$GO$96,MATCH(NPS!$B5,【D】NPS!$B$4:$B$96,0), MATCH(NPS!AR$2&NPS!$AG$1,【D】NPS!$C$2:$GO$2&【D】NPS!$C$3:$GO$3,0)) -> - | AS5: =INDEX(【D】NPS!$C$4:$GO$96,MATCH(NPS!$B5,【D】NPS!$B$4:$B$96,0), MATCH(NPS!AS$2&NPS!$AG$1,【D】NPS!$C$2:$GO$2&【D】NPS!$C$3:$GO$3,0)) -> - | AT5: =INDEX(【D】NPS!$C$4:$GO$96,MATCH(NPS!$B5,【D】NPS!$B$4:$B$96,0), MATCH(NPS!AT$2&NPS!$AG$1,【D】NPS!$C$2:$GO$2&【D】NPS!$C$3:$GO$3,0)) -> - | AV5: =AV4+1 -> 3 | AW5: =IFERROR(INDEX($S$6:$AE$95,MATCH(AX5,$B$6:$B$96,0),MATCH(AW$1,$S$2:$AE$2,0)),"-") -> 1 | AX5: =IFERROR( INDEX($B$6:$B$95, MATCH($AV5,OFFSET($AH$6,0,MATCH($AW$1,$AH$2:$AT$2,0)-1,COUNTA($B$6:$B$95),1),0),1),"-") -> 波松 エリア | AY5: =INDEX($D$6:$P$95,MATCH($AX5,$B$6:$B$95,0),MATCH($AW$1,$D$2:$P$2,0)) -> 100 | AZ5: =INDEX(【D】NPS!$C$7:$HB$96, MATCH(NPS!$AX5,【D】NPS!$B$7:$B$96,0), MATCH(NPS!$AZ$2&NPS!$AW$1,【D】NPS!$C$1:$HB$1&【D】NPS!$C$2:$HB$2,0)) -> 1 | BC5: =施設コード!$C$2 -> ID(施設コード)を入力してください。 | BD5: =INDEX(D$6:D$76,MATCH($BC$5,$B$6:$B$76,0),1) ->  | BE5: =INDEX(E$6:E$76,MATCH($BC$5,$B$6:$B$76,0),1) -> 
A6: 回答エリア | B6: 福井駅前 エリア | D6: =INDEX(【D】NPS!$C$4:$GO$96,MATCH(NPS!$B6,【D】NPS!$B$4:$B$96,0), MATCH(NPS!D$2&NPS!$C$1,【D】NPS!$C$2:$GO$2&【D】NPS!$C$3:$GO$3,0)) -> 14.28571429 | E6: =INDEX(【D】NPS!$C$4:$GO$96,MATCH(NPS!$B6,【D】NPS!$B$4:$B$96,0), MATCH(NPS!E$2&NPS!$C$1,【D】NPS!$C$2:$GO$2&【D】NPS!$C$3:$GO$3,0)) -> 1.265822785 | F6: =INDEX(【D】NPS!$C$4:$GO$96,MATCH(NPS!$B6,【D】NPS!$B$4:$B$96,0), MATCH(NPS!F$2&NPS!$C$1,【D】NPS!$C$2:$GO$2&【D】NPS!$C$3:$GO$3,0)) -> -1.785714286 | G6: =INDEX(【D】NPS!$C$4:$GO$96,MATCH(NPS!$B6,【D】NPS!$B$4:$B$96,0), MATCH(NPS!G$2&NPS!$C$1,【D】NPS!$C$2:$GO$2&【D】NPS!$C$3:$GO$3,0)) -> 0 | H6: =INDEX(【D】NPS!$C$4:$GO$96,MATCH(NPS!$B6,【D】NPS!$B$4:$B$96,0), MATCH(NPS!H$2&NPS!$C$1,【D】NPS!$C$2:$GO$2&【D】NPS!$C$3:$GO$3,0)) -> -6.756756757 | I6: =INDEX(【D】NPS!$C$4:$GO$96,MATCH(NPS!$B6,【D】NPS!$B$4:$B$96,0), MATCH(NPS!I$2&NPS!$C$1,【D】NPS!$C$2:$GO$2&【D】NPS!$C$3:$GO$3,0)) -> 9.523809524 | J6: =INDEX(【D】NPS!$C$4:$GO$96,MATCH(NPS!$B6,【D】NPS!$B$4:$B$96,0), MATCH(NPS!J$2&NPS!$C$1,【D】NPS!$C$2:$GO$2&【D】NPS!$C$3:$GO$3,0)) -> -9.87654321 | K6: =INDEX(【D】NPS!$C$4:$GO$96,MATCH(NPS!$B6,【D】NPS!$B$4:$B$96,0), MATCH(NPS!K$2&NPS!$C$1,【D】NPS!$C$2:$GO$2&【D】NPS!$C$3:$GO$3,0)) -> 9.523809524 | L6: =INDEX(【D】NPS!$C$4:$GO$96,MATCH(NPS!$B6,【D】NPS!$B$4:$B$96,0), MATCH(NPS!L$2&NPS!$C$1,【D】NPS!$C$2:$GO$2&【D】NPS!$C$3:$GO$3,0)) -> -10.52631579 | M6: =INDEX(【D】NPS!$C$4:$GO$96,MATCH(NPS!$B6,【D】NPS!$B$4:$B$96,0), MATCH(NPS!M$2&NPS!$C$1,【D】NPS!$C$2:$GO$2&【D】NPS!$C$3:$GO$3,0)) -> 15.625 | N6: =INDEX(【D】NPS!$C$4:$GO$96,MATCH(NPS!$B6,【D】NPS!$B$4:$B$96,0), MATCH(NPS!N$2&NPS!$C$1,【D】NPS!$C$2:$GO$2&【D】NPS!$C$3:$GO$3,0)) -> 15.78947368 | O6: =INDEX(【D】NPS!$C$4:$GO$96,MATCH(NPS!$B6,【D】NPS!$B$4:$B$96,0), MATCH(NPS!O$2&NPS!$C$1,【D】NPS!$C$2:$GO$2&【D】NPS!$C$3:$GO$3,0)) -> 9.259259259 | P6: =INDEX(【D】NPS!$C$4:$GO$96,MATCH(NPS!$B6,【D】NPS!$B$4:$B$96,0), MATCH(NPS!P$2&NPS!$C$1,【D】NPS!$C$2:$GO$2&【D】NPS!$C$3:$GO$3,0)) -> 3.125 | S6: =INDEX(【D】NPS!$C$4:$GO$96,MATCH(NPS!$B6,【D】NPS!$B$4:$B$96,0), MATCH(NPS!S$2&NPS!$R$1,【D】NPS!$C$2:$GO$2&【D】NPS!$C$3:$GO$3,0)) -> 19 | T6: =INDEX(【D】NPS!$C$4:$GO$96,MATCH(NPS!$B6,【D】NPS!$B$4:$B$96,0), MATCH(NPS!T$2&NPS!$R$1,【D】NPS!$C$2:$GO$2&【D】NPS!$C$3:$GO$3,0)) -> 40 | U6: =INDEX(【D】NPS!$C$4:$GO$96,MATCH(NPS!$B6,【D】NPS!$B$4:$B$96,0), MATCH(NPS!U$2&NPS!$R$1,【D】NPS!$C$2:$GO$2&【D】NPS!$C$3:$GO$3,0)) -> 49 | V6: =INDEX(【D】NPS!$C$4:$GO$96,MATCH(NPS!$B6,【D】NPS!$B$4:$B$96,0), MATCH(NPS!V$2&NPS!$R$1,【D】NPS!$C$2:$GO$2&【D】NPS!$C$3:$GO$3,0)) -> 44 | W6: =INDEX(【D】NPS!$C$4:$GO$96,MATCH(NPS!$B6,【D】NPS!$B$4:$B$96,0), MATCH(NPS!W$2&NPS!$R$1,【D】NPS!$C$2:$GO$2&【D】NPS!$C$3:$GO$3,0)) -> 61 | X6: =INDEX(【D】NPS!$C$4:$GO$96,MATCH(NPS!$B6,【D】NPS!$B$4:$B$96,0), MATCH(NPS!X$2&NPS!$R$1,【D】NPS!$C$2:$GO$2&【D】NPS!$C$3:$GO$3,0)) -> 27 | Y6: =INDEX(【D】NPS!$C$4:$GO$96,MATCH(NPS!$B6,【D】NPS!$B$4:$B$96,0), MATCH(NPS!Y$2&NPS!$R$1,【D】NPS!$C$2:$GO$2&【D】NPS!$C$3:$GO$3,0)) -> 46 | Z6: =INDEX(【D】NPS!$C$4:$GO$96,MATCH(NPS!$B6,【D】NPS!$B$4:$B$96,0), MATCH(NPS!Z$2&NPS!$R$1,【D】NPS!$C$2:$GO$2&【D】NPS!$C$3:$GO$3,0)) -> 40 | AA6: =INDEX(【D】NPS!$C$4:$GO$96,MATCH(NPS!$B6,【D】NPS!$B$4:$B$96,0), MATCH(NPS!AA$2&NPS!$R$1,【D】NPS!$C$2:$GO$2&【D】NPS!$C$3:$GO$3,0)) -> 61 | AB6: =INDEX(【D】NPS!$C$4:$GO$96,MATCH(NPS!$B6,【D】NPS!$B$4:$B$96,0), MATCH(NPS!AB$2&NPS!$R$1,【D】NPS!$C$2:$GO$2&【D】NPS!$C$3:$GO$3,0)) -> 36 | AC6: =INDEX(【D】NPS!$C$4:$GO$96,MATCH(NPS!$B6,【D】NPS!$B$4:$B$96,0), MATCH(NPS!AC$2&NPS!$R$1,【D】NPS!$C$2:$GO$2&【D】NPS!$C$3:$GO$3,0)) -> 26 | AD6: =INDEX(【D】NPS!$C$4:$GO$96,MATCH(NPS!$B6,【D】NPS!$B$4:$B$96,0), MATCH(NPS!AD$2&NPS!$R$1,【D】NPS!$C$2:$GO$2&【D】NPS!$C$3:$GO$3,0)) -> 50 | AE6: =INDEX(【D】NPS!$C$4:$GO$96,MATCH(NPS!$B6,【D】NPS!$B$4:$B$96,0), MATCH(NPS!AE$2&NPS!$R$1,【D】NPS!$C$2:$GO$2&【D】NPS!$C$3:$GO$3,0)) -> 44 | AH6: =INDEX(【D】NPS!$C$4:$GO$96,MATCH(NPS!$B6,【D】NPS!$B$4:$B$96,0), MATCH(NPS!AH$2&NPS!$AG$1,【D】NPS!$C$2:$GO$2&【D】NPS!$C$3:$GO$3,0)) -> 19 | AI6: =INDEX(【D】NPS!$C$4:$GO$96,MATCH(NPS!$B6,【D】NPS!$B$4:$B$96,0), MATCH(NPS!AI$2&NPS!$AG$1,【D】NPS!$C$2:$GO$2&【D】NPS!$C$3:$GO$3,0)) -> 40 | AJ6: =INDEX(【D】NPS!$C$4:$GO$96,MATCH(NPS!$B6,【D】NPS!$B$4:$B$96,0), MATCH(NPS!AJ$2&NPS!$AG$1,【D】NPS!$C$2:$GO$2&【D】NPS!$C$3:$GO$3,0)) -> 49 | AK6: =INDEX(【D】NPS!$C$4:$GO$96,MATCH(NPS!$B6,【D】NPS!$B$4:$B$96,0), MATCH(NPS!AK$2&NPS!$AG$1,【D】NPS!$C$2:$GO$2&【D】NPS!$C$3:$GO$3,0)) -> 53 | AL6: =INDEX(【D】NPS!$C$4:$GO$96,MATCH(NPS!$B6,【D】NPS!$B$4:$B$96,0), MATCH(NPS!AL$2&NPS!$AG$1,【D】NPS!$C$2:$GO$2&【D】NPS!$C$3:$GO$3,0)) -> 61 | AM6: =INDEX(【D】NPS!$C$4:$GO$96,MATCH(NPS!$B6,【D】NPS!$B$4:$B$96,0), MATCH(NPS!AM$2&NPS!$AG$1,【D】NPS!$C$2:$GO$2&【D】NPS!$C$3:$GO$3,0)) -> 27 | AN6: =INDEX(【D】NPS!$C$4:$GO$96,MATCH(NPS!$B6,【D】NPS!$B$4:$B$96,0), MATCH(NPS!AN$2&NPS!$AG$1,【D】NPS!$C$2:$GO$2&【D】NPS!$C$3:$GO$3,0)) -> 46 | AO6: =INDEX(【D】NPS!$C$4:$GO$96,MATCH(NPS!$B6,【D】NPS!$B$4:$B$96,0), MATCH(NPS!AO$2&NPS!$AG$1,【D】NPS!$C$2:$GO$2&【D】NPS!$C$3:$GO$3,0)) -> 40 | AP6: =INDEX(【D】NPS!$C$4:$GO$96,MATCH(NPS!$B6,【D】NPS!$B$4:$B$96,0), MATCH(NPS!AP$2&NPS!$AG$1,【D】NPS!$C$2:$GO$2&【D】NPS!$C$3:$GO$3,0)) -> 61 | AQ6: =INDEX(【D】NPS!$C$4:$GO$96,MATCH(NPS!$B6,【D】NPS!$B$4:$B$96,0), MATCH(NPS!AQ$2&NPS!$AG$1,【D】NPS!$C$2:$GO$2&【D】NPS!$C$3:$GO$3,0)) -> 36 | AR6: =INDEX(【D】NPS!$C$4:$GO$96,MATCH(NPS!$B6,【D】NPS!$B$4:$B$96,0), MATCH(NPS!AR$2&NPS!$AG$1,【D】NPS!$C$2:$GO$2&【D】NPS!$C$3:$GO$3,0)) -> 27 | AS6: =INDEX(【D】NPS!$C$4:$GO$96,MATCH(NPS!$B6,【D】NPS!$B$4:$B$96,0), MATCH(NPS!AS$2&NPS!$AG$1,【D】NPS!$C$2:$GO$2&【D】NPS!$C$3:$GO$3,0)) -> 50 | AT6: =INDEX(【D】NPS!$C$4:$GO$96,MATCH(NPS!$B6,【D】NPS!$B$4:$B$96,0), MATCH(NPS!AT$2&NPS!$AG$1,【D】NPS!$C$2:$GO$2&【D】NPS!$C$3:$GO$3,0)) -> 44 | AV6: 4 | AW6: =IFERROR(INDEX($S$6:$AE$95,MATCH(AX6,$B$6:$B$95,0),MATCH(AW$1,$S$2:$AE$2,0)),"-") -> 1 | AX6: =IFERROR( INDEX($B$6:$B$95, MATCH($AV6,OFFSET($AH$6,0,MATCH($AW$1,$AH$2:$AT$2,0)-1,COUNTA($B$6:$B$95),1),0),1),"-") -> 赤礁崎オートキャンプ場 エリア | AY6: =INDEX($D$6:$P$95,MATCH($AX6,$B$6:$B$95,0),MATCH($AW$1,$D$2:$P$2,0)) -> 100 | AZ6: =INDEX(【D】NPS!$C$7:$HB$96, MATCH(NPS!$AX6,【D】NPS!$B$7:$B$96,0), MATCH(NPS!$AZ$2&NPS!$AW$1,【D】NPS!$C$1:$HB$1&【D】NPS!$C$2:$HB$2,0)) -> 4
B7: 福井駅前 エリア（宿泊施設） | D7: =INDEX(【D】NPS!$C$4:$GO$96,MATCH(NPS!$B7,【D】NPS!$B$4:$B$96,0), MATCH(NPS!D$2&NPS!$C$1,【D】NPS!$C$2:$GO$2&【D】NPS!$C$3:$GO$3,0)) -> 100 | E7: =INDEX(【D】NPS!$C$4:$GO$96,MATCH(NPS!$B7,【D】NPS!$B$4:$B$96,0), MATCH(NPS!E$2&NPS!$C$1,【D】NPS!$C$2:$GO$2&【D】NPS!$C$3:$GO$3,0)) -> 11.11111111 | F7: =INDEX(【D】NPS!$C$4:$GO$96,MATCH(NPS!$B7,【D】NPS!$B$4:$B$96,0), MATCH(NPS!F$2&NPS!$C$1,【D】NPS!$C$2:$GO$2&【D】NPS!$C$3:$GO$3,0)) -> -18.75 | G7: =INDEX(【D】NPS!$C$4:$GO$96,MATCH(NPS!$B7,【D】NPS!$B$4:$B$96,0), MATCH(NPS!G$2&NPS!$C$1,【D】NPS!$C$2:$GO$2&【D】NPS!$C$3:$GO$3,0)) -> -4 | H7: =INDEX(【D】NPS!$C$4:$GO$96,MATCH(NPS!$B7,【D】NPS!$B$4:$B$96,0), MATCH(NPS!H$2&NPS!$C$1,【D】NPS!$C$2:$GO$2&【D】NPS!$C$3:$GO$3,0)) -> 18.75 | I7: =INDEX(【D】NPS!$C$4:$GO$96,MATCH(NPS!$B7,【D】NPS!$B$4:$B$96,0), MATCH(NPS!I$2&NPS!$C$1,【D】NPS!$C$2:$GO$2&【D】NPS!$C$3:$GO$3,0)) -> -28.57142857 | J7: =INDEX(【D】NPS!$C$4:$GO$96,MATCH(NPS!$B7,【D】NPS!$B$4:$B$96,0), MATCH(NPS!J$2&NPS!$C$1,【D】NPS!$C$2:$GO$2&【D】NPS!$C$3:$GO$3,0)) -> -2.222222222 | K7: =INDEX(【D】NPS!$C$4:$GO$96,MATCH(NPS!$B7,【D】NPS!$B$4:$B$96,0), MATCH(NPS!K$2&NPS!$C$1,【D】NPS!$C$2:$GO$2&【D】NPS!$C$3:$GO$3,0)) -> 14.75409836 | L7: =INDEX(【D】NPS!$C$4:$GO$96,MATCH(NPS!$B7,【D】NPS!$B$4:$B$96,0), MATCH(NPS!L$2&NPS!$C$1,【D】NPS!$C$2:$GO$2&【D】NPS!$C$3:$GO$3,0)) -> 7.692307692 | M7: =INDEX(【D】NPS!$C$4:$GO$96,MATCH(NPS!$B7,【D】NPS!$B$4:$B$96,0), MATCH(NPS!M$2&NPS!$C$1,【D】NPS!$C$2:$GO$2&【D】NPS!$C$3:$GO$3,0)) -> 9.375 | N7: =INDEX(【D】NPS!$C$4:$GO$96,MATCH(NPS!$B7,【D】NPS!$B$4:$B$96,0), MATCH(NPS!N$2&NPS!$C$1,【D】NPS!$C$2:$GO$2&【D】NPS!$C$3:$GO$3,0)) -> 12 | O7: =INDEX(【D】NPS!$C$4:$GO$96,MATCH(NPS!$B7,【D】NPS!$B$4:$B$96,0), MATCH(NPS!O$2&NPS!$C$1,【D】NPS!$C$2:$GO$2&【D】NPS!$C$3:$GO$3,0)) -> 29.23076923 | P7: =INDEX(【D】NPS!$C$4:$GO$96,MATCH(NPS!$B7,【D】NPS!$B$4:$B$96,0), MATCH(NPS!P$2&NPS!$C$1,【D】NPS!$C$2:$GO$2&【D】NPS!$C$3:$GO$3,0)) -> 8.80952381 | S7: =INDEX(【D】NPS!$C$4:$GO$96,MATCH(NPS!$B7,【D】NPS!$B$4:$B$96,0), MATCH(NPS!S$2&NPS!$R$1,【D】NPS!$C$2:$GO$2&【D】NPS!$C$3:$GO$3,0)) -> 1 | T7: =INDEX(【D】NPS!$C$4:$GO$96,MATCH(NPS!$B7,【D】NPS!$B$4:$B$96,0), MATCH(NPS!T$2&NPS!$R$1,【D】NPS!$C$2:$GO$2&【D】NPS!$C$3:$GO$3,0)) -> 30 | U7: =INDEX(【D】NPS!$C$4:$GO$96,MATCH(NPS!$B7,【D】NPS!$B$4:$B$96,0), MATCH(NPS!U$2&NPS!$R$1,【D】NPS!$C$2:$GO$2&【D】NPS!$C$3:$GO$3,0)) -> 61 | V7: =INDEX(【D】NPS!$C$4:$GO$96,MATCH(NPS!$B7,【D】NPS!$B$4:$B$96,0), MATCH(NPS!V$2&NPS!$R$1,【D】NPS!$C$2:$GO$2&【D】NPS!$C$3:$GO$3,0)) -> 55 | W7: =INDEX(【D】NPS!$C$4:$GO$96,MATCH(NPS!$B7,【D】NPS!$B$4:$B$96,0), MATCH(NPS!W$2&NPS!$R$1,【D】NPS!$C$2:$GO$2&【D】NPS!$C$3:$GO$3,0)) -> 32 | X7: =INDEX(【D】NPS!$C$4:$GO$96,MATCH(NPS!$B7,【D】NPS!$B$4:$B$96,0), MATCH(NPS!X$2&NPS!$R$1,【D】NPS!$C$2:$GO$2&【D】NPS!$C$3:$GO$3,0)) -> 76 | Y7: =INDEX(【D】NPS!$C$4:$GO$96,MATCH(NPS!$B7,【D】NPS!$B$4:$B$96,0), MATCH(NPS!Y$2&NPS!$R$1,【D】NPS!$C$2:$GO$2&【D】NPS!$C$3:$GO$3,0)) -> 36 | Z7: =INDEX(【D】NPS!$C$4:$GO$96,MATCH(NPS!$B7,【D】NPS!$B$4:$B$96,0), MATCH(NPS!Z$2&NPS!$R$1,【D】NPS!$C$2:$GO$2&【D】NPS!$C$3:$GO$3,0)) -> 27 | AA7: =INDEX(【D】NPS!$C$4:$GO$96,MATCH(NPS!$B7,【D】NPS!$B$4:$B$96,0), MATCH(NPS!AA$2&NPS!$R$1,【D】NPS!$C$2:$GO$2&【D】NPS!$C$3:$GO$3,0)) -> 40 | AB7: =INDEX(【D】NPS!$C$4:$GO$96,MATCH(NPS!$B7,【D】NPS!$B$4:$B$96,0), MATCH(NPS!AB$2&NPS!$R$1,【D】NPS!$C$2:$GO$2&【D】NPS!$C$3:$GO$3,0)) -> 40 | AC7: =INDEX(【D】NPS!$C$4:$GO$96,MATCH(NPS!$B7,【D】NPS!$B$4:$B$96,0), MATCH(NPS!AC$2&NPS!$R$1,【D】NPS!$C$2:$GO$2&【D】NPS!$C$3:$GO$3,0)) -> 33 | AD7: =INDEX(【D】NPS!$C$4:$GO$96,MATCH(NPS!$B7,【D】NPS!$B$4:$B$96,0), MATCH(NPS!AD$2&NPS!$R$1,【D】NPS!$C$2:$GO$2&【D】NPS!$C$3:$GO$3,0)) -> 20 | AE7: =INDEX(【D】NPS!$C$4:$GO$96,MATCH(NPS!$B7,【D】NPS!$B$4:$B$96,0), MATCH(NPS!AE$2&NPS!$R$1,【D】NPS!$C$2:$GO$2&【D】NPS!$C$3:$GO$3,0)) -> 30 | AH7: =INDEX(【D】NPS!$C$4:$GO$96,MATCH(NPS!$B7,【D】NPS!$B$4:$B$96,0), MATCH(NPS!AH$2&NPS!$AG$1,【D】NPS!$C$2:$GO$2&【D】NPS!$C$3:$GO$3,0)) -> 3 | AI7: =INDEX(【D】NPS!$C$4:$GO$96,MATCH(NPS!$B7,【D】NPS!$B$4:$B$96,0), MATCH(NPS!AI$2&NPS!$AG$1,【D】NPS!$C$2:$GO$2&【D】NPS!$C$3:$GO$3,0)) -> 30 | AJ7: =INDEX(【D】NPS!$C$4:$GO$96,MATCH(NPS!$B7,【D】NPS!$B$4:$B$96,0), MATCH(NPS!AJ$2&NPS!$AG$1,【D】NPS!$C$2:$GO$2&【D】NPS!$C$3:$GO$3,0)) -> 61 | AK7: =INDEX(【D】NPS!$C$4:$GO$96,MATCH(NPS!$B7,【D】NPS!$B$4:$B$96,0), MATCH(NPS!AK$2&NPS!$AG$1,【D】NPS!$C$2:$GO$2&【D】NPS!$C$3:$GO$3,0)) -> 55 | AL7: =INDEX(【D】NPS!$C$4:$GO$96,MATCH(NPS!$B7,【D】NPS!$B$4:$B$96,0), MATCH(NPS!AL$2&NPS!$AG$1,【D】NPS!$C$2:$GO$2&【D】NPS!$C$3:$GO$3,0)) -> 32 | AM7: =INDEX(【D】NPS!$C$4:$GO$96,MATCH(NPS!$B7,【D】NPS!$B$4:$B$96,0), MATCH(NPS!AM$2&NPS!$AG$1,【D】NPS!$C$2:$GO$2&【D】NPS!$C$3:$GO$3,0)) -> 77 | AN7: =INDEX(【D】NPS!$C$4:$GO$96,MATCH(NPS!$B7,【D】NPS!$B$4:$B$96,0), MATCH(NPS!AN$2&NPS!$AG$1,【D】NPS!$C$2:$GO$2&【D】NPS!$C$3:$GO$3,0)) -> 36 | AO7: =INDEX(【D】NPS!$C$4:$GO$96,MATCH(NPS!$B7,【D】NPS!$B$4:$B$96,0), MATCH(NPS!AO$2&NPS!$AG$1,【D】NPS!$C$2:$GO$2&【D】NPS!$C$3:$GO$3,0)) -> 27 | AP7: =INDEX(【D】NPS!$C$4:$GO$96,MATCH(NPS!$B7,【D】NPS!$B$4:$B$96,0), MATCH(NPS!AP$2&NPS!$AG$1,【D】NPS!$C$2:$GO$2&【D】NPS!$C$3:$GO$3,0)) -> 40 | AQ7: =INDEX(【D】NPS!$C$4:$GO$96,MATCH(NPS!$B7,【D】NPS!$B$4:$B$96,0), MATCH(NPS!AQ$2&NPS!$AG$1,【D】NPS!$C$2:$GO$2&【D】NPS!$C$3:$GO$3,0)) -> 40 | AR7: =INDEX(【D】NPS!$C$4:$GO$96,MATCH(NPS!$B7,【D】NPS!$B$4:$B$96,0), MATCH(NPS!AR$2&NPS!$AG$1,【D】NPS!$C$2:$GO$2&【D】NPS!$C$3:$GO$3,0)) -> 33 | AS7: =INDEX(【D】NPS!$C$4:$GO$96,MATCH(NPS!$B7,【D】NPS!$B$4:$B$96,0), MATCH(NPS!AS$2&NPS!$AG$1,【D】NPS!$C$2:$GO$2&【D】NPS!$C$3:$GO$3,0)) -> 20 | AT7: =INDEX(【D】NPS!$C$4:$GO$96,MATCH(NPS!$B7,【D】NPS!$B$4:$B$96,0), MATCH(NPS!AT$2&NPS!$AG$1,【D】NPS!$C$2:$GO$2&【D】NPS!$C$3:$GO$3,0)) -> 30 | AV7: 5 | AW7: 5 | AX7: 越前海岸 茂原民宿街 エリア | AY7: 75 | AZ7: =INDEX(【D】NPS!$C$7:$HB$96, MATCH(NPS!$AX7,【D】NPS!$B$7:$B$96,0), MATCH(NPS!$AZ$2&NPS!$AW$1,【D】NPS!$C$1:$HB$1&【D】NPS!$C$2:$HB$2,0)) -> 8
B8: 北ノ庄 エリア | D8: =INDEX(【D】NPS!$C$4:$GO$96,MATCH(NPS!$B8,【D】NPS!$B$4:$B$96,0), MATCH(NPS!D$2&NPS!$C$1,【D】NPS!$C$2:$GO$2&【D】NPS!$C$3:$GO$3,0)) -> 0 | E8: =INDEX(【D】NPS!$C$4:$GO$96,MATCH(NPS!$B8,【D】NPS!$B$4:$B$96,0), MATCH(NPS!E$2&NPS!$C$1,【D】NPS!$C$2:$GO$2&【D】NPS!$C$3:$GO$3,0)) -> -29.41176471 | F8: =INDEX(【D】NPS!$C$4:$GO$96,MATCH(NPS!$B8,【D】NPS!$B$4:$B$96,0), MATCH(NPS!F$2&NPS!$C$1,【D】NPS!$C$2:$GO$2&【D】NPS!$C$3:$GO$3,0)) -> -60 | G8: =INDEX(【D】NPS!$C$4:$GO$96,MATCH(NPS!$B8,【D】NPS!$B$4:$B$96,0), MATCH(NPS!G$2&NPS!$C$1,【D】NPS!$C$2:$GO$2&【D】NPS!$C$3:$GO$3,0)) -> -7.142857143 | H8: =INDEX(【D】NPS!$C$4:$GO$96,MATCH(NPS!$B8,【D】NPS!$B$4:$B$96,0), MATCH(NPS!H$2&NPS!$C$1,【D】NPS!$C$2:$GO$2&【D】NPS!$C$3:$GO$3,0)) -> -4.347826087 | I8: =INDEX(【D】NPS!$C$4:$GO$96,MATCH(NPS!$B8,【D】NPS!$B$4:$B$96,0), MATCH(NPS!I$2&NPS!$C$1,【D】NPS!$C$2:$GO$2&【D】NPS!$C$3:$GO$3,0)) -> 5 | J8: =INDEX(【D】NPS!$C$4:$GO$96,MATCH(NPS!$B8,【D】NPS!$B$4:$B$96,0), MATCH(NPS!J$2&NPS!$C$1,【D】NPS!$C$2:$GO$2&【D】NPS!$C$3:$GO$3,0)) -> -35.29411765 | K8: =INDEX(【D】NPS!$C$4:$GO$96,MATCH(NPS!$B8,【D】NPS!$B$4:$B$96,0), MATCH(NPS!K$2&NPS!$C$1,【D】NPS!$C$2:$GO$2&【D】NPS!$C$3:$GO$3,0)) -> 0 | L8: =INDEX(【D】NPS!$C$4:$GO$96,MATCH(NPS!$B8,【D】NPS!$B$4:$B$96,0), MATCH(NPS!L$2&NPS!$C$1,【D】NPS!$C$2:$GO$2&【D】NPS!$C$3:$GO$3,0)) -> 28.57142857 | M8: =INDEX(【D】NPS!$C$4:$GO$96,MATCH(NPS!$B8,【D】NPS!$B$4:$B$96,0), MATCH(NPS!M$2&NPS!$C$1,【D】NPS!$C$2:$GO$2&【D】NPS!$C$3:$GO$3,0)) -> 0 | N8: =INDEX(【D】NPS!$C$4:$GO$96,MATCH(NPS!$B8,【D】NPS!$B$4:$B$96,0), MATCH(NPS!N$2&NPS!$C$1,【D】NPS!$C$2:$GO$2&【D】NPS!$C$3:$GO$3,0)) -> 0 | O8: =INDEX(【D】NPS!$C$4:$GO$96,MATCH(NPS!$B8,【D】NPS!$B$4:$B$96,0), MATCH(NPS!O$2&NPS!$C$1,【D】NPS!$C$2:$GO$2&【D】NPS!$C$3:$GO$3,0)) -> -17.64705882 | P8: =INDEX(【D】NPS!$C$4:$GO$96,MATCH(NPS!$B8,【D】NPS!$B$4:$B$96,0), MATCH(NPS!P$2&NPS!$C$1,【D】NPS!$C$2:$GO$2&【D】NPS!$C$3:$GO$3,0)) -> -10.11904762 | S8: =INDEX(【D】NPS!$C$4:$GO$96,MATCH(NPS!$B8,【D】NPS!$B$4:$B$96,0), MATCH(NPS!S$2&NPS!$R$1,【D】NPS!$C$2:$GO$2&【D】NPS!$C$3:$GO$3,0)) -> 22 | T8: =INDEX(【D】NPS!$C$4:$GO$96,MATCH(NPS!$B8,【D】NPS!$B$4:$B$96,0), MATCH(NPS!T$2&NPS!$R$1,【D】NPS!$C$2:$GO$2&【D】NPS!$C$3:$GO$3,0)) -> 77 | U8: =INDEX(【D】NPS!$C$4:$GO$96,MATCH(NPS!$B8,【D】NPS!$B$4:$B$96,0), MATCH(NPS!U$2&NPS!$R$1,【D】NPS!$C$2:$GO$2&【D】NPS!$C$3:$GO$3,0)) -> 77 | V8: =INDEX(【D】NPS!$C$4:$GO$96,MATCH(NPS!$B8,【D】NPS!$B$4:$B$96,0), MATCH(NPS!V$2&NPS!$R$1,【D】NPS!$C$2:$GO$2&【D】NPS!$C$3:$GO$3,0)) -> 59 | W8: =INDEX(【D】NPS!$C$4:$GO$96,MATCH(NPS!$B8,【D】NPS!$B$4:$B$96,0), MATCH(NPS!W$2&NPS!$R$1,【D】NPS!$C$2:$GO$2&【D】NPS!$C$3:$GO$3,0)) -> 58 | X8: =INDEX(【D】NPS!$C$4:$GO$96,MATCH(NPS!$B8,【D】NPS!$B$4:$B$96,0), MATCH(NPS!X$2&NPS!$R$1,【D】NPS!$C$2:$GO$2&【D】NPS!$C$3:$GO$3,0)) -> 33 | Y8: =INDEX(【D】NPS!$C$4:$GO$96,MATCH(NPS!$B8,【D】NPS!$B$4:$B$96,0), MATCH(NPS!Y$2&NPS!$R$1,【D】NPS!$C$2:$GO$2&【D】NPS!$C$3:$GO$3,0)) -> 76 | Z8: =INDEX(【D】NPS!$C$4:$GO$96,MATCH(NPS!$B8,【D】NPS!$B$4:$B$96,0), MATCH(NPS!Z$2&NPS!$R$1,【D】NPS!$C$2:$GO$2&【D】NPS!$C$3:$GO$3,0)) -> 50 | AA8: =INDEX(【D】NPS!$C$4:$GO$96,MATCH(NPS!$B8,【D】NPS!$B$4:$B$96,0), MATCH(NPS!AA$2&NPS!$R$1,【D】NPS!$C$2:$GO$2&【D】NPS!$C$3:$GO$3,0)) -> 21 | AB8: =INDEX(【D】NPS!$C$4:$GO$96,MATCH(NPS!$B8,【D】NPS!$B$4:$B$96,0), MATCH(NPS!AB$2&NPS!$R$1,【D】NPS!$C$2:$GO$2&【D】NPS!$C$3:$GO$3,0)) -> 43 | AC8: =INDEX(【D】NPS!$C$4:$GO$96,MATCH(NPS!$B8,【D】NPS!$B$4:$B$96,0), MATCH(NPS!AC$2&NPS!$R$1,【D】NPS!$C$2:$GO$2&【D】NPS!$C$3:$GO$3,0)) -> 40 | AD8: =INDEX(【D】NPS!$C$4:$GO$96,MATCH(NPS!$B8,【D】NPS!$B$4:$B$96,0), MATCH(NPS!AD$2&NPS!$R$1,【D】NPS!$C$2:$GO$2&【D】NPS!$C$3:$GO$3,0)) -> 81 | AE8: =INDEX(【D】NPS!$C$4:$GO$96,MATCH(NPS!$B8,【D】NPS!$B$4:$B$96,0), MATCH(NPS!AE$2&NPS!$R$1,【D】NPS!$C$2:$GO$2&【D】NPS!$C$3:$GO$3,0)) -> 76 | AH8: =INDEX(【D】NPS!$C$4:$GO$96,MATCH(NPS!$B8,【D】NPS!$B$4:$B$96,0), MATCH(NPS!AH$2&NPS!$AG$1,【D】NPS!$C$2:$GO$2&【D】NPS!$C$3:$GO$3,0)) -> 24 | AI8: =INDEX(【D】NPS!$C$4:$GO$96,MATCH(NPS!$B8,【D】NPS!$B$4:$B$96,0), MATCH(NPS!AI$2&NPS!$AG$1,【D】NPS!$C$2:$GO$2&【D】NPS!$C$3:$GO$3,0)) -> 77 | AJ8: =INDEX(【D】NPS!$C$4:$GO$96,MATCH(NPS!$B8,【D】NPS!$B$4:$B$96,0), MATCH(NPS!AJ$2&NPS!$AG$1,【D】NPS!$C$2:$GO$2&【D】NPS!$C$3:$GO$3,0)) -> 77 | AK8: =INDEX(【D】NPS!$C$4:$GO$96,MATCH(NPS!$B8,【D】NPS!$B$4:$B$96,0), MATCH(NPS!AK$2&NPS!$AG$1,【D】NPS!$C$2:$GO$2&【D】NPS!$C$3:$GO$3,0)) -> 59 | AL8: =INDEX(【D】NPS!$C$4:$GO$96,MATCH(NPS!$B8,【D】NPS!$B$4:$B$96,0), MATCH(NPS!AL$2&NPS!$AG$1,【D】NPS!$C$2:$GO$2&【D】NPS!$C$3:$GO$3,0)) -> 58 | AM8: =INDEX(【D】NPS!$C$4:$GO$96,MATCH(NPS!$B8,【D】NPS!$B$4:$B$96,0), MATCH(NPS!AM$2&NPS!$AG$1,【D】NPS!$C$2:$GO$2&【D】NPS!$C$3:$GO$3,0)) -> 33 | AN8: =INDEX(【D】NPS!$C$4:$GO$96,MATCH(NPS!$B8,【D】NPS!$B$4:$B$96,0), MATCH(NPS!AN$2&NPS!$AG$1,【D】NPS!$C$2:$GO$2&【D】NPS!$C$3:$GO$3,0)) -> 76 | AO8: =INDEX(【D】NPS!$C$4:$GO$96,MATCH(NPS!$B8,【D】NPS!$B$4:$B$96,0), MATCH(NPS!AO$2&NPS!$AG$1,【D】NPS!$C$2:$GO$2&【D】NPS!$C$3:$GO$3,0)) -> 53 | AP8: =INDEX(【D】NPS!$C$4:$GO$96,MATCH(NPS!$B8,【D】NPS!$B$4:$B$96,0), MATCH(NPS!AP$2&NPS!$AG$1,【D】NPS!$C$2:$GO$2&【D】NPS!$C$3:$GO$3,0)) -> 21 | AQ8: =INDEX(【D】NPS!$C$4:$GO$96,MATCH(NPS!$B8,【D】NPS!$B$4:$B$96,0), MATCH(NPS!AQ$2&NPS!$AG$1,【D】NPS!$C$2:$GO$2&【D】NPS!$C$3:$GO$3,0)) -> 46 | AR8: =INDEX(【D】NPS!$C$4:$GO$96,MATCH(NPS!$B8,【D】NPS!$B$4:$B$96,0), MATCH(NPS!AR$2&NPS!$AG$1,【D】NPS!$C$2:$GO$2&【D】NPS!$C$3:$GO$3,0)) -> 45 | AS8: =INDEX(【D】NPS!$C$4:$GO$96,MATCH(NPS!$B8,【D】NPS!$B$4:$B$96,0), MATCH(NPS!AS$2&NPS!$AG$1,【D】NPS!$C$2:$GO$2&【D】NPS!$C$3:$GO$3,0)) -> 81 | AT8: =INDEX(【D】NPS!$C$4:$GO$96,MATCH(NPS!$B8,【D】NPS!$B$4:$B$96,0), MATCH(NPS!AT$2&NPS!$AG$1,【D】NPS!$C$2:$GO$2&【D】NPS!$C$3:$GO$3,0)) -> 76 | AV8: 6 | AW8: 6 | AX8: タケフナイフビレッジ エリア | AY8: 71.42857143 | AZ8: =INDEX(【D】NPS!$C$7:$HB$96, MATCH(NPS!$AX8,【D】NPS!$B$7:$B$96,0), MATCH(NPS!$AZ$2&NPS!$AW$1,【D】NPS!$C$1:$HB$1&【D】NPS!$C$2:$HB$2,0)) -> 7
B9: 名勝 養浩館庭園 エリア | D9: =INDEX(【D】NPS!$C$4:$GO$96,MATCH(NPS!$B9,【D】NPS!$B$4:$B$96,0), MATCH(NPS!D$2&NPS!$C$1,【D】NPS!$C$2:$GO$2&【D】NPS!$C$3:$GO$3,0)) -> -100 | E9: =INDEX(【D】NPS!$C$4:$GO$96,MATCH(NPS!$B9,【D】NPS!$B$4:$B$96,0), MATCH(NPS!E$2&NPS!$C$1,【D】NPS!$C$2:$GO$2&【D】NPS!$C$3:$GO$3,0)) -> 18.75 | F9: =INDEX(【D】NPS!$C$4:$GO$96,MATCH(NPS!$B9,【D】NPS!$B$4:$B$96,0), MATCH(NPS!F$2&NPS!$C$1,【D】NPS!$C$2:$GO$2&【D】NPS!$C$3:$GO$3,0)) -> 30 | G9: =INDEX(【D】NPS!$C$4:$GO$96,MATCH(NPS!$B9,【D】NPS!$B$4:$B$96,0), MATCH(NPS!G$2&NPS!$C$1,【D】NPS!$C$2:$GO$2&【D】NPS!$C$3:$GO$3,0)) -> 0 | H9: =INDEX(【D】NPS!$C$4:$GO$96,MATCH(NPS!$B9,【D】NPS!$B$4:$B$96,0), MATCH(NPS!H$2&NPS!$C$1,【D】NPS!$C$2:$GO$2&【D】NPS!$C$3:$GO$3,0)) -> -11.11111111 | I9: =INDEX(【D】NPS!$C$4:$GO$96,MATCH(NPS!$B9,【D】NPS!$B$4:$B$96,0), MATCH(NPS!I$2&NPS!$C$1,【D】NPS!$C$2:$GO$2&【D】NPS!$C$3:$GO$3,0)) -> -22.22222222 | J9: =INDEX(【D】NPS!$C$4:$GO$96,MATCH(NPS!$B9,【D】NPS!$B$4:$B$96,0), MATCH(NPS!J$2&NPS!$C$1,【D】NPS!$C$2:$GO$2&【D】NPS!$C$3:$GO$3,0)) -> -5.882352941 | K9: =INDEX(【D】NPS!$C$4:$GO$96,MATCH(NPS!$B9,【D】NPS!$B$4:$B$96,0), MATCH(NPS!K$2&NPS!$C$1,【D】NPS!$C$2:$GO$2&【D】NPS!$C$3:$GO$3,0)) -> 29.41176471 | L9: =INDEX(【D】NPS!$C$4:$GO$96,MATCH(NPS!$B9,【D】NPS!$B$4:$B$96,0), MATCH(NPS!L$2&NPS!$C$1,【D】NPS!$C$2:$GO$2&【D】NPS!$C$3:$GO$3,0)) -> 20 | M9: =INDEX(【D】NPS!$C$4:$GO$96,MATCH(NPS!$B9,【D】NPS!$B$4:$B$96,0), MATCH(NPS!M$2&NPS!$C$1,【D】NPS!$C$2:$GO$2&【D】NPS!$C$3:$GO$3,0)) -> -14.28571429 | N9: =INDEX(【D】NPS!$C$4:$GO$96,MATCH(NPS!$B9,【D】NPS!$B$4:$B$96,0), MATCH(NPS!N$2&NPS!$C$1,【D】NPS!$C$2:$GO$2&【D】NPS!$C$3:$GO$3,0)) -> 12.5 | O9: =INDEX(【D】NPS!$C$4:$GO$96,MATCH(NPS!$B9,【D】NPS!$B$4:$B$96,0), MATCH(NPS!O$2&NPS!$C$1,【D】NPS!$C$2:$GO$2&【D】NPS!$C$3:$GO$3,0)) -> 10.52631579 | P9: =INDEX(【D】NPS!$C$4:$GO$96,MATCH(NPS!$B9,【D】NPS!$B$4:$B$96,0), MATCH(NPS!P$2&NPS!$C$1,【D】NPS!$C$2:$GO$2&【D】NPS!$C$3:$GO$3,0)) -> 7.462686567 | S9: =INDEX(【D】NPS!$C$4:$GO$96,MATCH(NPS!$B9,【D】NPS!$B$4:$B$96,0), MATCH(NPS!S$2&NPS!$R$1,【D】NPS!$C$2:$GO$2&【D】NPS!$C$3:$GO$3,0)) -> 53 | T9: =INDEX(【D】NPS!$C$4:$GO$96,MATCH(NPS!$B9,【D】NPS!$B$4:$B$96,0), MATCH(NPS!T$2&NPS!$R$1,【D】NPS!$C$2:$GO$2&【D】NPS!$C$3:$GO$3,0)) -> 20 | U9: =INDEX(【D】NPS!$C$4:$GO$96,MATCH(NPS!$B9,【D】NPS!$B$4:$B$96,0), MATCH(NPS!U$2&NPS!$R$1,【D】NPS!$C$2:$GO$2&【D】NPS!$C$3:$GO$3,0)) -> 17 | V9: =INDEX(【D】NPS!$C$4:$GO$96,MATCH(NPS!$B9,【D】NPS!$B$4:$B$96,0), MATCH(NPS!V$2&NPS!$R$1,【D】NPS!$C$2:$GO$2&【D】NPS!$C$3:$GO$3,0)) -> 44 | W9: =INDEX(【D】NPS!$C$4:$GO$96,MATCH(NPS!$B9,【D】NPS!$B$4:$B$96,0), MATCH(NPS!W$2&NPS!$R$1,【D】NPS!$C$2:$GO$2&【D】NPS!$C$3:$GO$3,0)) -> 65 | X9: =INDEX(【D】NPS!$C$4:$GO$96,MATCH(NPS!$B9,【D】NPS!$B$4:$B$96,0), MATCH(NPS!X$2&NPS!$R$1,【D】NPS!$C$2:$GO$2&【D】NPS!$C$3:$GO$3,0)) -> 70 | Y9: =INDEX(【D】NPS!$C$4:$GO$96,MATCH(NPS!$B9,【D】NPS!$B$4:$B$96,0), MATCH(NPS!Y$2&NPS!$R$1,【D】NPS!$C$2:$GO$2&【D】NPS!$C$3:$GO$3,0)) -> 39 | Z9: =INDEX(【D】NPS!$C$4:$GO$96,MATCH(NPS!$B9,【D】NPS!$B$4:$B$96,0), MATCH(NPS!Z$2&NPS!$R$1,【D】NPS!$C$2:$GO$2&【D】NPS!$C$3:$GO$3,0)) -> 13 | AA9: =INDEX(【D】NPS!$C$4:$GO$96,MATCH(NPS!$B9,【D】NPS!$B$4:$B$96,0), MATCH(NPS!AA$2&NPS!$R$1,【D】NPS!$C$2:$GO$2&【D】NPS!$C$3:$GO$3,0)) -> 23 | AB9: =INDEX(【D】NPS!$C$4:$GO$96,MATCH(NPS!$B9,【D】NPS!$B$4:$B$96,0), MATCH(NPS!AB$2&NPS!$R$1,【D】NPS!$C$2:$GO$2&【D】NPS!$C$3:$GO$3,0)) -> 60 | AC9: =INDEX(【D】NPS!$C$4:$GO$96,MATCH(NPS!$B9,【D】NPS!$B$4:$B$96,0), MATCH(NPS!AC$2&NPS!$R$1,【D】NPS!$C$2:$GO$2&【D】NPS!$C$3:$GO$3,0)) -> 30 | AD9: =INDEX(【D】NPS!$C$4:$GO$96,MATCH(NPS!$B9,【D】NPS!$B$4:$B$96,0), MATCH(NPS!AD$2&NPS!$R$1,【D】NPS!$C$2:$GO$2&【D】NPS!$C$3:$GO$3,0)) -> 46 | AE9: =INDEX(【D】NPS!$C$4:$GO$96,MATCH(NPS!$B9,【D】NPS!$B$4:$B$96,0), MATCH(NPS!AE$2&NPS!$R$1,【D】NPS!$C$2:$GO$2&【D】NPS!$C$3:$GO$3,0)) -> 32 | AH9: =INDEX(【D】NPS!$C$4:$GO$96,MATCH(NPS!$B9,【D】NPS!$B$4:$B$96,0), MATCH(NPS!AH$2&NPS!$AG$1,【D】NPS!$C$2:$GO$2&【D】NPS!$C$3:$GO$3,0)) -> 56 | AI9: =INDEX(【D】NPS!$C$4:$GO$96,MATCH(NPS!$B9,【D】NPS!$B$4:$B$96,0), MATCH(NPS!AI$2&NPS!$AG$1,【D】NPS!$C$2:$GO$2&【D】NPS!$C$3:$GO$3,0)) -> 20 | AJ9: =INDEX(【D】NPS!$C$4:$GO$96,MATCH(NPS!$B9,【D】NPS!$B$4:$B$96,0), MATCH(NPS!AJ$2&NPS!$AG$1,【D】NPS!$C$2:$GO$2&【D】NPS!$C$3:$GO$3,0)) -> 17 | AK9: =INDEX(【D】NPS!$C$4:$GO$96,MATCH(NPS!$B9,【D】NPS!$B$4:$B$96,0), MATCH(NPS!AK$2&NPS!$AG$1,【D】NPS!$C$2:$GO$2&【D】NPS!$C$3:$GO$3,0)) -> 52 | AL9: =INDEX(【D】NPS!$C$4:$GO$96,MATCH(NPS!$B9,【D】NPS!$B$4:$B$96,0), MATCH(NPS!AL$2&NPS!$AG$1,【D】NPS!$C$2:$GO$2&【D】NPS!$C$3:$GO$3,0)) -> 65 | AM9: =INDEX(【D】NPS!$C$4:$GO$96,MATCH(NPS!$B9,【D】NPS!$B$4:$B$96,0), MATCH(NPS!AM$2&NPS!$AG$1,【D】NPS!$C$2:$GO$2&【D】NPS!$C$3:$GO$3,0)) -> 70 | AN9: =INDEX(【D】NPS!$C$4:$GO$96,MATCH(NPS!$B9,【D】NPS!$B$4:$B$96,0), MATCH(NPS!AN$2&NPS!$AG$1,【D】NPS!$C$2:$GO$2&【D】NPS!$C$3:$GO$3,0)) -> 39 | AO9: =INDEX(【D】NPS!$C$4:$GO$96,MATCH(NPS!$B9,【D】NPS!$B$4:$B$96,0), MATCH(NPS!AO$2&NPS!$AG$1,【D】NPS!$C$2:$GO$2&【D】NPS!$C$3:$GO$3,0)) -> 13 | AP9: =INDEX(【D】NPS!$C$4:$GO$96,MATCH(NPS!$B9,【D】NPS!$B$4:$B$96,0), MATCH(NPS!AP$2&NPS!$AG$1,【D】NPS!$C$2:$GO$2&【D】NPS!$C$3:$GO$3,0)) -> 26 | AQ9: =INDEX(【D】NPS!$C$4:$GO$96,MATCH(NPS!$B9,【D】NPS!$B$4:$B$96,0), MATCH(NPS!AQ$2&NPS!$AG$1,【D】NPS!$C$2:$GO$2&【D】NPS!$C$3:$GO$3,0)) -> 60 | AR9: =INDEX(【D】NPS!$C$4:$GO$96,MATCH(NPS!$B9,【D】NPS!$B$4:$B$96,0), MATCH(NPS!AR$2&NPS!$AG$1,【D】NPS!$C$2:$GO$2&【D】NPS!$C$3:$GO$3,0)) -> 32 | AS9: =INDEX(【D】NPS!$C$4:$GO$96,MATCH(NPS!$B9,【D】NPS!$B$4:$B$96,0), MATCH(NPS!AS$2&NPS!$AG$1,【D】NPS!$C$2:$GO$2&【D】NPS!$C$3:$GO$3,0)) -> 46 | AT9: =INDEX(【D】NPS!$C$4:$GO$96,MATCH(NPS!$B9,【D】NPS!$B$4:$B$96,0), MATCH(NPS!AT$2&NPS!$AG$1,【D】NPS!$C$2:$GO$2&【D】NPS!$C$3:$GO$3,0)) -> 32 | AV9: 7 | AW9: 7 | AX9: 美浜町レイクセンター エリア | AY9: 66.66666667 | AZ9: =INDEX(【D】NPS!$C$7:$HB$96, MATCH(NPS!$AX9,【D】NPS!$B$7:$B$96,0), MATCH(NPS!$AZ$2&NPS!$AW$1,【D】NPS!$C$1:$HB$1&【D】NPS!$C$2:$HB$2,0)) -> 3
B10: ふくい鮮いちば エリア | D10: =INDEX(【D】NPS!$C$4:$GO$96,MATCH(NPS!$B10,【D】NPS!$B$4:$B$96,0), MATCH(NPS!D$2&NPS!$C$1,【D】NPS!$C$2:$GO$2&【D】NPS!$C$3:$GO$3,0)) -> -66.66666667 | E10: =INDEX(【D】NPS!$C$4:$GO$96,MATCH(NPS!$B10,【D】NPS!$B$4:$B$96,0), MATCH(NPS!E$2&NPS!$C$1,【D】NPS!$C$2:$GO$2&【D】NPS!$C$3:$GO$3,0)) -> -5.405405405 | F10: =INDEX(【D】NPS!$C$4:$GO$96,MATCH(NPS!$B10,【D】NPS!$B$4:$B$96,0), MATCH(NPS!F$2&NPS!$C$1,【D】NPS!$C$2:$GO$2&【D】NPS!$C$3:$GO$3,0)) -> -7.692307692 | G10: =INDEX(【D】NPS!$C$4:$GO$96,MATCH(NPS!$B10,【D】NPS!$B$4:$B$96,0), MATCH(NPS!G$2&NPS!$C$1,【D】NPS!$C$2:$GO$2&【D】NPS!$C$3:$GO$3,0)) -> 6.666666667 | H10: =INDEX(【D】NPS!$C$4:$GO$96,MATCH(NPS!$B10,【D】NPS!$B$4:$B$96,0), MATCH(NPS!H$2&NPS!$C$1,【D】NPS!$C$2:$GO$2&【D】NPS!$C$3:$GO$3,0)) -> -9.090909091 | I10: =INDEX(【D】NPS!$C$4:$GO$96,MATCH(NPS!$B10,【D】NPS!$B$4:$B$96,0), MATCH(NPS!I$2&NPS!$C$1,【D】NPS!$C$2:$GO$2&【D】NPS!$C$3:$GO$3,0)) -> -28.57142857 | J10: =INDEX(【D】NPS!$C$4:$GO$96,MATCH(NPS!$B10,【D】NPS!$B$4:$B$96,0), MATCH(NPS!J$2&NPS!$C$1,【D】NPS!$C$2:$GO$2&【D】NPS!$C$3:$GO$3,0)) -> 5.555555556 | K10: =INDEX(【D】NPS!$C$4:$GO$96,MATCH(NPS!$B10,【D】NPS!$B$4:$B$96,0), MATCH(NPS!K$2&NPS!$C$1,【D】NPS!$C$2:$GO$2&【D】NPS!$C$3:$GO$3,0)) -> 36 | L10: =INDEX(【D】NPS!$C$4:$GO$96,MATCH(NPS!$B10,【D】NPS!$B$4:$B$96,0), MATCH(NPS!L$2&NPS!$C$1,【D】NPS!$C$2:$GO$2&【D】NPS!$C$3:$GO$3,0)) -> 16.66666667 | M10: =INDEX(【D】NPS!$C$4:$GO$96,MATCH(NPS!$B10,【D】NPS!$B$4:$B$96,0), MATCH(NPS!M$2&NPS!$C$1,【D】NPS!$C$2:$GO$2&【D】NPS!$C$3:$GO$3,0)) -> -22.22222222 | N10: =INDEX(【D】NPS!$C$4:$GO$96,MATCH(NPS!$B10,【D】NPS!$B$4:$B$96,0), MATCH(NPS!N$2&NPS!$C$1,【D】NPS!$C$2:$GO$2&【D】NPS!$C$3:$GO$3,0)) -> -40 | O10: =INDEX(【D】NPS!$C$4:$GO$96,MATCH(NPS!$B10,【D】NPS!$B$4:$B$96,0), MATCH(NPS!O$2&NPS!$C$1,【D】NPS!$C$2:$GO$2&【D】NPS!$C$3:$GO$3,0)) -> 5.263157895 | P10: =INDEX(【D】NPS!$C$4:$GO$96,MATCH(NPS!$B10,【D】NPS!$B$4:$B$96,0), MATCH(NPS!P$2&NPS!$C$1,【D】NPS!$C$2:$GO$2&【D】NPS!$C$3:$GO$3,0)) -> 0 | S10: =INDEX(【D】NPS!$C$4:$GO$96,MATCH(NPS!$B10,【D】NPS!$B$4:$B$96,0), MATCH(NPS!S$2&NPS!$R$1,【D】NPS!$C$2:$GO$2&【D】NPS!$C$3:$GO$3,0)) -> 50 | T10: =INDEX(【D】NPS!$C$4:$GO$96,MATCH(NPS!$B10,【D】NPS!$B$4:$B$96,0), MATCH(NPS!T$2&NPS!$R$1,【D】NPS!$C$2:$GO$2&【D】NPS!$C$3:$GO$3,0)) -> 55 | U10: =INDEX(【D】NPS!$C$4:$GO$96,MATCH(NPS!$B10,【D】NPS!$B$4:$B$96,0), MATCH(NPS!U$2&NPS!$R$1,【D】NPS!$C$2:$GO$2&【D】NPS!$C$3:$GO$3,0)) -> 51 | V10: =INDEX(【D】NPS!$C$4:$GO$96,MATCH(NPS!$B10,【D】NPS!$B$4:$B$96,0), MATCH(NPS!V$2&NPS!$R$1,【D】NPS!$C$2:$GO$2&【D】NPS!$C$3:$GO$3,0)) -> 37 | W10: =INDEX(【D】NPS!$C$4:$GO$96,MATCH(NPS!$B10,【D】NPS!$B$4:$B$96,0), MATCH(NPS!W$2&NPS!$R$1,【D】NPS!$C$2:$GO$2&【D】NPS!$C$3:$GO$3,0)) -> 62 | X10: =INDEX(【D】NPS!$C$4:$GO$96,MATCH(NPS!$B10,【D】NPS!$B$4:$B$96,0), MATCH(NPS!X$2&NPS!$R$1,【D】NPS!$C$2:$GO$2&【D】NPS!$C$3:$GO$3,0)) -> 76 | Y10: =INDEX(【D】NPS!$C$4:$GO$96,MATCH(NPS!$B10,【D】NPS!$B$4:$B$96,0), MATCH(NPS!Y$2&NPS!$R$1,【D】NPS!$C$2:$GO$2&【D】NPS!$C$3:$GO$3,0)) -> 24 | Z10: =INDEX(【D】NPS!$C$4:$GO$96,MATCH(NPS!$B10,【D】NPS!$B$4:$B$96,0), MATCH(NPS!Z$2&NPS!$R$1,【D】NPS!$C$2:$GO$2&【D】NPS!$C$3:$GO$3,0)) -> 11 | AA10: =INDEX(【D】NPS!$C$4:$GO$96,MATCH(NPS!$B10,【D】NPS!$B$4:$B$96,0), MATCH(NPS!AA$2&NPS!$R$1,【D】NPS!$C$2:$GO$2&【D】NPS!$C$3:$GO$3,0)) -> 29 | AB10: =INDEX(【D】NPS!$C$4:$GO$96,MATCH(NPS!$B10,【D】NPS!$B$4:$B$96,0), MATCH(NPS!AB$2&NPS!$R$1,【D】NPS!$C$2:$GO$2&【D】NPS!$C$3:$GO$3,0)) -> 63 | AC10: =INDEX(【D】NPS!$C$4:$GO$96,MATCH(NPS!$B10,【D】NPS!$B$4:$B$96,0), MATCH(NPS!AC$2&NPS!$R$1,【D】NPS!$C$2:$GO$2&【D】NPS!$C$3:$GO$3,0)) -> 71 | AD10: =INDEX(【D】NPS!$C$4:$GO$96,MATCH(NPS!$B10,【D】NPS!$B$4:$B$96,0), MATCH(NPS!AD$2&NPS!$R$1,【D】NPS!$C$2:$GO$2&【D】NPS!$C$3:$GO$3,0)) -> 55 | AE10: =INDEX(【D】NPS!$C$4:$GO$96,MATCH(NPS!$B10,【D】NPS!$B$4:$B$96,0), MATCH(NPS!AE$2&NPS!$R$1,【D】NPS!$C$2:$GO$2&【D】NPS!$C$3:$GO$3,0)) -> 53 | AH10: =INDEX(【D】NPS!$C$4:$GO$96,MATCH(NPS!$B10,【D】NPS!$B$4:$B$96,0), MATCH(NPS!AH$2&NPS!$AG$1,【D】NPS!$C$2:$GO$2&【D】NPS!$C$3:$GO$3,0)) -> 51 | AI10: =INDEX(【D】NPS!$C$4:$GO$96,MATCH(NPS!$B10,【D】NPS!$B$4:$B$96,0), MATCH(NPS!AI$2&NPS!$AG$1,【D】NPS!$C$2:$GO$2&【D】NPS!$C$3:$GO$3,0)) -> 55 | AJ10: =INDEX(【D】NPS!$C$4:$GO$96,MATCH(NPS!$B10,【D】NPS!$B$4:$B$96,0), MATCH(NPS!AJ$2&NPS!$AG$1,【D】NPS!$C$2:$GO$2&【D】NPS!$C$3:$GO$3,0)) -> 51 | AK10: =INDEX(【D】NPS!$C$4:$GO$96,MATCH(NPS!$B10,【D】NPS!$B$4:$B$96,0), MATCH(NPS!AK$2&NPS!$AG$1,【D】NPS!$C$2:$GO$2&【D】NPS!$C$3:$GO$3,0)) -> 38 | AL10: =INDEX(【D】NPS!$C$4:$GO$96,MATCH(NPS!$B10,【D】NPS!$B$4:$B$96,0), MATCH(NPS!AL$2&NPS!$AG$1,【D】NPS!$C$2:$GO$2&【D】NPS!$C$3:$GO$3,0)) -> 62 | AM10: =INDEX(【D】NPS!$C$4:$GO$96,MATCH(NPS!$B10,【D】NPS!$B$4:$B$96,0), MATCH(NPS!AM$2&NPS!$AG$1,【D】NPS!$C$2:$GO$2&【D】NPS!$C$3:$GO$3,0)) -> 76 | AN10: =INDEX(【D】NPS!$C$4:$GO$96,MATCH(NPS!$B10,【D】NPS!$B$4:$B$96,0), MATCH(NPS!AN$2&NPS!$AG$1,【D】NPS!$C$2:$GO$2&【D】NPS!$C$3:$GO$3,0)) -> 24 | AO10: =INDEX(【D】NPS!$C$4:$GO$96,MATCH(NPS!$B10,【D】NPS!$B$4:$B$96,0), MATCH(NPS!AO$2&NPS!$AG$1,【D】NPS!$C$2:$GO$2&【D】NPS!$C$3:$GO$3,0)) -> 11 | AP10: =INDEX(【D】NPS!$C$4:$GO$96,MATCH(NPS!$B10,【D】NPS!$B$4:$B$96,0), MATCH(NPS!AP$2&NPS!$AG$1,【D】NPS!$C$2:$GO$2&【D】NPS!$C$3:$GO$3,0)) -> 29 | AQ10: =INDEX(【D】NPS!$C$4:$GO$96,MATCH(NPS!$B10,【D】NPS!$B$4:$B$96,0), MATCH(NPS!AQ$2&NPS!$AG$1,【D】NPS!$C$2:$GO$2&【D】NPS!$C$3:$GO$3,0)) -> 63 | AR10: =INDEX(【D】NPS!$C$4:$GO$96,MATCH(NPS!$B10,【D】NPS!$B$4:$B$96,0), MATCH(NPS!AR$2&NPS!$AG$1,【D】NPS!$C$2:$GO$2&【D】NPS!$C$3:$GO$3,0)) -> 71 | AS10: =INDEX(【D】NPS!$C$4:$GO$96,MATCH(NPS!$B10,【D】NPS!$B$4:$B$96,0), MATCH(NPS!AS$2&NPS!$AG$1,【D】NPS!$C$2:$GO$2&【D】NPS!$C$3:$GO$3,0)) -> 55 | AT10: =INDEX(【D】NPS!$C$4:$GO$96,MATCH(NPS!$B10,【D】NPS!$B$4:$B$96,0), MATCH(NPS!AT$2&NPS!$AG$1,【D】NPS!$C$2:$GO$2&【D】NPS!$C$3:$GO$3,0)) -> 55 | AV10: 8 | AW10: 7 | AX10: 大安禅寺 エリア | AY10: 66.66666667 | AZ10: =INDEX(【D】NPS!$C$7:$HB$96, MATCH(NPS!$AX10,【D】NPS!$B$7:$B$96,0), MATCH(NPS!$AZ$2&NPS!$AW$1,【D】NPS!$C$1:$HB$1&【D】NPS!$C$2:$HB$2,0)) -> 6
B11: 一乗谷朝倉氏遺跡 エリア | D11: =INDEX(【D】NPS!$C$4:$GO$96,MATCH(NPS!$B11,【D】NPS!$B$4:$B$96,0), MATCH(NPS!D$2&NPS!$C$1,【D】NPS!$C$2:$GO$2&【D】NPS!$C$3:$GO$3,0)) -> 6.666666667 | E11: =INDEX(【D】NPS!$C$4:$GO$96,MATCH(NPS!$B11,【D】NPS!$B$4:$B$96,0), MATCH(NPS!E$2&NPS!$C$1,【D】NPS!$C$2:$GO$2&【D】NPS!$C$3:$GO$3,0)) -> 16.85393258 | F11: =INDEX(【D】NPS!$C$4:$GO$96,MATCH(NPS!$B11,【D】NPS!$B$4:$B$96,0), MATCH(NPS!F$2&NPS!$C$1,【D】NPS!$C$2:$GO$2&【D】NPS!$C$3:$GO$3,0)) -> 10.16949153 | G11: =INDEX(【D】NPS!$C$4:$GO$96,MATCH(NPS!$B11,【D】NPS!$B$4:$B$96,0), MATCH(NPS!G$2&NPS!$C$1,【D】NPS!$C$2:$GO$2&【D】NPS!$C$3:$GO$3,0)) -> -4.166666667 | H11: =INDEX(【D】NPS!$C$4:$GO$96,MATCH(NPS!$B11,【D】NPS!$B$4:$B$96,0), MATCH(NPS!H$2&NPS!$C$1,【D】NPS!$C$2:$GO$2&【D】NPS!$C$3:$GO$3,0)) -> 5.660377358 | I11: =INDEX(【D】NPS!$C$4:$GO$96,MATCH(NPS!$B11,【D】NPS!$B$4:$B$96,0), MATCH(NPS!I$2&NPS!$C$1,【D】NPS!$C$2:$GO$2&【D】NPS!$C$3:$GO$3,0)) -> -2.43902439 | J11: =INDEX(【D】NPS!$C$4:$GO$96,MATCH(NPS!$B11,【D】NPS!$B$4:$B$96,0), MATCH(NPS!J$2&NPS!$C$1,【D】NPS!$C$2:$GO$2&【D】NPS!$C$3:$GO$3,0)) -> -8.988764045 | K11: =INDEX(【D】NPS!$C$4:$GO$96,MATCH(NPS!$B11,【D】NPS!$B$4:$B$96,0), MATCH(NPS!K$2&NPS!$C$1,【D】NPS!$C$2:$GO$2&【D】NPS!$C$3:$GO$3,0)) -> 7.339449541 | L11: =INDEX(【D】NPS!$C$4:$GO$96,MATCH(NPS!$B11,【D】NPS!$B$4:$B$96,0), MATCH(NPS!L$2&NPS!$C$1,【D】NPS!$C$2:$GO$2&【D】NPS!$C$3:$GO$3,0)) -> 11.42857143 | M11: =INDEX(【D】NPS!$C$4:$GO$96,MATCH(NPS!$B11,【D】NPS!$B$4:$B$96,0), MATCH(NPS!M$2&NPS!$C$1,【D】NPS!$C$2:$GO$2&【D】NPS!$C$3:$GO$3,0)) -> 12.90322581 | N11: =INDEX(【D】NPS!$C$4:$GO$96,MATCH(NPS!$B11,【D】NPS!$B$4:$B$96,0), MATCH(NPS!N$2&NPS!$C$1,【D】NPS!$C$2:$GO$2&【D】NPS!$C$3:$GO$3,0)) -> 14 | O11: =INDEX(【D】NPS!$C$4:$GO$96,MATCH(NPS!$B11,【D】NPS!$B$4:$B$96,0), MATCH(NPS!O$2&NPS!$C$1,【D】NPS!$C$2:$GO$2&【D】NPS!$C$3:$GO$3,0)) -> 10.52631579 | P11: =INDEX(【D】NPS!$C$4:$GO$96,MATCH(NPS!$B11,【D】NPS!$B$4:$B$96,0), MATCH(NPS!P$2&NPS!$C$1,【D】NPS!$C$2:$GO$2&【D】NPS!$C$3:$GO$3,0)) -> 6.929740135 | S11: =INDEX(【D】NPS!$C$4:$GO$96,MATCH(NPS!$B11,【D】NPS!$B$4:$B$96,0), MATCH(NPS!S$2&NPS!$R$1,【D】NPS!$C$2:$GO$2&【D】NPS!$C$3:$GO$3,0)) -> 21 | T11: =INDEX(【D】NPS!$C$4:$GO$96,MATCH(NPS!$B11,【D】NPS!$B$4:$B$96,0), MATCH(NPS!T$2&NPS!$R$1,【D】NPS!$C$2:$GO$2&【D】NPS!$C$3:$GO$3,0)) -> 24 | U11: =INDEX(【D】NPS!$C$4:$GO$96,MATCH(NPS!$B11,【D】NPS!$B$4:$B$96,0), MATCH(NPS!U$2&NPS!$R$1,【D】NPS!$C$2:$GO$2&【D】NPS!$C$3:$GO$3,0)) -> 36 | V11: =INDEX(【D】NPS!$C$4:$GO$96,MATCH(NPS!$B11,【D】NPS!$B$4:$B$96,0), MATCH(NPS!V$2&NPS!$R$1,【D】NPS!$C$2:$GO$2&【D】NPS!$C$3:$GO$3,0)) -> 56 | W11: =INDEX(【D】NPS!$C$4:$GO$96,MATCH(NPS!$B11,【D】NPS!$B$4:$B$96,0), MATCH(NPS!W$2&NPS!$R$1,【D】NPS!$C$2:$GO$2&【D】NPS!$C$3:$GO$3,0)) -> 43 | X11: =INDEX(【D】NPS!$C$4:$GO$96,MATCH(NPS!$B11,【D】NPS!$B$4:$B$96,0), MATCH(NPS!X$2&NPS!$R$1,【D】NPS!$C$2:$GO$2&【D】NPS!$C$3:$GO$3,0)) -> 52 | Y11: =INDEX(【D】NPS!$C$4:$GO$96,MATCH(NPS!$B11,【D】NPS!$B$4:$B$96,0), MATCH(NPS!Y$2&NPS!$R$1,【D】NPS!$C$2:$GO$2&【D】NPS!$C$3:$GO$3,0)) -> 43 | Z11: =INDEX(【D】NPS!$C$4:$GO$96,MATCH(NPS!$B11,【D】NPS!$B$4:$B$96,0), MATCH(NPS!Z$2&NPS!$R$1,【D】NPS!$C$2:$GO$2&【D】NPS!$C$3:$GO$3,0)) -> 44 | AA11: =INDEX(【D】NPS!$C$4:$GO$96,MATCH(NPS!$B11,【D】NPS!$B$4:$B$96,0), MATCH(NPS!AA$2&NPS!$R$1,【D】NPS!$C$2:$GO$2&【D】NPS!$C$3:$GO$3,0)) -> 35 | AB11: =INDEX(【D】NPS!$C$4:$GO$96,MATCH(NPS!$B11,【D】NPS!$B$4:$B$96,0), MATCH(NPS!AB$2&NPS!$R$1,【D】NPS!$C$2:$GO$2&【D】NPS!$C$3:$GO$3,0)) -> 38 | AC11: =INDEX(【D】NPS!$C$4:$GO$96,MATCH(NPS!$B11,【D】NPS!$B$4:$B$96,0), MATCH(NPS!AC$2&NPS!$R$1,【D】NPS!$C$2:$GO$2&【D】NPS!$C$3:$GO$3,0)) -> 29 | AD11: =INDEX(【D】NPS!$C$4:$GO$96,MATCH(NPS!$B11,【D】NPS!$B$4:$B$96,0), MATCH(NPS!AD$2&NPS!$R$1,【D】NPS!$C$2:$GO$2&【D】NPS!$C$3:$GO$3,0)) -> 44 | AE11: =INDEX(【D】NPS!$C$4:$GO$96,MATCH(NPS!$B11,【D】NPS!$B$4:$B$96,0), MATCH(NPS!AE$2&NPS!$R$1,【D】NPS!$C$2:$GO$2&【D】NPS!$C$3:$GO$3,0)) -> 33 | AH11: =INDEX(【D】NPS!$C$4:$GO$96,MATCH(NPS!$B11,【D】NPS!$B$4:$B$96,0), MATCH(NPS!AH$2&NPS!$AG$1,【D】NPS!$C$2:$GO$2&【D】NPS!$C$3:$GO$3,0)) -> 21 | AI11: =INDEX(【D】NPS!$C$4:$GO$96,MATCH(NPS!$B11,【D】NPS!$B$4:$B$96,0), MATCH(NPS!AI$2&NPS!$AG$1,【D】NPS!$C$2:$GO$2&【D】NPS!$C$3:$GO$3,0)) -> 24 | AJ11: =INDEX(【D】NPS!$C$4:$GO$96,MATCH(NPS!$B11,【D】NPS!$B$4:$B$96,0), MATCH(NPS!AJ$2&NPS!$AG$1,【D】NPS!$C$2:$GO$2&【D】NPS!$C$3:$GO$3,0)) -> 36 | AK11: =INDEX(【D】NPS!$C$4:$GO$96,MATCH(NPS!$B11,【D】NPS!$B$4:$B$96,0), MATCH(NPS!AK$2&NPS!$AG$1,【D】NPS!$C$2:$GO$2&【D】NPS!$C$3:$GO$3,0)) -> 56 | AL11: =INDEX(【D】NPS!$C$4:$GO$96,MATCH(NPS!$B11,【D】NPS!$B$4:$B$96,0), MATCH(NPS!AL$2&NPS!$AG$1,【D】NPS!$C$2:$GO$2&【D】NPS!$C$3:$GO$3,0)) -> 43 | AM11: =INDEX(【D】NPS!$C$4:$GO$96,MATCH(NPS!$B11,【D】NPS!$B$4:$B$96,0), MATCH(NPS!AM$2&NPS!$AG$1,【D】NPS!$C$2:$GO$2&【D】NPS!$C$3:$GO$3,0)) -> 52 | AN11: =INDEX(【D】NPS!$C$4:$GO$96,MATCH(NPS!$B11,【D】NPS!$B$4:$B$96,0), MATCH(NPS!AN$2&NPS!$AG$1,【D】NPS!$C$2:$GO$2&【D】NPS!$C$3:$GO$3,0)) -> 43 | AO11: =INDEX(【D】NPS!$C$4:$GO$96,MATCH(NPS!$B11,【D】NPS!$B$4:$B$96,0), MATCH(NPS!AO$2&NPS!$AG$1,【D】NPS!$C$2:$GO$2&【D】NPS!$C$3:$GO$3,0)) -> 44 | AP11: =INDEX(【D】NPS!$C$4:$GO$96,MATCH(NPS!$B11,【D】NPS!$B$4:$B$96,0), MATCH(NPS!AP$2&NPS!$AG$1,【D】NPS!$C$2:$GO$2&【D】NPS!$C$3:$GO$3,0)) -> 35 | AQ11: =INDEX(【D】NPS!$C$4:$GO$96,MATCH(NPS!$B11,【D】NPS!$B$4:$B$96,0), MATCH(NPS!AQ$2&NPS!$AG$1,【D】NPS!$C$2:$GO$2&【D】NPS!$C$3:$GO$3,0)) -> 38 | AR11: =INDEX(【D】NPS!$C$4:$GO$96,MATCH(NPS!$B11,【D】NPS!$B$4:$B$96,0), MATCH(NPS!AR$2&NPS!$AG$1,【D】NPS!$C$2:$GO$2&【D】NPS!$C$3:$GO$3,0)) -> 29 | AS11: =INDEX(【D】NPS!$C$4:$GO$96,MATCH(NPS!$B11,【D】NPS!$B$4:$B$96,0), MATCH(NPS!AS$2&NPS!$AG$1,【D】NPS!$C$2:$GO$2&【D】NPS!$C$3:$GO$3,0)) -> 45 | AT11: =INDEX(【D】NPS!$C$4:$GO$96,MATCH(NPS!$B11,【D】NPS!$B$4:$B$96,0), MATCH(NPS!AT$2&NPS!$AG$1,【D】NPS!$C$2:$GO$2&【D】NPS!$C$3:$GO$3,0)) -> 33 | AV11: 9 | AW11: 7 | AX11: 平泉寺白山神社 エリア | AY11: 66.66666667 | AZ11: =INDEX(【D】NPS!$C$7:$HB$96, MATCH(NPS!$AX11,【D】NPS!$B$7:$B$96,0), MATCH(NPS!$AZ$2&NPS!$AW$1,【D】NPS!$C$1:$HB$1&【D】NPS!$C$2:$HB$2,0)) -> 6
B12: 越前海岸 北部 エリア | D12: =INDEX(【D】NPS!$C$4:$GO$96,MATCH(NPS!$B12,【D】NPS!$B$4:$B$96,0), MATCH(NPS!D$2&NPS!$C$1,【D】NPS!$C$2:$GO$2&【D】NPS!$C$3:$GO$3,0)) -> -33.33333333 | E12: =INDEX(【D】NPS!$C$4:$GO$96,MATCH(NPS!$B12,【D】NPS!$B$4:$B$96,0), MATCH(NPS!E$2&NPS!$C$1,【D】NPS!$C$2:$GO$2&【D】NPS!$C$3:$GO$3,0)) -> 13.63636364 | F12: =INDEX(【D】NPS!$C$4:$GO$96,MATCH(NPS!$B12,【D】NPS!$B$4:$B$96,0), MATCH(NPS!F$2&NPS!$C$1,【D】NPS!$C$2:$GO$2&【D】NPS!$C$3:$GO$3,0)) -> 14.28571429 | G12: =INDEX(【D】NPS!$C$4:$GO$96,MATCH(NPS!$B12,【D】NPS!$B$4:$B$96,0), MATCH(NPS!G$2&NPS!$C$1,【D】NPS!$C$2:$GO$2&【D】NPS!$C$3:$GO$3,0)) -> 7.692307692 | H12: =INDEX(【D】NPS!$C$4:$GO$96,MATCH(NPS!$B12,【D】NPS!$B$4:$B$96,0), MATCH(NPS!H$2&NPS!$C$1,【D】NPS!$C$2:$GO$2&【D】NPS!$C$3:$GO$3,0)) -> 50 | I12: =INDEX(【D】NPS!$C$4:$GO$96,MATCH(NPS!$B12,【D】NPS!$B$4:$B$96,0), MATCH(NPS!I$2&NPS!$C$1,【D】NPS!$C$2:$GO$2&【D】NPS!$C$3:$GO$3,0)) -> 37.5 | J12: =INDEX(【D】NPS!$C$4:$GO$96,MATCH(NPS!$B12,【D】NPS!$B$4:$B$96,0), MATCH(NPS!J$2&NPS!$C$1,【D】NPS!$C$2:$GO$2&【D】NPS!$C$3:$GO$3,0)) -> -50 | K12: =INDEX(【D】NPS!$C$4:$GO$96,MATCH(NPS!$B12,【D】NPS!$B$4:$B$96,0), MATCH(NPS!K$2&NPS!$C$1,【D】NPS!$C$2:$GO$2&【D】NPS!$C$3:$GO$3,0)) -> 27.27272727 | L12: =INDEX(【D】NPS!$C$4:$GO$96,MATCH(NPS!$B12,【D】NPS!$B$4:$B$96,0), MATCH(NPS!L$2&NPS!$C$1,【D】NPS!$C$2:$GO$2&【D】NPS!$C$3:$GO$3,0)) -> 57.14285714 | M12: =INDEX(【D】NPS!$C$4:$GO$96,MATCH(NPS!$B12,【D】NPS!$B$4:$B$96,0), MATCH(NPS!M$2&NPS!$C$1,【D】NPS!$C$2:$GO$2&【D】NPS!$C$3:$GO$3,0)) -> 0 | N12: =INDEX(【D】NPS!$C$4:$GO$96,MATCH(NPS!$B12,【D】NPS!$B$4:$B$96,0), MATCH(NPS!N$2&NPS!$C$1,【D】NPS!$C$2:$GO$2&【D】NPS!$C$3:$GO$3,0)) -> 40 | O12: =INDEX(【D】NPS!$C$4:$GO$96,MATCH(NPS!$B12,【D】NPS!$B$4:$B$96,0), MATCH(NPS!O$2&NPS!$C$1,【D】NPS!$C$2:$GO$2&【D】NPS!$C$3:$GO$3,0)) -> 9.375 | P12: =INDEX(【D】NPS!$C$4:$GO$96,MATCH(NPS!$B12,【D】NPS!$B$4:$B$96,0), MATCH(NPS!P$2&NPS!$C$1,【D】NPS!$C$2:$GO$2&【D】NPS!$C$3:$GO$3,0)) -> 18 | S12: =INDEX(【D】NPS!$C$4:$GO$96,MATCH(NPS!$B12,【D】NPS!$B$4:$B$96,0), MATCH(NPS!S$2&NPS!$R$1,【D】NPS!$C$2:$GO$2&【D】NPS!$C$3:$GO$3,0)) -> 44 | T12: =INDEX(【D】NPS!$C$4:$GO$96,MATCH(NPS!$B12,【D】NPS!$B$4:$B$96,0), MATCH(NPS!T$2&NPS!$R$1,【D】NPS!$C$2:$GO$2&【D】NPS!$C$3:$GO$3,0)) -> 28 | U12: =INDEX(【D】NPS!$C$4:$GO$96,MATCH(NPS!$B12,【D】NPS!$B$4:$B$96,0), MATCH(NPS!U$2&NPS!$R$1,【D】NPS!$C$2:$GO$2&【D】NPS!$C$3:$GO$3,0)) -> 31 | V12: =INDEX(【D】NPS!$C$4:$GO$96,MATCH(NPS!$B12,【D】NPS!$B$4:$B$96,0), MATCH(NPS!V$2&NPS!$R$1,【D】NPS!$C$2:$GO$2&【D】NPS!$C$3:$GO$3,0)) -> 36 | W12: =INDEX(【D】NPS!$C$4:$GO$96,MATCH(NPS!$B12,【D】NPS!$B$4:$B$96,0), MATCH(NPS!W$2&NPS!$R$1,【D】NPS!$C$2:$GO$2&【D】NPS!$C$3:$GO$3,0)) -> 9 | X12: =INDEX(【D】NPS!$C$4:$GO$96,MATCH(NPS!$B12,【D】NPS!$B$4:$B$96,0), MATCH(NPS!X$2&NPS!$R$1,【D】NPS!$C$2:$GO$2&【D】NPS!$C$3:$GO$3,0)) -> 5 | Y12: =INDEX(【D】NPS!$C$4:$GO$96,MATCH(NPS!$B12,【D】NPS!$B$4:$B$96,0), MATCH(NPS!Y$2&NPS!$R$1,【D】NPS!$C$2:$GO$2&【D】NPS!$C$3:$GO$3,0)) -> 78 | Z12: =INDEX(【D】NPS!$C$4:$GO$96,MATCH(NPS!$B12,【D】NPS!$B$4:$B$96,0), MATCH(NPS!Z$2&NPS!$R$1,【D】NPS!$C$2:$GO$2&【D】NPS!$C$3:$GO$3,0)) -> 17 | AA12: =INDEX(【D】NPS!$C$4:$GO$96,MATCH(NPS!$B12,【D】NPS!$B$4:$B$96,0), MATCH(NPS!AA$2&NPS!$R$1,【D】NPS!$C$2:$GO$2&【D】NPS!$C$3:$GO$3,0)) -> 6 | AB12: =INDEX(【D】NPS!$C$4:$GO$96,MATCH(NPS!$B12,【D】NPS!$B$4:$B$96,0), MATCH(NPS!AB$2&NPS!$R$1,【D】NPS!$C$2:$GO$2&【D】NPS!$C$3:$GO$3,0)) -> 43 | AC12: =INDEX(【D】NPS!$C$4:$GO$96,MATCH(NPS!$B12,【D】NPS!$B$4:$B$96,0), MATCH(NPS!AC$2&NPS!$R$1,【D】NPS!$C$2:$GO$2&【D】NPS!$C$3:$GO$3,0)) -> 8 | AD12: =INDEX(【D】NPS!$C$4:$GO$96,MATCH(NPS!$B12,【D】NPS!$B$4:$B$96,0), MATCH(NPS!AD$2&NPS!$R$1,【D】NPS!$C$2:$GO$2&【D】NPS!$C$3:$GO$3,0)) -> 49 | AE12: =INDEX(【D】NPS!$C$4:$GO$96,MATCH(NPS!$B12,【D】NPS!$B$4:$B$96,0), MATCH(NPS!AE$2&NPS!$R$1,【D】NPS!$C$2:$GO$2&【D】NPS!$C$3:$GO$3,0)) -> 19 | AH12: =INDEX(【D】NPS!$C$4:$GO$96,MATCH(NPS!$B12,【D】NPS!$B$4:$B$96,0), MATCH(NPS!AH$2&NPS!$AG$1,【D】NPS!$C$2:$GO$2&【D】NPS!$C$3:$GO$3,0)) -> 44 | AI12: =INDEX(【D】NPS!$C$4:$GO$96,MATCH(NPS!$B12,【D】NPS!$B$4:$B$96,0), MATCH(NPS!AI$2&NPS!$AG$1,【D】NPS!$C$2:$GO$2&【D】NPS!$C$3:$GO$3,0)) -> 28 | AJ12: =INDEX(【D】NPS!$C$4:$GO$96,MATCH(NPS!$B12,【D】NPS!$B$4:$B$96,0), MATCH(NPS!AJ$2&NPS!$AG$1,【D】NPS!$C$2:$GO$2&【D】NPS!$C$3:$GO$3,0)) -> 31 | AK12: =INDEX(【D】NPS!$C$4:$GO$96,MATCH(NPS!$B12,【D】NPS!$B$4:$B$96,0), MATCH(NPS!AK$2&NPS!$AG$1,【D】NPS!$C$2:$GO$2&【D】NPS!$C$3:$GO$3,0)) -> 36 | AL12: =INDEX(【D】NPS!$C$4:$GO$96,MATCH(NPS!$B12,【D】NPS!$B$4:$B$96,0), MATCH(NPS!AL$2&NPS!$AG$1,【D】NPS!$C$2:$GO$2&【D】NPS!$C$3:$GO$3,0)) -> 9 | AM12: =INDEX(【D】NPS!$C$4:$GO$96,MATCH(NPS!$B12,【D】NPS!$B$4:$B$96,0), MATCH(NPS!AM$2&NPS!$AG$1,【D】NPS!$C$2:$GO$2&【D】NPS!$C$3:$GO$3,0)) -> 5 | AN12: =INDEX(【D】NPS!$C$4:$GO$96,MATCH(NPS!$B12,【D】NPS!$B$4:$B$96,0), MATCH(NPS!AN$2&NPS!$AG$1,【D】NPS!$C$2:$GO$2&【D】NPS!$C$3:$GO$3,0)) -> 79 | AO12: =INDEX(【D】NPS!$C$4:$GO$96,MATCH(NPS!$B12,【D】NPS!$B$4:$B$96,0), MATCH(NPS!AO$2&NPS!$AG$1,【D】NPS!$C$2:$GO$2&【D】NPS!$C$3:$GO$3,0)) -> 17 | AP12: =INDEX(【D】NPS!$C$4:$GO$96,MATCH(NPS!$B12,【D】NPS!$B$4:$B$96,0), MATCH(NPS!AP$2&NPS!$AG$1,【D】NPS!$C$2:$GO$2&【D】NPS!$C$3:$GO$3,0)) -> 6 | AQ12: =INDEX(【D】NPS!$C$4:$GO$96,MATCH(NPS!$B12,【D】NPS!$B$4:$B$96,0), MATCH(NPS!AQ$2&NPS!$AG$1,【D】NPS!$C$2:$GO$2&【D】NPS!$C$3:$GO$3,0)) -> 53 | AR12: =INDEX(【D】NPS!$C$4:$GO$96,MATCH(NPS!$B12,【D】NPS!$B$4:$B$96,0), MATCH(NPS!AR$2&NPS!$AG$1,【D】NPS!$C$2:$GO$2&【D】NPS!$C$3:$GO$3,0)) -> 9 | AS12: =INDEX(【D】NPS!$C$4:$GO$96,MATCH(NPS!$B12,【D】NPS!$B$4:$B$96,0), MATCH(NPS!AS$2&NPS!$AG$1,【D】NPS!$C$2:$GO$2&【D】NPS!$C$3:$GO$3,0)) -> 49 | AT12: =INDEX(【D】NPS!$C$4:$GO$96,MATCH(NPS!$B12,【D】NPS!$B$4:$B$96,0), MATCH(NPS!AT$2&NPS!$AG$1,【D】NPS!$C$2:$GO$2&【D】NPS!$C$3:$GO$3,0)) -> 19 | AV12: 10 | AW12: 7 | AX12: スキージャム勝山 エリア | AY12: 66.66666667 | AZ12: =INDEX(【D】NPS!$C$7:$HB$96, MATCH(NPS!$AX12,【D】NPS!$B$7:$B$96,0), MATCH(NPS!$AZ$2&NPS!$AW$1,【D】NPS!$C$1:$HB$1&【D】NPS!$C$2:$HB$2,0)) -> 9
B13: 大安禅寺 エリア | D13: =INDEX(【D】NPS!$C$4:$GO$96,MATCH(NPS!$B13,【D】NPS!$B$4:$B$96,0), MATCH(NPS!D$2&NPS!$C$1,【D】NPS!$C$2:$GO$2&【D】NPS!$C$3:$GO$3,0)) -> None | E13: =INDEX(【D】NPS!$C$4:$GO$96,MATCH(NPS!$B13,【D】NPS!$B$4:$B$96,0), MATCH(NPS!E$2&NPS!$C$1,【D】NPS!$C$2:$GO$2&【D】NPS!$C$3:$GO$3,0)) -> 0 | F13: =INDEX(【D】NPS!$C$4:$GO$96,MATCH(NPS!$B13,【D】NPS!$B$4:$B$96,0), MATCH(NPS!F$2&NPS!$C$1,【D】NPS!$C$2:$GO$2&【D】NPS!$C$3:$GO$3,0)) -> None | G13: =INDEX(【D】NPS!$C$4:$GO$96,MATCH(NPS!$B13,【D】NPS!$B$4:$B$96,0), MATCH(NPS!G$2&NPS!$C$1,【D】NPS!$C$2:$GO$2&【D】NPS!$C$3:$GO$3,0)) -> -100 | H13: =INDEX(【D】NPS!$C$4:$GO$96,MATCH(NPS!$B13,【D】NPS!$B$4:$B$96,0), MATCH(NPS!H$2&NPS!$C$1,【D】NPS!$C$2:$GO$2&【D】NPS!$C$3:$GO$3,0)) -> None | I13: =INDEX(【D】NPS!$C$4:$GO$96,MATCH(NPS!$B13,【D】NPS!$B$4:$B$96,0), MATCH(NPS!I$2&NPS!$C$1,【D】NPS!$C$2:$GO$2&【D】NPS!$C$3:$GO$3,0)) -> 0 | J13: =INDEX(【D】NPS!$C$4:$GO$96,MATCH(NPS!$B13,【D】NPS!$B$4:$B$96,0), MATCH(NPS!J$2&NPS!$C$1,【D】NPS!$C$2:$GO$2&【D】NPS!$C$3:$GO$3,0)) -> -63.63636364 | K13: =INDEX(【D】NPS!$C$4:$GO$96,MATCH(NPS!$B13,【D】NPS!$B$4:$B$96,0), MATCH(NPS!K$2&NPS!$C$1,【D】NPS!$C$2:$GO$2&【D】NPS!$C$3:$GO$3,0)) -> 0 | L13: =INDEX(【D】NPS!$C$4:$GO$96,MATCH(NPS!$B13,【D】NPS!$B$4:$B$96,0), MATCH(NPS!L$2&NPS!$C$1,【D】NPS!$C$2:$GO$2&【D】NPS!$C$3:$GO$3,0)) -> 100 | M13: =INDEX(【D】NPS!$C$4:$GO$96,MATCH(NPS!$B13,【D】NPS!$B$4:$B$96,0), MATCH(NPS!M$2&NPS!$C$1,【D】NPS!$C$2:$GO$2&【D】NPS!$C$3:$GO$3,0)) -> None | N13: =INDEX(【D】NPS!$C$4:$GO$96,MATCH(NPS!$B13,【D】NPS!$B$4:$B$96,0), MATCH(NPS!N$2&NPS!$C$1,【D】NPS!$C$2:$GO$2&【D】NPS!$C$3:$GO$3,0)) -> 0 | O13: =INDEX(【D】NPS!$C$4:$GO$96,MATCH(NPS!$B13,【D】NPS!$B$4:$B$96,0), MATCH(NPS!O$2&NPS!$C$1,【D】NPS!$C$2:$GO$2&【D】NPS!$C$3:$GO$3,0)) -> 66.66666667 | P13: =INDEX(【D】NPS!$C$4:$GO$96,MATCH(NPS!$B13,【D】NPS!$B$4:$B$96,0), MATCH(NPS!P$2&NPS!$C$1,【D】NPS!$C$2:$GO$2&【D】NPS!$C$3:$GO$3,0)) -> -11.42857143 | S13: =INDEX(【D】NPS!$C$4:$GO$96,MATCH(NPS!$B13,【D】NPS!$B$4:$B$96,0), MATCH(NPS!S$2&NPS!$R$1,【D】NPS!$C$2:$GO$2&【D】NPS!$C$3:$GO$3,0)) -> - | T13: =INDEX(【D】NPS!$C$4:$GO$96,MATCH(NPS!$B13,【D】NPS!$B$4:$B$96,0), MATCH(NPS!T$2&NPS!$R$1,【D】NPS!$C$2:$GO$2&【D】NPS!$C$3:$GO$3,0)) -> 41 | U13: =INDEX(【D】NPS!$C$4:$GO$96,MATCH(NPS!$B13,【D】NPS!$B$4:$B$96,0), MATCH(NPS!U$2&NPS!$R$1,【D】NPS!$C$2:$GO$2&【D】NPS!$C$3:$GO$3,0)) -> - | V13: =INDEX(【D】NPS!$C$4:$GO$96,MATCH(NPS!$B13,【D】NPS!$B$4:$B$96,0), MATCH(NPS!V$2&NPS!$R$1,【D】NPS!$C$2:$GO$2&【D】NPS!$C$3:$GO$3,0)) -> 83 | W13: =INDEX(【D】NPS!$C$4:$GO$96,MATCH(NPS!$B13,【D】NPS!$B$4:$B$96,0), MATCH(NPS!W$2&NPS!$R$1,【D】NPS!$C$2:$GO$2&【D】NPS!$C$3:$GO$3,0)) -> - | X13: =INDEX(【D】NPS!$C$4:$GO$96,MATCH(NPS!$B13,【D】NPS!$B$4:$B$96,0), MATCH(NPS!X$2&NPS!$R$1,【D】NPS!$C$2:$GO$2&【D】NPS!$C$3:$GO$3,0)) -> 38 | Y13: =INDEX(【D】NPS!$C$4:$GO$96,MATCH(NPS!$B13,【D】NPS!$B$4:$B$96,0), MATCH(NPS!Y$2&NPS!$R$1,【D】NPS!$C$2:$GO$2&【D】NPS!$C$3:$GO$3,0)) -> 80 | Z13: =INDEX(【D】NPS!$C$4:$GO$96,MATCH(NPS!$B13,【D】NPS!$B$4:$B$96,0), MATCH(NPS!Z$2&NPS!$R$1,【D】NPS!$C$2:$GO$2&【D】NPS!$C$3:$GO$3,0)) -> 50 | AA13: =INDEX(【D】NPS!$C$4:$GO$96,MATCH(NPS!$B13,【D】NPS!$B$4:$B$96,0), MATCH(NPS!AA$2&NPS!$R$1,【D】NPS!$C$2:$GO$2&【D】NPS!$C$3:$GO$3,0)) -> 1 | AB13: =INDEX(【D】NPS!$C$4:$GO$96,MATCH(NPS!$B13,【D】NPS!$B$4:$B$96,0), MATCH(NPS!AB$2&NPS!$R$1,【D】NPS!$C$2:$GO$2&【D】NPS!$C$3:$GO$3,0)) -> - | AC13: =INDEX(【D】NPS!$C$4:$GO$96,MATCH(NPS!$B13,【D】NPS!$B$4:$B$96,0), MATCH(NPS!AC$2&NPS!$R$1,【D】NPS!$C$2:$GO$2&【D】NPS!$C$3:$GO$3,0)) -> 40 | AD13: =INDEX(【D】NPS!$C$4:$GO$96,MATCH(NPS!$B13,【D】NPS!$B$4:$B$96,0), MATCH(NPS!AD$2&NPS!$R$1,【D】NPS!$C$2:$GO$2&【D】NPS!$C$3:$GO$3,0)) -> 7 | AE13: =INDEX(【D】NPS!$C$4:$GO$96,MATCH(NPS!$B13,【D】NPS!$B$4:$B$96,0), MATCH(NPS!AE$2&NPS!$R$1,【D】NPS!$C$2:$GO$2&【D】NPS!$C$3:$GO$3,0)) -> 79 | AH13: =INDEX(【D】NPS!$C$4:$GO$96,MATCH(NPS!$B13,【D】NPS!$B$4:$B$96,0), MATCH(NPS!AH$2&NPS!$AG$1,【D】NPS!$C$2:$GO$2&【D】NPS!$C$3:$GO$3,0)) -> - | AI13: =INDEX(【D】NPS!$C$4:$GO$96,MATCH(NPS!$B13,【D】NPS!$B$4:$B$96,0), MATCH(NPS!AI$2&NPS!$AG$1,【D】NPS!$C$2:$GO$2&【D】NPS!$C$3:$GO$3,0)) -> 44 | AJ13: =INDEX(【D】NPS!$C$4:$GO$96,MATCH(NPS!$B13,【D】NPS!$B$4:$B$96,0), MATCH(NPS!AJ$2&NPS!$AG$1,【D】NPS!$C$2:$GO$2&【D】NPS!$C$3:$GO$3,0)) -> - | AK13: =INDEX(【D】NPS!$C$4:$GO$96,MATCH(NPS!$B13,【D】NPS!$B$4:$B$96,0), MATCH(NPS!AK$2&NPS!$AG$1,【D】NPS!$C$2:$GO$2&【D】NPS!$C$3:$GO$3,0)) -> 83 | AL13: =INDEX(【D】NPS!$C$4:$GO$96,MATCH(NPS!$B13,【D】NPS!$B$4:$B$96,0), MATCH(NPS!AL$2&NPS!$AG$1,【D】NPS!$C$2:$GO$2&【D】NPS!$C$3:$GO$3,0)) -> - | AM13: =INDEX(【D】NPS!$C$4:$GO$96,MATCH(NPS!$B13,【D】NPS!$B$4:$B$96,0), MATCH(NPS!AM$2&NPS!$AG$1,【D】NPS!$C$2:$GO$2&【D】NPS!$C$3:$GO$3,0)) -> 40 | AN13: =INDEX(【D】NPS!$C$4:$GO$96,MATCH(NPS!$B13,【D】NPS!$B$4:$B$96,0), MATCH(NPS!AN$2&NPS!$AG$1,【D】NPS!$C$2:$GO$2&【D】NPS!$C$3:$GO$3,0)) -> 80 | AO13: =INDEX(【D】NPS!$C$4:$GO$96,MATCH(NPS!$B13,【D】NPS!$B$4:$B$96,0), MATCH(NPS!AO$2&NPS!$AG$1,【D】NPS!$C$2:$GO$2&【D】NPS!$C$3:$GO$3,0)) -> 52 | AP13: =INDEX(【D】NPS!$C$4:$GO$96,MATCH(NPS!$B13,【D】NPS!$B$4:$B$96,0), MATCH(NPS!AP$2&NPS!$AG$1,【D】NPS!$C$2:$GO$2&【D】NPS!$C$3:$GO$3,0)) -> 2 | AQ13: =INDEX(【D】NPS!$C$4:$GO$96,MATCH(NPS!$B13,【D】NPS!$B$4:$B$96,0), MATCH(NPS!AQ$2&NPS!$AG$1,【D】NPS!$C$2:$GO$2&【D】NPS!$C$3:$GO$3,0)) -> - | AR13: =INDEX(【D】NPS!$C$4:$GO$96,MATCH(NPS!$B13,【D】NPS!$B$4:$B$96,0), MATCH(NPS!AR$2&NPS!$AG$1,【D】NPS!$C$2:$GO$2&【D】NPS!$C$3:$GO$3,0)) -> 44 | AS13: =INDEX(【D】NPS!$C$4:$GO$96,MATCH(NPS!$B13,【D】NPS!$B$4:$B$96,0), MATCH(NPS!AS$2&NPS!$AG$1,【D】NPS!$C$2:$GO$2&【D】NPS!$C$3:$GO$3,0)) -> 8 | AT13: =INDEX(【D】NPS!$C$4:$GO$96,MATCH(NPS!$B13,【D】NPS!$B$4:$B$96,0), MATCH(NPS!AT$2&NPS!$AG$1,【D】NPS!$C$2:$GO$2&【D】NPS!$C$3:$GO$3,0)) -> 79 | AV13: 11 | AW13: 11 | AX13: はたや記念館 ゆめおーれ勝山 エリア | AY13: 53.84615385 | AZ13: =INDEX(【D】NPS!$C$7:$HB$96, MATCH(NPS!$AX13,【D】NPS!$B$7:$B$96,0), MATCH(NPS!$AZ$2&NPS!$AW$1,【D】NPS!$C$1:$HB$1&【D】NPS!$C$2:$HB$2,0)) -> 13
B14: 三国湊 エリア | D14: =INDEX(【D】NPS!$C$4:$GO$96,MATCH(NPS!$B14,【D】NPS!$B$4:$B$96,0), MATCH(NPS!D$2&NPS!$C$1,【D】NPS!$C$2:$GO$2&【D】NPS!$C$3:$GO$3,0)) -> -100 | E14: =INDEX(【D】NPS!$C$4:$GO$96,MATCH(NPS!$B14,【D】NPS!$B$4:$B$96,0), MATCH(NPS!E$2&NPS!$C$1,【D】NPS!$C$2:$GO$2&【D】NPS!$C$3:$GO$3,0)) -> 31.42857143 | F14: =INDEX(【D】NPS!$C$4:$GO$96,MATCH(NPS!$B14,【D】NPS!$B$4:$B$96,0), MATCH(NPS!F$2&NPS!$C$1,【D】NPS!$C$2:$GO$2&【D】NPS!$C$3:$GO$3,0)) -> -29.41176471 | G14: =INDEX(【D】NPS!$C$4:$GO$96,MATCH(NPS!$B14,【D】NPS!$B$4:$B$96,0), MATCH(NPS!G$2&NPS!$C$1,【D】NPS!$C$2:$GO$2&【D】NPS!$C$3:$GO$3,0)) -> -15.68627451 | H14: =INDEX(【D】NPS!$C$4:$GO$96,MATCH(NPS!$B14,【D】NPS!$B$4:$B$96,0), MATCH(NPS!H$2&NPS!$C$1,【D】NPS!$C$2:$GO$2&【D】NPS!$C$3:$GO$3,0)) -> -4.545454545 | I14: =INDEX(【D】NPS!$C$4:$GO$96,MATCH(NPS!$B14,【D】NPS!$B$4:$B$96,0), MATCH(NPS!I$2&NPS!$C$1,【D】NPS!$C$2:$GO$2&【D】NPS!$C$3:$GO$3,0)) -> 4.166666667 | J14: =INDEX(【D】NPS!$C$4:$GO$96,MATCH(NPS!$B14,【D】NPS!$B$4:$B$96,0), MATCH(NPS!J$2&NPS!$C$1,【D】NPS!$C$2:$GO$2&【D】NPS!$C$3:$GO$3,0)) -> 0 | K14: =INDEX(【D】NPS!$C$4:$GO$96,MATCH(NPS!$B14,【D】NPS!$B$4:$B$96,0), MATCH(NPS!K$2&NPS!$C$1,【D】NPS!$C$2:$GO$2&【D】NPS!$C$3:$GO$3,0)) -> 16.66666667 | L14: =INDEX(【D】NPS!$C$4:$GO$96,MATCH(NPS!$B14,【D】NPS!$B$4:$B$96,0), MATCH(NPS!L$2&NPS!$C$1,【D】NPS!$C$2:$GO$2&【D】NPS!$C$3:$GO$3,0)) -> 20 | M14: =INDEX(【D】NPS!$C$4:$GO$96,MATCH(NPS!$B14,【D】NPS!$B$4:$B$96,0), MATCH(NPS!M$2&NPS!$C$1,【D】NPS!$C$2:$GO$2&【D】NPS!$C$3:$GO$3,0)) -> -6.666666667 | N14: =INDEX(【D】NPS!$C$4:$GO$96,MATCH(NPS!$B14,【D】NPS!$B$4:$B$96,0), MATCH(NPS!N$2&NPS!$C$1,【D】NPS!$C$2:$GO$2&【D】NPS!$C$3:$GO$3,0)) -> 7.692307692 | O14: =INDEX(【D】NPS!$C$4:$GO$96,MATCH(NPS!$B14,【D】NPS!$B$4:$B$96,0), MATCH(NPS!O$2&NPS!$C$1,【D】NPS!$C$2:$GO$2&【D】NPS!$C$3:$GO$3,0)) -> 11.9047619 | P14: =INDEX(【D】NPS!$C$4:$GO$96,MATCH(NPS!$B14,【D】NPS!$B$4:$B$96,0), MATCH(NPS!P$2&NPS!$C$1,【D】NPS!$C$2:$GO$2&【D】NPS!$C$3:$GO$3,0)) -> 1.597444089 | S14: =INDEX(【D】NPS!$C$4:$GO$96,MATCH(NPS!$B14,【D】NPS!$B$4:$B$96,0), MATCH(NPS!S$2&NPS!$R$1,【D】NPS!$C$2:$GO$2&【D】NPS!$C$3:$GO$3,0)) -> 53 | T14: =INDEX(【D】NPS!$C$4:$GO$96,MATCH(NPS!$B14,【D】NPS!$B$4:$B$96,0), MATCH(NPS!T$2&NPS!$R$1,【D】NPS!$C$2:$GO$2&【D】NPS!$C$3:$GO$3,0)) -> 10 | U14: =INDEX(【D】NPS!$C$4:$GO$96,MATCH(NPS!$B14,【D】NPS!$B$4:$B$96,0), MATCH(NPS!U$2&NPS!$R$1,【D】NPS!$C$2:$GO$2&【D】NPS!$C$3:$GO$3,0)) -> 70 | V14: =INDEX(【D】NPS!$C$4:$GO$96,MATCH(NPS!$B14,【D】NPS!$B$4:$B$96,0), MATCH(NPS!V$2&NPS!$R$1,【D】NPS!$C$2:$GO$2&【D】NPS!$C$3:$GO$3,0)) -> 67 | W14: =INDEX(【D】NPS!$C$4:$GO$96,MATCH(NPS!$B14,【D】NPS!$B$4:$B$96,0), MATCH(NPS!W$2&NPS!$R$1,【D】NPS!$C$2:$GO$2&【D】NPS!$C$3:$GO$3,0)) -> 59 | X14: =INDEX(【D】NPS!$C$4:$GO$96,MATCH(NPS!$B14,【D】NPS!$B$4:$B$96,0), MATCH(NPS!X$2&NPS!$R$1,【D】NPS!$C$2:$GO$2&【D】NPS!$C$3:$GO$3,0)) -> 36 | Y14: =INDEX(【D】NPS!$C$4:$GO$96,MATCH(NPS!$B14,【D】NPS!$B$4:$B$96,0), MATCH(NPS!Y$2&NPS!$R$1,【D】NPS!$C$2:$GO$2&【D】NPS!$C$3:$GO$3,0)) -> 28 | Z14: =INDEX(【D】NPS!$C$4:$GO$96,MATCH(NPS!$B14,【D】NPS!$B$4:$B$96,0), MATCH(NPS!Z$2&NPS!$R$1,【D】NPS!$C$2:$GO$2&【D】NPS!$C$3:$GO$3,0)) -> 26 | AA14: =INDEX(【D】NPS!$C$4:$GO$96,MATCH(NPS!$B14,【D】NPS!$B$4:$B$96,0), MATCH(NPS!AA$2&NPS!$R$1,【D】NPS!$C$2:$GO$2&【D】NPS!$C$3:$GO$3,0)) -> 23 | AB14: =INDEX(【D】NPS!$C$4:$GO$96,MATCH(NPS!$B14,【D】NPS!$B$4:$B$96,0), MATCH(NPS!AB$2&NPS!$R$1,【D】NPS!$C$2:$GO$2&【D】NPS!$C$3:$GO$3,0)) -> 55 | AC14: =INDEX(【D】NPS!$C$4:$GO$96,MATCH(NPS!$B14,【D】NPS!$B$4:$B$96,0), MATCH(NPS!AC$2&NPS!$R$1,【D】NPS!$C$2:$GO$2&【D】NPS!$C$3:$GO$3,0)) -> 37 | AD14: =INDEX(【D】NPS!$C$4:$GO$96,MATCH(NPS!$B14,【D】NPS!$B$4:$B$96,0), MATCH(NPS!AD$2&NPS!$R$1,【D】NPS!$C$2:$GO$2&【D】NPS!$C$3:$GO$3,0)) -> 43 | AE14: =INDEX(【D】NPS!$C$4:$GO$96,MATCH(NPS!$B14,【D】NPS!$B$4:$B$96,0), MATCH(NPS!AE$2&NPS!$R$1,【D】NPS!$C$2:$GO$2&【D】NPS!$C$3:$GO$3,0)) -> 49 | AH14: =INDEX(【D】NPS!$C$4:$GO$96,MATCH(NPS!$B14,【D】NPS!$B$4:$B$96,0), MATCH(NPS!AH$2&NPS!$AG$1,【D】NPS!$C$2:$GO$2&【D】NPS!$C$3:$GO$3,0)) -> 53 | AI14: =INDEX(【D】NPS!$C$4:$GO$96,MATCH(NPS!$B14,【D】NPS!$B$4:$B$96,0), MATCH(NPS!AI$2&NPS!$AG$1,【D】NPS!$C$2:$GO$2&【D】NPS!$C$3:$GO$3,0)) -> 10 | AJ14: =INDEX(【D】NPS!$C$4:$GO$96,MATCH(NPS!$B14,【D】NPS!$B$4:$B$96,0), MATCH(NPS!AJ$2&NPS!$AG$1,【D】NPS!$C$2:$GO$2&【D】NPS!$C$3:$GO$3,0)) -> 70 | AK14: =INDEX(【D】NPS!$C$4:$GO$96,MATCH(NPS!$B14,【D】NPS!$B$4:$B$96,0), MATCH(NPS!AK$2&NPS!$AG$1,【D】NPS!$C$2:$GO$2&【D】NPS!$C$3:$GO$3,0)) -> 67 | AL14: =INDEX(【D】NPS!$C$4:$GO$96,MATCH(NPS!$B14,【D】NPS!$B$4:$B$96,0), MATCH(NPS!AL$2&NPS!$AG$1,【D】NPS!$C$2:$GO$2&【D】NPS!$C$3:$GO$3,0)) -> 59 | AM14: =INDEX(【D】NPS!$C$4:$GO$96,MATCH(NPS!$B14,【D】NPS!$B$4:$B$96,0), MATCH(NPS!AM$2&NPS!$AG$1,【D】NPS!$C$2:$GO$2&【D】NPS!$C$3:$GO$3,0)) -> 36 | AN14: =INDEX(【D】NPS!$C$4:$GO$96,MATCH(NPS!$B14,【D】NPS!$B$4:$B$96,0), MATCH(NPS!AN$2&NPS!$AG$1,【D】NPS!$C$2:$GO$2&【D】NPS!$C$3:$GO$3,0)) -> 29 | AO14: =INDEX(【D】NPS!$C$4:$GO$96,MATCH(NPS!$B14,【D】NPS!$B$4:$B$96,0), MATCH(NPS!AO$2&NPS!$AG$1,【D】NPS!$C$2:$GO$2&【D】NPS!$C$3:$GO$3,0)) -> 26 | AP14: =INDEX(【D】NPS!$C$4:$GO$96,MATCH(NPS!$B14,【D】NPS!$B$4:$B$96,0), MATCH(NPS!AP$2&NPS!$AG$1,【D】NPS!$C$2:$GO$2&【D】NPS!$C$3:$GO$3,0)) -> 23 | AQ14: =INDEX(【D】NPS!$C$4:$GO$96,MATCH(NPS!$B14,【D】NPS!$B$4:$B$96,0), MATCH(NPS!AQ$2&NPS!$AG$1,【D】NPS!$C$2:$GO$2&【D】NPS!$C$3:$GO$3,0)) -> 55 | AR14: =INDEX(【D】NPS!$C$4:$GO$96,MATCH(NPS!$B14,【D】NPS!$B$4:$B$96,0), MATCH(NPS!AR$2&NPS!$AG$1,【D】NPS!$C$2:$GO$2&【D】NPS!$C$3:$GO$3,0)) -> 37 | AS14: =INDEX(【D】NPS!$C$4:$GO$96,MATCH(NPS!$B14,【D】NPS!$B$4:$B$96,0), MATCH(NPS!AS$2&NPS!$AG$1,【D】NPS!$C$2:$GO$2&【D】NPS!$C$3:$GO$3,0)) -> 43 | AT14: =INDEX(【D】NPS!$C$4:$GO$96,MATCH(NPS!$B14,【D】NPS!$B$4:$B$96,0), MATCH(NPS!AT$2&NPS!$AG$1,【D】NPS!$C$2:$GO$2&【D】NPS!$C$3:$GO$3,0)) -> 49 | AV14: 12 | AW14: 12 | AX14: 越前海岸 くりや旅館街 エリア | AY14: 50 | AZ14: =INDEX(【D】NPS!$C$7:$HB$96, MATCH(NPS!$AX14,【D】NPS!$B$7:$B$96,0), MATCH(NPS!$AZ$2&NPS!$AW$1,【D】NPS!$C$1:$HB$1&【D】NPS!$C$2:$HB$2,0)) -> 10
B15: 東尋坊 エリア | D15: =INDEX(【D】NPS!$C$4:$GO$96,MATCH(NPS!$B15,【D】NPS!$B$4:$B$96,0), MATCH(NPS!D$2&NPS!$C$1,【D】NPS!$C$2:$GO$2&【D】NPS!$C$3:$GO$3,0)) -> 100 | E15: =INDEX(【D】NPS!$C$4:$GO$96,MATCH(NPS!$B15,【D】NPS!$B$4:$B$96,0), MATCH(NPS!E$2&NPS!$C$1,【D】NPS!$C$2:$GO$2&【D】NPS!$C$3:$GO$3,0)) -> 7.894736842 | F15: =INDEX(【D】NPS!$C$4:$GO$96,MATCH(NPS!$B15,【D】NPS!$B$4:$B$96,0), MATCH(NPS!F$2&NPS!$C$1,【D】NPS!$C$2:$GO$2&【D】NPS!$C$3:$GO$3,0)) -> 16.12903226 | G15: =INDEX(【D】NPS!$C$4:$GO$96,MATCH(NPS!$B15,【D】NPS!$B$4:$B$96,0), MATCH(NPS!G$2&NPS!$C$1,【D】NPS!$C$2:$GO$2&【D】NPS!$C$3:$GO$3,0)) -> -15.55555556 | H15: =INDEX(【D】NPS!$C$4:$GO$96,MATCH(NPS!$B15,【D】NPS!$B$4:$B$96,0), MATCH(NPS!H$2&NPS!$C$1,【D】NPS!$C$2:$GO$2&【D】NPS!$C$3:$GO$3,0)) -> -2.083333333 | I15: =INDEX(【D】NPS!$C$4:$GO$96,MATCH(NPS!$B15,【D】NPS!$B$4:$B$96,0), MATCH(NPS!I$2&NPS!$C$1,【D】NPS!$C$2:$GO$2&【D】NPS!$C$3:$GO$3,0)) -> -10.52631579 | J15: =INDEX(【D】NPS!$C$4:$GO$96,MATCH(NPS!$B15,【D】NPS!$B$4:$B$96,0), MATCH(NPS!J$2&NPS!$C$1,【D】NPS!$C$2:$GO$2&【D】NPS!$C$3:$GO$3,0)) -> 0 | K15: =INDEX(【D】NPS!$C$4:$GO$96,MATCH(NPS!$B15,【D】NPS!$B$4:$B$96,0), MATCH(NPS!K$2&NPS!$C$1,【D】NPS!$C$2:$GO$2&【D】NPS!$C$3:$GO$3,0)) -> 25.80645161 | L15: =INDEX(【D】NPS!$C$4:$GO$96,MATCH(NPS!$B15,【D】NPS!$B$4:$B$96,0), MATCH(NPS!L$2&NPS!$C$1,【D】NPS!$C$2:$GO$2&【D】NPS!$C$3:$GO$3,0)) -> 4.545454545 | M15: =INDEX(【D】NPS!$C$4:$GO$96,MATCH(NPS!$B15,【D】NPS!$B$4:$B$96,0), MATCH(NPS!M$2&NPS!$C$1,【D】NPS!$C$2:$GO$2&【D】NPS!$C$3:$GO$3,0)) -> 66.66666667 | N15: =INDEX(【D】NPS!$C$4:$GO$96,MATCH(NPS!$B15,【D】NPS!$B$4:$B$96,0), MATCH(NPS!N$2&NPS!$C$1,【D】NPS!$C$2:$GO$2&【D】NPS!$C$3:$GO$3,0)) -> -5 | O15: =INDEX(【D】NPS!$C$4:$GO$96,MATCH(NPS!$B15,【D】NPS!$B$4:$B$96,0), MATCH(NPS!O$2&NPS!$C$1,【D】NPS!$C$2:$GO$2&【D】NPS!$C$3:$GO$3,0)) -> 14.49275362 | P15: =INDEX(【D】NPS!$C$4:$GO$96,MATCH(NPS!$B15,【D】NPS!$B$4:$B$96,0), MATCH(NPS!P$2&NPS!$C$1,【D】NPS!$C$2:$GO$2&【D】NPS!$C$3:$GO$3,0)) -> 5.428571429 | S15: =INDEX(【D】NPS!$C$4:$GO$96,MATCH(NPS!$B15,【D】NPS!$B$4:$B$96,0), MATCH(NPS!S$2&NPS!$R$1,【D】NPS!$C$2:$GO$2&【D】NPS!$C$3:$GO$3,0)) -> 1 | T15: =INDEX(【D】NPS!$C$4:$GO$96,MATCH(NPS!$B15,【D】NPS!$B$4:$B$96,0), MATCH(NPS!T$2&NPS!$R$1,【D】NPS!$C$2:$GO$2&【D】NPS!$C$3:$GO$3,0)) -> 35 | U15: =INDEX(【D】NPS!$C$4:$GO$96,MATCH(NPS!$B15,【D】NPS!$B$4:$B$96,0), MATCH(NPS!U$2&NPS!$R$1,【D】NPS!$C$2:$GO$2&【D】NPS!$C$3:$GO$3,0)) -> 30 | V15: =INDEX(【D】NPS!$C$4:$GO$96,MATCH(NPS!$B15,【D】NPS!$B$4:$B$96,0), MATCH(NPS!V$2&NPS!$R$1,【D】NPS!$C$2:$GO$2&【D】NPS!$C$3:$GO$3,0)) -> 66 | W15: =INDEX(【D】NPS!$C$4:$GO$96,MATCH(NPS!$B15,【D】NPS!$B$4:$B$96,0), MATCH(NPS!W$2&NPS!$R$1,【D】NPS!$C$2:$GO$2&【D】NPS!$C$3:$GO$3,0)) -> 55 | X15: =INDEX(【D】NPS!$C$4:$GO$96,MATCH(NPS!$B15,【D】NPS!$B$4:$B$96,0), MATCH(NPS!X$2&NPS!$R$1,【D】NPS!$C$2:$GO$2&【D】NPS!$C$3:$GO$3,0)) -> 61 | Y15: =INDEX(【D】NPS!$C$4:$GO$96,MATCH(NPS!$B15,【D】NPS!$B$4:$B$96,0), MATCH(NPS!Y$2&NPS!$R$1,【D】NPS!$C$2:$GO$2&【D】NPS!$C$3:$GO$3,0)) -> 28 | Z15: =INDEX(【D】NPS!$C$4:$GO$96,MATCH(NPS!$B15,【D】NPS!$B$4:$B$96,0), MATCH(NPS!Z$2&NPS!$R$1,【D】NPS!$C$2:$GO$2&【D】NPS!$C$3:$GO$3,0)) -> 19 | AA15: =INDEX(【D】NPS!$C$4:$GO$96,MATCH(NPS!$B15,【D】NPS!$B$4:$B$96,0), MATCH(NPS!AA$2&NPS!$R$1,【D】NPS!$C$2:$GO$2&【D】NPS!$C$3:$GO$3,0)) -> 44 | AB15: =INDEX(【D】NPS!$C$4:$GO$96,MATCH(NPS!$B15,【D】NPS!$B$4:$B$96,0), MATCH(NPS!AB$2&NPS!$R$1,【D】NPS!$C$2:$GO$2&【D】NPS!$C$3:$GO$3,0)) -> 7 | AC15: =INDEX(【D】NPS!$C$4:$GO$96,MATCH(NPS!$B15,【D】NPS!$B$4:$B$96,0), MATCH(NPS!AC$2&NPS!$R$1,【D】NPS!$C$2:$GO$2&【D】NPS!$C$3:$GO$3,0)) -> 62 | AD15: =INDEX(【D】NPS!$C$4:$GO$96,MATCH(NPS!$B15,【D】NPS!$B$4:$B$96,0), MATCH(NPS!AD$2&NPS!$R$1,【D】NPS!$C$2:$GO$2&【D】NPS!$C$3:$GO$3,0)) -> 39 | AE15: =INDEX(【D】NPS!$C$4:$GO$96,MATCH(NPS!$B15,【D】NPS!$B$4:$B$96,0), MATCH(NPS!AE$2&NPS!$R$1,【D】NPS!$C$2:$GO$2&【D】NPS!$C$3:$GO$3,0)) -> 39 | AH15: =INDEX(【D】NPS!$C$4:$GO$96,MATCH(NPS!$B15,【D】NPS!$B$4:$B$96,0), MATCH(NPS!AH$2&NPS!$AG$1,【D】NPS!$C$2:$GO$2&【D】NPS!$C$3:$GO$3,0)) -> 8 | AI15: =INDEX(【D】NPS!$C$4:$GO$96,MATCH(NPS!$B15,【D】NPS!$B$4:$B$96,0), MATCH(NPS!AI$2&NPS!$AG$1,【D】NPS!$C$2:$GO$2&【D】NPS!$C$3:$GO$3,0)) -> 35 | AJ15: =INDEX(【D】NPS!$C$4:$GO$96,MATCH(NPS!$B15,【D】NPS!$B$4:$B$96,0), MATCH(NPS!AJ$2&NPS!$AG$1,【D】NPS!$C$2:$GO$2&【D】NPS!$C$3:$GO$3,0)) -> 30 | AK15: =INDEX(【D】NPS!$C$4:$GO$96,MATCH(NPS!$B15,【D】NPS!$B$4:$B$96,0), MATCH(NPS!AK$2&NPS!$AG$1,【D】NPS!$C$2:$GO$2&【D】NPS!$C$3:$GO$3,0)) -> 66 | AL15: =INDEX(【D】NPS!$C$4:$GO$96,MATCH(NPS!$B15,【D】NPS!$B$4:$B$96,0), MATCH(NPS!AL$2&NPS!$AG$1,【D】NPS!$C$2:$GO$2&【D】NPS!$C$3:$GO$3,0)) -> 55 | AM15: =INDEX(【D】NPS!$C$4:$GO$96,MATCH(NPS!$B15,【D】NPS!$B$4:$B$96,0), MATCH(NPS!AM$2&NPS!$AG$1,【D】NPS!$C$2:$GO$2&【D】NPS!$C$3:$GO$3,0)) -> 61 | AN15: =INDEX(【D】NPS!$C$4:$GO$96,MATCH(NPS!$B15,【D】NPS!$B$4:$B$96,0), MATCH(NPS!AN$2&NPS!$AG$1,【D】NPS!$C$2:$GO$2&【D】NPS!$C$3:$GO$3,0)) -> 35 | AO15: =INDEX(【D】NPS!$C$4:$GO$96,MATCH(NPS!$B15,【D】NPS!$B$4:$B$96,0), MATCH(NPS!AO$2&NPS!$AG$1,【D】NPS!$C$2:$GO$2&【D】NPS!$C$3:$GO$3,0)) -> 19 | AP15: =INDEX(【D】NPS!$C$4:$GO$96,MATCH(NPS!$B15,【D】NPS!$B$4:$B$96,0), MATCH(NPS!AP$2&NPS!$AG$1,【D】NPS!$C$2:$GO$2&【D】NPS!$C$3:$GO$3,0)) -> 44 | AQ15: =INDEX(【D】NPS!$C$4:$GO$96,MATCH(NPS!$B15,【D】NPS!$B$4:$B$96,0), MATCH(NPS!AQ$2&NPS!$AG$1,【D】NPS!$C$2:$GO$2&【D】NPS!$C$3:$GO$3,0)) -> 7 | AR15: =INDEX(【D】NPS!$C$4:$GO$96,MATCH(NPS!$B15,【D】NPS!$B$4:$B$96,0), MATCH(NPS!AR$2&NPS!$AG$1,【D】NPS!$C$2:$GO$2&【D】NPS!$C$3:$GO$3,0)) -> 62 | AS15: =INDEX(【D】NPS!$C$4:$GO$96,MATCH(NPS!$B15,【D】NPS!$B$4:$B$96,0), MATCH(NPS!AS$2&NPS!$AG$1,【D】NPS!$C$2:$GO$2&【D】NPS!$C$3:$GO$3,0)) -> 39 | AT15: =INDEX(【D】NPS!$C$4:$GO$96,MATCH(NPS!$B15,【D】NPS!$B$4:$B$96,0), MATCH(NPS!AT$2&NPS!$AG$1,【D】NPS!$C$2:$GO$2&【D】NPS!$C$3:$GO$3,0)) -> 39 | AV15: 13 | AW15: 12 | AX15: 大本山 永平寺 エリア | AY15: 50 | AZ15: =INDEX(【D】NPS!$C$7:$HB$96, MATCH(NPS!$AX15,【D】NPS!$B$7:$B$96,0), MATCH(NPS!$AZ$2&NPS!$AW$1,【D】NPS!$C$1:$HB$1&【D】NPS!$C$2:$HB$2,0)) -> 20
B16: 越前松島水族館 エリア | D16: =INDEX(【D】NPS!$C$4:$GO$96,MATCH(NPS!$B16,【D】NPS!$B$4:$B$96,0), MATCH(NPS!D$2&NPS!$C$1,【D】NPS!$C$2:$GO$2&【D】NPS!$C$3:$GO$3,0)) -> -66.66666667 | E16: =INDEX(【D】NPS!$C$4:$GO$96,MATCH(NPS!$B16,【D】NPS!$B$4:$B$96,0), MATCH(NPS!E$2&NPS!$C$1,【D】NPS!$C$2:$GO$2&【D】NPS!$C$3:$GO$3,0)) -> 6.896551724 | F16: =INDEX(【D】NPS!$C$4:$GO$96,MATCH(NPS!$B16,【D】NPS!$B$4:$B$96,0), MATCH(NPS!F$2&NPS!$C$1,【D】NPS!$C$2:$GO$2&【D】NPS!$C$3:$GO$3,0)) -> 50 | G16: =INDEX(【D】NPS!$C$4:$GO$96,MATCH(NPS!$B16,【D】NPS!$B$4:$B$96,0), MATCH(NPS!G$2&NPS!$C$1,【D】NPS!$C$2:$GO$2&【D】NPS!$C$3:$GO$3,0)) -> 33.33333333 | H16: =INDEX(【D】NPS!$C$4:$GO$96,MATCH(NPS!$B16,【D】NPS!$B$4:$B$96,0), MATCH(NPS!H$2&NPS!$C$1,【D】NPS!$C$2:$GO$2&【D】NPS!$C$3:$GO$3,0)) -> 38.88888889 | I16: =INDEX(【D】NPS!$C$4:$GO$96,MATCH(NPS!$B16,【D】NPS!$B$4:$B$96,0), MATCH(NPS!I$2&NPS!$C$1,【D】NPS!$C$2:$GO$2&【D】NPS!$C$3:$GO$3,0)) -> 13.33333333 | J16: =INDEX(【D】NPS!$C$4:$GO$96,MATCH(NPS!$B16,【D】NPS!$B$4:$B$96,0), MATCH(NPS!J$2&NPS!$C$1,【D】NPS!$C$2:$GO$2&【D】NPS!$C$3:$GO$3,0)) -> -26.66666667 | K16: =INDEX(【D】NPS!$C$4:$GO$96,MATCH(NPS!$B16,【D】NPS!$B$4:$B$96,0), MATCH(NPS!K$2&NPS!$C$1,【D】NPS!$C$2:$GO$2&【D】NPS!$C$3:$GO$3,0)) -> 44.44444444 | L16: =INDEX(【D】NPS!$C$4:$GO$96,MATCH(NPS!$B16,【D】NPS!$B$4:$B$96,0), MATCH(NPS!L$2&NPS!$C$1,【D】NPS!$C$2:$GO$2&【D】NPS!$C$3:$GO$3,0)) -> -13.63636364 | M16: =INDEX(【D】NPS!$C$4:$GO$96,MATCH(NPS!$B16,【D】NPS!$B$4:$B$96,0), MATCH(NPS!M$2&NPS!$C$1,【D】NPS!$C$2:$GO$2&【D】NPS!$C$3:$GO$3,0)) -> 0 | N16: =INDEX(【D】NPS!$C$4:$GO$96,MATCH(NPS!$B16,【D】NPS!$B$4:$B$96,0), MATCH(NPS!N$2&NPS!$C$1,【D】NPS!$C$2:$GO$2&【D】NPS!$C$3:$GO$3,0)) -> 16.66666667 | O16: =INDEX(【D】NPS!$C$4:$GO$96,MATCH(NPS!$B16,【D】NPS!$B$4:$B$96,0), MATCH(NPS!O$2&NPS!$C$1,【D】NPS!$C$2:$GO$2&【D】NPS!$C$3:$GO$3,0)) -> 8 | P16: =INDEX(【D】NPS!$C$4:$GO$96,MATCH(NPS!$B16,【D】NPS!$B$4:$B$96,0), MATCH(NPS!P$2&NPS!$C$1,【D】NPS!$C$2:$GO$2&【D】NPS!$C$3:$GO$3,0)) -> 14.90384615 | S16: =INDEX(【D】NPS!$C$4:$GO$96,MATCH(NPS!$B16,【D】NPS!$B$4:$B$96,0), MATCH(NPS!S$2&NPS!$R$1,【D】NPS!$C$2:$GO$2&【D】NPS!$C$3:$GO$3,0)) -> 50 | T16: =INDEX(【D】NPS!$C$4:$GO$96,MATCH(NPS!$B16,【D】NPS!$B$4:$B$96,0), MATCH(NPS!T$2&NPS!$R$1,【D】NPS!$C$2:$GO$2&【D】NPS!$C$3:$GO$3,0)) -> 37 | U16: =INDEX(【D】NPS!$C$4:$GO$96,MATCH(NPS!$B16,【D】NPS!$B$4:$B$96,0), MATCH(NPS!U$2&NPS!$R$1,【D】NPS!$C$2:$GO$2&【D】NPS!$C$3:$GO$3,0)) -> 4 | V16: =INDEX(【D】NPS!$C$4:$GO$96,MATCH(NPS!$B16,【D】NPS!$B$4:$B$96,0), MATCH(NPS!V$2&NPS!$R$1,【D】NPS!$C$2:$GO$2&【D】NPS!$C$3:$GO$3,0)) -> 12 | W16: =INDEX(【D】NPS!$C$4:$GO$96,MATCH(NPS!$B16,【D】NPS!$B$4:$B$96,0), MATCH(NPS!W$2&NPS!$R$1,【D】NPS!$C$2:$GO$2&【D】NPS!$C$3:$GO$3,0)) -> 14 | X16: =INDEX(【D】NPS!$C$4:$GO$96,MATCH(NPS!$B16,【D】NPS!$B$4:$B$96,0), MATCH(NPS!X$2&NPS!$R$1,【D】NPS!$C$2:$GO$2&【D】NPS!$C$3:$GO$3,0)) -> 22 | Y16: =INDEX(【D】NPS!$C$4:$GO$96,MATCH(NPS!$B16,【D】NPS!$B$4:$B$96,0), MATCH(NPS!Y$2&NPS!$R$1,【D】NPS!$C$2:$GO$2&【D】NPS!$C$3:$GO$3,0)) -> 74 | Z16: =INDEX(【D】NPS!$C$4:$GO$96,MATCH(NPS!$B16,【D】NPS!$B$4:$B$96,0), MATCH(NPS!Z$2&NPS!$R$1,【D】NPS!$C$2:$GO$2&【D】NPS!$C$3:$GO$3,0)) -> 6 | AA16: =INDEX(【D】NPS!$C$4:$GO$96,MATCH(NPS!$B16,【D】NPS!$B$4:$B$96,0), MATCH(NPS!AA$2&NPS!$R$1,【D】NPS!$C$2:$GO$2&【D】NPS!$C$3:$GO$3,0)) -> 64 | AB16: =INDEX(【D】NPS!$C$4:$GO$96,MATCH(NPS!$B16,【D】NPS!$B$4:$B$96,0), MATCH(NPS!AB$2&NPS!$R$1,【D】NPS!$C$2:$GO$2&【D】NPS!$C$3:$GO$3,0)) -> 43 | AC16: =INDEX(【D】NPS!$C$4:$GO$96,MATCH(NPS!$B16,【D】NPS!$B$4:$B$96,0), MATCH(NPS!AC$2&NPS!$R$1,【D】NPS!$C$2:$GO$2&【D】NPS!$C$3:$GO$3,0)) -> 25 | AD16: =INDEX(【D】NPS!$C$4:$GO$96,MATCH(NPS!$B16,【D】NPS!$B$4:$B$96,0), MATCH(NPS!AD$2&NPS!$R$1,【D】NPS!$C$2:$GO$2&【D】NPS!$C$3:$GO$3,0)) -> 52 | AE16: =INDEX(【D】NPS!$C$4:$GO$96,MATCH(NPS!$B16,【D】NPS!$B$4:$B$96,0), MATCH(NPS!AE$2&NPS!$R$1,【D】NPS!$C$2:$GO$2&【D】NPS!$C$3:$GO$3,0)) -> 23 | AH16: =INDEX(【D】NPS!$C$4:$GO$96,MATCH(NPS!$B16,【D】NPS!$B$4:$B$96,0), MATCH(NPS!AH$2&NPS!$AG$1,【D】NPS!$C$2:$GO$2&【D】NPS!$C$3:$GO$3,0)) -> 50 | AI16: =INDEX(【D】NPS!$C$4:$GO$96,MATCH(NPS!$B16,【D】NPS!$B$4:$B$96,0), MATCH(NPS!AI$2&NPS!$AG$1,【D】NPS!$C$2:$GO$2&【D】NPS!$C$3:$GO$3,0)) -> 37 | AJ16: =INDEX(【D】NPS!$C$4:$GO$96,MATCH(NPS!$B16,【D】NPS!$B$4:$B$96,0), MATCH(NPS!AJ$2&NPS!$AG$1,【D】NPS!$C$2:$GO$2&【D】NPS!$C$3:$GO$3,0)) -> 5 | AK16: =INDEX(【D】NPS!$C$4:$GO$96,MATCH(NPS!$B16,【D】NPS!$B$4:$B$96,0), MATCH(NPS!AK$2&NPS!$AG$1,【D】NPS!$C$2:$GO$2&【D】NPS!$C$3:$GO$3,0)) -> 12 | AL16: =INDEX(【D】NPS!$C$4:$GO$96,MATCH(NPS!$B16,【D】NPS!$B$4:$B$96,0), MATCH(NPS!AL$2&NPS!$AG$1,【D】NPS!$C$2:$GO$2&【D】NPS!$C$3:$GO$3,0)) -> 14 | AM16: =INDEX(【D】NPS!$C$4:$GO$96,MATCH(NPS!$B16,【D】NPS!$B$4:$B$96,0), MATCH(NPS!AM$2&NPS!$AG$1,【D】NPS!$C$2:$GO$2&【D】NPS!$C$3:$GO$3,0)) -> 22 | AN16: =INDEX(【D】NPS!$C$4:$GO$96,MATCH(NPS!$B16,【D】NPS!$B$4:$B$96,0), MATCH(NPS!AN$2&NPS!$AG$1,【D】NPS!$C$2:$GO$2&【D】NPS!$C$3:$GO$3,0)) -> 74 | AO16: =INDEX(【D】NPS!$C$4:$GO$96,MATCH(NPS!$B16,【D】NPS!$B$4:$B$96,0), MATCH(NPS!AO$2&NPS!$AG$1,【D】NPS!$C$2:$GO$2&【D】NPS!$C$3:$GO$3,0)) -> 6 | AP16: =INDEX(【D】NPS!$C$4:$GO$96,MATCH(NPS!$B16,【D】NPS!$B$4:$B$96,0), MATCH(NPS!AP$2&NPS!$AG$1,【D】NPS!$C$2:$GO$2&【D】NPS!$C$3:$GO$3,0)) -> 64 | AQ16: =INDEX(【D】NPS!$C$4:$GO$96,MATCH(NPS!$B16,【D】NPS!$B$4:$B$96,0), MATCH(NPS!AQ$2&NPS!$AG$1,【D】NPS!$C$2:$GO$2&【D】NPS!$C$3:$GO$3,0)) -> 45 | AR16: =INDEX(【D】NPS!$C$4:$GO$96,MATCH(NPS!$B16,【D】NPS!$B$4:$B$96,0), MATCH(NPS!AR$2&NPS!$AG$1,【D】NPS!$C$2:$GO$2&【D】NPS!$C$3:$GO$3,0)) -> 25 | AS16: =INDEX(【D】NPS!$C$4:$GO$96,MATCH(NPS!$B16,【D】NPS!$B$4:$B$96,0), MATCH(NPS!AS$2&NPS!$AG$1,【D】NPS!$C$2:$GO$2&【D】NPS!$C$3:$GO$3,0)) -> 52 | AT16: =INDEX(【D】NPS!$C$4:$GO$96,MATCH(NPS!$B16,【D】NPS!$B$4:$B$96,0), MATCH(NPS!AT$2&NPS!$AG$1,【D】NPS!$C$2:$GO$2&【D】NPS!$C$3:$GO$3,0)) -> 23 | AV16: 14 | AW16: 14 | AX16: 越前漁港 エリア | AY16: 42.85714286 | AZ16: =INDEX(【D】NPS!$C$7:$HB$96, MATCH(NPS!$AX16,【D】NPS!$B$7:$B$96,0), MATCH(NPS!$AZ$2&NPS!$AW$1,【D】NPS!$C$1:$HB$1&【D】NPS!$C$2:$HB$2,0)) -> 7
B17: 芝政ワールド エリア | D17: =INDEX(【D】NPS!$C$4:$GO$96,MATCH(NPS!$B17,【D】NPS!$B$4:$B$96,0), MATCH(NPS!D$2&NPS!$C$1,【D】NPS!$C$2:$GO$2&【D】NPS!$C$3:$GO$3,0)) -> None | E17: =INDEX(【D】NPS!$C$4:$GO$96,MATCH(NPS!$B17,【D】NPS!$B$4:$B$96,0), MATCH(NPS!E$2&NPS!$C$1,【D】NPS!$C$2:$GO$2&【D】NPS!$C$3:$GO$3,0)) -> -50 | F17: =INDEX(【D】NPS!$C$4:$GO$96,MATCH(NPS!$B17,【D】NPS!$B$4:$B$96,0), MATCH(NPS!F$2&NPS!$C$1,【D】NPS!$C$2:$GO$2&【D】NPS!$C$3:$GO$3,0)) -> None | G17: =INDEX(【D】NPS!$C$4:$GO$96,MATCH(NPS!$B17,【D】NPS!$B$4:$B$96,0), MATCH(NPS!G$2&NPS!$C$1,【D】NPS!$C$2:$GO$2&【D】NPS!$C$3:$GO$3,0)) -> -100 | H17: =INDEX(【D】NPS!$C$4:$GO$96,MATCH(NPS!$B17,【D】NPS!$B$4:$B$96,0), MATCH(NPS!H$2&NPS!$C$1,【D】NPS!$C$2:$GO$2&【D】NPS!$C$3:$GO$3,0)) -> 33.33333333 | I17: =INDEX(【D】NPS!$C$4:$GO$96,MATCH(NPS!$B17,【D】NPS!$B$4:$B$96,0), MATCH(NPS!I$2&NPS!$C$1,【D】NPS!$C$2:$GO$2&【D】NPS!$C$3:$GO$3,0)) -> 50 | J17: =INDEX(【D】NPS!$C$4:$GO$96,MATCH(NPS!$B17,【D】NPS!$B$4:$B$96,0), MATCH(NPS!J$2&NPS!$C$1,【D】NPS!$C$2:$GO$2&【D】NPS!$C$3:$GO$3,0)) -> None | K17: =INDEX(【D】NPS!$C$4:$GO$96,MATCH(NPS!$B17,【D】NPS!$B$4:$B$96,0), MATCH(NPS!K$2&NPS!$C$1,【D】NPS!$C$2:$GO$2&【D】NPS!$C$3:$GO$3,0)) -> -100 | L17: =INDEX(【D】NPS!$C$4:$GO$96,MATCH(NPS!$B17,【D】NPS!$B$4:$B$96,0), MATCH(NPS!L$2&NPS!$C$1,【D】NPS!$C$2:$GO$2&【D】NPS!$C$3:$GO$3,0)) -> None | M17: =INDEX(【D】NPS!$C$4:$GO$96,MATCH(NPS!$B17,【D】NPS!$B$4:$B$96,0), MATCH(NPS!M$2&NPS!$C$1,【D】NPS!$C$2:$GO$2&【D】NPS!$C$3:$GO$3,0)) -> None | N17: =INDEX(【D】NPS!$C$4:$GO$96,MATCH(NPS!$B17,【D】NPS!$B$4:$B$96,0), MATCH(NPS!N$2&NPS!$C$1,【D】NPS!$C$2:$GO$2&【D】NPS!$C$3:$GO$3,0)) -> -100 | O17: =INDEX(【D】NPS!$C$4:$GO$96,MATCH(NPS!$B17,【D】NPS!$B$4:$B$96,0), MATCH(NPS!O$2&NPS!$C$1,【D】NPS!$C$2:$GO$2&【D】NPS!$C$3:$GO$3,0)) -> 33.33333333 | P17: =INDEX(【D】NPS!$C$4:$GO$96,MATCH(NPS!$B17,【D】NPS!$B$4:$B$96,0), MATCH(NPS!P$2&NPS!$C$1,【D】NPS!$C$2:$GO$2&【D】NPS!$C$3:$GO$3,0)) -> 0 | S17: =INDEX(【D】NPS!$C$4:$GO$96,MATCH(NPS!$B17,【D】NPS!$B$4:$B$96,0), MATCH(NPS!S$2&NPS!$R$1,【D】NPS!$C$2:$GO$2&【D】NPS!$C$3:$GO$3,0)) -> - | T17: =INDEX(【D】NPS!$C$4:$GO$96,MATCH(NPS!$B17,【D】NPS!$B$4:$B$96,0), MATCH(NPS!T$2&NPS!$R$1,【D】NPS!$C$2:$GO$2&【D】NPS!$C$3:$GO$3,0)) -> 82 | U17: =INDEX(【D】NPS!$C$4:$GO$96,MATCH(NPS!$B17,【D】NPS!$B$4:$B$96,0), MATCH(NPS!U$2&NPS!$R$1,【D】NPS!$C$2:$GO$2&【D】NPS!$C$3:$GO$3,0)) -> - | V17: =INDEX(【D】NPS!$C$4:$GO$96,MATCH(NPS!$B17,【D】NPS!$B$4:$B$96,0), MATCH(NPS!V$2&NPS!$R$1,【D】NPS!$C$2:$GO$2&【D】NPS!$C$3:$GO$3,0)) -> 83 | W17: =INDEX(【D】NPS!$C$4:$GO$96,MATCH(NPS!$B17,【D】NPS!$B$4:$B$96,0), MATCH(NPS!W$2&NPS!$R$1,【D】NPS!$C$2:$GO$2&【D】NPS!$C$3:$GO$3,0)) -> 16 | X17: =INDEX(【D】NPS!$C$4:$GO$96,MATCH(NPS!$B17,【D】NPS!$B$4:$B$96,0), MATCH(NPS!X$2&NPS!$R$1,【D】NPS!$C$2:$GO$2&【D】NPS!$C$3:$GO$3,0)) -> 1 | Y17: =INDEX(【D】NPS!$C$4:$GO$96,MATCH(NPS!$B17,【D】NPS!$B$4:$B$96,0), MATCH(NPS!Y$2&NPS!$R$1,【D】NPS!$C$2:$GO$2&【D】NPS!$C$3:$GO$3,0)) -> - | Z17: =INDEX(【D】NPS!$C$4:$GO$96,MATCH(NPS!$B17,【D】NPS!$B$4:$B$96,0), MATCH(NPS!Z$2&NPS!$R$1,【D】NPS!$C$2:$GO$2&【D】NPS!$C$3:$GO$3,0)) -> 87 | AA17: =INDEX(【D】NPS!$C$4:$GO$96,MATCH(NPS!$B17,【D】NPS!$B$4:$B$96,0), MATCH(NPS!AA$2&NPS!$R$1,【D】NPS!$C$2:$GO$2&【D】NPS!$C$3:$GO$3,0)) -> - | AB17: =INDEX(【D】NPS!$C$4:$GO$96,MATCH(NPS!$B17,【D】NPS!$B$4:$B$96,0), MATCH(NPS!AB$2&NPS!$R$1,【D】NPS!$C$2:$GO$2&【D】NPS!$C$3:$GO$3,0)) -> - | AC17: =INDEX(【D】NPS!$C$4:$GO$96,MATCH(NPS!$B17,【D】NPS!$B$4:$B$96,0), MATCH(NPS!AC$2&NPS!$R$1,【D】NPS!$C$2:$GO$2&【D】NPS!$C$3:$GO$3,0)) -> 79 | AD17: =INDEX(【D】NPS!$C$4:$GO$96,MATCH(NPS!$B17,【D】NPS!$B$4:$B$96,0), MATCH(NPS!AD$2&NPS!$R$1,【D】NPS!$C$2:$GO$2&【D】NPS!$C$3:$GO$3,0)) -> 17 | AE17: =INDEX(【D】NPS!$C$4:$GO$96,MATCH(NPS!$B17,【D】NPS!$B$4:$B$96,0), MATCH(NPS!AE$2&NPS!$R$1,【D】NPS!$C$2:$GO$2&【D】NPS!$C$3:$GO$3,0)) -> 53 | AH17: =INDEX(【D】NPS!$C$4:$GO$96,MATCH(NPS!$B17,【D】NPS!$B$4:$B$96,0), MATCH(NPS!AH$2&NPS!$AG$1,【D】NPS!$C$2:$GO$2&【D】NPS!$C$3:$GO$3,0)) -> - | AI17: =INDEX(【D】NPS!$C$4:$GO$96,MATCH(NPS!$B17,【D】NPS!$B$4:$B$96,0), MATCH(NPS!AI$2&NPS!$AG$1,【D】NPS!$C$2:$GO$2&【D】NPS!$C$3:$GO$3,0)) -> 83 | AJ17: =INDEX(【D】NPS!$C$4:$GO$96,MATCH(NPS!$B17,【D】NPS!$B$4:$B$96,0), MATCH(NPS!AJ$2&NPS!$AG$1,【D】NPS!$C$2:$GO$2&【D】NPS!$C$3:$GO$3,0)) -> - | AK17: =INDEX(【D】NPS!$C$4:$GO$96,MATCH(NPS!$B17,【D】NPS!$B$4:$B$96,0), MATCH(NPS!AK$2&NPS!$AG$1,【D】NPS!$C$2:$GO$2&【D】NPS!$C$3:$GO$3,0)) -> 85 | AL17: =INDEX(【D】NPS!$C$4:$GO$96,MATCH(NPS!$B17,【D】NPS!$B$4:$B$96,0), MATCH(NPS!AL$2&NPS!$AG$1,【D】NPS!$C$2:$GO$2&【D】NPS!$C$3:$GO$3,0)) -> 20 | AM17: =INDEX(【D】NPS!$C$4:$GO$96,MATCH(NPS!$B17,【D】NPS!$B$4:$B$96,0), MATCH(NPS!AM$2&NPS!$AG$1,【D】NPS!$C$2:$GO$2&【D】NPS!$C$3:$GO$3,0)) -> 2 | AN17: =INDEX(【D】NPS!$C$4:$GO$96,MATCH(NPS!$B17,【D】NPS!$B$4:$B$96,0), MATCH(NPS!AN$2&NPS!$AG$1,【D】NPS!$C$2:$GO$2&【D】NPS!$C$3:$GO$3,0)) -> - | AO17: =INDEX(【D】NPS!$C$4:$GO$96,MATCH(NPS!$B17,【D】NPS!$B$4:$B$96,0), MATCH(NPS!AO$2&NPS!$AG$1,【D】NPS!$C$2:$GO$2&【D】NPS!$C$3:$GO$3,0)) -> 88 | AP17: =INDEX(【D】NPS!$C$4:$GO$96,MATCH(NPS!$B17,【D】NPS!$B$4:$B$96,0), MATCH(NPS!AP$2&NPS!$AG$1,【D】NPS!$C$2:$GO$2&【D】NPS!$C$3:$GO$3,0)) -> - | AQ17: =INDEX(【D】NPS!$C$4:$GO$96,MATCH(NPS!$B17,【D】NPS!$B$4:$B$96,0), MATCH(NPS!AQ$2&NPS!$AG$1,【D】NPS!$C$2:$GO$2&【D】NPS!$C$3:$GO$3,0)) -> - | AR17: =INDEX(【D】NPS!$C$4:$GO$96,MATCH(NPS!$B17,【D】NPS!$B$4:$B$96,0), MATCH(NPS!AR$2&NPS!$AG$1,【D】NPS!$C$2:$GO$2&【D】NPS!$C$3:$GO$3,0)) -> 80 | AS17: =INDEX(【D】NPS!$C$4:$GO$96,MATCH(NPS!$B17,【D】NPS!$B$4:$B$96,0), MATCH(NPS!AS$2&NPS!$AG$1,【D】NPS!$C$2:$GO$2&【D】NPS!$C$3:$GO$3,0)) -> 17 | AT17: =INDEX(【D】NPS!$C$4:$GO$96,MATCH(NPS!$B17,【D】NPS!$B$4:$B$96,0), MATCH(NPS!AT$2&NPS!$AG$1,【D】NPS!$C$2:$GO$2&【D】NPS!$C$3:$GO$3,0)) -> 57 | AV17: 15 | AW17: 15 | AX17: 越前海岸 高佐米ノ旅館街 エリア | AY17: 41.66666667 | AZ17: =INDEX(【D】NPS!$C$7:$HB$96, MATCH(NPS!$AX17,【D】NPS!$B$7:$B$96,0), MATCH(NPS!$AZ$2&NPS!$AW$1,【D】NPS!$C$1:$HB$1&【D】NPS!$C$2:$HB$2,0)) -> 12
B18: 丸岡城 エリア | D18: =INDEX(【D】NPS!$C$4:$GO$96,MATCH(NPS!$B18,【D】NPS!$B$4:$B$96,0), MATCH(NPS!D$2&NPS!$C$1,【D】NPS!$C$2:$GO$2&【D】NPS!$C$3:$GO$3,0)) -> 40 | E18: =INDEX(【D】NPS!$C$4:$GO$96,MATCH(NPS!$B18,【D】NPS!$B$4:$B$96,0), MATCH(NPS!E$2&NPS!$C$1,【D】NPS!$C$2:$GO$2&【D】NPS!$C$3:$GO$3,0)) -> -11.76470588 | F18: =INDEX(【D】NPS!$C$4:$GO$96,MATCH(NPS!$B18,【D】NPS!$B$4:$B$96,0), MATCH(NPS!F$2&NPS!$C$1,【D】NPS!$C$2:$GO$2&【D】NPS!$C$3:$GO$3,0)) -> 8.333333333 | G18: =INDEX(【D】NPS!$C$4:$GO$96,MATCH(NPS!$B18,【D】NPS!$B$4:$B$96,0), MATCH(NPS!G$2&NPS!$C$1,【D】NPS!$C$2:$GO$2&【D】NPS!$C$3:$GO$3,0)) -> 11.11111111 | H18: =INDEX(【D】NPS!$C$4:$GO$96,MATCH(NPS!$B18,【D】NPS!$B$4:$B$96,0), MATCH(NPS!H$2&NPS!$C$1,【D】NPS!$C$2:$GO$2&【D】NPS!$C$3:$GO$3,0)) -> -9.433962264 | I18: =INDEX(【D】NPS!$C$4:$GO$96,MATCH(NPS!$B18,【D】NPS!$B$4:$B$96,0), MATCH(NPS!I$2&NPS!$C$1,【D】NPS!$C$2:$GO$2&【D】NPS!$C$3:$GO$3,0)) -> -6.060606061 | J18: =INDEX(【D】NPS!$C$4:$GO$96,MATCH(NPS!$B18,【D】NPS!$B$4:$B$96,0), MATCH(NPS!J$2&NPS!$C$1,【D】NPS!$C$2:$GO$2&【D】NPS!$C$3:$GO$3,0)) -> -9.259259259 | K18: =INDEX(【D】NPS!$C$4:$GO$96,MATCH(NPS!$B18,【D】NPS!$B$4:$B$96,0), MATCH(NPS!K$2&NPS!$C$1,【D】NPS!$C$2:$GO$2&【D】NPS!$C$3:$GO$3,0)) -> 10.60606061 | L18: =INDEX(【D】NPS!$C$4:$GO$96,MATCH(NPS!$B18,【D】NPS!$B$4:$B$96,0), MATCH(NPS!L$2&NPS!$C$1,【D】NPS!$C$2:$GO$2&【D】NPS!$C$3:$GO$3,0)) -> 5 | M18: =INDEX(【D】NPS!$C$4:$GO$96,MATCH(NPS!$B18,【D】NPS!$B$4:$B$96,0), MATCH(NPS!M$2&NPS!$C$1,【D】NPS!$C$2:$GO$2&【D】NPS!$C$3:$GO$3,0)) -> -10 | N18: =INDEX(【D】NPS!$C$4:$GO$96,MATCH(NPS!$B18,【D】NPS!$B$4:$B$96,0), MATCH(NPS!N$2&NPS!$C$1,【D】NPS!$C$2:$GO$2&【D】NPS!$C$3:$GO$3,0)) -> -3.703703704 | O18: =INDEX(【D】NPS!$C$4:$GO$96,MATCH(NPS!$B18,【D】NPS!$B$4:$B$96,0), MATCH(NPS!O$2&NPS!$C$1,【D】NPS!$C$2:$GO$2&【D】NPS!$C$3:$GO$3,0)) -> -1.960784314 | P18: =INDEX(【D】NPS!$C$4:$GO$96,MATCH(NPS!$B18,【D】NPS!$B$4:$B$96,0), MATCH(NPS!P$2&NPS!$C$1,【D】NPS!$C$2:$GO$2&【D】NPS!$C$3:$GO$3,0)) -> -0.5780346821 | S18: =INDEX(【D】NPS!$C$4:$GO$96,MATCH(NPS!$B18,【D】NPS!$B$4:$B$96,0), MATCH(NPS!S$2&NPS!$R$1,【D】NPS!$C$2:$GO$2&【D】NPS!$C$3:$GO$3,0)) -> 12 | T18: =INDEX(【D】NPS!$C$4:$GO$96,MATCH(NPS!$B18,【D】NPS!$B$4:$B$96,0), MATCH(NPS!T$2&NPS!$R$1,【D】NPS!$C$2:$GO$2&【D】NPS!$C$3:$GO$3,0)) -> 59 | U18: =INDEX(【D】NPS!$C$4:$GO$96,MATCH(NPS!$B18,【D】NPS!$B$4:$B$96,0), MATCH(NPS!U$2&NPS!$R$1,【D】NPS!$C$2:$GO$2&【D】NPS!$C$3:$GO$3,0)) -> 37 | V18: =INDEX(【D】NPS!$C$4:$GO$96,MATCH(NPS!$B18,【D】NPS!$B$4:$B$96,0), MATCH(NPS!V$2&NPS!$R$1,【D】NPS!$C$2:$GO$2&【D】NPS!$C$3:$GO$3,0)) -> 29 | W18: =INDEX(【D】NPS!$C$4:$GO$96,MATCH(NPS!$B18,【D】NPS!$B$4:$B$96,0), MATCH(NPS!W$2&NPS!$R$1,【D】NPS!$C$2:$GO$2&【D】NPS!$C$3:$GO$3,0)) -> 63 | X18: =INDEX(【D】NPS!$C$4:$GO$96,MATCH(NPS!$B18,【D】NPS!$B$4:$B$96,0), MATCH(NPS!X$2&NPS!$R$1,【D】NPS!$C$2:$GO$2&【D】NPS!$C$3:$GO$3,0)) -> 55 | Y18: =INDEX(【D】NPS!$C$4:$GO$96,MATCH(NPS!$B18,【D】NPS!$B$4:$B$96,0), MATCH(NPS!Y$2&NPS!$R$1,【D】NPS!$C$2:$GO$2&【D】NPS!$C$3:$GO$3,0)) -> 45 | Z18: =INDEX(【D】NPS!$C$4:$GO$96,MATCH(NPS!$B18,【D】NPS!$B$4:$B$96,0), MATCH(NPS!Z$2&NPS!$R$1,【D】NPS!$C$2:$GO$2&【D】NPS!$C$3:$GO$3,0)) -> 36 | AA18: =INDEX(【D】NPS!$C$4:$GO$96,MATCH(NPS!$B18,【D】NPS!$B$4:$B$96,0), MATCH(NPS!AA$2&NPS!$R$1,【D】NPS!$C$2:$GO$2&【D】NPS!$C$3:$GO$3,0)) -> 42 | AB18: =INDEX(【D】NPS!$C$4:$GO$96,MATCH(NPS!$B18,【D】NPS!$B$4:$B$96,0), MATCH(NPS!AB$2&NPS!$R$1,【D】NPS!$C$2:$GO$2&【D】NPS!$C$3:$GO$3,0)) -> 56 | AC18: =INDEX(【D】NPS!$C$4:$GO$96,MATCH(NPS!$B18,【D】NPS!$B$4:$B$96,0), MATCH(NPS!AC$2&NPS!$R$1,【D】NPS!$C$2:$GO$2&【D】NPS!$C$3:$GO$3,0)) -> 61 | AD18: =INDEX(【D】NPS!$C$4:$GO$96,MATCH(NPS!$B18,【D】NPS!$B$4:$B$96,0), MATCH(NPS!AD$2&NPS!$R$1,【D】NPS!$C$2:$GO$2&【D】NPS!$C$3:$GO$3,0)) -> 70 | AE18: =INDEX(【D】NPS!$C$4:$GO$96,MATCH(NPS!$B18,【D】NPS!$B$4:$B$96,0), MATCH(NPS!AE$2&NPS!$R$1,【D】NPS!$C$2:$GO$2&【D】NPS!$C$3:$GO$3,0)) -> 58 | AH18: =INDEX(【D】NPS!$C$4:$GO$96,MATCH(NPS!$B18,【D】NPS!$B$4:$B$96,0), MATCH(NPS!AH$2&NPS!$AG$1,【D】NPS!$C$2:$GO$2&【D】NPS!$C$3:$GO$3,0)) -> 12 | AI18: =INDEX(【D】NPS!$C$4:$GO$96,MATCH(NPS!$B18,【D】NPS!$B$4:$B$96,0), MATCH(NPS!AI$2&NPS!$AG$1,【D】NPS!$C$2:$GO$2&【D】NPS!$C$3:$GO$3,0)) -> 59 | AJ18: =INDEX(【D】NPS!$C$4:$GO$96,MATCH(NPS!$B18,【D】NPS!$B$4:$B$96,0), MATCH(NPS!AJ$2&NPS!$AG$1,【D】NPS!$C$2:$GO$2&【D】NPS!$C$3:$GO$3,0)) -> 37 | AK18: =INDEX(【D】NPS!$C$4:$GO$96,MATCH(NPS!$B18,【D】NPS!$B$4:$B$96,0), MATCH(NPS!AK$2&NPS!$AG$1,【D】NPS!$C$2:$GO$2&【D】NPS!$C$3:$GO$3,0)) -> 30 | AL18: =INDEX(【D】NPS!$C$4:$GO$96,MATCH(NPS!$B18,【D】NPS!$B$4:$B$96,0), MATCH(NPS!AL$2&NPS!$AG$1,【D】NPS!$C$2:$GO$2&【D】NPS!$C$3:$GO$3,0)) -> 63 | AM18: =INDEX(【D】NPS!$C$4:$GO$96,MATCH(NPS!$B18,【D】NPS!$B$4:$B$96,0), MATCH(NPS!AM$2&NPS!$AG$1,【D】NPS!$C$2:$GO$2&【D】NPS!$C$3:$GO$3,0)) -> 55 | AN18: =INDEX(【D】NPS!$C$4:$GO$96,MATCH(NPS!$B18,【D】NPS!$B$4:$B$96,0), MATCH(NPS!AN$2&NPS!$AG$1,【D】NPS!$C$2:$GO$2&【D】NPS!$C$3:$GO$3,0)) -> 45 | AO18: =INDEX(【D】NPS!$C$4:$GO$96,MATCH(NPS!$B18,【D】NPS!$B$4:$B$96,0), MATCH(NPS!AO$2&NPS!$AG$1,【D】NPS!$C$2:$GO$2&【D】NPS!$C$3:$GO$3,0)) -> 36 | AP18: =INDEX(【D】NPS!$C$4:$GO$96,MATCH(NPS!$B18,【D】NPS!$B$4:$B$96,0), MATCH(NPS!AP$2&NPS!$AG$1,【D】NPS!$C$2:$GO$2&【D】NPS!$C$3:$GO$3,0)) -> 43 | AQ18: =INDEX(【D】NPS!$C$4:$GO$96,MATCH(NPS!$B18,【D】NPS!$B$4:$B$96,0), MATCH(NPS!AQ$2&NPS!$AG$1,【D】NPS!$C$2:$GO$2&【D】NPS!$C$3:$GO$3,0)) -> 56 | AR18: =INDEX(【D】NPS!$C$4:$GO$96,MATCH(NPS!$B18,【D】NPS!$B$4:$B$96,0), MATCH(NPS!AR$2&NPS!$AG$1,【D】NPS!$C$2:$GO$2&【D】NPS!$C$3:$GO$3,0)) -> 61 | AS18: =INDEX(【D】NPS!$C$4:$GO$96,MATCH(NPS!$B18,【D】NPS!$B$4:$B$96,0), MATCH(NPS!AS$2&NPS!$AG$1,【D】NPS!$C$2:$GO$2&【D】NPS!$C$3:$GO$3,0)) -> 70 | AT18: =INDEX(【D】NPS!$C$4:$GO$96,MATCH(NPS!$B18,【D】NPS!$B$4:$B$96,0), MATCH(NPS!AT$2&NPS!$AG$1,【D】NPS!$C$2:$GO$2&【D】NPS!$C$3:$GO$3,0)) -> 58 | AV18: 16 | AW18: 16 | AX18: うるしの里 エリア | AY18: 40 | AZ18: =INDEX(【D】NPS!$C$7:$HB$96, MATCH(NPS!$AX18,【D】NPS!$B$7:$B$96,0), MATCH(NPS!$AZ$2&NPS!$AW$1,【D】NPS!$C$1:$HB$1&【D】NPS!$C$2:$HB$2,0)) -> 10
